Workbook

Sheet Contents
A2: Powerlink Capex Model, Revenue Reset 2018 - 2022 - Revised Revenue Proposal
B4: This capex model brings together various capex forecasts and project information, to calculate the overall capex forecast for the next regulatory control period.
B5: Inputs are provided from the repex model, and the trend based model. Additionally, bottom up project information is included for specific projects, and for current projects. The information is listed on of (114) "project sheets". Totals are calculated from these project sheets, with output reports utilised by the PTRM, RIN reports, and forecast reporting. Adjustments to the forecast are made to ensure that the top down forecast aligns with approved projects and prior year expenditure.
I8: Capex Model
E9: Inputs | N9: Outputs
D11: Motor Vehicle Disposals
D14: CPI, Escalation Rates
N15: Comparison with RP - Totals
G16: Project Sheets | N16: Comparison with RP - Projects
D17: Cost Allocation | G17: P_1 | N17: Totals by Project | R17: Forecast Reporting
G18: P_25 | J18: Calculations | N18: Totals by Driver
G19: P_50 | J19: (subtotals for reporting) | N19: PTRM Input | R19: PTRM Model
D20: Data Lookups | G20: P_75
G21: P_100
G22: P_114
B24: Repex Model Forecast | D24: Project Data
B25: Trend Based Forecasts | D25: Project
B26: Bottom Up Project Forecasts | D26: Project Details
B27: Current Projects | I27: Adjustments to top down forecast
I28: (align top down forecast with approved projects)
I32: Data Checks | K32: Overall Data Check | M32: =Checks!C4 -> TRUE
F34: Total In Period Incurred Expenditure, Real 16/17, $m, (net of disposals) | M34: =Checks!F21 -> 886.2925414 | N34: (Revised Revenue Proposal)
M35: 957.0939502 | N35: (Revenue Proposal)
M36: =(M34-M35)/M35 -> -0.07397540105 | N36: (Change)
A39: Changes Between Revenue Proposal and Revised Revenue Proposal
A40: * Expenditure data from the forecast repex model has been updated.
A41: * Approved project information has been updated.
A42: * Alignment between top down model and bottom up project information has been recalculated.
A43: * Updated MPLS project information
A44: * Updated information for augmentation, connection and easement for WIP and 2017.
A45: * Deleted cashflows for FY2016
A46: * Removed RIN report worksheets. Removed data specific for RIN reports (RIN equipment items; cost allocations).
A47: * Added comparison reports (RP compared to RRP).
A48: * Updated data check worksheet.

Sheet Inputs---->
A1: Contents

Sheet Input Rates
A1: Contents
B3: Unit Rates
B5: Conversion | C5: 2015 | D5: 2016 | E5: 2017 | F5: 2018 | G5: 2019 | H5: 2020 | I5: 2021 | J5: 2022
B6: CPI | C6: 0.01328273245 | D6: 0.02354863668 | E6: 0.0245 | F6: 0.0245 | G6: 0.0245 | H6: 0.0245 | I6: 0.0245 | J6: 0.0245
B7: Internal Labour Escalation real | D7: 0.0065 | E7: 0.0055 | F7: 0.0063 | G7: 0.009 | H7: 0.0115 | I7: 0.0135 | J7: 0.0145
B8: External Labour Escalation real | D8: -0.003 | E8: 0.001 | F8: 0.0075 | G8: 0.008 | H8: 0.0115 | I8: 0.0165 | J8: 0.0165
B10: 1/2 CPI | C10: =((1+C6)^0.5)-1 -> 0.006619457614 | D10: 0.0117058054 | E10: 0.01217587405 | F10: 0.01217587405 | G10: 0.01217587405 | H10: 0.01217587405 | I10: 0.01217587405 | J10: 0.01217587405
B11: 1/2 Internal Labour Escalation | D11: =((D7+1)^0.5)-1 -> 0.003244735845 | E11: 0.002746229113 | F11: 0.003145054317 | G11: 0.004489920308 | H11: 0.005733563127 | I11: 0.006727371238 | J11: 0.00722390758
B12: 1/2 External Labour Escalation | D12: -0.001501126691 | E12: 0.0004998750625 | F12: 0.003742994994 | G12: 0.003992031841 | H12: 0.005733563127 | I12: 0.008216246646 | J12: 0.008216246646
B14: Convert MY Real 15/16 to MY Nominal - Non Labour | D14: 1 | E14: =D14*(1+D10)*(1+E10) -> 1.024024208 | F14: 1.049112801 | G14: 1.074816065 | H14: 1.101149058 | I14: 1.12812721 | J14: 1.155766327
B15: Convert MY Real 15/16 to MY Nominal - Internal Labour | D15: 1 | E15: =D15*(1+D10) *(1+E10)*(1+D11)*(1+E11) -> 1.030168226 | F15: 1.061634167 | G15: 1.095963698 | H15: 1.134322793 | I15: 1.176639548 | J15: 1.22234361
B16: Convert MY Real 15/16 to MY Nominal - External Labour | D16: 1 | E16: =D16*(1+D10)*(1+E10)*(1+D12)*(1+E12) -> 1.022998134 | F16: 1.052510338 | G16: 1.086653608 | H16: 1.12412938 | I16: 1.167790389 | J16: 1.216141874
B18: Convert MY Nominal to EOY Real 16/17 | C18: =Conversion[[#This Row],[2016]]*(1+C6)*(1+D10)/(1+C10) -> 1.055566911 | D18: =Conversion[[#This Row],[2017]]*(1+D6)*(1+E10)/(1+D10) -> 1.036492598 | E18: =1+E10 -> 1.012175874 | F18: =Conversion[[#This Row],[2017]]/(1+F6) -> 0.9879705945 | G18: =Conversion[[#This Row],[2018]]/(1+G6) -> 0.9643441625 | H18: =Conversion[[#This Row],[2019]]/(1+H6) -> 0.9412827355 | I18: =Conversion[[#This Row],[2020]]/(1+I6) -> 0.9187728018 | J18: =Conversion[[#This Row],[2021]]/(1+J6) -> 0.8968011731
B19: Convert EOY Real 16/17 to MY Nominal - CPI Only | D19: =1/D18 -> 0.9647922255 | E19: 0.9879705945 | F19: 1.012175874 | G19: 1.036974183 | H19: 1.06238005 | I19: 1.088408362 | J19: 1.115074367

Sheet Input Project
A1: Contents
B3: Project Data
B4: This sheet describes information that is common for a "project" or a class of projects (ie: output from repex model) | K4: Asset Class Breakdown | AE4: For Non-load driven project categories, 2017 and later
AE5: Used to check forecast with approved projects.
A6: ID | B6: Project Name | C6: Type | D6: Notes | E6: PQ Project Driver | F6: Check True Project Driver | G6: Capitalisation | H6: Capitalisation Check | I6: RepexDollarsBasis | J6: Check Repex Dollar Basis | K6: LinesOH | L6: LinesUG | M6: LinesRefit | N6: SubsPrimary | O6: SubsSecondary | P6: Communications | Q6: CommsCivil | R6: SwitchgCentres | S6: Land | T6: Easement | U6: CommericalBuildings | V6: IT | W6: Office | X6: OfficeMachines | Y6: MV | Z6: MovablePlant | AA6: InsuranceSpares | AB6: Check Asset Class Breakdown | AC6: DMDLCCOCSplitType | AD6: Check True RIN Splits Type | AE6: Specific Approved Project | AF6: OnlyAssetClassAllocationIsToBeUsed
A7: 1 | B7: Repex Model Replacement - Tower Replacements | C7: Future - Repex Model | E7: Replacement | F7: =ISNUMBER(MATCH(ProjectData[[#This Row],[PQ Project Driver]],Lookup_ProjectDrivers,0)) -> TRUE | G7: As Specified | H7: =ISNUMBER(MATCH(ProjectData[[#This Row],[Capitalisation]],Lookup_CapitalisationTypes,0)) -> TRUE | I7: Real1516 | J7: =ISNUMBER(MATCH(ProjectData[[#This Row],[RepexDollarsBasis]],Lookup_RepexDollarBasis,0)) -> TRUE | K7: 1 | AB7: =OR(SUM(ProjectData[[#This Row],[LinesOH]:[InsuranceSpares]])=1,ProjectData[[#This Row],[OnlyAssetClassAllocationIsToBeUsed]]=TRUE) -> TRUE | AC7: None | AD7: =ISNUMBER(MATCH(ProjectData[[#This Row],[DMDLCCOCSplitType]],CostAllocationSplit[Type of Project],0)) -> TRUE | AE7: FALSE | AF7: FALSE
A8: 2 | B8: Repex Model Replacement - Tower Refits - Single Circuit Towers | C8: Future - Repex Model | E8: Replacement | F8: =ISNUMBER(MATCH(ProjectData[[#This Row],[PQ Project Driver]],Lookup_ProjectDrivers,0)) -> TRUE | G8: As Specified | H8: =ISNUMBER(MATCH(ProjectData[[#This Row],[Capitalisation]],Lookup_CapitalisationTypes,0)) -> TRUE | I8: Real1516 | J8: =ISNUMBER(MATCH(ProjectData[[#This Row],[RepexDollarsBasis]],Lookup_RepexDollarBasis,0)) -> TRUE | M8: 1 | AB8: =OR(SUM(ProjectData[[#This Row],[LinesOH]:[InsuranceSpares]])=1,ProjectData[[#This Row],[OnlyAssetClassAllocationIsToBeUsed]]=TRUE) -> TRUE | AC8: None | AD8: =ISNUMBER(MATCH(ProjectData[[#This Row],[DMDLCCOCSplitType]],CostAllocationSplit[Type of Project],0)) -> TRUE | AE8: FALSE | AF8: FALSE
A9: 3 | B9: Repex Model Replacement - Tower Refits - Multiple Circuit Towers | C9: Future - Repex Model | E9: Replacement | F9: =ISNUMBER(MATCH(ProjectData[[#This Row],[PQ Project Driver]],Lookup_ProjectDrivers,0)) -> TRUE | G9: As Specified | H9: =ISNUMBER(MATCH(ProjectData[[#This Row],[Capitalisation]],Lookup_CapitalisationTypes,0)) -> TRUE | I9: Real1516 | J9: =ISNUMBER(MATCH(ProjectData[[#This Row],[RepexDollarsBasis]],Lookup_RepexDollarBasis,0)) -> TRUE | M9: 1 | AB9: =OR(SUM(ProjectData[[#This Row],[LinesOH]:[InsuranceSpares]])=1,ProjectData[[#This Row],[OnlyAssetClassAllocationIsToBeUsed]]=TRUE) -> TRUE | AC9: None | AD9: =ISNUMBER(MATCH(ProjectData[[#This Row],[DMDLCCOCSplitType]],CostAllocationSplit[Type of Project],0)) -> TRUE | AE9: FALSE | AF9: FALSE
A10: 4 | B10: Repex Model Replacement - CB Replacements | C10: Future - Repex Model | E10: Replacement | F10: =ISNUMBER(MATCH(ProjectData[[#This Row],[PQ Project Driver]],Lookup_ProjectDrivers,0)) -> TRUE | G10: As Specified | H10: =ISNUMBER(MATCH(ProjectData[[#This Row],[Capitalisation]],Lookup_CapitalisationTypes,0)) -> TRUE | I10: Real1516 | J10: =ISNUMBER(MATCH(ProjectData[[#This Row],[RepexDollarsBasis]],Lookup_RepexDollarBasis,0)) -> TRUE | N10: 1 | AB10: =OR(SUM(ProjectData[[#This Row],[LinesOH]:[InsuranceSpares]])=1,ProjectData[[#This Row],[OnlyAssetClassAllocationIsToBeUsed]]=TRUE) -> TRUE | AC10: None | AD10: =ISNUMBER(MATCH(ProjectData[[#This Row],[DMDLCCOCSplitType]],CostAllocationSplit[Type of Project],0)) -> TRUE | AE10: FALSE | AF10: FALSE
A11: 5 | B11: Repex Model Replacement - IsolES Replacements | C11: Future - Repex Model | E11: Replacement | F11: =ISNUMBER(MATCH(ProjectData[[#This Row],[PQ Project Driver]],Lookup_ProjectDrivers,0)) -> TRUE | G11: As Specified | H11: =ISNUMBER(MATCH(ProjectData[[#This Row],[Capitalisation]],Lookup_CapitalisationTypes,0)) -> TRUE | I11: Real1516 | J11: =ISNUMBER(MATCH(ProjectData[[#This Row],[RepexDollarsBasis]],Lookup_RepexDollarBasis,0)) -> TRUE | N11: 1 | AB11: =OR(SUM(ProjectData[[#This Row],[LinesOH]:[InsuranceSpares]])=1,ProjectData[[#This Row],[OnlyAssetClassAllocationIsToBeUsed]]=TRUE) -> TRUE | AC11: None | AD11: =ISNUMBER(MATCH(ProjectData[[#This Row],[DMDLCCOCSplitType]],CostAllocationSplit[Type of Project],0)) -> TRUE | AE11: FALSE | AF11: FALSE
A12: 6 | B12: Repex Model Replacement - VT Replacements | C12: Future - Repex Model | E12: Replacement | F12: =ISNUMBER(MATCH(ProjectData[[#This Row],[PQ Project Driver]],Lookup_ProjectDrivers,0)) -> TRUE | G12: As Specified | H12: =ISNUMBER(MATCH(ProjectData[[#This Row],[Capitalisation]],Lookup_CapitalisationTypes,0)) -> TRUE | I12: Real1516 | J12: =ISNUMBER(MATCH(ProjectData[[#This Row],[RepexDollarsBasis]],Lookup_RepexDollarBasis,0)) -> TRUE | N12: 1 | AB12: =OR(SUM(ProjectData[[#This Row],[LinesOH]:[InsuranceSpares]])=1,ProjectData[[#This Row],[OnlyAssetClassAllocationIsToBeUsed]]=TRUE) -> TRUE | AC12: None | AD12: =ISNUMBER(MATCH(ProjectData[[#This Row],[DMDLCCOCSplitType]],CostAllocationSplit[Type of Project],0)) -> TRUE | AE12: FALSE | AF12: FALSE
A13: 7 | B13: Repex Model Replacement - CT Replacements | C13: Future - Repex Model | E13: Replacement | F13: =ISNUMBER(MATCH(ProjectData[[#This Row],[PQ Project Driver]],Lookup_ProjectDrivers,0)) -> TRUE | G13: As Specified | H13: =ISNUMBER(MATCH(ProjectData[[#This Row],[Capitalisation]],Lookup_CapitalisationTypes,0)) -> TRUE | I13: Real1516 | J13: =ISNUMBER(MATCH(ProjectData[[#This Row],[RepexDollarsBasis]],Lookup_RepexDollarBasis,0)) -> TRUE | N13: 1 | AB13: =OR(SUM(ProjectData[[#This Row],[LinesOH]:[InsuranceSpares]])=1,ProjectData[[#This Row],[OnlyAssetClassAllocationIsToBeUsed]]=TRUE) -> TRUE | AC13: None | AD13: =ISNUMBER(MATCH(ProjectData[[#This Row],[DMDLCCOCSplitType]],CostAllocationSplit[Type of Project],0)) -> TRUE | AE13: FALSE | AF13: FALSE
A14: 8 | B14: Repex Model Replacement - Secondary Systems | C14: Future - Repex Model | E14: Replacement | F14: =ISNUMBER(MATCH(ProjectData[[#This Row],[PQ Project Driver]],Lookup_ProjectDrivers,0)) -> TRUE | G14: As Specified | H14: =ISNUMBER(MATCH(ProjectData[[#This Row],[Capitalisation]],Lookup_CapitalisationTypes,0)) -> TRUE | I14: Real1516 | J14: =ISNUMBER(MATCH(ProjectData[[#This Row],[RepexDollarsBasis]],Lookup_RepexDollarBasis,0)) -> TRUE | O14: 1 | AB14: =OR(SUM(ProjectData[[#This Row],[LinesOH]:[InsuranceSpares]])=1,ProjectData[[#This Row],[OnlyAssetClassAllocationIsToBeUsed]]=TRUE) -> TRUE | AC14: None | AD14: =ISNUMBER(MATCH(ProjectData[[#This Row],[DMDLCCOCSplitType]],CostAllocationSplit[Type of Project],0)) -> TRUE | AE14: FALSE | AF14: FALSE
A15: 9 | B15: Repex Model Replacement - Telecomms | C15: Future - Repex Model | E15: Replacement | F15: =ISNUMBER(MATCH(ProjectData[[#This Row],[PQ Project Driver]],Lookup_ProjectDrivers,0)) -> TRUE | G15: As Specified | H15: =ISNUMBER(MATCH(ProjectData[[#This Row],[Capitalisation]],Lookup_CapitalisationTypes,0)) -> TRUE | I15: Real1516 | J15: =ISNUMBER(MATCH(ProjectData[[#This Row],[RepexDollarsBasis]],Lookup_RepexDollarBasis,0)) -> TRUE | P15: 1 | AB15: =OR(SUM(ProjectData[[#This Row],[LinesOH]:[InsuranceSpares]])=1,ProjectData[[#This Row],[OnlyAssetClassAllocationIsToBeUsed]]=TRUE) -> TRUE | AC15: None | AD15: =ISNUMBER(MATCH(ProjectData[[#This Row],[DMDLCCOCSplitType]],CostAllocationSplit[Type of Project],0)) -> TRUE | AE15: FALSE | AF15: FALSE
A16: 10 | B16: Repex Model Replacement - Other - Buildings Infrastructure | C16: Future - Repex Model | E16: Replacement | F16: =ISNUMBER(MATCH(ProjectData[[#This Row],[PQ Project Driver]],Lookup_ProjectDrivers,0)) -> TRUE | G16: As Specified | H16: =ISNUMBER(MATCH(ProjectData[[#This Row],[Capitalisation]],Lookup_CapitalisationTypes,0)) -> TRUE | I16: Real1516 | J16: =ISNUMBER(MATCH(ProjectData[[#This Row],[RepexDollarsBasis]],Lookup_RepexDollarBasis,0)) -> TRUE | N16: 1 | AB16: =OR(SUM(ProjectData[[#This Row],[LinesOH]:[InsuranceSpares]])=1,ProjectData[[#This Row],[OnlyAssetClassAllocationIsToBeUsed]]=TRUE) -> TRUE | AC16: None | AD16: =ISNUMBER(MATCH(ProjectData[[#This Row],[DMDLCCOCSplitType]],CostAllocationSplit[Type of Project],0)) -> TRUE | AE16: FALSE | AF16: FALSE
A17: 11 | B17: Repex Model Adjustment - Capex Allowance for Towers Maintained under Opex | C17: Future - Allocation | E17: Replacement | F17: =ISNUMBER(MATCH(ProjectData[[#This Row],[PQ Project Driver]],Lookup_ProjectDrivers,0)) -> TRUE | G17: None | H17: =ISNUMBER(MATCH(ProjectData[[#This Row],[Capitalisation]],Lookup_CapitalisationTypes,0)) -> TRUE | I17: Real1516 | J17: =ISNUMBER(MATCH(ProjectData[[#This Row],[RepexDollarsBasis]],Lookup_RepexDollarBasis,0)) -> TRUE | M17: 1 | AB17: =OR(SUM(ProjectData[[#This Row],[LinesOH]:[InsuranceSpares]])=1,ProjectData[[#This Row],[OnlyAssetClassAllocationIsToBeUsed]]=TRUE) -> TRUE | AC17: None | AD17: =ISNUMBER(MATCH(ProjectData[[#This Row],[DMDLCCOCSplitType]],CostAllocationSplit[Type of Project],0)) -> TRUE | AE17: FALSE | AF17: FALSE
A18: 12 | B18: Repex Model Replacement - Tower Replacements - Replaced as Part of Substation Rebuild | C18: Future - Repex Model | E18: Replacement | F18: =ISNUMBER(MATCH(ProjectData[[#This Row],[PQ Project Driver]],Lookup_ProjectDrivers,0)) -> TRUE | G18: As Specified | H18: =ISNUMBER(MATCH(ProjectData[[#This Row],[Capitalisation]],Lookup_CapitalisationTypes,0)) -> TRUE | I18: Real1516 | J18: =ISNUMBER(MATCH(ProjectData[[#This Row],[RepexDollarsBasis]],Lookup_RepexDollarBasis,0)) -> TRUE | K18: 1 | AB18: =OR(SUM(ProjectData[[#This Row],[LinesOH]:[InsuranceSpares]])=1,ProjectData[[#This Row],[OnlyAssetClassAllocationIsToBeUsed]]=TRUE) -> TRUE | AC18: None | AD18: =ISNUMBER(MATCH(ProjectData[[#This Row],[DMDLCCOCSplitType]],CostAllocationSplit[Type of Project],0)) -> TRUE | AE18: FALSE | AF18: FALSE
A19: 13 | B19: CP.02371 - H010 - Bouldercombe - 1T, 2T | C19: Future - Transformer | E19: Replacement | F19: =ISNUMBER(MATCH(ProjectData[[#This Row],[PQ Project Driver]],Lookup_ProjectDrivers,0)) -> TRUE | G19: Project Close | H19: =ISNUMBER(MATCH(ProjectData[[#This Row],[Capitalisation]],Lookup_CapitalisationTypes,0)) -> TRUE | I19: Nominal | J19: =ISNUMBER(MATCH(ProjectData[[#This Row],[RepexDollarsBasis]],Lookup_RepexDollarBasis,0)) -> TRUE | L19: 0 | N19: 0.9073514757 | O19: 0.0926485243 | AB19: =OR(SUM(ProjectData[[#This Row],[LinesOH]:[InsuranceSpares]])=1,ProjectData[[#This Row],[OnlyAssetClassAllocationIsToBeUsed]]=TRUE) -> TRUE | AC19: None | AD19: =ISNUMBER(MATCH(ProjectData[[#This Row],[DMDLCCOCSplitType]],CostAllocationSplit[Type of Project],0)) -> TRUE | AE19: FALSE | AF19: FALSE
A20: 14 | B20: CP.02356 - H015 - Lilyvale - 3T, 4T, 7T | C20: Future - Transformer | E20: Replacement | F20: =ISNUMBER(MATCH(ProjectData[[#This Row],[PQ Project Driver]],Lookup_ProjectDrivers,0)) -> TRUE | G20: Project Close | H20: =ISNUMBER(MATCH(ProjectData[[#This Row],[Capitalisation]],Lookup_CapitalisationTypes,0)) -> TRUE | I20: Nominal | J20: =ISNUMBER(MATCH(ProjectData[[#This Row],[RepexDollarsBasis]],Lookup_RepexDollarBasis,0)) -> TRUE | L20: 0 | N20: 0.9253369085 | O20: 0.07466309149 | AB20: =OR(SUM(ProjectData[[#This Row],[LinesOH]:[InsuranceSpares]])=1,ProjectData[[#This Row],[OnlyAssetClassAllocationIsToBeUsed]]=TRUE) -> TRUE | AC20: None | AD20: =ISNUMBER(MATCH(ProjectData[[#This Row],[DMDLCCOCSplitType]],CostAllocationSplit[Type of Project],0)) -> TRUE | AE20: FALSE | AF20: FALSE
A21: 15 | B21: CP.02369 - T032 - Blackwater - 1T, 2T | C21: Future - Transformer | E21: Replacement | F21: =ISNUMBER(MATCH(ProjectData[[#This Row],[PQ Project Driver]],Lookup_ProjectDrivers,0)) -> TRUE | G21: Project Close | H21: =ISNUMBER(MATCH(ProjectData[[#This Row],[Capitalisation]],Lookup_CapitalisationTypes,0)) -> TRUE | I21: Nominal | J21: =ISNUMBER(MATCH(ProjectData[[#This Row],[RepexDollarsBasis]],Lookup_RepexDollarBasis,0)) -> TRUE | L21: 0 | N21: 0.8545899158 | O21: 0.1454100842 | AB21: =OR(SUM(ProjectData[[#This Row],[LinesOH]:[InsuranceSpares]])=1,ProjectData[[#This Row],[OnlyAssetClassAllocationIsToBeUsed]]=TRUE) -> TRUE | AC21: None | AD21: =ISNUMBER(MATCH(ProjectData[[#This Row],[DMDLCCOCSplitType]],CostAllocationSplit[Type of Project],0)) -> TRUE | AE21: FALSE | AF21: FALSE
A22: 16 | B22: CP.02463 - T035 - Dysart - 1T, 2T | C22: Future - Transformer | E22: Replacement | F22: =ISNUMBER(MATCH(ProjectData[[#This Row],[PQ Project Driver]],Lookup_ProjectDrivers,0)) -> TRUE | G22: Project Close | H22: =ISNUMBER(MATCH(ProjectData[[#This Row],[Capitalisation]],Lookup_CapitalisationTypes,0)) -> TRUE | I22: Nominal | J22: =ISNUMBER(MATCH(ProjectData[[#This Row],[RepexDollarsBasis]],Lookup_RepexDollarBasis,0)) -> TRUE | L22: 0 | N22: 0.8392070308 | O22: 0.1607929692 | AB22: =OR(SUM(ProjectData[[#This Row],[LinesOH]:[InsuranceSpares]])=1,ProjectData[[#This Row],[OnlyAssetClassAllocationIsToBeUsed]]=TRUE) -> TRUE | AC22: None | AD22: =ISNUMBER(MATCH(ProjectData[[#This Row],[DMDLCCOCSplitType]],CostAllocationSplit[Type of Project],0)) -> TRUE | AE22: FALSE | AF22: FALSE
A23: 17 | B23: CP.02516 - T046 - Garbutt - 1T, 2T | C23: Future - Transformer | E23: Replacement | F23: =ISNUMBER(MATCH(ProjectData[[#This Row],[PQ Project Driver]],Lookup_ProjectDrivers,0)) -> TRUE | G23: Project Close | H23: =ISNUMBER(MATCH(ProjectData[[#This Row],[Capitalisation]],Lookup_CapitalisationTypes,0)) -> TRUE | I23: Nominal | J23: =ISNUMBER(MATCH(ProjectData[[#This Row],[RepexDollarsBasis]],Lookup_RepexDollarBasis,0)) -> TRUE | L23: 0 | N23: 0.9151056532 | O23: 0.08489434678 | AB23: =OR(SUM(ProjectData[[#This Row],[LinesOH]:[InsuranceSpares]])=1,ProjectData[[#This Row],[OnlyAssetClassAllocationIsToBeUsed]]=TRUE) -> TRUE | AC23: None | AD23: =ISNUMBER(MATCH(ProjectData[[#This Row],[DMDLCCOCSplitType]],CostAllocationSplit[Type of Project],0)) -> TRUE | AE23: FALSE | AF23: FALSE
A24: 18 | B24: CP.02339 - T067 - Kemmis - 2T | C24: Future - Transformer | E24: Replacement | F24: =ISNUMBER(MATCH(ProjectData[[#This Row],[PQ Project Driver]],Lookup_ProjectDrivers,0)) -> TRUE | G24: Project Close | H24: =ISNUMBER(MATCH(ProjectData[[#This Row],[Capitalisation]],Lookup_CapitalisationTypes,0)) -> TRUE | I24: Nominal | J24: =ISNUMBER(MATCH(ProjectData[[#This Row],[RepexDollarsBasis]],Lookup_RepexDollarBasis,0)) -> TRUE | L24: 0 | N24: 0.8778138561 | O24: 0.1221861439 | AB24: =OR(SUM(ProjectData[[#This Row],[LinesOH]:[InsuranceSpares]])=1,ProjectData[[#This Row],[OnlyAssetClassAllocationIsToBeUsed]]=TRUE) -> TRUE | AC24: None | AD24: =ISNUMBER(MATCH(ProjectData[[#This Row],[DMDLCCOCSplitType]],CostAllocationSplit[Type of Project],0)) -> TRUE | AE24: FALSE | AF24: FALSE
A25: 19 | B25: CP.02462 - T157 - Ingham South - 1T, 2T | C25: Future - Transformer | E25: Replacement | F25: =ISNUMBER(MATCH(ProjectData[[#This Row],[PQ Project Driver]],Lookup_ProjectDrivers,0)) -> TRUE | G25: Project Close | H25: =ISNUMBER(MATCH(ProjectData[[#This Row],[Capitalisation]],Lookup_CapitalisationTypes,0)) -> TRUE | I25: Nominal | J25: =ISNUMBER(MATCH(ProjectData[[#This Row],[RepexDollarsBasis]],Lookup_RepexDollarBasis,0)) -> TRUE | L25: 0.02409019898 | N25: 0.8923070416 | O25: 0.08360275941 | AB25: =OR(SUM(ProjectData[[#This Row],[LinesOH]:[InsuranceSpares]])=1,ProjectData[[#This Row],[OnlyAssetClassAllocationIsToBeUsed]]=TRUE) -> TRUE | AC25: None | AD25: =ISNUMBER(MATCH(ProjectData[[#This Row],[DMDLCCOCSplitType]],CostAllocationSplit[Type of Project],0)) -> TRUE | AE25: FALSE | AF25: FALSE
A26: 20 | B26: EMS Upgrade | C26: Future - Project | E26: Replacement | F26: =ISNUMBER(MATCH(ProjectData[[#This Row],[PQ Project Driver]],Lookup_ProjectDrivers,0)) -> TRUE | G26: Project Close | H26: =ISNUMBER(MATCH(ProjectData[[#This Row],[Capitalisation]],Lookup_CapitalisationTypes,0)) -> TRUE | I26: Nominal | J26: TRUE | R26: 1 | AB26: =OR(SUM(ProjectData[[#This Row],[LinesOH]:[InsuranceSpares]])=1,ProjectData[[#This Row],[OnlyAssetClassAllocationIsToBeUsed]]=TRUE) -> TRUE | AC26: None | AD26: =ISNUMBER(MATCH(ProjectData[[#This Row],[DMDLCCOCSplitType]],CostAllocationSplit[Type of Project],0)) -> TRUE | AE26: FALSE | AF26: FALSE
A27: 21 | B27: CP.01546 - Callide A Transformer - Power transformer component | C27: Future - Project | E27: Replacement | F27: =ISNUMBER(MATCH(ProjectData[[#This Row],[PQ Project Driver]],Lookup_ProjectDrivers,0)) -> TRUE | G27: Project Close | H27: =ISNUMBER(MATCH(ProjectData[[#This Row],[Capitalisation]],Lookup_CapitalisationTypes,0)) -> TRUE | I27: Nominal | J27: TRUE | N27: 1 | AB27: =OR(SUM(ProjectData[[#This Row],[LinesOH]:[InsuranceSpares]])=1,ProjectData[[#This Row],[OnlyAssetClassAllocationIsToBeUsed]]=TRUE) -> TRUE | AC27: None | AD27: =ISNUMBER(MATCH(ProjectData[[#This Row],[DMDLCCOCSplitType]],CostAllocationSplit[Type of Project],0)) -> TRUE | AE27: FALSE | AF27: FALSE
A28: 22 | B28: Trend Based Model - Replacement Outside of Repex Model | C28: Future - Trend | E28: Replacement | F28: =ISNUMBER(MATCH(ProjectData[[#This Row],[PQ Project Driver]],Lookup_ProjectDrivers,0)) -> TRUE | G28: As Incurred | H28: =ISNUMBER(MATCH(ProjectData[[#This Row],[Capitalisation]],Lookup_CapitalisationTypes,0)) -> TRUE | I28: Real1516 | J28: TRUE | K28: 0.1 | O28: 0.3 | P28: 0.3 | R28: 0.3 | AB28: =OR(SUM(ProjectData[[#This Row],[LinesOH]:[InsuranceSpares]])=1,ProjectData[[#This Row],[OnlyAssetClassAllocationIsToBeUsed]]=TRUE) -> TRUE | AC28: None | AD28: =ISNUMBER(MATCH(ProjectData[[#This Row],[DMDLCCOCSplitType]],CostAllocationSplit[Type of Project],0)) -> TRUE | AE28: FALSE | AF28: FALSE
A29: 23 | B29: Trend Based Model - Other | C29: Future - Trend | E29: Other | F29: =ISNUMBER(MATCH(ProjectData[[#This Row],[PQ Project Driver]],Lookup_ProjectDrivers,0)) -> TRUE | G29: As Incurred | H29: =ISNUMBER(MATCH(ProjectData[[#This Row],[Capitalisation]],Lookup_CapitalisationTypes,0)) -> TRUE | I29: Real1516 | J29: TRUE | N29: 0.25 | O29: 0.25 | P29: 0.25 | R29: 0.25 | AB29: =OR(SUM(ProjectData[[#This Row],[LinesOH]:[InsuranceSpares]])=1,ProjectData[[#This Row],[OnlyAssetClassAllocationIsToBeUsed]]=TRUE) -> TRUE | AC29: None | AD29: =ISNUMBER(MATCH(ProjectData[[#This Row],[DMDLCCOCSplitType]],CostAllocationSplit[Type of Project],0)) -> TRUE | AE29: FALSE | AF29: FALSE
A30: 24 | B30: CP.02553 - Wide Area Network Deployment Stage 2 - MPLS | C30: Future - Project | E30: Other | F30: =ISNUMBER(MATCH(ProjectData[[#This Row],[PQ Project Driver]],Lookup_ProjectDrivers,0)) -> TRUE | G30: Project Close | H30: =ISNUMBER(MATCH(ProjectData[[#This Row],[Capitalisation]],Lookup_CapitalisationTypes,0)) -> TRUE | I30: Nominal | J30: =ISNUMBER(MATCH(ProjectData[[#This Row],[RepexDollarsBasis]],Lookup_RepexDollarBasis,0)) -> TRUE | N30: =728465/6057756 -> 0.1202532753 | P30: =5329291/6057756 -> 0.8797467247 | AB30: =OR(SUM(ProjectData[[#This Row],[LinesOH]:[InsuranceSpares]])=1,ProjectData[[#This Row],[OnlyAssetClassAllocationIsToBeUsed]]=TRUE) -> TRUE | AC30: None | AD30: =ISNUMBER(MATCH(ProjectData[[#This Row],[DMDLCCOCSplitType]],CostAllocationSplit[Type of Project],0)) -> TRUE | AE30: FALSE | AF30: FALSE
A31: 25 | B31: Trend Based Model - Security and Compliance | C31: Future - Trend | E31: Security and Compliance | F31: =ISNUMBER(MATCH(ProjectData[[#This Row],[PQ Project Driver]],Lookup_ProjectDrivers,0)) -> TRUE | G31: As Incurred | H31: =ISNUMBER(MATCH(ProjectData[[#This Row],[Capitalisation]],Lookup_CapitalisationTypes,0)) -> TRUE | I31: Real1516 | J31: TRUE | N31: 0.25 | O31: 0.25 | P31: 0.25 | R31: 0.25 | AB31: =OR(SUM(ProjectData[[#This Row],[LinesOH]:[InsuranceSpares]])=1,ProjectData[[#This Row],[OnlyAssetClassAllocationIsToBeUsed]]=TRUE) -> TRUE | AC31: None | AD31: =ISNUMBER(MATCH(ProjectData[[#This Row],[DMDLCCOCSplitType]],CostAllocationSplit[Type of Project],0)) -> TRUE | AE31: FALSE | AF31: FALSE
A32: 26 | B32: CP.02410 - Proserpine Capacitor Bank | C32: Future - Project | E32: Augmentation | F32: =ISNUMBER(MATCH(ProjectData[[#This Row],[PQ Project Driver]],Lookup_ProjectDrivers,0)) -> TRUE | G32: Project Close | H32: =ISNUMBER(MATCH(ProjectData[[#This Row],[Capitalisation]],Lookup_CapitalisationTypes,0)) -> TRUE | I32: Nominal | J32: TRUE | N32: 0.8112371242 | O32: 0.1887628758 | AB32: =OR(SUM(ProjectData[[#This Row],[LinesOH]:[InsuranceSpares]])=1,ProjectData[[#This Row],[OnlyAssetClassAllocationIsToBeUsed]]=TRUE) -> TRUE | AC32: None | AD32: =ISNUMBER(MATCH(ProjectData[[#This Row],[DMDLCCOCSplitType]],CostAllocationSplit[Type of Project],0)) -> TRUE | AE32: NA | AF32: FALSE
A33: 27 | B33: SPARE | F33: =ISNUMBER(MATCH(ProjectData[[#This Row],[PQ Project Driver]],Lookup_ProjectDrivers,0)) -> FALSE | H33: =ISNUMBER(MATCH(ProjectData[[#This Row],[Capitalisation]],Lookup_CapitalisationTypes,0)) -> FALSE | J33: =ISNUMBER(MATCH(ProjectData[[#This Row],[RepexDollarsBasis]],Lookup_RepexDollarBasis,0)) -> FALSE | AB33: =OR(SUM(ProjectData[[#This Row],[LinesOH]:[InsuranceSpares]])=1,ProjectData[[#This Row],[OnlyAssetClassAllocationIsToBeUsed]]=TRUE) -> FALSE | AC33: None | AD33: =ISNUMBER(MATCH(ProjectData[[#This Row],[DMDLCCOCSplitType]],CostAllocationSplit[Type of Project],0)) -> TRUE | AF33: FALSE
A34: 28 | B34: SPARE | F34: =ISNUMBER(MATCH(ProjectData[[#This Row],[PQ Project Driver]],Lookup_ProjectDrivers,0)) -> FALSE | H34: =ISNUMBER(MATCH(ProjectData[[#This Row],[Capitalisation]],Lookup_CapitalisationTypes,0)) -> FALSE | J34: =ISNUMBER(MATCH(ProjectData[[#This Row],[RepexDollarsBasis]],Lookup_RepexDollarBasis,0)) -> FALSE | AB34: =OR(SUM(ProjectData[[#This Row],[LinesOH]:[InsuranceSpares]])=1,ProjectData[[#This Row],[OnlyAssetClassAllocationIsToBeUsed]]=TRUE) -> FALSE | AC34: None | AD34: =ISNUMBER(MATCH(ProjectData[[#This Row],[DMDLCCOCSplitType]],CostAllocationSplit[Type of Project],0)) -> TRUE | AF34: FALSE
A35: 29 | B35: Past Augmentations | C35: Past Projects | E35: Augmentation | F35: =ISNUMBER(MATCH(ProjectData[[#This Row],[PQ Project Driver]],Lookup_ProjectDrivers,0)) -> TRUE | G35: Project Close | H35: =ISNUMBER(MATCH(ProjectData[[#This Row],[Capitalisation]],Lookup_CapitalisationTypes,0)) -> TRUE | I35: Nominal | J35: =ISNUMBER(MATCH(ProjectData[[#This Row],[RepexDollarsBasis]],Lookup_RepexDollarBasis,0)) -> TRUE | K35: 0.1334592716 | N35: 0.8138546296 | O35: 0.05129247112 | P35: 0.001393627656 | AB35: =OR(SUM(ProjectData[[#This Row],[LinesOH]:[InsuranceSpares]])=1,ProjectData[[#This Row],[OnlyAssetClassAllocationIsToBeUsed]]=TRUE) -> TRUE | AC35: None | AD35: =ISNUMBER(MATCH(ProjectData[[#This Row],[DMDLCCOCSplitType]],CostAllocationSplit[Type of Project],0)) -> TRUE | AE35: NA | AF35: FALSE
A36: 30 | B36: 1 Past Easement Project | C36: Past Projects | E36: Easement | F36: =ISNUMBER(MATCH(ProjectData[[#This Row],[PQ Project Driver]],Lookup_ProjectDrivers,0)) -> TRUE | G36: Project Close | H36: =ISNUMBER(MATCH(ProjectData[[#This Row],[Capitalisation]],Lookup_CapitalisationTypes,0)) -> TRUE | I36: Nominal | J36: =ISNUMBER(MATCH(ProjectData[[#This Row],[RepexDollarsBasis]],Lookup_RepexDollarBasis,0)) -> TRUE | S36: 0.1639650272 | T36: 0.8360349728 | AB36: =OR(SUM(ProjectData[[#This Row],[LinesOH]:[InsuranceSpares]])=1,ProjectData[[#This Row],[OnlyAssetClassAllocationIsToBeUsed]]=TRUE) -> TRUE | AC36: None | AD36: =ISNUMBER(MATCH(ProjectData[[#This Row],[DMDLCCOCSplitType]],CostAllocationSplit[Type of Project],0)) -> TRUE | AE36: NA | AF36: FALSE
A37: 31 | B37: 2 Approved Easement Projects | C37: Current - Easement | E37: Easement | F37: =ISNUMBER(MATCH(ProjectData[[#This Row],[PQ Project Driver]],Lookup_ProjectDrivers,0)) -> TRUE | G37: Project Close | H37: =ISNUMBER(MATCH(ProjectData[[#This Row],[Capitalisation]],Lookup_CapitalisationTypes,0)) -> TRUE | I37: Nominal | J37: =ISNUMBER(MATCH(ProjectData[[#This Row],[RepexDollarsBasis]],Lookup_RepexDollarBasis,0)) -> TRUE | T37: 1 | AB37: =OR(SUM(ProjectData[[#This Row],[LinesOH]:[InsuranceSpares]])=1,ProjectData[[#This Row],[OnlyAssetClassAllocationIsToBeUsed]]=TRUE) -> TRUE | AC37: None | AD37: =ISNUMBER(MATCH(ProjectData[[#This Row],[DMDLCCOCSplitType]],CostAllocationSplit[Type of Project],0)) -> TRUE | AE37: NA | AF37: FALSE
A38: 32 | B38: 3 Approved Substation Sites | C38: Current - Easement | E38: Easement | F38: =ISNUMBER(MATCH(ProjectData[[#This Row],[PQ Project Driver]],Lookup_ProjectDrivers,0)) -> TRUE | G38: Project Close | H38: =ISNUMBER(MATCH(ProjectData[[#This Row],[Capitalisation]],Lookup_CapitalisationTypes,0)) -> TRUE | I38: Nominal | J38: =ISNUMBER(MATCH(ProjectData[[#This Row],[RepexDollarsBasis]],Lookup_RepexDollarBasis,0)) -> TRUE | S38: 1 | AB38: =OR(SUM(ProjectData[[#This Row],[LinesOH]:[InsuranceSpares]])=1,ProjectData[[#This Row],[OnlyAssetClassAllocationIsToBeUsed]]=TRUE) -> TRUE | AC38: None | AD38: =ISNUMBER(MATCH(ProjectData[[#This Row],[DMDLCCOCSplitType]],CostAllocationSplit[Type of Project],0)) -> TRUE | AE38: NA | AF38: FALSE
A39: 33 | B39: 4 Approved Project - Northern Bowen Basin | C39: Current - Easement | E39: Easement | F39: =ISNUMBER(MATCH(ProjectData[[#This Row],[PQ Project Driver]],Lookup_ProjectDrivers,0)) -> TRUE | G39: Project Close | H39: =ISNUMBER(MATCH(ProjectData[[#This Row],[Capitalisation]],Lookup_CapitalisationTypes,0)) -> TRUE | I39: Nominal | J39: =ISNUMBER(MATCH(ProjectData[[#This Row],[RepexDollarsBasis]],Lookup_RepexDollarBasis,0)) -> TRUE | S39: 0.27 | T39: 0.73 | AB39: =OR(SUM(ProjectData[[#This Row],[LinesOH]:[InsuranceSpares]])=1,ProjectData[[#This Row],[OnlyAssetClassAllocationIsToBeUsed]]=TRUE) -> TRUE | AC39: None | AD39: =ISNUMBER(MATCH(ProjectData[[#This Row],[DMDLCCOCSplitType]],CostAllocationSplit[Type of Project],0)) -> TRUE | AE39: NA | AF39: FALSE
A40: 34 | B40: 5 Acquire Sub Access Easements & Designation | C40: Current - Easement | E40: Easement | F40: =ISNUMBER(MATCH(ProjectData[[#This Row],[PQ Project Driver]],Lookup_ProjectDrivers,0)) -> TRUE | G40: Project Close | H40: =ISNUMBER(MATCH(ProjectData[[#This Row],[Capitalisation]],Lookup_CapitalisationTypes,0)) -> TRUE | I40: Nominal | J40: =ISNUMBER(MATCH(ProjectData[[#This Row],[RepexDollarsBasis]],Lookup_RepexDollarBasis,0)) -> TRUE | S40: 1 | AB40: =OR(SUM(ProjectData[[#This Row],[LinesOH]:[InsuranceSpares]])=1,ProjectData[[#This Row],[OnlyAssetClassAllocationIsToBeUsed]]=TRUE) -> TRUE | AC40: None | AD40: =ISNUMBER(MATCH(ProjectData[[#This Row],[DMDLCCOCSplitType]],CostAllocationSplit[Type of Project],0)) -> TRUE | AE40: NA | AF40: FALSE
A41: 35 | B41: 6 Future Easement - FNQ | C41: Current - Easement | E41: Easement | F41: =ISNUMBER(MATCH(ProjectData[[#This Row],[PQ Project Driver]],Lookup_ProjectDrivers,0)) -> TRUE | G41: Project Close | H41: =ISNUMBER(MATCH(ProjectData[[#This Row],[Capitalisation]],Lookup_CapitalisationTypes,0)) -> TRUE | I41: Nominal | J41: =ISNUMBER(MATCH(ProjectData[[#This Row],[RepexDollarsBasis]],Lookup_RepexDollarBasis,0)) -> TRUE | S41: 0.4 | T41: 0.6 | AB41: =OR(SUM(ProjectData[[#This Row],[LinesOH]:[InsuranceSpares]])=1,ProjectData[[#This Row],[OnlyAssetClassAllocationIsToBeUsed]]=TRUE) -> TRUE | AC41: None | AD41: =ISNUMBER(MATCH(ProjectData[[#This Row],[DMDLCCOCSplitType]],CostAllocationSplit[Type of Project],0)) -> TRUE | AE41: NA | AF41: FALSE
A42: 36 | B42: 7 Future Easement - Easement | C42: Current - Easement | E42: Easement | F42: =ISNUMBER(MATCH(ProjectData[[#This Row],[PQ Project Driver]],Lookup_ProjectDrivers,0)) -> TRUE | G42: Project Close | H42: =ISNUMBER(MATCH(ProjectData[[#This Row],[Capitalisation]],Lookup_CapitalisationTypes,0)) -> TRUE | I42: Nominal | J42: =ISNUMBER(MATCH(ProjectData[[#This Row],[RepexDollarsBasis]],Lookup_RepexDollarBasis,0)) -> TRUE | T42: 1 | AB42: =OR(SUM(ProjectData[[#This Row],[LinesOH]:[InsuranceSpares]])=1,ProjectData[[#This Row],[OnlyAssetClassAllocationIsToBeUsed]]=TRUE) -> TRUE | AC42: None | AD42: =ISNUMBER(MATCH(ProjectData[[#This Row],[DMDLCCOCSplitType]],CostAllocationSplit[Type of Project],0)) -> TRUE | AE42: NA | AF42: FALSE
A43: 37 | B43: Not Yet Capitalised Past Projects - Connections | C43: Past Projects | E43: Connection | F43: =ISNUMBER(MATCH(ProjectData[[#This Row],[PQ Project Driver]],Lookup_ProjectDrivers,0)) -> TRUE | G43: Project Close | H43: =ISNUMBER(MATCH(ProjectData[[#This Row],[Capitalisation]],Lookup_CapitalisationTypes,0)) -> TRUE | I43: Nominal | J43: =ISNUMBER(MATCH(ProjectData[[#This Row],[RepexDollarsBasis]],Lookup_RepexDollarBasis,0)) -> TRUE | N43: 0.63 | O43: 0.34 | P43: 0.03 | AB43: =OR(SUM(ProjectData[[#This Row],[LinesOH]:[InsuranceSpares]])=1,ProjectData[[#This Row],[OnlyAssetClassAllocationIsToBeUsed]]=TRUE) -> TRUE | AC43: None | AD43: =ISNUMBER(MATCH(ProjectData[[#This Row],[DMDLCCOCSplitType]],CostAllocationSplit[Type of Project],0)) -> TRUE | AE43: NA | AF43: FALSE
A44: 38 | B44: Not Yet Capitalised Past Projects - Other | C44: Past Projects | E44: Other | F44: =ISNUMBER(MATCH(ProjectData[[#This Row],[PQ Project Driver]],Lookup_ProjectDrivers,0)) -> TRUE | G44: Project Close | H44: =ISNUMBER(MATCH(ProjectData[[#This Row],[Capitalisation]],Lookup_CapitalisationTypes,0)) -> TRUE | I44: Nominal | J44: =ISNUMBER(MATCH(ProjectData[[#This Row],[RepexDollarsBasis]],Lookup_RepexDollarBasis,0)) -> TRUE | K44: 0 | L44: 0 | M44: 0 | N44: 0 | O44: 0.06773021996 | P44: 0.93226978 | AB44: =OR(SUM(ProjectData[[#This Row],[LinesOH]:[InsuranceSpares]])=1,ProjectData[[#This Row],[OnlyAssetClassAllocationIsToBeUsed]]=TRUE) -> TRUE | AC44: None | AD44: =ISNUMBER(MATCH(ProjectData[[#This Row],[DMDLCCOCSplitType]],CostAllocationSplit[Type of Project],0)) -> TRUE | AE44: NA | AF44: FALSE
A45: 39 | B45: Not Yet Capitalised Past Projects - Security and Compliance | C45: Past Projects | E45: Security and Compliance | F45: =ISNUMBER(MATCH(ProjectData[[#This Row],[PQ Project Driver]],Lookup_ProjectDrivers,0)) -> TRUE | G45: Project Close | H45: =ISNUMBER(MATCH(ProjectData[[#This Row],[Capitalisation]],Lookup_CapitalisationTypes,0)) -> TRUE | I45: Nominal | J45: =ISNUMBER(MATCH(ProjectData[[#This Row],[RepexDollarsBasis]],Lookup_RepexDollarBasis,0)) -> TRUE | K45: 0 | L45: 0 | M45: 0 | N45: 0.81 | O45: 0.18 | P45: 0.01 | AB45: =OR(SUM(ProjectData[[#This Row],[LinesOH]:[InsuranceSpares]])=1,ProjectData[[#This Row],[OnlyAssetClassAllocationIsToBeUsed]]=TRUE) -> TRUE | AC45: None | AD45: =ISNUMBER(MATCH(ProjectData[[#This Row],[DMDLCCOCSplitType]],CostAllocationSplit[Type of Project],0)) -> TRUE | AE45: NA | AF45: FALSE
A46: 40 | B46: Not Yet Capitalised Past Projects - Replacement | C46: Past Projects | E46: Replacement | F46: =ISNUMBER(MATCH(ProjectData[[#This Row],[PQ Project Driver]],Lookup_ProjectDrivers,0)) -> TRUE | G46: Project Close | H46: =ISNUMBER(MATCH(ProjectData[[#This Row],[Capitalisation]],Lookup_CapitalisationTypes,0)) -> TRUE | I46: Nominal | J46: =ISNUMBER(MATCH(ProjectData[[#This Row],[RepexDollarsBasis]],Lookup_RepexDollarBasis,0)) -> TRUE | K46: 0.03324061343 | L46: 0 | M46: 0.008966904663 | N46: 0.06861283872 | O46: 0.1646447298 | P46: 0.7245349134 | AB46: =OR(SUM(ProjectData[[#This Row],[LinesOH]:[InsuranceSpares]])=1,ProjectData[[#This Row],[OnlyAssetClassAllocationIsToBeUsed]]=TRUE) -> TRUE | AC46: None | AD46: =ISNUMBER(MATCH(ProjectData[[#This Row],[DMDLCCOCSplitType]],CostAllocationSplit[Type of Project],0)) -> TRUE | AE46: NA | AF46: FALSE
A47: 41 | B47: MV | C47: Future - Non Network | E47: MV | F47: =ISNUMBER(MATCH(ProjectData[[#This Row],[PQ Project Driver]],Lookup_ProjectDrivers,0)) -> TRUE | G47: As Incurred | H47: =ISNUMBER(MATCH(ProjectData[[#This Row],[Capitalisation]],Lookup_CapitalisationTypes,0)) -> TRUE | I47: Nominal | J47: =ISNUMBER(MATCH(ProjectData[[#This Row],[RepexDollarsBasis]],Lookup_RepexDollarBasis,0)) -> TRUE | Y47: 1 | AB47: =OR(SUM(ProjectData[[#This Row],[LinesOH]:[InsuranceSpares]])=1,ProjectData[[#This Row],[OnlyAssetClassAllocationIsToBeUsed]]=TRUE) -> TRUE | AC47: None | AD47: =ISNUMBER(MATCH(ProjectData[[#This Row],[DMDLCCOCSplitType]],CostAllocationSplit[Type of Project],0)) -> TRUE | AE47: NA | AF47: FALSE
A48: 42 | B48: Buildings | C48: Future - Non Network | E48: Buildings | F48: =ISNUMBER(MATCH(ProjectData[[#This Row],[PQ Project Driver]],Lookup_ProjectDrivers,0)) -> TRUE | G48: As Incurred | H48: =ISNUMBER(MATCH(ProjectData[[#This Row],[Capitalisation]],Lookup_CapitalisationTypes,0)) -> TRUE | I48: Nominal | J48: =ISNUMBER(MATCH(ProjectData[[#This Row],[RepexDollarsBasis]],Lookup_RepexDollarBasis,0)) -> TRUE | U48: 1 | AB48: =OR(SUM(ProjectData[[#This Row],[LinesOH]:[InsuranceSpares]])=1,ProjectData[[#This Row],[OnlyAssetClassAllocationIsToBeUsed]]=TRUE) -> TRUE | AC48: None | AD48: =ISNUMBER(MATCH(ProjectData[[#This Row],[DMDLCCOCSplitType]],CostAllocationSplit[Type of Project],0)) -> TRUE | AE48: NA | AF48: FALSE
A49: 43 | B49: Tools | C49: Future - Non Network | E49: Tools | F49: =ISNUMBER(MATCH(ProjectData[[#This Row],[PQ Project Driver]],Lookup_ProjectDrivers,0)) -> TRUE | G49: As Incurred | H49: =ISNUMBER(MATCH(ProjectData[[#This Row],[Capitalisation]],Lookup_CapitalisationTypes,0)) -> TRUE | I49: Nominal | J49: =ISNUMBER(MATCH(ProjectData[[#This Row],[RepexDollarsBasis]],Lookup_RepexDollarBasis,0)) -> TRUE | Z49: 1 | AB49: =OR(SUM(ProjectData[[#This Row],[LinesOH]:[InsuranceSpares]])=1,ProjectData[[#This Row],[OnlyAssetClassAllocationIsToBeUsed]]=TRUE) -> TRUE | AC49: None | AD49: =ISNUMBER(MATCH(ProjectData[[#This Row],[DMDLCCOCSplitType]],CostAllocationSplit[Type of Project],0)) -> TRUE | AE49: NA | AF49: FALSE
A50: 44 | B50: IT - The Early Years | C50: Future - Non Network | E50: IT | F50: =ISNUMBER(MATCH(ProjectData[[#This Row],[PQ Project Driver]],Lookup_ProjectDrivers,0)) -> TRUE | G50: As Incurred | H50: =ISNUMBER(MATCH(ProjectData[[#This Row],[Capitalisation]],Lookup_CapitalisationTypes,0)) -> TRUE | I50: Real1516 | J50: =ISNUMBER(MATCH(ProjectData[[#This Row],[RepexDollarsBasis]],Lookup_RepexDollarBasis,0)) -> TRUE | V50: 1 | AB50: =OR(SUM(ProjectData[[#This Row],[LinesOH]:[InsuranceSpares]])=1,ProjectData[[#This Row],[OnlyAssetClassAllocationIsToBeUsed]]=TRUE) -> TRUE | AC50: None | AD50: =ISNUMBER(MATCH(ProjectData[[#This Row],[DMDLCCOCSplitType]],CostAllocationSplit[Type of Project],0)) -> TRUE | AE50: NA | AF50: FALSE
A51: 45 | B51: IT - Non Recurrent Programs (a) | C51: Future - Non Network | E51: IT | F51: =ISNUMBER(MATCH(ProjectData[[#This Row],[PQ Project Driver]],Lookup_ProjectDrivers,0)) -> TRUE | G51: As Incurred | H51: =ISNUMBER(MATCH(ProjectData[[#This Row],[Capitalisation]],Lookup_CapitalisationTypes,0)) -> TRUE | I51: Real1516 | J51: =ISNUMBER(MATCH(ProjectData[[#This Row],[RepexDollarsBasis]],Lookup_RepexDollarBasis,0)) -> TRUE | V51: 1 | AB51: =OR(SUM(ProjectData[[#This Row],[LinesOH]:[InsuranceSpares]])=1,ProjectData[[#This Row],[OnlyAssetClassAllocationIsToBeUsed]]=TRUE) -> TRUE | AC51: None | AD51: =ISNUMBER(MATCH(ProjectData[[#This Row],[DMDLCCOCSplitType]],CostAllocationSplit[Type of Project],0)) -> TRUE | AE51: NA | AF51: FALSE
A52: 46 | B52: IT - Non Recurrent Programs (b) | C52: Future - Non Network | E52: IT | F52: =ISNUMBER(MATCH(ProjectData[[#This Row],[PQ Project Driver]],Lookup_ProjectDrivers,0)) -> TRUE | G52: As Incurred | H52: =ISNUMBER(MATCH(ProjectData[[#This Row],[Capitalisation]],Lookup_CapitalisationTypes,0)) -> TRUE | I52: Real1516 | J52: =ISNUMBER(MATCH(ProjectData[[#This Row],[RepexDollarsBasis]],Lookup_RepexDollarBasis,0)) -> TRUE | V52: 1 | AB52: =OR(SUM(ProjectData[[#This Row],[LinesOH]:[InsuranceSpares]])=1,ProjectData[[#This Row],[OnlyAssetClassAllocationIsToBeUsed]]=TRUE) -> TRUE | AC52: None | AD52: =ISNUMBER(MATCH(ProjectData[[#This Row],[DMDLCCOCSplitType]],CostAllocationSplit[Type of Project],0)) -> TRUE | AE52: NA | AF52: FALSE
A53: 47 | B53: IT - Recurrent / Periodic - Software / Hardware Refresh | C53: Future - Non Network | E53: IT | F53: =ISNUMBER(MATCH(ProjectData[[#This Row],[PQ Project Driver]],Lookup_ProjectDrivers,0)) -> TRUE | G53: As Incurred | H53: =ISNUMBER(MATCH(ProjectData[[#This Row],[Capitalisation]],Lookup_CapitalisationTypes,0)) -> TRUE | I53: Real1516 | J53: =ISNUMBER(MATCH(ProjectData[[#This Row],[RepexDollarsBasis]],Lookup_RepexDollarBasis,0)) -> TRUE | V53: 1 | AB53: =OR(SUM(ProjectData[[#This Row],[LinesOH]:[InsuranceSpares]])=1,ProjectData[[#This Row],[OnlyAssetClassAllocationIsToBeUsed]]=TRUE) -> TRUE | AC53: None | AD53: =ISNUMBER(MATCH(ProjectData[[#This Row],[DMDLCCOCSplitType]],CostAllocationSplit[Type of Project],0)) -> TRUE | AE53: NA | AF53: FALSE
A54: 48 | B54: IT - Recurrent - Minor Software | C54: Future - Non Network | E54: IT | F54: =ISNUMBER(MATCH(ProjectData[[#This Row],[PQ Project Driver]],Lookup_ProjectDrivers,0)) -> TRUE | G54: As Incurred | H54: =ISNUMBER(MATCH(ProjectData[[#This Row],[Capitalisation]],Lookup_CapitalisationTypes,0)) -> TRUE | I54: Real1516 | J54: =ISNUMBER(MATCH(ProjectData[[#This Row],[RepexDollarsBasis]],Lookup_RepexDollarBasis,0)) -> TRUE | V54: 1 | AB54: =OR(SUM(ProjectData[[#This Row],[LinesOH]:[InsuranceSpares]])=1,ProjectData[[#This Row],[OnlyAssetClassAllocationIsToBeUsed]]=TRUE) -> TRUE | AC54: None | AD54: =ISNUMBER(MATCH(ProjectData[[#This Row],[DMDLCCOCSplitType]],CostAllocationSplit[Type of Project],0)) -> TRUE | AE54: NA | AF54: FALSE
A55: 49 | B55: Unapproved - Non Load Driven Other - Capitalisation > 2017 | C55: Current - Unapproved - Non Load Driven | E55: Other | F55: =ISNUMBER(MATCH(ProjectData[[#This Row],[PQ Project Driver]],Lookup_ProjectDrivers,0)) -> TRUE | G55: None | H55: =ISNUMBER(MATCH(ProjectData[[#This Row],[Capitalisation]],Lookup_CapitalisationTypes,0)) -> TRUE | I55: Nominal | J55: =ISNUMBER(MATCH(ProjectData[[#This Row],[RepexDollarsBasis]],Lookup_RepexDollarBasis,0)) -> TRUE | K55: 0 | L55: 0 | M55: 0 | N55: 0 | O55: 0.3840076585 | P55: 0.6159923415 | R55: 0 | AB55: =OR(SUM(ProjectData[[#This Row],[LinesOH]:[InsuranceSpares]])=1,ProjectData[[#This Row],[OnlyAssetClassAllocationIsToBeUsed]]=TRUE) -> TRUE | AC55: None | AD55: =ISNUMBER(MATCH(ProjectData[[#This Row],[DMDLCCOCSplitType]],CostAllocationSplit[Type of Project],0)) -> TRUE | AE55: FALSE | AF55: FALSE
A56: 52 | B56: Unapproved - Non Load Driven Other - Capitalisation = 2017 | C56: Current - Unapproved - Non Load Driven | E56: Other | F56: =ISNUMBER(MATCH(ProjectData[[#This Row],[PQ Project Driver]],Lookup_ProjectDrivers,0)) -> TRUE | G56: As Incurred | H56: =ISNUMBER(MATCH(ProjectData[[#This Row],[Capitalisation]],Lookup_CapitalisationTypes,0)) -> TRUE | I56: Nominal | J56: =ISNUMBER(MATCH(ProjectData[[#This Row],[RepexDollarsBasis]],Lookup_RepexDollarBasis,0)) -> TRUE | K56: 0 | L56: 0 | M56: 0 | N56: 0 | O56: 0 | P56: 1 | R56: 0 | AB56: =OR(SUM(ProjectData[[#This Row],[LinesOH]:[InsuranceSpares]])=1,ProjectData[[#This Row],[OnlyAssetClassAllocationIsToBeUsed]]=TRUE) -> TRUE | AC56: None | AD56: =ISNUMBER(MATCH(ProjectData[[#This Row],[DMDLCCOCSplitType]],CostAllocationSplit[Type of Project],0)) -> TRUE | AE56: FALSE | AF56: FALSE
A57: 50 | B57: Unapproved - Non Load Driven Replacement - Capitalisation > 2017 | C57: Current - Unapproved - Non Load Driven | E57: Replacement | F57: =ISNUMBER(MATCH(ProjectData[[#This Row],[PQ Project Driver]],Lookup_ProjectDrivers,0)) -> TRUE | G57: None | H57: =ISNUMBER(MATCH(ProjectData[[#This Row],[Capitalisation]],Lookup_CapitalisationTypes,0)) -> TRUE | I57: Nominal | J57: =ISNUMBER(MATCH(ProjectData[[#This Row],[RepexDollarsBasis]],Lookup_RepexDollarBasis,0)) -> TRUE | K57: 0.0614503477 | L57: 0 | M57: 0.6135255535 | N57: 0.04446907593 | O57: 0.2740256399 | P57: 0.00652938303 | R57: 0 | AB57: =OR(SUM(ProjectData[[#This Row],[LinesOH]:[InsuranceSpares]])=1,ProjectData[[#This Row],[OnlyAssetClassAllocationIsToBeUsed]]=TRUE) -> TRUE | AC57: None | AD57: =ISNUMBER(MATCH(ProjectData[[#This Row],[DMDLCCOCSplitType]],CostAllocationSplit[Type of Project],0)) -> TRUE | AE57: FALSE | AF57: FALSE
A58: 51 | B58: Unapproved - Non Load Driven Replacement - Capitalisation = 2017 | C58: Current - Unapproved - Non Load Driven | E58: Replacement | F58: =ISNUMBER(MATCH(ProjectData[[#This Row],[PQ Project Driver]],Lookup_ProjectDrivers,0)) -> TRUE | G58: As Incurred | H58: =ISNUMBER(MATCH(ProjectData[[#This Row],[Capitalisation]],Lookup_CapitalisationTypes,0)) -> TRUE | I58: Nominal | J58: =ISNUMBER(MATCH(ProjectData[[#This Row],[RepexDollarsBasis]],Lookup_RepexDollarBasis,0)) -> TRUE | K58: 0 | L58: 0 | M58: 0 | N58: 0 | O58: 1 | P58: 0 | R58: 0 | AB58: =OR(SUM(ProjectData[[#This Row],[LinesOH]:[InsuranceSpares]])=1,ProjectData[[#This Row],[OnlyAssetClassAllocationIsToBeUsed]]=TRUE) -> TRUE | AC58: None | AD58: =ISNUMBER(MATCH(ProjectData[[#This Row],[DMDLCCOCSplitType]],CostAllocationSplit[Type of Project],0)) -> TRUE | AE58: FALSE | AF58: FALSE
A59: 53 | B59: SPARE | F59: =ISNUMBER(MATCH(ProjectData[[#This Row],[PQ Project Driver]],Lookup_ProjectDrivers,0)) -> FALSE | H59: =ISNUMBER(MATCH(ProjectData[[#This Row],[Capitalisation]],Lookup_CapitalisationTypes,0)) -> FALSE | J59: =ISNUMBER(MATCH(ProjectData[[#This Row],[RepexDollarsBasis]],Lookup_RepexDollarBasis,0)) -> FALSE | AB59: =OR(SUM(ProjectData[[#This Row],[LinesOH]:[InsuranceSpares]])=1,ProjectData[[#This Row],[OnlyAssetClassAllocationIsToBeUsed]]=TRUE) -> FALSE | AC59: None | AD59: =ISNUMBER(MATCH(ProjectData[[#This Row],[DMDLCCOCSplitType]],CostAllocationSplit[Type of Project],0)) -> TRUE | AF59: FALSE
A60: 54 | B60: Adjustment To Account for Approved Projects - Replacement - Transmission Lines | C60: Adjustment | E60: Replacement | F60: =ISNUMBER(MATCH(ProjectData[[#This Row],[PQ Project Driver]],Lookup_ProjectDrivers,0)) -> TRUE | G60: Adjustment | H60: =ISNUMBER(MATCH(ProjectData[[#This Row],[Capitalisation]],Lookup_CapitalisationTypes,0)) -> TRUE | I60: None | J60: =ISNUMBER(MATCH(ProjectData[[#This Row],[RepexDollarsBasis]],Lookup_RepexDollarBasis,0)) -> TRUE | K60: 1 | AB60: =OR(SUM(ProjectData[[#This Row],[LinesOH]:[InsuranceSpares]])=1,ProjectData[[#This Row],[OnlyAssetClassAllocationIsToBeUsed]]=TRUE) -> TRUE | AC60: None | AD60: =ISNUMBER(MATCH(ProjectData[[#This Row],[DMDLCCOCSplitType]],CostAllocationSplit[Type of Project],0)) -> TRUE | AE60: FALSE | AF60: FALSE
A61: 55 | B61: Adjustment To Account for Approved Projects - Replacement - Transmission Lines Refit | C61: Adjustment | E61: Replacement | F61: =ISNUMBER(MATCH(ProjectData[[#This Row],[PQ Project Driver]],Lookup_ProjectDrivers,0)) -> TRUE | G61: Adjustment | H61: =ISNUMBER(MATCH(ProjectData[[#This Row],[Capitalisation]],Lookup_CapitalisationTypes,0)) -> TRUE | I61: None | J61: =ISNUMBER(MATCH(ProjectData[[#This Row],[RepexDollarsBasis]],Lookup_RepexDollarBasis,0)) -> TRUE | M61: 1 | AB61: =OR(SUM(ProjectData[[#This Row],[LinesOH]:[InsuranceSpares]])=1,ProjectData[[#This Row],[OnlyAssetClassAllocationIsToBeUsed]]=TRUE) -> TRUE | AC61: None | AD61: =ISNUMBER(MATCH(ProjectData[[#This Row],[DMDLCCOCSplitType]],CostAllocationSplit[Type of Project],0)) -> TRUE | AE61: FALSE | AF61: FALSE
A62: 56 | B62: Adjustment To Account for Approved Projects - Replacement - Primary Plant | C62: Adjustment | E62: Replacement | F62: =ISNUMBER(MATCH(ProjectData[[#This Row],[PQ Project Driver]],Lookup_ProjectDrivers,0)) -> TRUE | G62: Adjustment | H62: =ISNUMBER(MATCH(ProjectData[[#This Row],[Capitalisation]],Lookup_CapitalisationTypes,0)) -> TRUE | I62: None | J62: =ISNUMBER(MATCH(ProjectData[[#This Row],[RepexDollarsBasis]],Lookup_RepexDollarBasis,0)) -> TRUE | N62: 1 | AB62: =OR(SUM(ProjectData[[#This Row],[LinesOH]:[InsuranceSpares]])=1,ProjectData[[#This Row],[OnlyAssetClassAllocationIsToBeUsed]]=TRUE) -> TRUE | AC62: None | AD62: =ISNUMBER(MATCH(ProjectData[[#This Row],[DMDLCCOCSplitType]],CostAllocationSplit[Type of Project],0)) -> TRUE | AE62: FALSE | AF62: FALSE
A63: 57 | B63: Adjustment To Account for Approved Projects - Replacement - Secondary Systems | C63: Adjustment | E63: Replacement | F63: =ISNUMBER(MATCH(ProjectData[[#This Row],[PQ Project Driver]],Lookup_ProjectDrivers,0)) -> TRUE | G63: Adjustment | H63: =ISNUMBER(MATCH(ProjectData[[#This Row],[Capitalisation]],Lookup_CapitalisationTypes,0)) -> TRUE | I63: None | J63: =ISNUMBER(MATCH(ProjectData[[#This Row],[RepexDollarsBasis]],Lookup_RepexDollarBasis,0)) -> TRUE | O63: 1 | AB63: =OR(SUM(ProjectData[[#This Row],[LinesOH]:[InsuranceSpares]])=1,ProjectData[[#This Row],[OnlyAssetClassAllocationIsToBeUsed]]=TRUE) -> TRUE | AC63: None | AD63: =ISNUMBER(MATCH(ProjectData[[#This Row],[DMDLCCOCSplitType]],CostAllocationSplit[Type of Project],0)) -> TRUE | AE63: FALSE | AF63: FALSE
A64: 58 | B64: Adjustment To Account for Approved Projects - Replacement - Telecommunications | C64: Adjustment | E64: Replacement | F64: =ISNUMBER(MATCH(ProjectData[[#This Row],[PQ Project Driver]],Lookup_ProjectDrivers,0)) -> TRUE | G64: Adjustment | H64: =ISNUMBER(MATCH(ProjectData[[#This Row],[Capitalisation]],Lookup_CapitalisationTypes,0)) -> TRUE | I64: None | J64: =ISNUMBER(MATCH(ProjectData[[#This Row],[RepexDollarsBasis]],Lookup_RepexDollarBasis,0)) -> TRUE | P64: 1 | AB64: =OR(SUM(ProjectData[[#This Row],[LinesOH]:[InsuranceSpares]])=1,ProjectData[[#This Row],[OnlyAssetClassAllocationIsToBeUsed]]=TRUE) -> TRUE | AC64: None | AD64: =ISNUMBER(MATCH(ProjectData[[#This Row],[DMDLCCOCSplitType]],CostAllocationSplit[Type of Project],0)) -> TRUE | AE64: FALSE | AF64: FALSE
A65: 59 | B65: SPARE | F65: =ISNUMBER(MATCH(ProjectData[[#This Row],[PQ Project Driver]],Lookup_ProjectDrivers,0)) -> FALSE | H65: =ISNUMBER(MATCH(ProjectData[[#This Row],[Capitalisation]],Lookup_CapitalisationTypes,0)) -> FALSE | J65: =ISNUMBER(MATCH(ProjectData[[#This Row],[RepexDollarsBasis]],Lookup_RepexDollarBasis,0)) -> FALSE | AB65: =OR(SUM(ProjectData[[#This Row],[LinesOH]:[InsuranceSpares]])=1,ProjectData[[#This Row],[OnlyAssetClassAllocationIsToBeUsed]]=TRUE) -> FALSE | AC65: None | AD65: =ISNUMBER(MATCH(ProjectData[[#This Row],[DMDLCCOCSplitType]],CostAllocationSplit[Type of Project],0)) -> TRUE | AF65: FALSE
A66: 60 | B66: SPARE | F66: =ISNUMBER(MATCH(ProjectData[[#This Row],[PQ Project Driver]],Lookup_ProjectDrivers,0)) -> FALSE | H66: =ISNUMBER(MATCH(ProjectData[[#This Row],[Capitalisation]],Lookup_CapitalisationTypes,0)) -> FALSE | J66: =ISNUMBER(MATCH(ProjectData[[#This Row],[RepexDollarsBasis]],Lookup_RepexDollarBasis,0)) -> FALSE | AB66: =OR(SUM(ProjectData[[#This Row],[LinesOH]:[InsuranceSpares]])=1,ProjectData[[#This Row],[OnlyAssetClassAllocationIsToBeUsed]]=TRUE) -> FALSE | AC66: None | AD66: =ISNUMBER(MATCH(ProjectData[[#This Row],[DMDLCCOCSplitType]],CostAllocationSplit[Type of Project],0)) -> TRUE | AF66: FALSE
A67: 61 | B67: CP.02045 - PLVC to Mary St & South Pine Fibre Route | C67: Current - Approved - Non Load Driven | E67: Other | F67: =ISNUMBER(MATCH(ProjectData[[#This Row],[PQ Project Driver]],Lookup_ProjectDrivers,0)) -> TRUE | G67: Project Close | H67: =ISNUMBER(MATCH(ProjectData[[#This Row],[Capitalisation]],Lookup_CapitalisationTypes,0)) -> TRUE | I67: Nominal | J67: =ISNUMBER(MATCH(ProjectData[[#This Row],[RepexDollarsBasis]],Lookup_RepexDollarBasis,0)) -> TRUE | N67: 0 | O67: 0 | P67: 1 | R67: 0 | AB67: =OR(SUM(ProjectData[[#This Row],[LinesOH]:[InsuranceSpares]])=1,ProjectData[[#This Row],[OnlyAssetClassAllocationIsToBeUsed]]=TRUE) -> TRUE | AC67: None | AD67: =ISNUMBER(MATCH(ProjectData[[#This Row],[DMDLCCOCSplitType]],CostAllocationSplit[Type of Project],0)) -> TRUE | AE67: TRUE | AF67: FALSE
A68: 62 | B68: CP.02297 - Power Quality Monitoring Stage 3 | C68: Current - Approved - Non Load Driven | E68: Security and Compliance | F68: =ISNUMBER(MATCH(ProjectData[[#This Row],[PQ Project Driver]],Lookup_ProjectDrivers,0)) -> TRUE | G68: Project Close | H68: =ISNUMBER(MATCH(ProjectData[[#This Row],[Capitalisation]],Lookup_CapitalisationTypes,0)) -> TRUE | I68: Nominal | J68: =ISNUMBER(MATCH(ProjectData[[#This Row],[RepexDollarsBasis]],Lookup_RepexDollarBasis,0)) -> TRUE | N68: 0 | O68: 1 | P68: 0 | R68: 0 | AB68: =OR(SUM(ProjectData[[#This Row],[LinesOH]:[InsuranceSpares]])=1,ProjectData[[#This Row],[OnlyAssetClassAllocationIsToBeUsed]]=TRUE) -> TRUE | AC68: None | AD68: =ISNUMBER(MATCH(ProjectData[[#This Row],[DMDLCCOCSplitType]],CostAllocationSplit[Type of Project],0)) -> TRUE | AE68: TRUE | AF68: FALSE
A69: 63 | B69: SPARE | F69: =ISNUMBER(MATCH(ProjectData[[#This Row],[PQ Project Driver]],Lookup_ProjectDrivers,0)) -> FALSE | H69: =ISNUMBER(MATCH(ProjectData[[#This Row],[Capitalisation]],Lookup_CapitalisationTypes,0)) -> FALSE | J69: =ISNUMBER(MATCH(ProjectData[[#This Row],[RepexDollarsBasis]],Lookup_RepexDollarBasis,0)) -> FALSE | AB69: =OR(SUM(ProjectData[[#This Row],[LinesOH]:[InsuranceSpares]])=1,ProjectData[[#This Row],[OnlyAssetClassAllocationIsToBeUsed]]=TRUE) -> FALSE | AC69: None | AD69: =ISNUMBER(MATCH(ProjectData[[#This Row],[DMDLCCOCSplitType]],CostAllocationSplit[Type of Project],0)) -> TRUE | AF69: FALSE
A70: 64 | B70: CP.02470 - Operational Technology Data Storage Platform Repla | C70: Current - Approved - Non Load Driven | E70: Other | F70: =ISNUMBER(MATCH(ProjectData[[#This Row],[PQ Project Driver]],Lookup_ProjectDrivers,0)) -> TRUE | G70: Project Close | H70: =ISNUMBER(MATCH(ProjectData[[#This Row],[Capitalisation]],Lookup_CapitalisationTypes,0)) -> TRUE | I70: Nominal | J70: =ISNUMBER(MATCH(ProjectData[[#This Row],[RepexDollarsBasis]],Lookup_RepexDollarBasis,0)) -> TRUE | N70: 0 | O70: 0 | P70: 0 | R70: 1 | AB70: =OR(SUM(ProjectData[[#This Row],[LinesOH]:[InsuranceSpares]])=1,ProjectData[[#This Row],[OnlyAssetClassAllocationIsToBeUsed]]=TRUE) -> TRUE | AC70: None | AD70: =ISNUMBER(MATCH(ProjectData[[#This Row],[DMDLCCOCSplitType]],CostAllocationSplit[Type of Project],0)) -> TRUE | AE70: TRUE | AF70: FALSE
A71: 65 | B71: CP.02485 - High Speed Monitoring Stage 4 | C71: Current - Approved - Non Load Driven | E71: Security and Compliance | F71: =ISNUMBER(MATCH(ProjectData[[#This Row],[PQ Project Driver]],Lookup_ProjectDrivers,0)) -> TRUE | G71: Project Close | H71: =ISNUMBER(MATCH(ProjectData[[#This Row],[Capitalisation]],Lookup_CapitalisationTypes,0)) -> TRUE | I71: Nominal | J71: =ISNUMBER(MATCH(ProjectData[[#This Row],[RepexDollarsBasis]],Lookup_RepexDollarBasis,0)) -> TRUE | N71: 0 | O71: 0.9405466305 | P71: 0.05945336949 | R71: 0 | AB71: =OR(SUM(ProjectData[[#This Row],[LinesOH]:[InsuranceSpares]])=1,ProjectData[[#This Row],[OnlyAssetClassAllocationIsToBeUsed]]=TRUE) -> TRUE | AC71: None | AD71: =ISNUMBER(MATCH(ProjectData[[#This Row],[DMDLCCOCSplitType]],CostAllocationSplit[Type of Project],0)) -> TRUE | AE71: TRUE | AF71: FALSE
A72: 66 | B72: CP.01016 - Nebo Secondary Systems Replacement | C72: Current - Approved - Non Load Driven | E72: Replacement | F72: =ISNUMBER(MATCH(ProjectData[[#This Row],[PQ Project Driver]],Lookup_ProjectDrivers,0)) -> TRUE | G72: Project Close | H72: =ISNUMBER(MATCH(ProjectData[[#This Row],[Capitalisation]],Lookup_CapitalisationTypes,0)) -> TRUE | I72: Nominal | J72: =ISNUMBER(MATCH(ProjectData[[#This Row],[RepexDollarsBasis]],Lookup_RepexDollarBasis,0)) -> TRUE | K72: 0 | L72: 0 | M72: 0 | N72: 0.1213650628 | O72: 0.8314172384 | P72: 0.04721769884 | R72: 0 | AB72: =OR(SUM(ProjectData[[#This Row],[LinesOH]:[InsuranceSpares]])=1,ProjectData[[#This Row],[OnlyAssetClassAllocationIsToBeUsed]]=TRUE) -> TRUE | AC72: None | AD72: =ISNUMBER(MATCH(ProjectData[[#This Row],[DMDLCCOCSplitType]],CostAllocationSplit[Type of Project],0)) -> TRUE | AE72: TRUE | AF72: FALSE
A73: 67 | B73: CP.01091 - Garbutt - Alan Sherriff T/L Replacemnt | C73: Current - Approved - Non Load Driven | E73: Replacement | F73: =ISNUMBER(MATCH(ProjectData[[#This Row],[PQ Project Driver]],Lookup_ProjectDrivers,0)) -> TRUE | G73: Project Close | H73: =ISNUMBER(MATCH(ProjectData[[#This Row],[Capitalisation]],Lookup_CapitalisationTypes,0)) -> TRUE | I73: Nominal | J73: =ISNUMBER(MATCH(ProjectData[[#This Row],[RepexDollarsBasis]],Lookup_RepexDollarBasis,0)) -> TRUE | K73: 1 | L73: 0 | M73: 0 | N73: 0 | O73: 0 | P73: 0 | R73: 0 | AB73: =OR(SUM(ProjectData[[#This Row],[LinesOH]:[InsuranceSpares]])=1,ProjectData[[#This Row],[OnlyAssetClassAllocationIsToBeUsed]]=TRUE) -> TRUE | AC73: None | AD73: =ISNUMBER(MATCH(ProjectData[[#This Row],[DMDLCCOCSplitType]],CostAllocationSplit[Type of Project],0)) -> TRUE | AE73: TRUE | AF73: FALSE
A74: 68 | B74: CP.01128 - Mackay Substation Replacement | C74: Current - Approved - Non Load Driven | E74: Replacement | F74: =ISNUMBER(MATCH(ProjectData[[#This Row],[PQ Project Driver]],Lookup_ProjectDrivers,0)) -> TRUE | G74: Project Close | H74: =ISNUMBER(MATCH(ProjectData[[#This Row],[Capitalisation]],Lookup_CapitalisationTypes,0)) -> TRUE | I74: Nominal | J74: =ISNUMBER(MATCH(ProjectData[[#This Row],[RepexDollarsBasis]],Lookup_RepexDollarBasis,0)) -> TRUE | K74: 0.0487710106 | L74: 0 | M74: 0 | N74: 0.6459213535 | O74: 0.2738513228 | P74: 0.03145631315 | R74: 0 | AB74: =OR(SUM(ProjectData[[#This Row],[LinesOH]:[InsuranceSpares]])=1,ProjectData[[#This Row],[OnlyAssetClassAllocationIsToBeUsed]]=TRUE) -> TRUE | AC74: None | AD74: =ISNUMBER(MATCH(ProjectData[[#This Row],[DMDLCCOCSplitType]],CostAllocationSplit[Type of Project],0)) -> TRUE | AE74: TRUE | AF74: FALSE
A75: 69 | B75: CP.01132 - Rockhampton Substation Replacement | C75: Current - Approved - Non Load Driven | E75: Replacement | F75: =ISNUMBER(MATCH(ProjectData[[#This Row],[PQ Project Driver]],Lookup_ProjectDrivers,0)) -> TRUE | G75: Project Close | H75: =ISNUMBER(MATCH(ProjectData[[#This Row],[Capitalisation]],Lookup_CapitalisationTypes,0)) -> TRUE | I75: Nominal | J75: =ISNUMBER(MATCH(ProjectData[[#This Row],[RepexDollarsBasis]],Lookup_RepexDollarBasis,0)) -> TRUE | K75: 0.09322947255 | L75: 0 | M75: 0 | N75: 0.6962957237 | O75: 0.2013727041 | P75: 0 | R75: 0.009102099591 | AB75: =OR(SUM(ProjectData[[#This Row],[LinesOH]:[InsuranceSpares]])=1,ProjectData[[#This Row],[OnlyAssetClassAllocationIsToBeUsed]]=TRUE) -> TRUE | AC75: None | AD75: =ISNUMBER(MATCH(ProjectData[[#This Row],[DMDLCCOCSplitType]],CostAllocationSplit[Type of Project],0)) -> TRUE | AE75: TRUE | AF75: FALSE
A76: 70 | B76: CP.01146 - Blackwater Primary Plant Replacement | C76: Current - Approved - Non Load Driven | E76: Replacement | F76: =ISNUMBER(MATCH(ProjectData[[#This Row],[PQ Project Driver]],Lookup_ProjectDrivers,0)) -> TRUE | G76: Project Close | H76: =ISNUMBER(MATCH(ProjectData[[#This Row],[Capitalisation]],Lookup_CapitalisationTypes,0)) -> TRUE | I76: Nominal | J76: =ISNUMBER(MATCH(ProjectData[[#This Row],[RepexDollarsBasis]],Lookup_RepexDollarBasis,0)) -> TRUE | K76: 0 | L76: 0 | M76: 0 | N76: 0.86 | O76: 0.13 | P76: 0.01 | R76: 0 | AB76: =OR(SUM(ProjectData[[#This Row],[LinesOH]:[InsuranceSpares]])=1,ProjectData[[#This Row],[OnlyAssetClassAllocationIsToBeUsed]]=TRUE) -> TRUE | AC76: None | AD76: =ISNUMBER(MATCH(ProjectData[[#This Row],[DMDLCCOCSplitType]],CostAllocationSplit[Type of Project],0)) -> TRUE | AE76: TRUE | AF76: FALSE
A77: 71 | B77: CP.01151 - Calvale & Callide B Secondary Systems Re | C77: Current - Approved - Non Load Driven | E77: Replacement | F77: =ISNUMBER(MATCH(ProjectData[[#This Row],[PQ Project Driver]],Lookup_ProjectDrivers,0)) -> TRUE | G77: Project Close | H77: =ISNUMBER(MATCH(ProjectData[[#This Row],[Capitalisation]],Lookup_CapitalisationTypes,0)) -> TRUE | I77: Nominal | J77: =ISNUMBER(MATCH(ProjectData[[#This Row],[RepexDollarsBasis]],Lookup_RepexDollarBasis,0)) -> TRUE | K77: 0 | L77: 0 | M77: 0 | N77: 0.04500536904 | O77: 0.9377061474 | P77: 0.01728848355 | R77: 0 | AB77: =OR(SUM(ProjectData[[#This Row],[LinesOH]:[InsuranceSpares]])=1,ProjectData[[#This Row],[OnlyAssetClassAllocationIsToBeUsed]]=TRUE) -> TRUE | AC77: None | AD77: =ISNUMBER(MATCH(ProjectData[[#This Row],[DMDLCCOCSplitType]],CostAllocationSplit[Type of Project],0)) -> TRUE | AE77: TRUE | AF77: FALSE
A78: 72 | B78: CP.01161 - Rocklea Secondary Systems Replacement | C78: Current - Approved - Non Load Driven | E78: Replacement | F78: =ISNUMBER(MATCH(ProjectData[[#This Row],[PQ Project Driver]],Lookup_ProjectDrivers,0)) -> TRUE | G78: Project Close | H78: =ISNUMBER(MATCH(ProjectData[[#This Row],[Capitalisation]],Lookup_CapitalisationTypes,0)) -> TRUE | I78: Nominal | J78: =ISNUMBER(MATCH(ProjectData[[#This Row],[RepexDollarsBasis]],Lookup_RepexDollarBasis,0)) -> TRUE | K78: 0 | L78: 0 | M78: 0 | N78: 0 | O78: 0.95 | P78: 0.05 | R78: 0 | AB78: =OR(SUM(ProjectData[[#This Row],[LinesOH]:[InsuranceSpares]])=1,ProjectData[[#This Row],[OnlyAssetClassAllocationIsToBeUsed]]=TRUE) -> TRUE | AC78: None | AD78: =ISNUMBER(MATCH(ProjectData[[#This Row],[DMDLCCOCSplitType]],CostAllocationSplit[Type of Project],0)) -> TRUE | AE78: TRUE | AF78: FALSE
A79: 73 | B79: CP.01164 - NEWLANDS SEC SYS REPLACEMENT | C79: Current - Approved - Non Load Driven | E79: Replacement | F79: =ISNUMBER(MATCH(ProjectData[[#This Row],[PQ Project Driver]],Lookup_ProjectDrivers,0)) -> TRUE | G79: Project Close | H79: =ISNUMBER(MATCH(ProjectData[[#This Row],[Capitalisation]],Lookup_CapitalisationTypes,0)) -> TRUE | I79: Nominal | J79: =ISNUMBER(MATCH(ProjectData[[#This Row],[RepexDollarsBasis]],Lookup_RepexDollarBasis,0)) -> TRUE | K79: 0 | L79: 0 | M79: 0 | N79: 0.08406060907 | O79: 0.8889436179 | P79: 0.02699577307 | R79: 0 | AB79: =OR(SUM(ProjectData[[#This Row],[LinesOH]:[InsuranceSpares]])=1,ProjectData[[#This Row],[OnlyAssetClassAllocationIsToBeUsed]]=TRUE) -> TRUE | AC79: None | AD79: =ISNUMBER(MATCH(ProjectData[[#This Row],[DMDLCCOCSplitType]],CostAllocationSplit[Type of Project],0)) -> TRUE | AE79: TRUE | AF79: FALSE
A80: 74 | B80: CP.01179 - Turkinje Secondary Systems Replacement | C80: Current - Approved - Non Load Driven | E80: Replacement | F80: =ISNUMBER(MATCH(ProjectData[[#This Row],[PQ Project Driver]],Lookup_ProjectDrivers,0)) -> TRUE | G80: Project Close | H80: =ISNUMBER(MATCH(ProjectData[[#This Row],[Capitalisation]],Lookup_CapitalisationTypes,0)) -> TRUE | I80: Nominal | J80: =ISNUMBER(MATCH(ProjectData[[#This Row],[RepexDollarsBasis]],Lookup_RepexDollarBasis,0)) -> TRUE | K80: 0 | L80: 0 | M80: 0 | N80: 0.04615851001 | O80: 0.8615424314 | P80: 0.09229905862 | R80: 0 | AB80: =OR(SUM(ProjectData[[#This Row],[LinesOH]:[InsuranceSpares]])=1,ProjectData[[#This Row],[OnlyAssetClassAllocationIsToBeUsed]]=TRUE) -> TRUE | AC80: None | AD80: =ISNUMBER(MATCH(ProjectData[[#This Row],[DMDLCCOCSplitType]],CostAllocationSplit[Type of Project],0)) -> TRUE | AE80: TRUE | AF80: FALSE
A81: 75 | B81: CP.01292 - Broadsound Secondary Systems Replacement | C81: Current - Approved - Non Load Driven | E81: Replacement | F81: =ISNUMBER(MATCH(ProjectData[[#This Row],[PQ Project Driver]],Lookup_ProjectDrivers,0)) -> TRUE | G81: Project Close | H81: =ISNUMBER(MATCH(ProjectData[[#This Row],[Capitalisation]],Lookup_CapitalisationTypes,0)) -> TRUE | I81: Nominal | J81: =ISNUMBER(MATCH(ProjectData[[#This Row],[RepexDollarsBasis]],Lookup_RepexDollarBasis,0)) -> TRUE | K81: 0 | L81: 0 | M81: 0 | N81: 0.259 | O81: 0.705 | P81: 0.036 | R81: 0 | AB81: =OR(SUM(ProjectData[[#This Row],[LinesOH]:[InsuranceSpares]])=1,ProjectData[[#This Row],[OnlyAssetClassAllocationIsToBeUsed]]=TRUE) -> TRUE | AC81: None | AD81: =ISNUMBER(MATCH(ProjectData[[#This Row],[DMDLCCOCSplitType]],CostAllocationSplit[Type of Project],0)) -> TRUE | AE81: TRUE | AF81: FALSE
A82: 76 | B82: CP.01293 - Ross Secondary Systems Replacement | C82: Current - Approved - Non Load Driven | E82: Replacement | F82: =ISNUMBER(MATCH(ProjectData[[#This Row],[PQ Project Driver]],Lookup_ProjectDrivers,0)) -> TRUE | G82: Project Close | H82: =ISNUMBER(MATCH(ProjectData[[#This Row],[Capitalisation]],Lookup_CapitalisationTypes,0)) -> TRUE | I82: Nominal | J82: =ISNUMBER(MATCH(ProjectData[[#This Row],[RepexDollarsBasis]],Lookup_RepexDollarBasis,0)) -> TRUE | K82: 0 | L82: 0 | M82: 0 | N82: 0.1836620803 | O82: 0.7845128055 | P82: 0.03182511418 | R82: 0 | AB82: =OR(SUM(ProjectData[[#This Row],[LinesOH]:[InsuranceSpares]])=1,ProjectData[[#This Row],[OnlyAssetClassAllocationIsToBeUsed]]=TRUE) -> TRUE | AC82: None | AD82: =ISNUMBER(MATCH(ProjectData[[#This Row],[DMDLCCOCSplitType]],CostAllocationSplit[Type of Project],0)) -> TRUE | AE82: TRUE | AF82: FALSE
A83: 77 | B83: CP.01396 - Nebo 275kV/132kV No.2 Transformer Replac | C83: Current - Approved - Non Load Driven | E83: Replacement | F83: =ISNUMBER(MATCH(ProjectData[[#This Row],[PQ Project Driver]],Lookup_ProjectDrivers,0)) -> TRUE | G83: Project Close | H83: =ISNUMBER(MATCH(ProjectData[[#This Row],[Capitalisation]],Lookup_CapitalisationTypes,0)) -> TRUE | I83: Nominal | J83: =ISNUMBER(MATCH(ProjectData[[#This Row],[RepexDollarsBasis]],Lookup_RepexDollarBasis,0)) -> TRUE | K83: 0 | L83: 0 | M83: 0 | N83: 0.88 | O83: 0.12 | P83: 0 | R83: 0 | AB83: =OR(SUM(ProjectData[[#This Row],[LinesOH]:[InsuranceSpares]])=1,ProjectData[[#This Row],[OnlyAssetClassAllocationIsToBeUsed]]=TRUE) -> TRUE | AC83: None | AD83: =ISNUMBER(MATCH(ProjectData[[#This Row],[DMDLCCOCSplitType]],CostAllocationSplit[Type of Project],0)) -> TRUE | AE83: TRUE | AF83: FALSE
A84: 78 | B84: CP.01417 - Blackwall iPASS Sec Sys Replacement | C84: Current - Approved - Non Load Driven | E84: Replacement | F84: =ISNUMBER(MATCH(ProjectData[[#This Row],[PQ Project Driver]],Lookup_ProjectDrivers,0)) -> TRUE | G84: Project Close | H84: =ISNUMBER(MATCH(ProjectData[[#This Row],[Capitalisation]],Lookup_CapitalisationTypes,0)) -> TRUE | I84: Nominal | J84: =ISNUMBER(MATCH(ProjectData[[#This Row],[RepexDollarsBasis]],Lookup_RepexDollarBasis,0)) -> TRUE | K84: 0 | L84: 0 | M84: 0 | N84: 0.153 | O84: 0.829 | P84: 0.018 | R84: 0 | AB84: =OR(SUM(ProjectData[[#This Row],[LinesOH]:[InsuranceSpares]])=1,ProjectData[[#This Row],[OnlyAssetClassAllocationIsToBeUsed]]=TRUE) -> TRUE | AC84: None | AD84: =ISNUMBER(MATCH(ProjectData[[#This Row],[DMDLCCOCSplitType]],CostAllocationSplit[Type of Project],0)) -> TRUE | AE84: TRUE | AF84: FALSE
A85: 79 | B85: CP.01443 - Tennyson Secondary Systems Replacement | C85: Current - Approved - Non Load Driven | E85: Replacement | F85: =ISNUMBER(MATCH(ProjectData[[#This Row],[PQ Project Driver]],Lookup_ProjectDrivers,0)) -> TRUE | G85: Project Close | H85: =ISNUMBER(MATCH(ProjectData[[#This Row],[Capitalisation]],Lookup_CapitalisationTypes,0)) -> TRUE | I85: Nominal | J85: =ISNUMBER(MATCH(ProjectData[[#This Row],[RepexDollarsBasis]],Lookup_RepexDollarBasis,0)) -> TRUE | K85: 0 | L85: 0 | M85: 0 | N85: 0.1832251163 | O85: 0.7637635112 | P85: 0.05301137244 | R85: 0 | AB85: =OR(SUM(ProjectData[[#This Row],[LinesOH]:[InsuranceSpares]])=1,ProjectData[[#This Row],[OnlyAssetClassAllocationIsToBeUsed]]=TRUE) -> TRUE | AC85: None | AD85: =ISNUMBER(MATCH(ProjectData[[#This Row],[DMDLCCOCSplitType]],CostAllocationSplit[Type of Project],0)) -> TRUE | AE85: TRUE | AF85: FALSE
A86: 80 | B86: CP.01457 - Baralaba Secondary Systems Replacement | C86: Current - Approved - Non Load Driven | E86: Replacement | F86: =ISNUMBER(MATCH(ProjectData[[#This Row],[PQ Project Driver]],Lookup_ProjectDrivers,0)) -> TRUE | G86: Project Close | H86: =ISNUMBER(MATCH(ProjectData[[#This Row],[Capitalisation]],Lookup_CapitalisationTypes,0)) -> TRUE | I86: Nominal | J86: =ISNUMBER(MATCH(ProjectData[[#This Row],[RepexDollarsBasis]],Lookup_RepexDollarBasis,0)) -> TRUE | K86: 0 | L86: 0 | M86: 0 | N86: 0.1686635545 | O86: 0.8033220216 | P86: 0.02801442393 | R86: 0 | AB86: =OR(SUM(ProjectData[[#This Row],[LinesOH]:[InsuranceSpares]])=1,ProjectData[[#This Row],[OnlyAssetClassAllocationIsToBeUsed]]=TRUE) -> TRUE | AC86: None | AD86: =ISNUMBER(MATCH(ProjectData[[#This Row],[DMDLCCOCSplitType]],CostAllocationSplit[Type of Project],0)) -> TRUE | AE86: TRUE | AF86: FALSE
A87: 81 | B87: CP.01459 - Upper Kedron Secondary Systems Replaceme | C87: Current - Approved - Non Load Driven | E87: Replacement | F87: =ISNUMBER(MATCH(ProjectData[[#This Row],[PQ Project Driver]],Lookup_ProjectDrivers,0)) -> TRUE | G87: Project Close | H87: =ISNUMBER(MATCH(ProjectData[[#This Row],[Capitalisation]],Lookup_CapitalisationTypes,0)) -> TRUE | I87: Nominal | J87: =ISNUMBER(MATCH(ProjectData[[#This Row],[RepexDollarsBasis]],Lookup_RepexDollarBasis,0)) -> TRUE | K87: 0.01233347033 | L87: 0 | M87: 0 | N87: 0.03248784938 | O87: 0.9097128091 | P87: 0.04546587113 | R87: 0 | AB87: =OR(SUM(ProjectData[[#This Row],[LinesOH]:[InsuranceSpares]])=1,ProjectData[[#This Row],[OnlyAssetClassAllocationIsToBeUsed]]=TRUE) -> TRUE | AC87: None | AD87: =ISNUMBER(MATCH(ProjectData[[#This Row],[DMDLCCOCSplitType]],CostAllocationSplit[Type of Project],0)) -> TRUE | AE87: TRUE | AF87: FALSE
A88: 82 | B88: CP.01473 - Tully Secondary Systems Replacement | C88: Current - Approved - Non Load Driven | E88: Replacement | F88: =ISNUMBER(MATCH(ProjectData[[#This Row],[PQ Project Driver]],Lookup_ProjectDrivers,0)) -> TRUE | G88: Project Close | H88: =ISNUMBER(MATCH(ProjectData[[#This Row],[Capitalisation]],Lookup_CapitalisationTypes,0)) -> TRUE | I88: Nominal | J88: =ISNUMBER(MATCH(ProjectData[[#This Row],[RepexDollarsBasis]],Lookup_RepexDollarBasis,0)) -> TRUE | K88: 0 | L88: 0 | M88: 0 | N88: 0.1232443614 | O88: 0.8338338259 | P88: 0.04292181271 | R88: 0 | AB88: =OR(SUM(ProjectData[[#This Row],[LinesOH]:[InsuranceSpares]])=1,ProjectData[[#This Row],[OnlyAssetClassAllocationIsToBeUsed]]=TRUE) -> TRUE | AC88: None | AD88: =ISNUMBER(MATCH(ProjectData[[#This Row],[DMDLCCOCSplitType]],CostAllocationSplit[Type of Project],0)) -> TRUE | AE88: TRUE | AF88: FALSE
A89: 83 | B89: CP.01546 - Callide A / Calvale 132kV Network Reinvestment | C89: Current - Approved - Non Load Driven | E89: Replacement | F89: =ISNUMBER(MATCH(ProjectData[[#This Row],[PQ Project Driver]],Lookup_ProjectDrivers,0)) -> TRUE | G89: Project Close | H89: =ISNUMBER(MATCH(ProjectData[[#This Row],[Capitalisation]],Lookup_CapitalisationTypes,0)) -> TRUE | I89: Nominal | J89: =ISNUMBER(MATCH(ProjectData[[#This Row],[RepexDollarsBasis]],Lookup_RepexDollarBasis,0)) -> TRUE | K89: 0.3 | L89: 0 | M89: 0 | N89: 0.5 | O89: 0.17 | P89: 0.03 | R89: 0 | AB89: =OR(SUM(ProjectData[[#This Row],[LinesOH]:[InsuranceSpares]])=1,ProjectData[[#This Row],[OnlyAssetClassAllocationIsToBeUsed]]=TRUE) -> TRUE | AC89: None | AD89: =ISNUMBER(MATCH(ProjectData[[#This Row],[DMDLCCOCSplitType]],CostAllocationSplit[Type of Project],0)) -> TRUE | AE89: TRUE | AF89: FALSE
A90: 84 | B90: CP.01549 - Moura Switchyard Replacement | C90: Current - Approved - Non Load Driven | E90: Replacement | F90: =ISNUMBER(MATCH(ProjectData[[#This Row],[PQ Project Driver]],Lookup_ProjectDrivers,0)) -> TRUE | G90: Project Close | H90: =ISNUMBER(MATCH(ProjectData[[#This Row],[Capitalisation]],Lookup_CapitalisationTypes,0)) -> TRUE | I90: Nominal | J90: =ISNUMBER(MATCH(ProjectData[[#This Row],[RepexDollarsBasis]],Lookup_RepexDollarBasis,0)) -> TRUE | K90: 0.07 | L90: 0 | M90: 0 | N90: 0.6 | O90: 0.28 | P90: 0.05 | R90: 0 | AB90: =OR(SUM(ProjectData[[#This Row],[LinesOH]:[InsuranceSpares]])=1,ProjectData[[#This Row],[OnlyAssetClassAllocationIsToBeUsed]]=TRUE) -> TRUE | AC90: None | AD90: =ISNUMBER(MATCH(ProjectData[[#This Row],[DMDLCCOCSplitType]],CostAllocationSplit[Type of Project],0)) -> TRUE | AE90: TRUE | AF90: FALSE
A91: 85 | B91: CP.01582 - Stanwell Secondary Systems Replacement | C91: Current - Approved - Non Load Driven | E91: Replacement | F91: =ISNUMBER(MATCH(ProjectData[[#This Row],[PQ Project Driver]],Lookup_ProjectDrivers,0)) -> TRUE | G91: Project Close | H91: =ISNUMBER(MATCH(ProjectData[[#This Row],[Capitalisation]],Lookup_CapitalisationTypes,0)) -> TRUE | I91: Nominal | J91: =ISNUMBER(MATCH(ProjectData[[#This Row],[RepexDollarsBasis]],Lookup_RepexDollarBasis,0)) -> TRUE | K91: 0 | L91: 0 | M91: 0 | N91: 0.2238533212 | O91: 0.745386778 | P91: 0.03075990088 | R91: 0 | AB91: =OR(SUM(ProjectData[[#This Row],[LinesOH]:[InsuranceSpares]])=1,ProjectData[[#This Row],[OnlyAssetClassAllocationIsToBeUsed]]=TRUE) -> TRUE | AC91: None | AD91: =ISNUMBER(MATCH(ProjectData[[#This Row],[DMDLCCOCSplitType]],CostAllocationSplit[Type of Project],0)) -> TRUE | AE91: TRUE | AF91: FALSE
A92: 86 | B92: CP.01654 - Algester–Runcorn 110kV Trans Line Refit | C92: Current - Approved - Non Load Driven | E92: Replacement | F92: =ISNUMBER(MATCH(ProjectData[[#This Row],[PQ Project Driver]],Lookup_ProjectDrivers,0)) -> TRUE | G92: Project Close | H92: =ISNUMBER(MATCH(ProjectData[[#This Row],[Capitalisation]],Lookup_CapitalisationTypes,0)) -> TRUE | I92: Nominal | J92: =ISNUMBER(MATCH(ProjectData[[#This Row],[RepexDollarsBasis]],Lookup_RepexDollarBasis,0)) -> TRUE | K92: 0 | L92: 0 | M92: 1 | N92: 0 | O92: 0 | P92: 0 | R92: 0 | AB92: =OR(SUM(ProjectData[[#This Row],[LinesOH]:[InsuranceSpares]])=1,ProjectData[[#This Row],[OnlyAssetClassAllocationIsToBeUsed]]=TRUE) -> TRUE | AC92: None | AD92: =ISNUMBER(MATCH(ProjectData[[#This Row],[DMDLCCOCSplitType]],CostAllocationSplit[Type of Project],0)) -> TRUE | AE92: TRUE | AF92: FALSE
A93: 87 | B93: CP.01655 - Runcorn - Belmont 110kV T/Line Life Ext | C93: Current - Approved - Non Load Driven | E93: Replacement | F93: =ISNUMBER(MATCH(ProjectData[[#This Row],[PQ Project Driver]],Lookup_ProjectDrivers,0)) -> TRUE | G93: Project Close | H93: =ISNUMBER(MATCH(ProjectData[[#This Row],[Capitalisation]],Lookup_CapitalisationTypes,0)) -> TRUE | I93: Nominal | J93: =ISNUMBER(MATCH(ProjectData[[#This Row],[RepexDollarsBasis]],Lookup_RepexDollarBasis,0)) -> TRUE | K93: 0 | L93: 0 | M93: 1 | N93: 0 | O93: 0 | P93: 0 | R93: 0 | AB93: =OR(SUM(ProjectData[[#This Row],[LinesOH]:[InsuranceSpares]])=1,ProjectData[[#This Row],[OnlyAssetClassAllocationIsToBeUsed]]=TRUE) -> TRUE | AC93: None | AD93: =ISNUMBER(MATCH(ProjectData[[#This Row],[DMDLCCOCSplitType]],CostAllocationSplit[Type of Project],0)) -> TRUE | AE93: TRUE | AF93: FALSE
A94: 88 | B94: CP.01679 - Mudgeeraba 110kV Rebuild | C94: Current - Approved - Non Load Driven | E94: Replacement | F94: =ISNUMBER(MATCH(ProjectData[[#This Row],[PQ Project Driver]],Lookup_ProjectDrivers,0)) -> TRUE | G94: Project Close | H94: =ISNUMBER(MATCH(ProjectData[[#This Row],[Capitalisation]],Lookup_CapitalisationTypes,0)) -> TRUE | I94: Nominal | J94: =ISNUMBER(MATCH(ProjectData[[#This Row],[RepexDollarsBasis]],Lookup_RepexDollarBasis,0)) -> TRUE | K94: 0.08673389906 | L94: 0 | M94: 0 | N94: 0.5938408742 | O94: 0.3194252267 | P94: 0 | R94: 0 | AB94: =OR(SUM(ProjectData[[#This Row],[LinesOH]:[InsuranceSpares]])=1,ProjectData[[#This Row],[OnlyAssetClassAllocationIsToBeUsed]]=TRUE) -> TRUE | AC94: None | AD94: =ISNUMBER(MATCH(ProjectData[[#This Row],[DMDLCCOCSplitType]],CostAllocationSplit[Type of Project],0)) -> TRUE | AE94: TRUE | AF94: FALSE
A95: 89 | B95: CP.01704 - Proserpine Substation Rebuild | C95: Current - Approved - Non Load Driven | E95: Replacement | F95: =ISNUMBER(MATCH(ProjectData[[#This Row],[PQ Project Driver]],Lookup_ProjectDrivers,0)) -> TRUE | G95: Project Close | H95: =ISNUMBER(MATCH(ProjectData[[#This Row],[Capitalisation]],Lookup_CapitalisationTypes,0)) -> TRUE | I95: Nominal | J95: =ISNUMBER(MATCH(ProjectData[[#This Row],[RepexDollarsBasis]],Lookup_RepexDollarBasis,0)) -> TRUE | K95: 0.16 | L95: 0 | M95: 0 | N95: 0.441 | O95: 0.348 | P95: 0.051 | R95: 0 | AB95: =OR(SUM(ProjectData[[#This Row],[LinesOH]:[InsuranceSpares]])=1,ProjectData[[#This Row],[OnlyAssetClassAllocationIsToBeUsed]]=TRUE) -> TRUE | AC95: None | AD95: =ISNUMBER(MATCH(ProjectData[[#This Row],[DMDLCCOCSplitType]],CostAllocationSplit[Type of Project],0)) -> TRUE | AE95: TRUE | AF95: FALSE
A96: 90 | B96: CP.01807 - EMS Hardware Replacement | C96: Current - Approved - Non Load Driven | E96: Replacement | F96: =ISNUMBER(MATCH(ProjectData[[#This Row],[PQ Project Driver]],Lookup_ProjectDrivers,0)) -> TRUE | G96: Project Close | H96: =ISNUMBER(MATCH(ProjectData[[#This Row],[Capitalisation]],Lookup_CapitalisationTypes,0)) -> TRUE | I96: Nominal | J96: =ISNUMBER(MATCH(ProjectData[[#This Row],[RepexDollarsBasis]],Lookup_RepexDollarBasis,0)) -> TRUE | K96: 0 | L96: 0 | M96: 0 | N96: 0 | O96: 1 | P96: 0 | R96: 0 | AB96: =OR(SUM(ProjectData[[#This Row],[LinesOH]:[InsuranceSpares]])=1,ProjectData[[#This Row],[OnlyAssetClassAllocationIsToBeUsed]]=TRUE) -> TRUE | AC96: None | AD96: =ISNUMBER(MATCH(ProjectData[[#This Row],[DMDLCCOCSplitType]],CostAllocationSplit[Type of Project],0)) -> TRUE | AE96: TRUE | AF96: FALSE
A97: 91 | B97: CP.01918 - Strathmore iPASS Secondary Systems Repla | C97: Current - Approved - Non Load Driven | E97: Replacement | F97: =ISNUMBER(MATCH(ProjectData[[#This Row],[PQ Project Driver]],Lookup_ProjectDrivers,0)) -> TRUE | G97: Project Close | H97: =ISNUMBER(MATCH(ProjectData[[#This Row],[Capitalisation]],Lookup_CapitalisationTypes,0)) -> TRUE | I97: Nominal | J97: =ISNUMBER(MATCH(ProjectData[[#This Row],[RepexDollarsBasis]],Lookup_RepexDollarBasis,0)) -> TRUE | K97: 0 | L97: 0 | M97: 0 | N97: 0.055 | O97: 0.926 | P97: 0.019 | R97: 0 | AB97: =OR(SUM(ProjectData[[#This Row],[LinesOH]:[InsuranceSpares]])=1,ProjectData[[#This Row],[OnlyAssetClassAllocationIsToBeUsed]]=TRUE) -> TRUE | AC97: None | AD97: =ISNUMBER(MATCH(ProjectData[[#This Row],[DMDLCCOCSplitType]],CostAllocationSplit[Type of Project],0)) -> TRUE | AE97: TRUE | AF97: FALSE
A98: 92 | B98: CP.01920 - Braemar iPASS Secondary System Replaceme | C98: Current - Approved - Non Load Driven | E98: Replacement | F98: =ISNUMBER(MATCH(ProjectData[[#This Row],[PQ Project Driver]],Lookup_ProjectDrivers,0)) -> TRUE | G98: Project Close | H98: =ISNUMBER(MATCH(ProjectData[[#This Row],[Capitalisation]],Lookup_CapitalisationTypes,0)) -> TRUE | I98: Nominal | J98: =ISNUMBER(MATCH(ProjectData[[#This Row],[RepexDollarsBasis]],Lookup_RepexDollarBasis,0)) -> TRUE | K98: 0 | L98: 0 | M98: 0 | N98: 0.073 | O98: 0.909 | P98: 0.018 | R98: 0 | AB98: =OR(SUM(ProjectData[[#This Row],[LinesOH]:[InsuranceSpares]])=1,ProjectData[[#This Row],[OnlyAssetClassAllocationIsToBeUsed]]=TRUE) -> TRUE | AC98: None | AD98: =ISNUMBER(MATCH(ProjectData[[#This Row],[DMDLCCOCSplitType]],CostAllocationSplit[Type of Project],0)) -> TRUE | AE98: TRUE | AF98: FALSE
A99: 93 | B99: CP.01972 - Pioneer Valley Secondary Systems Replace | C99: Current - Approved - Non Load Driven | E99: Replacement | F99: =ISNUMBER(MATCH(ProjectData[[#This Row],[PQ Project Driver]],Lookup_ProjectDrivers,0)) -> TRUE | G99: Project Close | H99: =ISNUMBER(MATCH(ProjectData[[#This Row],[Capitalisation]],Lookup_CapitalisationTypes,0)) -> TRUE | I99: Nominal | J99: =ISNUMBER(MATCH(ProjectData[[#This Row],[RepexDollarsBasis]],Lookup_RepexDollarBasis,0)) -> TRUE | K99: 0 | L99: 0 | M99: 0 | N99: 0.1788328572 | O99: 0.7356402971 | P99: 0.08552684572 | R99: 0 | AB99: =OR(SUM(ProjectData[[#This Row],[LinesOH]:[InsuranceSpares]])=1,ProjectData[[#This Row],[OnlyAssetClassAllocationIsToBeUsed]]=TRUE) -> TRUE | AC99: None | AD99: =ISNUMBER(MATCH(ProjectData[[#This Row],[DMDLCCOCSplitType]],CostAllocationSplit[Type of Project],0)) -> TRUE | AE99: TRUE | AF99: FALSE
A100: 94 | B100: CP.02036 - Belmont Substation 11kV Cable Replacemen | C100: Current - Approved - Non Load Driven | E100: Replacement | F100: =ISNUMBER(MATCH(ProjectData[[#This Row],[PQ Project Driver]],Lookup_ProjectDrivers,0)) -> TRUE | G100: Project Close | H100: =ISNUMBER(MATCH(ProjectData[[#This Row],[Capitalisation]],Lookup_CapitalisationTypes,0)) -> TRUE | I100: Nominal | J100: =ISNUMBER(MATCH(ProjectData[[#This Row],[RepexDollarsBasis]],Lookup_RepexDollarBasis,0)) -> TRUE | K100: 0 | L100: 0 | M100: 0 | N100: 1 | O100: 0 | P100: 0 | R100: 0 | AB100: =OR(SUM(ProjectData[[#This Row],[LinesOH]:[InsuranceSpares]])=1,ProjectData[[#This Row],[OnlyAssetClassAllocationIsToBeUsed]]=TRUE) -> TRUE | AC100: None | AD100: =ISNUMBER(MATCH(ProjectData[[#This Row],[DMDLCCOCSplitType]],CostAllocationSplit[Type of Project],0)) -> TRUE | AE100: TRUE | AF100: FALSE
A101: 95 | B101: CP.02065 - SCADA and OPSWAN at QR SVC Sites | C101: Current - Approved - Non Load Driven | E101: Replacement | F101: =ISNUMBER(MATCH(ProjectData[[#This Row],[PQ Project Driver]],Lookup_ProjectDrivers,0)) -> TRUE | G101: Project Close | H101: =ISNUMBER(MATCH(ProjectData[[#This Row],[Capitalisation]],Lookup_CapitalisationTypes,0)) -> TRUE | I101: Nominal | J101: =ISNUMBER(MATCH(ProjectData[[#This Row],[RepexDollarsBasis]],Lookup_RepexDollarBasis,0)) -> TRUE | K101: 0 | L101: 0 | M101: 0 | N101: 0.012 | O101: 0.478 | P101: 0.51 | R101: 0 | AB101: =OR(SUM(ProjectData[[#This Row],[LinesOH]:[InsuranceSpares]])=1,ProjectData[[#This Row],[OnlyAssetClassAllocationIsToBeUsed]]=TRUE) -> TRUE | AC101: None | AD101: =ISNUMBER(MATCH(ProjectData[[#This Row],[DMDLCCOCSplitType]],CostAllocationSplit[Type of Project],0)) -> TRUE | AE101: TRUE | AF101: FALSE
A102: 96 | B102: CP.02068 - Substation Security Upgrade - Stage 2 | C102: Current - Approved - Non Load Driven | E102: Replacement | F102: =ISNUMBER(MATCH(ProjectData[[#This Row],[PQ Project Driver]],Lookup_ProjectDrivers,0)) -> TRUE | G102: Project Close | H102: =ISNUMBER(MATCH(ProjectData[[#This Row],[Capitalisation]],Lookup_CapitalisationTypes,0)) -> TRUE | I102: Nominal | J102: =ISNUMBER(MATCH(ProjectData[[#This Row],[RepexDollarsBasis]],Lookup_RepexDollarBasis,0)) -> TRUE | K102: 0 | L102: 0 | M102: 0 | N102: 0 | O102: 0.9922385236 | P102: 0.007761476363 | R102: 0 | AB102: =OR(SUM(ProjectData[[#This Row],[LinesOH]:[InsuranceSpares]])=1,ProjectData[[#This Row],[OnlyAssetClassAllocationIsToBeUsed]]=TRUE) -> TRUE | AC102: None | AD102: =ISNUMBER(MATCH(ProjectData[[#This Row],[DMDLCCOCSplitType]],CostAllocationSplit[Type of Project],0)) -> TRUE | AE102: TRUE | AF102: FALSE
A103: 97 | B103: CP.02331 - Castlerock NMS Platform Upgrade 1 | C103: Current - Approved - Non Load Driven | E103: Replacement | F103: =ISNUMBER(MATCH(ProjectData[[#This Row],[PQ Project Driver]],Lookup_ProjectDrivers,0)) -> TRUE | G103: Project Close | H103: =ISNUMBER(MATCH(ProjectData[[#This Row],[Capitalisation]],Lookup_CapitalisationTypes,0)) -> TRUE | I103: Nominal | J103: =ISNUMBER(MATCH(ProjectData[[#This Row],[RepexDollarsBasis]],Lookup_RepexDollarBasis,0)) -> TRUE | K103: 0 | L103: 0 | M103: 0 | N103: 0 | O103: 0 | P103: 0.85 | R103: 0.15 | AB103: =OR(SUM(ProjectData[[#This Row],[LinesOH]:[InsuranceSpares]])=1,ProjectData[[#This Row],[OnlyAssetClassAllocationIsToBeUsed]]=TRUE) -> TRUE | AC103: None | AD103: =ISNUMBER(MATCH(ProjectData[[#This Row],[DMDLCCOCSplitType]],CostAllocationSplit[Type of Project],0)) -> TRUE | AE103: TRUE | AF103: FALSE
A104: 98 | B104: CP.02344 - T005 Gladstone to H008 Boyne Is BS1112 T | C104: Current - Approved - Non Load Driven | E104: Replacement | F104: =ISNUMBER(MATCH(ProjectData[[#This Row],[PQ Project Driver]],Lookup_ProjectDrivers,0)) -> TRUE | G104: Project Close | H104: =ISNUMBER(MATCH(ProjectData[[#This Row],[Capitalisation]],Lookup_CapitalisationTypes,0)) -> TRUE | I104: Nominal | J104: =ISNUMBER(MATCH(ProjectData[[#This Row],[RepexDollarsBasis]],Lookup_RepexDollarBasis,0)) -> TRUE | K104: 0 | L104: 0 | M104: 0.9978718884 | N104: 0 | O104: 0.002128111607 | P104: 0 | R104: 0 | AB104: =OR(SUM(ProjectData[[#This Row],[LinesOH]:[InsuranceSpares]])=1,ProjectData[[#This Row],[OnlyAssetClassAllocationIsToBeUsed]]=TRUE) -> TRUE | AC104: None | AD104: =ISNUMBER(MATCH(ProjectData[[#This Row],[DMDLCCOCSplitType]],CostAllocationSplit[Type of Project],0)) -> TRUE | AE104: TRUE | AF104: FALSE
A105: 99 | B105: CP.02351 - Nebo Primary Plant Replacement | C105: Current - Approved - Non Load Driven | E105: Replacement | F105: =ISNUMBER(MATCH(ProjectData[[#This Row],[PQ Project Driver]],Lookup_ProjectDrivers,0)) -> TRUE | G105: Project Close | H105: =ISNUMBER(MATCH(ProjectData[[#This Row],[Capitalisation]],Lookup_CapitalisationTypes,0)) -> TRUE | I105: Nominal | J105: =ISNUMBER(MATCH(ProjectData[[#This Row],[RepexDollarsBasis]],Lookup_RepexDollarBasis,0)) -> TRUE | K105: 0.0274857991 | L105: 0 | M105: 0 | N105: 0.9316953934 | O105: 0.04081880745 | P105: 0 | R105: 0 | AB105: =OR(SUM(ProjectData[[#This Row],[LinesOH]:[InsuranceSpares]])=1,ProjectData[[#This Row],[OnlyAssetClassAllocationIsToBeUsed]]=TRUE) -> TRUE | AC105: None | AD105: =ISNUMBER(MATCH(ProjectData[[#This Row],[DMDLCCOCSplitType]],CostAllocationSplit[Type of Project],0)) -> TRUE | AE105: TRUE | AF105: FALSE
A106: 100 | B106: CP.02507 - Collinsville - Proserpine BS1202 Life Ex | C106: Current - Approved - Non Load Driven | E106: Replacement | F106: =ISNUMBER(MATCH(ProjectData[[#This Row],[PQ Project Driver]],Lookup_ProjectDrivers,0)) -> TRUE | G106: Project Close | H106: =ISNUMBER(MATCH(ProjectData[[#This Row],[Capitalisation]],Lookup_CapitalisationTypes,0)) -> TRUE | I106: Nominal | J106: =ISNUMBER(MATCH(ProjectData[[#This Row],[RepexDollarsBasis]],Lookup_RepexDollarBasis,0)) -> TRUE | K106: 0 | L106: 0 | M106: 1 | N106: 0 | O106: 0 | P106: 0 | R106: 0 | AB106: =OR(SUM(ProjectData[[#This Row],[LinesOH]:[InsuranceSpares]])=1,ProjectData[[#This Row],[OnlyAssetClassAllocationIsToBeUsed]]=TRUE) -> TRUE | AC106: None | AD106: =ISNUMBER(MATCH(ProjectData[[#This Row],[DMDLCCOCSplitType]],CostAllocationSplit[Type of Project],0)) -> TRUE | AE106: TRUE | AF106: FALSE
A107: 101 | B107: CP.02554 - Operational Telephone Network Replacement | C107: Current - Approved - Non Load Driven | E107: Replacement | F107: =ISNUMBER(MATCH(ProjectData[[#This Row],[PQ Project Driver]],Lookup_ProjectDrivers,0)) -> TRUE | G107: Project Close | H107: =ISNUMBER(MATCH(ProjectData[[#This Row],[Capitalisation]],Lookup_CapitalisationTypes,0)) -> TRUE | I107: Nominal | J107: =ISNUMBER(MATCH(ProjectData[[#This Row],[RepexDollarsBasis]],Lookup_RepexDollarBasis,0)) -> TRUE | K107: 0 | L107: 0 | M107: 0 | N107: 0 | O107: 0 | P107: 1 | R107: 0 | AB107: =OR(SUM(ProjectData[[#This Row],[LinesOH]:[InsuranceSpares]])=1,ProjectData[[#This Row],[OnlyAssetClassAllocationIsToBeUsed]]=TRUE) -> TRUE | AC107: None | AD107: =ISNUMBER(MATCH(ProjectData[[#This Row],[DMDLCCOCSplitType]],CostAllocationSplit[Type of Project],0)) -> TRUE | AE107: TRUE | AF107: FALSE
A108: 102 | B108: CP.02616 - Upgrade Station Services Supplies T032 Blackwater | C108: Current - Approved - Non Load Driven | E108: Replacement | F108: =ISNUMBER(MATCH(ProjectData[[#This Row],[PQ Project Driver]],Lookup_ProjectDrivers,0)) -> TRUE | G108: Project Close | H108: =ISNUMBER(MATCH(ProjectData[[#This Row],[Capitalisation]],Lookup_CapitalisationTypes,0)) -> TRUE | I108: Nominal | J108: =ISNUMBER(MATCH(ProjectData[[#This Row],[RepexDollarsBasis]],Lookup_RepexDollarBasis,0)) -> TRUE | K108: 0 | L108: 0 | M108: 0 | N108: 1 | O108: 0 | P108: 0 | R108: 0 | AB108: =OR(SUM(ProjectData[[#This Row],[LinesOH]:[InsuranceSpares]])=1,ProjectData[[#This Row],[OnlyAssetClassAllocationIsToBeUsed]]=TRUE) -> TRUE | AC108: None | AD108: =ISNUMBER(MATCH(ProjectData[[#This Row],[DMDLCCOCSplitType]],CostAllocationSplit[Type of Project],0)) -> TRUE | AE108: TRUE | AF108: FALSE
A109: 103 | B109: CP.02632 - Woree-Hartley Street BS1255 Refit/Rebuil | C109: Current - Approved - Non Load Driven | E109: Replacement | F109: =ISNUMBER(MATCH(ProjectData[[#This Row],[PQ Project Driver]],Lookup_ProjectDrivers,0)) -> TRUE | G109: Project Close | H109: =ISNUMBER(MATCH(ProjectData[[#This Row],[Capitalisation]],Lookup_CapitalisationTypes,0)) -> TRUE | I109: Nominal | J109: =ISNUMBER(MATCH(ProjectData[[#This Row],[RepexDollarsBasis]],Lookup_RepexDollarBasis,0)) -> TRUE | K109: 0.2489793303 | L109: 0 | M109: 0.7510206697 | N109: 0 | O109: 0 | P109: 0 | R109: 0 | AB109: =OR(SUM(ProjectData[[#This Row],[LinesOH]:[InsuranceSpares]])=1,ProjectData[[#This Row],[OnlyAssetClassAllocationIsToBeUsed]]=TRUE) -> TRUE | AC109: None | AD109: =ISNUMBER(MATCH(ProjectData[[#This Row],[DMDLCCOCSplitType]],CostAllocationSplit[Type of Project],0)) -> TRUE | AE109: TRUE | AF109: FALSE
A110: 104 | B110: CP.02642 - Install OPGW on BS1204 Mackay to Pioneer | C110: Current - Approved - Non Load Driven | E110: Replacement | F110: =ISNUMBER(MATCH(ProjectData[[#This Row],[PQ Project Driver]],Lookup_ProjectDrivers,0)) -> TRUE | G110: Project Close | H110: =ISNUMBER(MATCH(ProjectData[[#This Row],[Capitalisation]],Lookup_CapitalisationTypes,0)) -> TRUE | I110: Nominal | J110: =ISNUMBER(MATCH(ProjectData[[#This Row],[RepexDollarsBasis]],Lookup_RepexDollarBasis,0)) -> TRUE | K110: 0.8 | L110: 0 | M110: 0 | N110: 0 | O110: 0 | P110: 0.2 | R110: 0 | AB110: =OR(SUM(ProjectData[[#This Row],[LinesOH]:[InsuranceSpares]])=1,ProjectData[[#This Row],[OnlyAssetClassAllocationIsToBeUsed]]=TRUE) -> TRUE | AC110: None | AD110: =ISNUMBER(MATCH(ProjectData[[#This Row],[DMDLCCOCSplitType]],CostAllocationSplit[Type of Project],0)) -> TRUE | AE110: TRUE | AF110: FALSE
A111: 105 | B111: SPARE | F111: =ISNUMBER(MATCH(ProjectData[[#This Row],[PQ Project Driver]],Lookup_ProjectDrivers,0)) -> FALSE | H111: =ISNUMBER(MATCH(ProjectData[[#This Row],[Capitalisation]],Lookup_CapitalisationTypes,0)) -> FALSE | J111: =ISNUMBER(MATCH(ProjectData[[#This Row],[RepexDollarsBasis]],Lookup_RepexDollarBasis,0)) -> FALSE | AB111: =OR(SUM(ProjectData[[#This Row],[LinesOH]:[InsuranceSpares]])=1,ProjectData[[#This Row],[OnlyAssetClassAllocationIsToBeUsed]]=TRUE) -> FALSE | AC111: None | AD111: =ISNUMBER(MATCH(ProjectData[[#This Row],[DMDLCCOCSplitType]],CostAllocationSplit[Type of Project],0)) -> TRUE | AF111: FALSE
A112: 106 | B112: CP.01543 - Mudgeeraba 275/110kV No.2 Transformer Replacement | C112: Current - Approved - Non Load Driven | E112: Replacement | F112: =ISNUMBER(MATCH(ProjectData[[#This Row],[PQ Project Driver]],Lookup_ProjectDrivers,0)) -> TRUE | G112: Project Close | H112: =ISNUMBER(MATCH(ProjectData[[#This Row],[Capitalisation]],Lookup_CapitalisationTypes,0)) -> TRUE | I112: Nominal | J112: =ISNUMBER(MATCH(ProjectData[[#This Row],[RepexDollarsBasis]],Lookup_RepexDollarBasis,0)) -> TRUE | K112: 0 | L112: 0 | M112: 0 | N112: 0.9182526787 | O112: 0.08174732127 | P112: 0 | AB112: =OR(SUM(ProjectData[[#This Row],[LinesOH]:[InsuranceSpares]])=1,ProjectData[[#This Row],[OnlyAssetClassAllocationIsToBeUsed]]=TRUE) -> TRUE | AC112: None | AD112: =ISNUMBER(MATCH(ProjectData[[#This Row],[DMDLCCOCSplitType]],CostAllocationSplit[Type of Project],0)) -> TRUE | AE112: TRUE | AF112: FALSE
A113: 107 | B113: CP.02278 - Moranbah Transformers Replacement | C113: Current - Approved - Non Load Driven | E113: Replacement | F113: =ISNUMBER(MATCH(ProjectData[[#This Row],[PQ Project Driver]],Lookup_ProjectDrivers,0)) -> TRUE | G113: Project Close | H113: =ISNUMBER(MATCH(ProjectData[[#This Row],[Capitalisation]],Lookup_CapitalisationTypes,0)) -> TRUE | I113: Nominal | J113: =ISNUMBER(MATCH(ProjectData[[#This Row],[RepexDollarsBasis]],Lookup_RepexDollarBasis,0)) -> TRUE | K113: 0 | L113: 0 | M113: 0 | N113: 0.8636779632 | O113: 0.1363220368 | AB113: =OR(SUM(ProjectData[[#This Row],[LinesOH]:[InsuranceSpares]])=1,ProjectData[[#This Row],[OnlyAssetClassAllocationIsToBeUsed]]=TRUE) -> TRUE | AC113: None | AD113: =ISNUMBER(MATCH(ProjectData[[#This Row],[DMDLCCOCSplitType]],CostAllocationSplit[Type of Project],0)) -> TRUE | AE113: TRUE | AF113: FALSE
A114: 108 | B114: CP.01453 - Cardwell Transformers Replacement | C114: Current - Approved - Non Load Driven | E114: Replacement | F114: =ISNUMBER(MATCH(ProjectData[[#This Row],[PQ Project Driver]],Lookup_ProjectDrivers,0)) -> TRUE | G114: Project Close | H114: =ISNUMBER(MATCH(ProjectData[[#This Row],[Capitalisation]],Lookup_CapitalisationTypes,0)) -> TRUE | I114: Nominal | J114: =ISNUMBER(MATCH(ProjectData[[#This Row],[RepexDollarsBasis]],Lookup_RepexDollarBasis,0)) -> TRUE | K114: 0 | L114: 0 | M114: 0 | N114: 0.846 | O114: 0.154 | AB114: =OR(SUM(ProjectData[[#This Row],[LinesOH]:[InsuranceSpares]])=1,ProjectData[[#This Row],[OnlyAssetClassAllocationIsToBeUsed]]=TRUE) -> TRUE | AC114: None | AD114: =ISNUMBER(MATCH(ProjectData[[#This Row],[DMDLCCOCSplitType]],CostAllocationSplit[Type of Project],0)) -> TRUE | AE114: TRUE | AF114: FALSE
A115: 109 | B115: SPARE | F115: =ISNUMBER(MATCH(ProjectData[[#This Row],[PQ Project Driver]],Lookup_ProjectDrivers,0)) -> FALSE | H115: =ISNUMBER(MATCH(ProjectData[[#This Row],[Capitalisation]],Lookup_CapitalisationTypes,0)) -> FALSE | J115: =ISNUMBER(MATCH(ProjectData[[#This Row],[RepexDollarsBasis]],Lookup_RepexDollarBasis,0)) -> FALSE | AB115: =OR(SUM(ProjectData[[#This Row],[LinesOH]:[InsuranceSpares]])=1,ProjectData[[#This Row],[OnlyAssetClassAllocationIsToBeUsed]]=TRUE) -> FALSE | AC115: None | AD115: =ISNUMBER(MATCH(ProjectData[[#This Row],[DMDLCCOCSplitType]],CostAllocationSplit[Type of Project],0)) -> TRUE | AF115: FALSE
A116: 110 | B116: SPARE | F116: =ISNUMBER(MATCH(ProjectData[[#This Row],[PQ Project Driver]],Lookup_ProjectDrivers,0)) -> FALSE | H116: =ISNUMBER(MATCH(ProjectData[[#This Row],[Capitalisation]],Lookup_CapitalisationTypes,0)) -> FALSE | J116: =ISNUMBER(MATCH(ProjectData[[#This Row],[RepexDollarsBasis]],Lookup_RepexDollarBasis,0)) -> FALSE | AB116: =OR(SUM(ProjectData[[#This Row],[LinesOH]:[InsuranceSpares]])=1,ProjectData[[#This Row],[OnlyAssetClassAllocationIsToBeUsed]]=TRUE) -> FALSE | AC116: None | AD116: =ISNUMBER(MATCH(ProjectData[[#This Row],[DMDLCCOCSplitType]],CostAllocationSplit[Type of Project],0)) -> TRUE | AF116: FALSE
A117: 111 | B117: SPARE | F117: =ISNUMBER(MATCH(ProjectData[[#This Row],[PQ Project Driver]],Lookup_ProjectDrivers,0)) -> FALSE | H117: =ISNUMBER(MATCH(ProjectData[[#This Row],[Capitalisation]],Lookup_CapitalisationTypes,0)) -> FALSE | J117: =ISNUMBER(MATCH(ProjectData[[#This Row],[RepexDollarsBasis]],Lookup_RepexDollarBasis,0)) -> FALSE | AB117: =OR(SUM(ProjectData[[#This Row],[LinesOH]:[InsuranceSpares]])=1,ProjectData[[#This Row],[OnlyAssetClassAllocationIsToBeUsed]]=TRUE) -> FALSE | AC117: None | AD117: =ISNUMBER(MATCH(ProjectData[[#This Row],[DMDLCCOCSplitType]],CostAllocationSplit[Type of Project],0)) -> TRUE | AF117: FALSE
A118: 112 | B118: SPARE | F118: =ISNUMBER(MATCH(ProjectData[[#This Row],[PQ Project Driver]],Lookup_ProjectDrivers,0)) -> FALSE | H118: =ISNUMBER(MATCH(ProjectData[[#This Row],[Capitalisation]],Lookup_CapitalisationTypes,0)) -> FALSE | J118: =ISNUMBER(MATCH(ProjectData[[#This Row],[RepexDollarsBasis]],Lookup_RepexDollarBasis,0)) -> FALSE | AB118: =OR(SUM(ProjectData[[#This Row],[LinesOH]:[InsuranceSpares]])=1,ProjectData[[#This Row],[OnlyAssetClassAllocationIsToBeUsed]]=TRUE) -> FALSE | AC118: None | AD118: =ISNUMBER(MATCH(ProjectData[[#This Row],[DMDLCCOCSplitType]],CostAllocationSplit[Type of Project],0)) -> TRUE | AF118: FALSE
A119: 113 | B119: SPARE | F119: =ISNUMBER(MATCH(ProjectData[[#This Row],[PQ Project Driver]],Lookup_ProjectDrivers,0)) -> FALSE | H119: =ISNUMBER(MATCH(ProjectData[[#This Row],[Capitalisation]],Lookup_CapitalisationTypes,0)) -> FALSE | J119: =ISNUMBER(MATCH(ProjectData[[#This Row],[RepexDollarsBasis]],Lookup_RepexDollarBasis,0)) -> FALSE | AB119: =OR(SUM(ProjectData[[#This Row],[LinesOH]:[InsuranceSpares]])=1,ProjectData[[#This Row],[OnlyAssetClassAllocationIsToBeUsed]]=TRUE) -> FALSE | AC119: None | AD119: =ISNUMBER(MATCH(ProjectData[[#This Row],[DMDLCCOCSplitType]],CostAllocationSplit[Type of Project],0)) -> TRUE | AF119: FALSE
A120: 114 | B120: SPARE | F120: =ISNUMBER(MATCH(ProjectData[[#This Row],[PQ Project Driver]],Lookup_ProjectDrivers,0)) -> FALSE | H120: =ISNUMBER(MATCH(ProjectData[[#This Row],[Capitalisation]],Lookup_CapitalisationTypes,0)) -> FALSE | J120: =ISNUMBER(MATCH(ProjectData[[#This Row],[RepexDollarsBasis]],Lookup_RepexDollarBasis,0)) -> FALSE | AB120: =OR(SUM(ProjectData[[#This Row],[LinesOH]:[InsuranceSpares]])=1,ProjectData[[#This Row],[OnlyAssetClassAllocationIsToBeUsed]]=TRUE) -> FALSE | AC120: None | AD120: =ISNUMBER(MATCH(ProjectData[[#This Row],[DMDLCCOCSplitType]],CostAllocationSplit[Type of Project],0)) -> TRUE | AF120: FALSE

Sheet Input Project Details
A1: Contents
B3: Project Details Data
B4: This sheet lists the details for each project item.
G5: Replacement Quantities. | N5: Repex, Nominal (Mid Year), As Incurred, $k | V5: Repex, Real 16/17 (End of year), As Incurred, $k | AE5: Augmentation Quantities. Functionality not utilised (no large augmentation projects) | AL5: Decommission Quantities. For information only. | BH5: Repex, Real 16/17 (End of year), As Commissioned, $k
A6: Notes:
A7: 9 | B7: Project ID = 999. Indicates that the values aren't used. | N7: WIP as at 30/06/2015. | AC7: If relevant (project close) | AS7: Internal + External <> 1 (remainder is non labour component).
A9: ID | B9: ProjectID | C9: ID Again | D9: PQ Description | E9: RIN Asset Description | F9: Check RIN Asset | G9: RepexQty2016 | H9: RepexQty2017 | I9: RepexQty2018 | J9: RepexQty2019 | K9: RepexQty2020 | L9: RepexQty2021 | M9: RepexQty2022 | N9: WIP | O9: NomIncur2016 | P9: NomIncur2017 | Q9: NomIncur2018 | R9: NomIncur2019 | S9: NomIncur2020 | T9: NomIncur2021 | U9: NomIncur2022 | V9: RealIncur2016 | W9: RealIncur2017 | X9: RealIncur2018 | Y9: RealIncur2019 | Z9: RealIncur2020 | AA9: RealIncur2021 | AB9: RealIncur2022 | AC9: Capitalisation Year | AD9: Check Non value capitalisation year, and project set to capitalise on project close | AE9: AugQty2016 | AF9: AugQty2017 | AG9: AugQty2018 | AH9: AugQty2019 | AI9: AugQty2020 | AJ9: AugQty2021 | AK9: AugQty2022 | AL9: DecomQty2016 | AM9: DecomQty2017 | AN9: DecomQty2018 | AO9: DecomQty2019 | AP9: DecomQty2020 | AQ9: DecomQty2021 | AR9: DecomQty2022 | AS9: Labour Internal | AT9: Labour External | AU9: DollarBasisImpliesNominal | AV9: DollarBasisImpliesReal1516 | AW9: DollarBasisOK | AX9: DollarBasisConsistentWithProject | AY9: LabourRatesPresent | AZ9: IncorrectLabourRatesNotPresent | BA9: LastYearOfNominalCashFlow | BB9: OverWrite_CashFlowAndCapitalisationYearAreOK | BC9: CashFlowandCapitalisationYearLineUp | BD9: Not_LabourRatesPresentWhenTheyShouldntBe | BE9: ExpenditureAfter2017IsNotUsed | BF9: HasDecomms? | BG9: PowerTransformerIsNotExcludedFromForecast | BH9: RealAsCom2016 | BI9: RealAsCom2017 | BJ9: RealAsCom2018 | BK9: RealAsCom2019 | BL9: RealAsCom2020 | BM9: RealAsCom2021 | BN9: RealAsCom2022 | BO9: ProjectHasNoDollarBasis | BP9: CheckCapitalisationYearNowOrLater | BQ9: ID Check | BR9: Project Is Specific Approved | BS9: ProjectPQDriver
A10: 1 | B10: 1 | C10: =Project_Details[ID] -> 1 | D10: TowerRebuild_ZoneC_132_SC_Grillage | E10: NOT ASSIGNED | F10: =ISNUMBER(MATCH(Project_Details[[#This Row],[RIN Asset Description]],Lookup_RIN_AssetCategory,0)) -> TRUE | X10: 25.84631576 | Y10: 27.14658482 | Z10: 28.08396005 | AA10: 28.63355654 | AB10: 28.79201914 | AD10: =IF((VLOOKUP(Project_Details[[#This Row],[ProjectID]],ProjectData[],MATCH("Capitalisation",ProjectData[#Headers],0),FALSE)="Project Close"),ISNUMBER(Project_Details[[#This Row],[Capitalisation Year]]),"NA") -> NA | AS10: 0.174031552 | AT10: 0.4449377479 | AU10: =MAX(ABS(Project_Details[[#This Row],[WIP]:[NomIncur2022]]))>0 -> FALSE | AV10: =MAX(ABS(Project_Details[[#This Row],[RealIncur2016]:[RealIncur2022]]))>0 -> TRUE | AW10: =OR(AND(Project_Details[[#This Row],[DollarBasisImpliesNominal]],NOT(Project_Details[[#This Row],[DollarBasisImpliesReal1516]])), AND(NOT(Project_Details[[#This Row],[DollarBasisImpliesNominal]]),Project_Details[[#This Row],[DollarBasisImpliesReal1516]]),AND(NOT(Project_Details[[#This Row],[DollarBasisImpliesNominal]]),NOT(Project_Details[[#This Row],[DollarBasisImpliesReal1516]]),OR(Project_Details[[#This Row],[HasDecomms?]],Project_Details[[#This Row],[ProjectHasNoDollarBasis]]))) -> TRUE | AX10: =IFERROR(OR(AND(Project_Details[[#This Row],[DollarBasisImpliesNominal]],VLOOKUP(Project_Details[[#This Row],[ProjectID]],ProjectData[],MATCH("RepexDollarsBasis",ProjectData[#Headers],0),FALSE)="Nominal"),AND(Project_Details[[#This Row],[DollarBasisImpliesReal1516]],VLOOKUP(Project_Details[[#This Row],[ProjectID]],ProjectData[],MATCH("RepexDollarsBasis",ProjectData[#Headers],0),FALSE)="Real1516"),Project_Details[[#This Row],[HasDecomms?]],Project_Details[[#This Row],[ProjectHasNoDollarBasis]]),FALSE) -> TRUE | AY10: =IF(Project_Details[[#This Row],[DollarBasisImpliesReal1516]],AND(ISNUMBER(Project_Details[[#This Row],[Labour Internal]]),ISNUMBER(Project_Details[[#This Row],[Labour External]])),"NA") -> TRUE | AZ10: =IF(Project_Details[[#This Row],[DollarBasisImpliesNominal]],NOT(OR(ISNUMBER(Project_Details[[#This Row],[Labour Internal]]),ISNUMBER(Project_Details[[#This Row],[Labour External]]))),"NA") -> NA | BA10: =IF(AND(Project_Details[[#This Row],[NomIncur2017]]=0,Project_Details[[#This Row],[WIP]]<>0),2017,IF(AND(Project_Details[[#This Row],[NomIncur2017]]=0,Project_Details[[#This Row],[NomIncur2016]]<>0),2016,IF(AND(Project_Details[[#This Row],[NomIncur2018]]=0,Project_Details[[#This Row],[NomIncur2017]]<>0),2017,IF(AND(Project_Details[[#This Row],[NomIncur2019]]=0,Project_Details[[#This Row],[NomIncur2018]]<>0),2018,IF(AND(Project_Details[[#This Row],[NomIncur2020]]=0,Project_Details[[#This Row],[NomIncur2019]]<>0),2019,IF(AND(Project_Details[[#This Row],[NomIncur2021]]=0,Project_Details[[#This Row],[NomIncur2020]]<>0),2020,IF(AND(Project_Details[[#This Row],[NomIncur2022]]=0,Project_Details[[#This Row],[NomIncur2021]]<>0),2021,IF(Project_Details[[#This Row],[NomIncur2022]]<>0,2022,"")))))))) ->  | BC10: =IF(OR(Project_Details[[#This Row],[HasDecomms?]],NOT(ISNUMBER(Project_Details[[#This Row],[Capitalisation Year]]))), "NA", OR(Project_Details[[#This Row],[OverWrite_CashFlowAndCapitalisationYearAreOK]],(Project_Details[[#This Row],[LastYearOfNominalCashFlow]]=Project_Details[[#This Row],[Capitalisation Year]]))) -> NA | BD10: =NOT(AND(Project_Details[[#This Row],[DollarBasisImpliesNominal]],OR(ISNUMBER(Project_Details[[#This Row],[Labour Internal]]),ISNUMBER(Project_Details[[#This Row],[Labour External]])))) -> TRUE | BF10: =OR(Project_Details[[#This Row],[DecomQty2016]]>0,Project_Details[[#This Row],[DecomQty2017]]>0,Project_Details[[#This Row],[DecomQty2018]]>0,Project_Details[[#This Row],[DecomQty2019]]>0,Project_Details[[#This Row],[DecomQty2020]]>0,Project_Details[[#This Row],[DecomQty2021]]>0,Project_Details[[#This Row],[DecomQty2022]]>0) -> FALSE | BG10: =IF(LEFT(Project_Details[[#This Row],[RIN Asset Description]],17)="Power Transformer",IF((Project_Details[[#This Row],[ExpenditureAfter2017IsNotUsed]]=TRUE),FALSE,TRUE),"NA") -> NA | BJ10: 0 | BK10: 0 | BL10: 0 | BM10: 0 | BN10: 0 | BO10: =IFERROR(("None"=VLOOKUP(Project_Details[[#This Row],[ProjectID]],ProjectData[],MATCH("RepexDollarsBasis",ProjectData[#Headers],0),FALSE)),FALSE) -> FALSE | BP10: =IF(ISNUMBER(Project_Details[[#This Row],[Capitalisation Year]]),(Project_Details[[#This Row],[Capitalisation Year]]>=2016),"NA") -> NA | BQ10: =(Project_Details[[#This Row],[ID]]=(ROW()-ProjectDetailsTableStartRow)) -> TRUE | BR10: =VLOOKUP(Project_Details[[#This Row],[ProjectID]],ProjectData[],MATCH("Specific Approved Project", ProjectData[#Headers],0),FALSE) -> FALSE | BS10: =VLOOKUP(Project_Details[[#This Row],[ProjectID]],ProjectData[],5,FALSE) -> Replacement
A11: 2 | B11: 1 | C11: =Project_Details[ID] -> 2 | D11: TowerRebuild_ZoneB_132_MC_Grillage | E11: NOT ASSIGNED | F11: =ISNUMBER(MATCH(Project_Details[[#This Row],[RIN Asset Description]],Lookup_RIN_AssetCategory,0)) -> TRUE | X11: 92.81457433 | Y11: 115.9931016 | Z11: 142.9474975 | AA11: 173.7198178 | AB11: 208.1855531 | AD11: =IF((VLOOKUP(Project_Details[[#This Row],[ProjectID]],ProjectData[],MATCH("Capitalisation",ProjectData[#Headers],0),FALSE)="Project Close"),ISNUMBER(Project_Details[[#This Row],[Capitalisation Year]]),"NA") -> NA | AS11: 0.174031552 | AT11: 0.4389087811 | AU11: =MAX(ABS(Project_Details[[#This Row],[WIP]:[NomIncur2022]]))>0 -> FALSE | AV11: =MAX(ABS(Project_Details[[#This Row],[RealIncur2016]:[RealIncur2022]]))>0 -> TRUE | AW11: =OR(AND(Project_Details[[#This Row],[DollarBasisImpliesNominal]],NOT(Project_Details[[#This Row],[DollarBasisImpliesReal1516]])), AND(NOT(Project_Details[[#This Row],[DollarBasisImpliesNominal]]),Project_Details[[#This Row],[DollarBasisImpliesReal1516]]),AND(NOT(Project_Details[[#This Row],[DollarBasisImpliesNominal]]),NOT(Project_Details[[#This Row],[DollarBasisImpliesReal1516]]),OR(Project_Details[[#This Row],[HasDecomms?]],Project_Details[[#This Row],[ProjectHasNoDollarBasis]]))) -> TRUE | AX11: =IFERROR(OR(AND(Project_Details[[#This Row],[DollarBasisImpliesNominal]],VLOOKUP(Project_Details[[#This Row],[ProjectID]],ProjectData[],MATCH("RepexDollarsBasis",ProjectData[#Headers],0),FALSE)="Nominal"),AND(Project_Details[[#This Row],[DollarBasisImpliesReal1516]],VLOOKUP(Project_Details[[#This Row],[ProjectID]],ProjectData[],MATCH("RepexDollarsBasis",ProjectData[#Headers],0),FALSE)="Real1516"),Project_Details[[#This Row],[HasDecomms?]],Project_Details[[#This Row],[ProjectHasNoDollarBasis]]),FALSE) -> TRUE | AY11: =IF(Project_Details[[#This Row],[DollarBasisImpliesReal1516]],AND(ISNUMBER(Project_Details[[#This Row],[Labour Internal]]),ISNUMBER(Project_Details[[#This Row],[Labour External]])),"NA") -> TRUE | AZ11: =IF(Project_Details[[#This Row],[DollarBasisImpliesNominal]],NOT(OR(ISNUMBER(Project_Details[[#This Row],[Labour Internal]]),ISNUMBER(Project_Details[[#This Row],[Labour External]]))),"NA") -> NA | BA11: =IF(AND(Project_Details[[#This Row],[NomIncur2017]]=0,Project_Details[[#This Row],[WIP]]<>0),2017,IF(AND(Project_Details[[#This Row],[NomIncur2017]]=0,Project_Details[[#This Row],[NomIncur2016]]<>0),2016,IF(AND(Project_Details[[#This Row],[NomIncur2018]]=0,Project_Details[[#This Row],[NomIncur2017]]<>0),2017,IF(AND(Project_Details[[#This Row],[NomIncur2019]]=0,Project_Details[[#This Row],[NomIncur2018]]<>0),2018,IF(AND(Project_Details[[#This Row],[NomIncur2020]]=0,Project_Details[[#This Row],[NomIncur2019]]<>0),2019,IF(AND(Project_Details[[#This Row],[NomIncur2021]]=0,Project_Details[[#This Row],[NomIncur2020]]<>0),2020,IF(AND(Project_Details[[#This Row],[NomIncur2022]]=0,Project_Details[[#This Row],[NomIncur2021]]<>0),2021,IF(Project_Details[[#This Row],[NomIncur2022]]<>0,2022,"")))))))) ->  | BC11: =IF(OR(Project_Details[[#This Row],[HasDecomms?]],NOT(ISNUMBER(Project_Details[[#This Row],[Capitalisation Year]]))), "NA", OR(Project_Details[[#This Row],[OverWrite_CashFlowAndCapitalisationYearAreOK]],(Project_Details[[#This Row],[LastYearOfNominalCashFlow]]=Project_Details[[#This Row],[Capitalisation Year]]))) -> NA | BD11: =NOT(AND(Project_Details[[#This Row],[DollarBasisImpliesNominal]],OR(ISNUMBER(Project_Details[[#This Row],[Labour Internal]]),ISNUMBER(Project_Details[[#This Row],[Labour External]])))) -> TRUE | BF11: =OR(Project_Details[[#This Row],[DecomQty2016]]>0,Project_Details[[#This Row],[DecomQty2017]]>0,Project_Details[[#This Row],[DecomQty2018]]>0,Project_Details[[#This Row],[DecomQty2019]]>0,Project_Details[[#This Row],[DecomQty2020]]>0,Project_Details[[#This Row],[DecomQty2021]]>0,Project_Details[[#This Row],[DecomQty2022]]>0) -> FALSE | BG11: =IF(LEFT(Project_Details[[#This Row],[RIN Asset Description]],17)="Power Transformer",IF((Project_Details[[#This Row],[ExpenditureAfter2017IsNotUsed]]=TRUE),FALSE,TRUE),"NA") -> NA | BJ11: 0 | BK11: 0 | BL11: 0 | BM11: 584.9672123 | BN11: 0 | BO11: =IFERROR(("None"=VLOOKUP(Project_Details[[#This Row],[ProjectID]],ProjectData[],MATCH("RepexDollarsBasis",ProjectData[#Headers],0),FALSE)),FALSE) -> FALSE | BP11: =IF(ISNUMBER(Project_Details[[#This Row],[Capitalisation Year]]),(Project_Details[[#This Row],[Capitalisation Year]]>=2016),"NA") -> NA | BQ11: =(Project_Details[[#This Row],[ID]]=(ROW()-ProjectDetailsTableStartRow)) -> TRUE | BR11: =VLOOKUP(Project_Details[[#This Row],[ProjectID]],ProjectData[],MATCH("Specific Approved Project", ProjectData[#Headers],0),FALSE) -> FALSE | BS11: =VLOOKUP(Project_Details[[#This Row],[ProjectID]],ProjectData[],5,FALSE) -> Replacement
A12: 3 | B12: 1 | C12: =Project_Details[ID] -> 3 | D12: TowerRebuild_ZoneC_132_MC_Grillage | E12: NOT ASSIGNED | F12: =ISNUMBER(MATCH(Project_Details[[#This Row],[RIN Asset Description]],Lookup_RIN_AssetCategory,0)) -> TRUE | X12: 2417.551939 | Y12: 2571.259638 | Z12: 2690.685118 | AA12: 2770.109122 | AB12: 2805.560918 | AD12: =IF((VLOOKUP(Project_Details[[#This Row],[ProjectID]],ProjectData[],MATCH("Capitalisation",ProjectData[#Headers],0),FALSE)="Project Close"),ISNUMBER(Project_Details[[#This Row],[Capitalisation Year]]),"NA") -> NA | AS12: 0.174031552 | AT12: 0.4389087811 | AU12: =MAX(ABS(Project_Details[[#This Row],[WIP]:[NomIncur2022]]))>0 -> FALSE | AV12: =MAX(ABS(Project_Details[[#This Row],[RealIncur2016]:[RealIncur2022]]))>0 -> TRUE | AW12: =OR(AND(Project_Details[[#This Row],[DollarBasisImpliesNominal]],NOT(Project_Details[[#This Row],[DollarBasisImpliesReal1516]])), AND(NOT(Project_Details[[#This Row],[DollarBasisImpliesNominal]]),Project_Details[[#This Row],[DollarBasisImpliesReal1516]]),AND(NOT(Project_Details[[#This Row],[DollarBasisImpliesNominal]]),NOT(Project_Details[[#This Row],[DollarBasisImpliesReal1516]]),OR(Project_Details[[#This Row],[HasDecomms?]],Project_Details[[#This Row],[ProjectHasNoDollarBasis]]))) -> TRUE | AX12: =IFERROR(OR(AND(Project_Details[[#This Row],[DollarBasisImpliesNominal]],VLOOKUP(Project_Details[[#This Row],[ProjectID]],ProjectData[],MATCH("RepexDollarsBasis",ProjectData[#Headers],0),FALSE)="Nominal"),AND(Project_Details[[#This Row],[DollarBasisImpliesReal1516]],VLOOKUP(Project_Details[[#This Row],[ProjectID]],ProjectData[],MATCH("RepexDollarsBasis",ProjectData[#Headers],0),FALSE)="Real1516"),Project_Details[[#This Row],[HasDecomms?]],Project_Details[[#This Row],[ProjectHasNoDollarBasis]]),FALSE) -> TRUE | AY12: =IF(Project_Details[[#This Row],[DollarBasisImpliesReal1516]],AND(ISNUMBER(Project_Details[[#This Row],[Labour Internal]]),ISNUMBER(Project_Details[[#This Row],[Labour External]])),"NA") -> TRUE | AZ12: =IF(Project_Details[[#This Row],[DollarBasisImpliesNominal]],NOT(OR(ISNUMBER(Project_Details[[#This Row],[Labour Internal]]),ISNUMBER(Project_Details[[#This Row],[Labour External]]))),"NA") -> NA | BA12: =IF(AND(Project_Details[[#This Row],[NomIncur2017]]=0,Project_Details[[#This Row],[WIP]]<>0),2017,IF(AND(Project_Details[[#This Row],[NomIncur2017]]=0,Project_Details[[#This Row],[NomIncur2016]]<>0),2016,IF(AND(Project_Details[[#This Row],[NomIncur2018]]=0,Project_Details[[#This Row],[NomIncur2017]]<>0),2017,IF(AND(Project_Details[[#This Row],[NomIncur2019]]=0,Project_Details[[#This Row],[NomIncur2018]]<>0),2018,IF(AND(Project_Details[[#This Row],[NomIncur2020]]=0,Project_Details[[#This Row],[NomIncur2019]]<>0),2019,IF(AND(Project_Details[[#This Row],[NomIncur2021]]=0,Project_Details[[#This Row],[NomIncur2020]]<>0),2020,IF(AND(Project_Details[[#This Row],[NomIncur2022]]=0,Project_Details[[#This Row],[NomIncur2021]]<>0),2021,IF(Project_Details[[#This Row],[NomIncur2022]]<>0,2022,"")))))))) ->  | BC12: =IF(OR(Project_Details[[#This Row],[HasDecomms?]],NOT(ISNUMBER(Project_Details[[#This Row],[Capitalisation Year]]))), "NA", OR(Project_Details[[#This Row],[OverWrite_CashFlowAndCapitalisationYearAreOK]],(Project_Details[[#This Row],[LastYearOfNominalCashFlow]]=Project_Details[[#This Row],[Capitalisation Year]]))) -> NA | BD12: =NOT(AND(Project_Details[[#This Row],[DollarBasisImpliesNominal]],OR(ISNUMBER(Project_Details[[#This Row],[Labour Internal]]),ISNUMBER(Project_Details[[#This Row],[Labour External]])))) -> TRUE | BF12: =OR(Project_Details[[#This Row],[DecomQty2016]]>0,Project_Details[[#This Row],[DecomQty2017]]>0,Project_Details[[#This Row],[DecomQty2018]]>0,Project_Details[[#This Row],[DecomQty2019]]>0,Project_Details[[#This Row],[DecomQty2020]]>0,Project_Details[[#This Row],[DecomQty2021]]>0,Project_Details[[#This Row],[DecomQty2022]]>0) -> FALSE | BG12: =IF(LEFT(Project_Details[[#This Row],[RIN Asset Description]],17)="Power Transformer",IF((Project_Details[[#This Row],[ExpenditureAfter2017IsNotUsed]]=TRUE),FALSE,TRUE),"NA") -> NA | BJ12: 1169.934425 | BK12: 2339.868849 | BL12: 0 | BM12: 0 | BN12: 0 | BO12: =IFERROR(("None"=VLOOKUP(Project_Details[[#This Row],[ProjectID]],ProjectData[],MATCH("RepexDollarsBasis",ProjectData[#Headers],0),FALSE)),FALSE) -> FALSE | BP12: =IF(ISNUMBER(Project_Details[[#This Row],[Capitalisation Year]]),(Project_Details[[#This Row],[Capitalisation Year]]>=2016),"NA") -> NA | BQ12: =(Project_Details[[#This Row],[ID]]=(ROW()-ProjectDetailsTableStartRow)) -> TRUE | BR12: =VLOOKUP(Project_Details[[#This Row],[ProjectID]],ProjectData[],MATCH("Specific Approved Project", ProjectData[#Headers],0),FALSE) -> FALSE | BS12: =VLOOKUP(Project_Details[[#This Row],[ProjectID]],ProjectData[],5,FALSE) -> Replacement
A13: 4 | B13: 2 | C13: =Project_Details[ID] -> 4 | D13: TowerRefit_ZoneB_132_SC_NonGrillage | E13: NOT ASSIGNED | F13: =ISNUMBER(MATCH(Project_Details[[#This Row],[RIN Asset Description]],Lookup_RIN_AssetCategory,0)) -> TRUE | X13: 139.5962143 | Y13: 181.2614519 | Z13: 232.0345216 | AA13: 292.8579311 | AB13: 364.4732939 | AD13: =IF((VLOOKUP(Project_Details[[#This Row],[ProjectID]],ProjectData[],MATCH("Capitalisation",ProjectData[#Headers],0),FALSE)="Project Close"),ISNUMBER(Project_Details[[#This Row],[Capitalisation Year]]),"NA") -> NA | AS13: 0.174031552 | AT13: 0.5853423128 | AU13: =MAX(ABS(Project_Details[[#This Row],[WIP]:[NomIncur2022]]))>0 -> FALSE | AV13: =MAX(ABS(Project_Details[[#This Row],[RealIncur2016]:[RealIncur2022]]))>0 -> TRUE | AW13: =OR(AND(Project_Details[[#This Row],[DollarBasisImpliesNominal]],NOT(Project_Details[[#This Row],[DollarBasisImpliesReal1516]])), AND(NOT(Project_Details[[#This Row],[DollarBasisImpliesNominal]]),Project_Details[[#This Row],[DollarBasisImpliesReal1516]]),AND(NOT(Project_Details[[#This Row],[DollarBasisImpliesNominal]]),NOT(Project_Details[[#This Row],[DollarBasisImpliesReal1516]]),OR(Project_Details[[#This Row],[HasDecomms?]],Project_Details[[#This Row],[ProjectHasNoDollarBasis]]))) -> TRUE | AX13: =IFERROR(OR(AND(Project_Details[[#This Row],[DollarBasisImpliesNominal]],VLOOKUP(Project_Details[[#This Row],[ProjectID]],ProjectData[],MATCH("RepexDollarsBasis",ProjectData[#Headers],0),FALSE)="Nominal"),AND(Project_Details[[#This Row],[DollarBasisImpliesReal1516]],VLOOKUP(Project_Details[[#This Row],[ProjectID]],ProjectData[],MATCH("RepexDollarsBasis",ProjectData[#Headers],0),FALSE)="Real1516"),Project_Details[[#This Row],[HasDecomms?]],Project_Details[[#This Row],[ProjectHasNoDollarBasis]]),FALSE) -> TRUE | AY13: =IF(Project_Details[[#This Row],[DollarBasisImpliesReal1516]],AND(ISNUMBER(Project_Details[[#This Row],[Labour Internal]]),ISNUMBER(Project_Details[[#This Row],[Labour External]])),"NA") -> TRUE | AZ13: =IF(Project_Details[[#This Row],[DollarBasisImpliesNominal]],NOT(OR(ISNUMBER(Project_Details[[#This Row],[Labour Internal]]),ISNUMBER(Project_Details[[#This Row],[Labour External]]))),"NA") -> NA | BA13: =IF(AND(Project_Details[[#This Row],[NomIncur2017]]=0,Project_Details[[#This Row],[WIP]]<>0),2017,IF(AND(Project_Details[[#This Row],[NomIncur2017]]=0,Project_Details[[#This Row],[NomIncur2016]]<>0),2016,IF(AND(Project_Details[[#This Row],[NomIncur2018]]=0,Project_Details[[#This Row],[NomIncur2017]]<>0),2017,IF(AND(Project_Details[[#This Row],[NomIncur2019]]=0,Project_Details[[#This Row],[NomIncur2018]]<>0),2018,IF(AND(Project_Details[[#This Row],[NomIncur2020]]=0,Project_Details[[#This Row],[NomIncur2019]]<>0),2019,IF(AND(Project_Details[[#This Row],[NomIncur2021]]=0,Project_Details[[#This Row],[NomIncur2020]]<>0),2020,IF(AND(Project_Details[[#This Row],[NomIncur2022]]=0,Project_Details[[#This Row],[NomIncur2021]]<>0),2021,IF(Project_Details[[#This Row],[NomIncur2022]]<>0,2022,"")))))))) ->  | BC13: =IF(OR(Project_Details[[#This Row],[HasDecomms?]],NOT(ISNUMBER(Project_Details[[#This Row],[Capitalisation Year]]))), "NA", OR(Project_Details[[#This Row],[OverWrite_CashFlowAndCapitalisationYearAreOK]],(Project_Details[[#This Row],[LastYearOfNominalCashFlow]]=Project_Details[[#This Row],[Capitalisation Year]]))) -> NA | BD13: =NOT(AND(Project_Details[[#This Row],[DollarBasisImpliesNominal]],OR(ISNUMBER(Project_Details[[#This Row],[Labour Internal]]),ISNUMBER(Project_Details[[#This Row],[Labour External]])))) -> TRUE | BF13: =OR(Project_Details[[#This Row],[DecomQty2016]]>0,Project_Details[[#This Row],[DecomQty2017]]>0,Project_Details[[#This Row],[DecomQty2018]]>0,Project_Details[[#This Row],[DecomQty2019]]>0,Project_Details[[#This Row],[DecomQty2020]]>0,Project_Details[[#This Row],[DecomQty2021]]>0,Project_Details[[#This Row],[DecomQty2022]]>0) -> FALSE | BG13: =IF(LEFT(Project_Details[[#This Row],[RIN Asset Description]],17)="Power Transformer",IF((Project_Details[[#This Row],[ExpenditureAfter2017IsNotUsed]]=TRUE),FALSE,TRUE),"NA") -> NA | BJ13: 0 | BK13: 0 | BL13: 0 | BM13: 0 | BN13: 0 | BO13: =IFERROR(("None"=VLOOKUP(Project_Details[[#This Row],[ProjectID]],ProjectData[],MATCH("RepexDollarsBasis",ProjectData[#Headers],0),FALSE)),FALSE) -> FALSE | BP13: =IF(ISNUMBER(Project_Details[[#This Row],[Capitalisation Year]]),(Project_Details[[#This Row],[Capitalisation Year]]>=2016),"NA") -> NA | BQ13: =(Project_Details[[#This Row],[ID]]=(ROW()-ProjectDetailsTableStartRow)) -> TRUE | BR13: =VLOOKUP(Project_Details[[#This Row],[ProjectID]],ProjectData[],MATCH("Specific Approved Project", ProjectData[#Headers],0),FALSE) -> FALSE | BS13: =VLOOKUP(Project_Details[[#This Row],[ProjectID]],ProjectData[],5,FALSE) -> Replacement
A14: 5 | B14: 2 | C14: =Project_Details[ID] -> 5 | D14: TowerRefit_ZoneC_132_SC_NonGrillage | E14: NOT ASSIGNED | F14: =ISNUMBER(MATCH(Project_Details[[#This Row],[RIN Asset Description]],Lookup_RIN_AssetCategory,0)) -> TRUE | X14: 2043.88168 | Y14: 2192.363541 | Z14: 2334.800265 | AA14: 2474.53982 | AB14: 2616.448348 | AD14: =IF((VLOOKUP(Project_Details[[#This Row],[ProjectID]],ProjectData[],MATCH("Capitalisation",ProjectData[#Headers],0),FALSE)="Project Close"),ISNUMBER(Project_Details[[#This Row],[Capitalisation Year]]),"NA") -> NA | AS14: 0.174031552 | AT14: 0.5853423128 | AU14: =MAX(ABS(Project_Details[[#This Row],[WIP]:[NomIncur2022]]))>0 -> FALSE | AV14: =MAX(ABS(Project_Details[[#This Row],[RealIncur2016]:[RealIncur2022]]))>0 -> TRUE | AW14: =OR(AND(Project_Details[[#This Row],[DollarBasisImpliesNominal]],NOT(Project_Details[[#This Row],[DollarBasisImpliesReal1516]])), AND(NOT(Project_Details[[#This Row],[DollarBasisImpliesNominal]]),Project_Details[[#This Row],[DollarBasisImpliesReal1516]]),AND(NOT(Project_Details[[#This Row],[DollarBasisImpliesNominal]]),NOT(Project_Details[[#This Row],[DollarBasisImpliesReal1516]]),OR(Project_Details[[#This Row],[HasDecomms?]],Project_Details[[#This Row],[ProjectHasNoDollarBasis]]))) -> TRUE | AX14: =IFERROR(OR(AND(Project_Details[[#This Row],[DollarBasisImpliesNominal]],VLOOKUP(Project_Details[[#This Row],[ProjectID]],ProjectData[],MATCH("RepexDollarsBasis",ProjectData[#Headers],0),FALSE)="Nominal"),AND(Project_Details[[#This Row],[DollarBasisImpliesReal1516]],VLOOKUP(Project_Details[[#This Row],[ProjectID]],ProjectData[],MATCH("RepexDollarsBasis",ProjectData[#Headers],0),FALSE)="Real1516"),Project_Details[[#This Row],[HasDecomms?]],Project_Details[[#This Row],[ProjectHasNoDollarBasis]]),FALSE) -> TRUE | AY14: =IF(Project_Details[[#This Row],[DollarBasisImpliesReal1516]],AND(ISNUMBER(Project_Details[[#This Row],[Labour Internal]]),ISNUMBER(Project_Details[[#This Row],[Labour External]])),"NA") -> TRUE | AZ14: =IF(Project_Details[[#This Row],[DollarBasisImpliesNominal]],NOT(OR(ISNUMBER(Project_Details[[#This Row],[Labour Internal]]),ISNUMBER(Project_Details[[#This Row],[Labour External]]))),"NA") -> NA | BA14: =IF(AND(Project_Details[[#This Row],[NomIncur2017]]=0,Project_Details[[#This Row],[WIP]]<>0),2017,IF(AND(Project_Details[[#This Row],[NomIncur2017]]=0,Project_Details[[#This Row],[NomIncur2016]]<>0),2016,IF(AND(Project_Details[[#This Row],[NomIncur2018]]=0,Project_Details[[#This Row],[NomIncur2017]]<>0),2017,IF(AND(Project_Details[[#This Row],[NomIncur2019]]=0,Project_Details[[#This Row],[NomIncur2018]]<>0),2018,IF(AND(Project_Details[[#This Row],[NomIncur2020]]=0,Project_Details[[#This Row],[NomIncur2019]]<>0),2019,IF(AND(Project_Details[[#This Row],[NomIncur2021]]=0,Project_Details[[#This Row],[NomIncur2020]]<>0),2020,IF(AND(Project_Details[[#This Row],[NomIncur2022]]=0,Project_Details[[#This Row],[NomIncur2021]]<>0),2021,IF(Project_Details[[#This Row],[NomIncur2022]]<>0,2022,"")))))))) ->  | BC14: =IF(OR(Project_Details[[#This Row],[HasDecomms?]],NOT(ISNUMBER(Project_Details[[#This Row],[Capitalisation Year]]))), "NA", OR(Project_Details[[#This Row],[OverWrite_CashFlowAndCapitalisationYearAreOK]],(Project_Details[[#This Row],[LastYearOfNominalCashFlow]]=Project_Details[[#This Row],[Capitalisation Year]]))) -> NA | BD14: =NOT(AND(Project_Details[[#This Row],[DollarBasisImpliesNominal]],OR(ISNUMBER(Project_Details[[#This Row],[Labour Internal]]),ISNUMBER(Project_Details[[#This Row],[Labour External]])))) -> TRUE | BF14: =OR(Project_Details[[#This Row],[DecomQty2016]]>0,Project_Details[[#This Row],[DecomQty2017]]>0,Project_Details[[#This Row],[DecomQty2018]]>0,Project_Details[[#This Row],[DecomQty2019]]>0,Project_Details[[#This Row],[DecomQty2020]]>0,Project_Details[[#This Row],[DecomQty2021]]>0,Project_Details[[#This Row],[DecomQty2022]]>0) -> FALSE | BG14: =IF(LEFT(Project_Details[[#This Row],[RIN Asset Description]],17)="Power Transformer",IF((Project_Details[[#This Row],[ExpenditureAfter2017IsNotUsed]]=TRUE),FALSE,TRUE),"NA") -> NA | BJ14: 0 | BK14: 0 | BL14: 0 | BM14: 0 | BN14: 0 | BO14: =IFERROR(("None"=VLOOKUP(Project_Details[[#This Row],[ProjectID]],ProjectData[],MATCH("RepexDollarsBasis",ProjectData[#Headers],0),FALSE)),FALSE) -> FALSE | BP14: =IF(ISNUMBER(Project_Details[[#This Row],[Capitalisation Year]]),(Project_Details[[#This Row],[Capitalisation Year]]>=2016),"NA") -> NA | BQ14: =(Project_Details[[#This Row],[ID]]=(ROW()-ProjectDetailsTableStartRow)) -> TRUE | BR14: =VLOOKUP(Project_Details[[#This Row],[ProjectID]],ProjectData[],MATCH("Specific Approved Project", ProjectData[#Headers],0),FALSE) -> FALSE | BS14: =VLOOKUP(Project_Details[[#This Row],[ProjectID]],ProjectData[],5,FALSE) -> Replacement
A15: 6 | B15: 2 | C15: =Project_Details[ID] -> 6 | D15: TowerRefit_ZoneD_132_SC_NonGrillage | E15: NOT ASSIGNED | F15: =ISNUMBER(MATCH(Project_Details[[#This Row],[RIN Asset Description]],Lookup_RIN_AssetCategory,0)) -> TRUE | X15: 178.7366423 | Y15: 221.1097697 | Z15: 266.8260453 | AA15: 314.1197573 | AB15: 360.776308 | AD15: =IF((VLOOKUP(Project_Details[[#This Row],[ProjectID]],ProjectData[],MATCH("Capitalisation",ProjectData[#Headers],0),FALSE)="Project Close"),ISNUMBER(Project_Details[[#This Row],[Capitalisation Year]]),"NA") -> NA | AS15: 0.174031552 | AT15: 0.5853423128 | AU15: =MAX(ABS(Project_Details[[#This Row],[WIP]:[NomIncur2022]]))>0 -> FALSE | AV15: =MAX(ABS(Project_Details[[#This Row],[RealIncur2016]:[RealIncur2022]]))>0 -> TRUE | AW15: =OR(AND(Project_Details[[#This Row],[DollarBasisImpliesNominal]],NOT(Project_Details[[#This Row],[DollarBasisImpliesReal1516]])), AND(NOT(Project_Details[[#This Row],[DollarBasisImpliesNominal]]),Project_Details[[#This Row],[DollarBasisImpliesReal1516]]),AND(NOT(Project_Details[[#This Row],[DollarBasisImpliesNominal]]),NOT(Project_Details[[#This Row],[DollarBasisImpliesReal1516]]),OR(Project_Details[[#This Row],[HasDecomms?]],Project_Details[[#This Row],[ProjectHasNoDollarBasis]]))) -> TRUE | AX15: =IFERROR(OR(AND(Project_Details[[#This Row],[DollarBasisImpliesNominal]],VLOOKUP(Project_Details[[#This Row],[ProjectID]],ProjectData[],MATCH("RepexDollarsBasis",ProjectData[#Headers],0),FALSE)="Nominal"),AND(Project_Details[[#This Row],[DollarBasisImpliesReal1516]],VLOOKUP(Project_Details[[#This Row],[ProjectID]],ProjectData[],MATCH("RepexDollarsBasis",ProjectData[#Headers],0),FALSE)="Real1516"),Project_Details[[#This Row],[HasDecomms?]],Project_Details[[#This Row],[ProjectHasNoDollarBasis]]),FALSE) -> TRUE | AY15: =IF(Project_Details[[#This Row],[DollarBasisImpliesReal1516]],AND(ISNUMBER(Project_Details[[#This Row],[Labour Internal]]),ISNUMBER(Project_Details[[#This Row],[Labour External]])),"NA") -> TRUE | AZ15: =IF(Project_Details[[#This Row],[DollarBasisImpliesNominal]],NOT(OR(ISNUMBER(Project_Details[[#This Row],[Labour Internal]]),ISNUMBER(Project_Details[[#This Row],[Labour External]]))),"NA") -> NA | BA15: =IF(AND(Project_Details[[#This Row],[NomIncur2017]]=0,Project_Details[[#This Row],[WIP]]<>0),2017,IF(AND(Project_Details[[#This Row],[NomIncur2017]]=0,Project_Details[[#This Row],[NomIncur2016]]<>0),2016,IF(AND(Project_Details[[#This Row],[NomIncur2018]]=0,Project_Details[[#This Row],[NomIncur2017]]<>0),2017,IF(AND(Project_Details[[#This Row],[NomIncur2019]]=0,Project_Details[[#This Row],[NomIncur2018]]<>0),2018,IF(AND(Project_Details[[#This Row],[NomIncur2020]]=0,Project_Details[[#This Row],[NomIncur2019]]<>0),2019,IF(AND(Project_Details[[#This Row],[NomIncur2021]]=0,Project_Details[[#This Row],[NomIncur2020]]<>0),2020,IF(AND(Project_Details[[#This Row],[NomIncur2022]]=0,Project_Details[[#This Row],[NomIncur2021]]<>0),2021,IF(Project_Details[[#This Row],[NomIncur2022]]<>0,2022,"")))))))) ->  | BC15: =IF(OR(Project_Details[[#This Row],[HasDecomms?]],NOT(ISNUMBER(Project_Details[[#This Row],[Capitalisation Year]]))), "NA", OR(Project_Details[[#This Row],[OverWrite_CashFlowAndCapitalisationYearAreOK]],(Project_Details[[#This Row],[LastYearOfNominalCashFlow]]=Project_Details[[#This Row],[Capitalisation Year]]))) -> NA | BD15: =NOT(AND(Project_Details[[#This Row],[DollarBasisImpliesNominal]],OR(ISNUMBER(Project_Details[[#This Row],[Labour Internal]]),ISNUMBER(Project_Details[[#This Row],[Labour External]])))) -> TRUE | BF15: =OR(Project_Details[[#This Row],[DecomQty2016]]>0,Project_Details[[#This Row],[DecomQty2017]]>0,Project_Details[[#This Row],[DecomQty2018]]>0,Project_Details[[#This Row],[DecomQty2019]]>0,Project_Details[[#This Row],[DecomQty2020]]>0,Project_Details[[#This Row],[DecomQty2021]]>0,Project_Details[[#This Row],[DecomQty2022]]>0) -> FALSE | BG15: =IF(LEFT(Project_Details[[#This Row],[RIN Asset Description]],17)="Power Transformer",IF((Project_Details[[#This Row],[ExpenditureAfter2017IsNotUsed]]=TRUE),FALSE,TRUE),"NA") -> NA | BJ15: 0 | BK15: 0 | BL15: 0 | BM15: 0 | BN15: 0 | BO15: =IFERROR(("None"=VLOOKUP(Project_Details[[#This Row],[ProjectID]],ProjectData[],MATCH("RepexDollarsBasis",ProjectData[#Headers],0),FALSE)),FALSE) -> FALSE | BP15: =IF(ISNUMBER(Project_Details[[#This Row],[Capitalisation Year]]),(Project_Details[[#This Row],[Capitalisation Year]]>=2016),"NA") -> NA | BQ15: =(Project_Details[[#This Row],[ID]]=(ROW()-ProjectDetailsTableStartRow)) -> TRUE | BR15: =VLOOKUP(Project_Details[[#This Row],[ProjectID]],ProjectData[],MATCH("Specific Approved Project", ProjectData[#Headers],0),FALSE) -> FALSE | BS15: =VLOOKUP(Project_Details[[#This Row],[ProjectID]],ProjectData[],5,FALSE) -> Replacement
A16: 7 | B16: 2 | C16: =Project_Details[ID] -> 7 | D16: TowerRefit_ZoneB_275_SC_NonGrillage | E16: NOT ASSIGNED | F16: =ISNUMBER(MATCH(Project_Details[[#This Row],[RIN Asset Description]],Lookup_RIN_AssetCategory,0)) -> TRUE | X16: 23.81960132 | Y16: 35.18081704 | Z16: 51.18579035 | AA16: 73.36095386 | AB16: 103.57444 | AD16: =IF((VLOOKUP(Project_Details[[#This Row],[ProjectID]],ProjectData[],MATCH("Capitalisation",ProjectData[#Headers],0),FALSE)="Project Close"),ISNUMBER(Project_Details[[#This Row],[Capitalisation Year]]),"NA") -> NA | AS16: 0.174031552 | AT16: 0.5845090185 | AU16: =MAX(ABS(Project_Details[[#This Row],[WIP]:[NomIncur2022]]))>0 -> FALSE | AV16: =MAX(ABS(Project_Details[[#This Row],[RealIncur2016]:[RealIncur2022]]))>0 -> TRUE | AW16: =OR(AND(Project_Details[[#This Row],[DollarBasisImpliesNominal]],NOT(Project_Details[[#This Row],[DollarBasisImpliesReal1516]])), AND(NOT(Project_Details[[#This Row],[DollarBasisImpliesNominal]]),Project_Details[[#This Row],[DollarBasisImpliesReal1516]]),AND(NOT(Project_Details[[#This Row],[DollarBasisImpliesNominal]]),NOT(Project_Details[[#This Row],[DollarBasisImpliesReal1516]]),OR(Project_Details[[#This Row],[HasDecomms?]],Project_Details[[#This Row],[ProjectHasNoDollarBasis]]))) -> TRUE | AX16: =IFERROR(OR(AND(Project_Details[[#This Row],[DollarBasisImpliesNominal]],VLOOKUP(Project_Details[[#This Row],[ProjectID]],ProjectData[],MATCH("RepexDollarsBasis",ProjectData[#Headers],0),FALSE)="Nominal"),AND(Project_Details[[#This Row],[DollarBasisImpliesReal1516]],VLOOKUP(Project_Details[[#This Row],[ProjectID]],ProjectData[],MATCH("RepexDollarsBasis",ProjectData[#Headers],0),FALSE)="Real1516"),Project_Details[[#This Row],[HasDecomms?]],Project_Details[[#This Row],[ProjectHasNoDollarBasis]]),FALSE) -> TRUE | AY16: =IF(Project_Details[[#This Row],[DollarBasisImpliesReal1516]],AND(ISNUMBER(Project_Details[[#This Row],[Labour Internal]]),ISNUMBER(Project_Details[[#This Row],[Labour External]])),"NA") -> TRUE | AZ16: =IF(Project_Details[[#This Row],[DollarBasisImpliesNominal]],NOT(OR(ISNUMBER(Project_Details[[#This Row],[Labour Internal]]),ISNUMBER(Project_Details[[#This Row],[Labour External]]))),"NA") -> NA | BA16: =IF(AND(Project_Details[[#This Row],[NomIncur2017]]=0,Project_Details[[#This Row],[WIP]]<>0),2017,IF(AND(Project_Details[[#This Row],[NomIncur2017]]=0,Project_Details[[#This Row],[NomIncur2016]]<>0),2016,IF(AND(Project_Details[[#This Row],[NomIncur2018]]=0,Project_Details[[#This Row],[NomIncur2017]]<>0),2017,IF(AND(Project_Details[[#This Row],[NomIncur2019]]=0,Project_Details[[#This Row],[NomIncur2018]]<>0),2018,IF(AND(Project_Details[[#This Row],[NomIncur2020]]=0,Project_Details[[#This Row],[NomIncur2019]]<>0),2019,IF(AND(Project_Details[[#This Row],[NomIncur2021]]=0,Project_Details[[#This Row],[NomIncur2020]]<>0),2020,IF(AND(Project_Details[[#This Row],[NomIncur2022]]=0,Project_Details[[#This Row],[NomIncur2021]]<>0),2021,IF(Project_Details[[#This Row],[NomIncur2022]]<>0,2022,"")))))))) ->  | BC16: =IF(OR(Project_Details[[#This Row],[HasDecomms?]],NOT(ISNUMBER(Project_Details[[#This Row],[Capitalisation Year]]))), "NA", OR(Project_Details[[#This Row],[OverWrite_CashFlowAndCapitalisationYearAreOK]],(Project_Details[[#This Row],[LastYearOfNominalCashFlow]]=Project_Details[[#This Row],[Capitalisation Year]]))) -> NA | BD16: =NOT(AND(Project_Details[[#This Row],[DollarBasisImpliesNominal]],OR(ISNUMBER(Project_Details[[#This Row],[Labour Internal]]),ISNUMBER(Project_Details[[#This Row],[Labour External]])))) -> TRUE | BF16: =OR(Project_Details[[#This Row],[DecomQty2016]]>0,Project_Details[[#This Row],[DecomQty2017]]>0,Project_Details[[#This Row],[DecomQty2018]]>0,Project_Details[[#This Row],[DecomQty2019]]>0,Project_Details[[#This Row],[DecomQty2020]]>0,Project_Details[[#This Row],[DecomQty2021]]>0,Project_Details[[#This Row],[DecomQty2022]]>0) -> FALSE | BG16: =IF(LEFT(Project_Details[[#This Row],[RIN Asset Description]],17)="Power Transformer",IF((Project_Details[[#This Row],[ExpenditureAfter2017IsNotUsed]]=TRUE),FALSE,TRUE),"NA") -> NA | BJ16: 0 | BK16: 0 | BL16: 0 | BM16: 0 | BN16: 0 | BO16: =IFERROR(("None"=VLOOKUP(Project_Details[[#This Row],[ProjectID]],ProjectData[],MATCH("RepexDollarsBasis",ProjectData[#Headers],0),FALSE)),FALSE) -> FALSE | BP16: =IF(ISNUMBER(Project_Details[[#This Row],[Capitalisation Year]]),(Project_Details[[#This Row],[Capitalisation Year]]>=2016),"NA") -> NA | BQ16: =(Project_Details[[#This Row],[ID]]=(ROW()-ProjectDetailsTableStartRow)) -> TRUE | BR16: =VLOOKUP(Project_Details[[#This Row],[ProjectID]],ProjectData[],MATCH("Specific Approved Project", ProjectData[#Headers],0),FALSE) -> FALSE | BS16: =VLOOKUP(Project_Details[[#This Row],[ProjectID]],ProjectData[],5,FALSE) -> Replacement
A17: 8 | B17: 2 | C17: =Project_Details[ID] -> 8 | D17: TowerRefit_ZoneC_275_SC_NonGrillage | E17: NOT ASSIGNED | F17: =ISNUMBER(MATCH(Project_Details[[#This Row],[RIN Asset Description]],Lookup_RIN_AssetCategory,0)) -> TRUE | X17: 11581.10228 | Y17: 14126.67304 | Z17: 16984.36314 | AA17: 20132.31056 | AB17: 23533.55299 | AD17: =IF((VLOOKUP(Project_Details[[#This Row],[ProjectID]],ProjectData[],MATCH("Capitalisation",ProjectData[#Headers],0),FALSE)="Project Close"),ISNUMBER(Project_Details[[#This Row],[Capitalisation Year]]),"NA") -> NA | AS17: 0.174031552 | AT17: 0.5845090185 | AU17: =MAX(ABS(Project_Details[[#This Row],[WIP]:[NomIncur2022]]))>0 -> FALSE | AV17: =MAX(ABS(Project_Details[[#This Row],[RealIncur2016]:[RealIncur2022]]))>0 -> TRUE | AW17: =OR(AND(Project_Details[[#This Row],[DollarBasisImpliesNominal]],NOT(Project_Details[[#This Row],[DollarBasisImpliesReal1516]])), AND(NOT(Project_Details[[#This Row],[DollarBasisImpliesNominal]]),Project_Details[[#This Row],[DollarBasisImpliesReal1516]]),AND(NOT(Project_Details[[#This Row],[DollarBasisImpliesNominal]]),NOT(Project_Details[[#This Row],[DollarBasisImpliesReal1516]]),OR(Project_Details[[#This Row],[HasDecomms?]],Project_Details[[#This Row],[ProjectHasNoDollarBasis]]))) -> TRUE | AX17: =IFERROR(OR(AND(Project_Details[[#This Row],[DollarBasisImpliesNominal]],VLOOKUP(Project_Details[[#This Row],[ProjectID]],ProjectData[],MATCH("RepexDollarsBasis",ProjectData[#Headers],0),FALSE)="Nominal"),AND(Project_Details[[#This Row],[DollarBasisImpliesReal1516]],VLOOKUP(Project_Details[[#This Row],[ProjectID]],ProjectData[],MATCH("RepexDollarsBasis",ProjectData[#Headers],0),FALSE)="Real1516"),Project_Details[[#This Row],[HasDecomms?]],Project_Details[[#This Row],[ProjectHasNoDollarBasis]]),FALSE) -> TRUE | AY17: =IF(Project_Details[[#This Row],[DollarBasisImpliesReal1516]],AND(ISNUMBER(Project_Details[[#This Row],[Labour Internal]]),ISNUMBER(Project_Details[[#This Row],[Labour External]])),"NA") -> TRUE | AZ17: =IF(Project_Details[[#This Row],[DollarBasisImpliesNominal]],NOT(OR(ISNUMBER(Project_Details[[#This Row],[Labour Internal]]),ISNUMBER(Project_Details[[#This Row],[Labour External]]))),"NA") -> NA | BA17: =IF(AND(Project_Details[[#This Row],[NomIncur2017]]=0,Project_Details[[#This Row],[WIP]]<>0),2017,IF(AND(Project_Details[[#This Row],[NomIncur2017]]=0,Project_Details[[#This Row],[NomIncur2016]]<>0),2016,IF(AND(Project_Details[[#This Row],[NomIncur2018]]=0,Project_Details[[#This Row],[NomIncur2017]]<>0),2017,IF(AND(Project_Details[[#This Row],[NomIncur2019]]=0,Project_Details[[#This Row],[NomIncur2018]]<>0),2018,IF(AND(Project_Details[[#This Row],[NomIncur2020]]=0,Project_Details[[#This Row],[NomIncur2019]]<>0),2019,IF(AND(Project_Details[[#This Row],[NomIncur2021]]=0,Project_Details[[#This Row],[NomIncur2020]]<>0),2020,IF(AND(Project_Details[[#This Row],[NomIncur2022]]=0,Project_Details[[#This Row],[NomIncur2021]]<>0),2021,IF(Project_Details[[#This Row],[NomIncur2022]]<>0,2022,"")))))))) ->  | BC17: =IF(OR(Project_Details[[#This Row],[HasDecomms?]],NOT(ISNUMBER(Project_Details[[#This Row],[Capitalisation Year]]))), "NA", OR(Project_Details[[#This Row],[OverWrite_CashFlowAndCapitalisationYearAreOK]],(Project_Details[[#This Row],[LastYearOfNominalCashFlow]]=Project_Details[[#This Row],[Capitalisation Year]]))) -> NA | BD17: =NOT(AND(Project_Details[[#This Row],[DollarBasisImpliesNominal]],OR(ISNUMBER(Project_Details[[#This Row],[Labour Internal]]),ISNUMBER(Project_Details[[#This Row],[Labour External]])))) -> TRUE | BF17: =OR(Project_Details[[#This Row],[DecomQty2016]]>0,Project_Details[[#This Row],[DecomQty2017]]>0,Project_Details[[#This Row],[DecomQty2018]]>0,Project_Details[[#This Row],[DecomQty2019]]>0,Project_Details[[#This Row],[DecomQty2020]]>0,Project_Details[[#This Row],[DecomQty2021]]>0,Project_Details[[#This Row],[DecomQty2022]]>0) -> FALSE | BG17: =IF(LEFT(Project_Details[[#This Row],[RIN Asset Description]],17)="Power Transformer",IF((Project_Details[[#This Row],[ExpenditureAfter2017IsNotUsed]]=TRUE),FALSE,TRUE),"NA") -> NA | BJ17: 0 | BK17: 0 | BL17: 0 | BM17: 68025.88626 | BN17: 0 | BO17: =IFERROR(("None"=VLOOKUP(Project_Details[[#This Row],[ProjectID]],ProjectData[],MATCH("RepexDollarsBasis",ProjectData[#Headers],0),FALSE)),FALSE) -> FALSE | BP17: =IF(ISNUMBER(Project_Details[[#This Row],[Capitalisation Year]]),(Project_Details[[#This Row],[Capitalisation Year]]>=2016),"NA") -> NA | BQ17: =(Project_Details[[#This Row],[ID]]=(ROW()-ProjectDetailsTableStartRow)) -> TRUE | BR17: =VLOOKUP(Project_Details[[#This Row],[ProjectID]],ProjectData[],MATCH("Specific Approved Project", ProjectData[#Headers],0),FALSE) -> FALSE | BS17: =VLOOKUP(Project_Details[[#This Row],[ProjectID]],ProjectData[],5,FALSE) -> Replacement
A18: 9 | B18: 2 | C18: =Project_Details[ID] -> 9 | D18: TowerRefit_ZoneD_275_SC_NonGrillage | E18: NOT ASSIGNED | F18: =ISNUMBER(MATCH(Project_Details[[#This Row],[RIN Asset Description]],Lookup_RIN_AssetCategory,0)) -> TRUE | X18: 6161.258689 | Y18: 6014.328163 | Z18: 5741.43145 | AA18: 5362.838664 | AB18: 4904.603781 | AD18: =IF((VLOOKUP(Project_Details[[#This Row],[ProjectID]],ProjectData[],MATCH("Capitalisation",ProjectData[#Headers],0),FALSE)="Project Close"),ISNUMBER(Project_Details[[#This Row],[Capitalisation Year]]),"NA") -> NA | AS18: 0.174031552 | AT18: 0.5845090185 | AU18: =MAX(ABS(Project_Details[[#This Row],[WIP]:[NomIncur2022]]))>0 -> FALSE | AV18: =MAX(ABS(Project_Details[[#This Row],[RealIncur2016]:[RealIncur2022]]))>0 -> TRUE | AW18: =OR(AND(Project_Details[[#This Row],[DollarBasisImpliesNominal]],NOT(Project_Details[[#This Row],[DollarBasisImpliesReal1516]])), AND(NOT(Project_Details[[#This Row],[DollarBasisImpliesNominal]]),Project_Details[[#This Row],[DollarBasisImpliesReal1516]]),AND(NOT(Project_Details[[#This Row],[DollarBasisImpliesNominal]]),NOT(Project_Details[[#This Row],[DollarBasisImpliesReal1516]]),OR(Project_Details[[#This Row],[HasDecomms?]],Project_Details[[#This Row],[ProjectHasNoDollarBasis]]))) -> TRUE | AX18: =IFERROR(OR(AND(Project_Details[[#This Row],[DollarBasisImpliesNominal]],VLOOKUP(Project_Details[[#This Row],[ProjectID]],ProjectData[],MATCH("RepexDollarsBasis",ProjectData[#Headers],0),FALSE)="Nominal"),AND(Project_Details[[#This Row],[DollarBasisImpliesReal1516]],VLOOKUP(Project_Details[[#This Row],[ProjectID]],ProjectData[],MATCH("RepexDollarsBasis",ProjectData[#Headers],0),FALSE)="Real1516"),Project_Details[[#This Row],[HasDecomms?]],Project_Details[[#This Row],[ProjectHasNoDollarBasis]]),FALSE) -> TRUE | AY18: =IF(Project_Details[[#This Row],[DollarBasisImpliesReal1516]],AND(ISNUMBER(Project_Details[[#This Row],[Labour Internal]]),ISNUMBER(Project_Details[[#This Row],[Labour External]])),"NA") -> TRUE | AZ18: =IF(Project_Details[[#This Row],[DollarBasisImpliesNominal]],NOT(OR(ISNUMBER(Project_Details[[#This Row],[Labour Internal]]),ISNUMBER(Project_Details[[#This Row],[Labour External]]))),"NA") -> NA | BA18: =IF(AND(Project_Details[[#This Row],[NomIncur2017]]=0,Project_Details[[#This Row],[WIP]]<>0),2017,IF(AND(Project_Details[[#This Row],[NomIncur2017]]=0,Project_Details[[#This Row],[NomIncur2016]]<>0),2016,IF(AND(Project_Details[[#This Row],[NomIncur2018]]=0,Project_Details[[#This Row],[NomIncur2017]]<>0),2017,IF(AND(Project_Details[[#This Row],[NomIncur2019]]=0,Project_Details[[#This Row],[NomIncur2018]]<>0),2018,IF(AND(Project_Details[[#This Row],[NomIncur2020]]=0,Project_Details[[#This Row],[NomIncur2019]]<>0),2019,IF(AND(Project_Details[[#This Row],[NomIncur2021]]=0,Project_Details[[#This Row],[NomIncur2020]]<>0),2020,IF(AND(Project_Details[[#This Row],[NomIncur2022]]=0,Project_Details[[#This Row],[NomIncur2021]]<>0),2021,IF(Project_Details[[#This Row],[NomIncur2022]]<>0,2022,"")))))))) ->  | BC18: =IF(OR(Project_Details[[#This Row],[HasDecomms?]],NOT(ISNUMBER(Project_Details[[#This Row],[Capitalisation Year]]))), "NA", OR(Project_Details[[#This Row],[OverWrite_CashFlowAndCapitalisationYearAreOK]],(Project_Details[[#This Row],[LastYearOfNominalCashFlow]]=Project_Details[[#This Row],[Capitalisation Year]]))) -> NA | BD18: =NOT(AND(Project_Details[[#This Row],[DollarBasisImpliesNominal]],OR(ISNUMBER(Project_Details[[#This Row],[Labour Internal]]),ISNUMBER(Project_Details[[#This Row],[Labour External]])))) -> TRUE | BF18: =OR(Project_Details[[#This Row],[DecomQty2016]]>0,Project_Details[[#This Row],[DecomQty2017]]>0,Project_Details[[#This Row],[DecomQty2018]]>0,Project_Details[[#This Row],[DecomQty2019]]>0,Project_Details[[#This Row],[DecomQty2020]]>0,Project_Details[[#This Row],[DecomQty2021]]>0,Project_Details[[#This Row],[DecomQty2022]]>0) -> FALSE | BG18: =IF(LEFT(Project_Details[[#This Row],[RIN Asset Description]],17)="Power Transformer",IF((Project_Details[[#This Row],[ExpenditureAfter2017IsNotUsed]]=TRUE),FALSE,TRUE),"NA") -> NA | BJ18: 0 | BK18: 0 | BL18: 0 | BM18: 0 | BN18: 0 | BO18: =IFERROR(("None"=VLOOKUP(Project_Details[[#This Row],[ProjectID]],ProjectData[],MATCH("RepexDollarsBasis",ProjectData[#Headers],0),FALSE)),FALSE) -> FALSE | BP18: =IF(ISNUMBER(Project_Details[[#This Row],[Capitalisation Year]]),(Project_Details[[#This Row],[Capitalisation Year]]>=2016),"NA") -> NA | BQ18: =(Project_Details[[#This Row],[ID]]=(ROW()-ProjectDetailsTableStartRow)) -> TRUE | BR18: =VLOOKUP(Project_Details[[#This Row],[ProjectID]],ProjectData[],MATCH("Specific Approved Project", ProjectData[#Headers],0),FALSE) -> FALSE | BS18: =VLOOKUP(Project_Details[[#This Row],[ProjectID]],ProjectData[],5,FALSE) -> Replacement
A19: 10 | B19: 2 | C19: =Project_Details[ID] -> 10 | D19: TowerRefit_ZoneB_330_SC_NonGrillage | E19: NOT ASSIGNED | F19: =ISNUMBER(MATCH(Project_Details[[#This Row],[RIN Asset Description]],Lookup_RIN_AssetCategory,0)) -> TRUE | X19: 1.061563214e-07 | Y19: 2.3527407e-07 | Z19: 5.136580992e-07 | AA19: 1.104704427e-06 | AB19: 2.340399177e-06 | AD19: =IF((VLOOKUP(Project_Details[[#This Row],[ProjectID]],ProjectData[],MATCH("Capitalisation",ProjectData[#Headers],0),FALSE)="Project Close"),ISNUMBER(Project_Details[[#This Row],[Capitalisation Year]]),"NA") -> NA | AS19: 0.174031552 | AT19: 0.5888175914 | AU19: =MAX(ABS(Project_Details[[#This Row],[WIP]:[NomIncur2022]]))>0 -> FALSE | AV19: =MAX(ABS(Project_Details[[#This Row],[RealIncur2016]:[RealIncur2022]]))>0 -> TRUE | AW19: =OR(AND(Project_Details[[#This Row],[DollarBasisImpliesNominal]],NOT(Project_Details[[#This Row],[DollarBasisImpliesReal1516]])), AND(NOT(Project_Details[[#This Row],[DollarBasisImpliesNominal]]),Project_Details[[#This Row],[DollarBasisImpliesReal1516]]),AND(NOT(Project_Details[[#This Row],[DollarBasisImpliesNominal]]),NOT(Project_Details[[#This Row],[DollarBasisImpliesReal1516]]),OR(Project_Details[[#This Row],[HasDecomms?]],Project_Details[[#This Row],[ProjectHasNoDollarBasis]]))) -> TRUE | AX19: =IFERROR(OR(AND(Project_Details[[#This Row],[DollarBasisImpliesNominal]],VLOOKUP(Project_Details[[#This Row],[ProjectID]],ProjectData[],MATCH("RepexDollarsBasis",ProjectData[#Headers],0),FALSE)="Nominal"),AND(Project_Details[[#This Row],[DollarBasisImpliesReal1516]],VLOOKUP(Project_Details[[#This Row],[ProjectID]],ProjectData[],MATCH("RepexDollarsBasis",ProjectData[#Headers],0),FALSE)="Real1516"),Project_Details[[#This Row],[HasDecomms?]],Project_Details[[#This Row],[ProjectHasNoDollarBasis]]),FALSE) -> TRUE | AY19: =IF(Project_Details[[#This Row],[DollarBasisImpliesReal1516]],AND(ISNUMBER(Project_Details[[#This Row],[Labour Internal]]),ISNUMBER(Project_Details[[#This Row],[Labour External]])),"NA") -> TRUE | AZ19: =IF(Project_Details[[#This Row],[DollarBasisImpliesNominal]],NOT(OR(ISNUMBER(Project_Details[[#This Row],[Labour Internal]]),ISNUMBER(Project_Details[[#This Row],[Labour External]]))),"NA") -> NA | BA19: =IF(AND(Project_Details[[#This Row],[NomIncur2017]]=0,Project_Details[[#This Row],[WIP]]<>0),2017,IF(AND(Project_Details[[#This Row],[NomIncur2017]]=0,Project_Details[[#This Row],[NomIncur2016]]<>0),2016,IF(AND(Project_Details[[#This Row],[NomIncur2018]]=0,Project_Details[[#This Row],[NomIncur2017]]<>0),2017,IF(AND(Project_Details[[#This Row],[NomIncur2019]]=0,Project_Details[[#This Row],[NomIncur2018]]<>0),2018,IF(AND(Project_Details[[#This Row],[NomIncur2020]]=0,Project_Details[[#This Row],[NomIncur2019]]<>0),2019,IF(AND(Project_Details[[#This Row],[NomIncur2021]]=0,Project_Details[[#This Row],[NomIncur2020]]<>0),2020,IF(AND(Project_Details[[#This Row],[NomIncur2022]]=0,Project_Details[[#This Row],[NomIncur2021]]<>0),2021,IF(Project_Details[[#This Row],[NomIncur2022]]<>0,2022,"")))))))) ->  | BC19: =IF(OR(Project_Details[[#This Row],[HasDecomms?]],NOT(ISNUMBER(Project_Details[[#This Row],[Capitalisation Year]]))), "NA", OR(Project_Details[[#This Row],[OverWrite_CashFlowAndCapitalisationYearAreOK]],(Project_Details[[#This Row],[LastYearOfNominalCashFlow]]=Project_Details[[#This Row],[Capitalisation Year]]))) -> NA | BD19: =NOT(AND(Project_Details[[#This Row],[DollarBasisImpliesNominal]],OR(ISNUMBER(Project_Details[[#This Row],[Labour Internal]]),ISNUMBER(Project_Details[[#This Row],[Labour External]])))) -> TRUE | BF19: =OR(Project_Details[[#This Row],[DecomQty2016]]>0,Project_Details[[#This Row],[DecomQty2017]]>0,Project_Details[[#This Row],[DecomQty2018]]>0,Project_Details[[#This Row],[DecomQty2019]]>0,Project_Details[[#This Row],[DecomQty2020]]>0,Project_Details[[#This Row],[DecomQty2021]]>0,Project_Details[[#This Row],[DecomQty2022]]>0) -> FALSE | BG19: =IF(LEFT(Project_Details[[#This Row],[RIN Asset Description]],17)="Power Transformer",IF((Project_Details[[#This Row],[ExpenditureAfter2017IsNotUsed]]=TRUE),FALSE,TRUE),"NA") -> NA | BJ19: 0 | BK19: 0 | BL19: 0 | BM19: 0 | BN19: 0 | BO19: =IFERROR(("None"=VLOOKUP(Project_Details[[#This Row],[ProjectID]],ProjectData[],MATCH("RepexDollarsBasis",ProjectData[#Headers],0),FALSE)),FALSE) -> FALSE | BP19: =IF(ISNUMBER(Project_Details[[#This Row],[Capitalisation Year]]),(Project_Details[[#This Row],[Capitalisation Year]]>=2016),"NA") -> NA | BQ19: =(Project_Details[[#This Row],[ID]]=(ROW()-ProjectDetailsTableStartRow)) -> TRUE | BR19: =VLOOKUP(Project_Details[[#This Row],[ProjectID]],ProjectData[],MATCH("Specific Approved Project", ProjectData[#Headers],0),FALSE) -> FALSE | BS19: =VLOOKUP(Project_Details[[#This Row],[ProjectID]],ProjectData[],5,FALSE) -> Replacement
A20: 11 | B20: 3 | C20: =Project_Details[ID] -> 11 | D20: TowerRefit_ZoneB_132_MC_NonGrillage | E20: NOT ASSIGNED | F20: =ISNUMBER(MATCH(Project_Details[[#This Row],[RIN Asset Description]],Lookup_RIN_AssetCategory,0)) -> TRUE | X20: 664.3752805 | Y20: 853.852582 | Z20: 1082.381411 | AA20: 1353.335648 | AB20: 1669.008836 | AD20: =IF((VLOOKUP(Project_Details[[#This Row],[ProjectID]],ProjectData[],MATCH("Capitalisation",ProjectData[#Headers],0),FALSE)="Project Close"),ISNUMBER(Project_Details[[#This Row],[Capitalisation Year]]),"NA") -> NA | AS20: 0.174031552 | AT20: 0.5896508856 | AU20: =MAX(ABS(Project_Details[[#This Row],[WIP]:[NomIncur2022]]))>0 -> FALSE | AV20: =MAX(ABS(Project_Details[[#This Row],[RealIncur2016]:[RealIncur2022]]))>0 -> TRUE | AW20: =OR(AND(Project_Details[[#This Row],[DollarBasisImpliesNominal]],NOT(Project_Details[[#This Row],[DollarBasisImpliesReal1516]])), AND(NOT(Project_Details[[#This Row],[DollarBasisImpliesNominal]]),Project_Details[[#This Row],[DollarBasisImpliesReal1516]]),AND(NOT(Project_Details[[#This Row],[DollarBasisImpliesNominal]]),NOT(Project_Details[[#This Row],[DollarBasisImpliesReal1516]]),OR(Project_Details[[#This Row],[HasDecomms?]],Project_Details[[#This Row],[ProjectHasNoDollarBasis]]))) -> TRUE | AX20: =IFERROR(OR(AND(Project_Details[[#This Row],[DollarBasisImpliesNominal]],VLOOKUP(Project_Details[[#This Row],[ProjectID]],ProjectData[],MATCH("RepexDollarsBasis",ProjectData[#Headers],0),FALSE)="Nominal"),AND(Project_Details[[#This Row],[DollarBasisImpliesReal1516]],VLOOKUP(Project_Details[[#This Row],[ProjectID]],ProjectData[],MATCH("RepexDollarsBasis",ProjectData[#Headers],0),FALSE)="Real1516"),Project_Details[[#This Row],[HasDecomms?]],Project_Details[[#This Row],[ProjectHasNoDollarBasis]]),FALSE) -> TRUE | AY20: =IF(Project_Details[[#This Row],[DollarBasisImpliesReal1516]],AND(ISNUMBER(Project_Details[[#This Row],[Labour Internal]]),ISNUMBER(Project_Details[[#This Row],[Labour External]])),"NA") -> TRUE | AZ20: =IF(Project_Details[[#This Row],[DollarBasisImpliesNominal]],NOT(OR(ISNUMBER(Project_Details[[#This Row],[Labour Internal]]),ISNUMBER(Project_Details[[#This Row],[Labour External]]))),"NA") -> NA | BA20: =IF(AND(Project_Details[[#This Row],[NomIncur2017]]=0,Project_Details[[#This Row],[WIP]]<>0),2017,IF(AND(Project_Details[[#This Row],[NomIncur2017]]=0,Project_Details[[#This Row],[NomIncur2016]]<>0),2016,IF(AND(Project_Details[[#This Row],[NomIncur2018]]=0,Project_Details[[#This Row],[NomIncur2017]]<>0),2017,IF(AND(Project_Details[[#This Row],[NomIncur2019]]=0,Project_Details[[#This Row],[NomIncur2018]]<>0),2018,IF(AND(Project_Details[[#This Row],[NomIncur2020]]=0,Project_Details[[#This Row],[NomIncur2019]]<>0),2019,IF(AND(Project_Details[[#This Row],[NomIncur2021]]=0,Project_Details[[#This Row],[NomIncur2020]]<>0),2020,IF(AND(Project_Details[[#This Row],[NomIncur2022]]=0,Project_Details[[#This Row],[NomIncur2021]]<>0),2021,IF(Project_Details[[#This Row],[NomIncur2022]]<>0,2022,"")))))))) ->  | BC20: =IF(OR(Project_Details[[#This Row],[HasDecomms?]],NOT(ISNUMBER(Project_Details[[#This Row],[Capitalisation Year]]))), "NA", OR(Project_Details[[#This Row],[OverWrite_CashFlowAndCapitalisationYearAreOK]],(Project_Details[[#This Row],[LastYearOfNominalCashFlow]]=Project_Details[[#This Row],[Capitalisation Year]]))) -> NA | BD20: =NOT(AND(Project_Details[[#This Row],[DollarBasisImpliesNominal]],OR(ISNUMBER(Project_Details[[#This Row],[Labour Internal]]),ISNUMBER(Project_Details[[#This Row],[Labour External]])))) -> TRUE | BF20: =OR(Project_Details[[#This Row],[DecomQty2016]]>0,Project_Details[[#This Row],[DecomQty2017]]>0,Project_Details[[#This Row],[DecomQty2018]]>0,Project_Details[[#This Row],[DecomQty2019]]>0,Project_Details[[#This Row],[DecomQty2020]]>0,Project_Details[[#This Row],[DecomQty2021]]>0,Project_Details[[#This Row],[DecomQty2022]]>0) -> FALSE | BG20: =IF(LEFT(Project_Details[[#This Row],[RIN Asset Description]],17)="Power Transformer",IF((Project_Details[[#This Row],[ExpenditureAfter2017IsNotUsed]]=TRUE),FALSE,TRUE),"NA") -> NA | BJ20: 0 | BK20: 1774.331002 | BL20: 0 | BM20: 0 | BN20: 0 | BO20: =IFERROR(("None"=VLOOKUP(Project_Details[[#This Row],[ProjectID]],ProjectData[],MATCH("RepexDollarsBasis",ProjectData[#Headers],0),FALSE)),FALSE) -> FALSE | BP20: =IF(ISNUMBER(Project_Details[[#This Row],[Capitalisation Year]]),(Project_Details[[#This Row],[Capitalisation Year]]>=2016),"NA") -> NA | BQ20: =(Project_Details[[#This Row],[ID]]=(ROW()-ProjectDetailsTableStartRow)) -> TRUE | BR20: =VLOOKUP(Project_Details[[#This Row],[ProjectID]],ProjectData[],MATCH("Specific Approved Project", ProjectData[#Headers],0),FALSE) -> FALSE | BS20: =VLOOKUP(Project_Details[[#This Row],[ProjectID]],ProjectData[],5,FALSE) -> Replacement
A21: 12 | B21: 3 | C21: =Project_Details[ID] -> 12 | D21: TowerRefit_ZoneC_132_MC_NonGrillage | E21: NOT ASSIGNED | F21: =ISNUMBER(MATCH(Project_Details[[#This Row],[RIN Asset Description]],Lookup_RIN_AssetCategory,0)) -> TRUE | X21: 6283.616515 | Y21: 6808.06275 | Z21: 7336.642869 | AA21: 7870.04979 | AB21: 8408.514288 | AD21: =IF((VLOOKUP(Project_Details[[#This Row],[ProjectID]],ProjectData[],MATCH("Capitalisation",ProjectData[#Headers],0),FALSE)="Project Close"),ISNUMBER(Project_Details[[#This Row],[Capitalisation Year]]),"NA") -> NA | AS21: 0.174031552 | AT21: 0.5896508856 | AU21: =MAX(ABS(Project_Details[[#This Row],[WIP]:[NomIncur2022]]))>0 -> FALSE | AV21: =MAX(ABS(Project_Details[[#This Row],[RealIncur2016]:[RealIncur2022]]))>0 -> TRUE | AW21: =OR(AND(Project_Details[[#This Row],[DollarBasisImpliesNominal]],NOT(Project_Details[[#This Row],[DollarBasisImpliesReal1516]])), AND(NOT(Project_Details[[#This Row],[DollarBasisImpliesNominal]]),Project_Details[[#This Row],[DollarBasisImpliesReal1516]]),AND(NOT(Project_Details[[#This Row],[DollarBasisImpliesNominal]]),NOT(Project_Details[[#This Row],[DollarBasisImpliesReal1516]]),OR(Project_Details[[#This Row],[HasDecomms?]],Project_Details[[#This Row],[ProjectHasNoDollarBasis]]))) -> TRUE | AX21: =IFERROR(OR(AND(Project_Details[[#This Row],[DollarBasisImpliesNominal]],VLOOKUP(Project_Details[[#This Row],[ProjectID]],ProjectData[],MATCH("RepexDollarsBasis",ProjectData[#Headers],0),FALSE)="Nominal"),AND(Project_Details[[#This Row],[DollarBasisImpliesReal1516]],VLOOKUP(Project_Details[[#This Row],[ProjectID]],ProjectData[],MATCH("RepexDollarsBasis",ProjectData[#Headers],0),FALSE)="Real1516"),Project_Details[[#This Row],[HasDecomms?]],Project_Details[[#This Row],[ProjectHasNoDollarBasis]]),FALSE) -> TRUE | AY21: =IF(Project_Details[[#This Row],[DollarBasisImpliesReal1516]],AND(ISNUMBER(Project_Details[[#This Row],[Labour Internal]]),ISNUMBER(Project_Details[[#This Row],[Labour External]])),"NA") -> TRUE | AZ21: =IF(Project_Details[[#This Row],[DollarBasisImpliesNominal]],NOT(OR(ISNUMBER(Project_Details[[#This Row],[Labour Internal]]),ISNUMBER(Project_Details[[#This Row],[Labour External]]))),"NA") -> NA | BA21: =IF(AND(Project_Details[[#This Row],[NomIncur2017]]=0,Project_Details[[#This Row],[WIP]]<>0),2017,IF(AND(Project_Details[[#This Row],[NomIncur2017]]=0,Project_Details[[#This Row],[NomIncur2016]]<>0),2016,IF(AND(Project_Details[[#This Row],[NomIncur2018]]=0,Project_Details[[#This Row],[NomIncur2017]]<>0),2017,IF(AND(Project_Details[[#This Row],[NomIncur2019]]=0,Project_Details[[#This Row],[NomIncur2018]]<>0),2018,IF(AND(Project_Details[[#This Row],[NomIncur2020]]=0,Project_Details[[#This Row],[NomIncur2019]]<>0),2019,IF(AND(Project_Details[[#This Row],[NomIncur2021]]=0,Project_Details[[#This Row],[NomIncur2020]]<>0),2020,IF(AND(Project_Details[[#This Row],[NomIncur2022]]=0,Project_Details[[#This Row],[NomIncur2021]]<>0),2021,IF(Project_Details[[#This Row],[NomIncur2022]]<>0,2022,"")))))))) ->  | BC21: =IF(OR(Project_Details[[#This Row],[HasDecomms?]],NOT(ISNUMBER(Project_Details[[#This Row],[Capitalisation Year]]))), "NA", OR(Project_Details[[#This Row],[OverWrite_CashFlowAndCapitalisationYearAreOK]],(Project_Details[[#This Row],[LastYearOfNominalCashFlow]]=Project_Details[[#This Row],[Capitalisation Year]]))) -> NA | BD21: =NOT(AND(Project_Details[[#This Row],[DollarBasisImpliesNominal]],OR(ISNUMBER(Project_Details[[#This Row],[Labour Internal]]),ISNUMBER(Project_Details[[#This Row],[Labour External]])))) -> TRUE | BF21: =OR(Project_Details[[#This Row],[DecomQty2016]]>0,Project_Details[[#This Row],[DecomQty2017]]>0,Project_Details[[#This Row],[DecomQty2018]]>0,Project_Details[[#This Row],[DecomQty2019]]>0,Project_Details[[#This Row],[DecomQty2020]]>0,Project_Details[[#This Row],[DecomQty2021]]>0,Project_Details[[#This Row],[DecomQty2022]]>0) -> FALSE | BG21: =IF(LEFT(Project_Details[[#This Row],[RIN Asset Description]],17)="Power Transformer",IF((Project_Details[[#This Row],[ExpenditureAfter2017IsNotUsed]]=TRUE),FALSE,TRUE),"NA") -> NA | BJ21: 6936.021188 | BK21: 6774.71837 | BL21: 2419.542275 | BM21: 0 | BN21: 0 | BO21: =IFERROR(("None"=VLOOKUP(Project_Details[[#This Row],[ProjectID]],ProjectData[],MATCH("RepexDollarsBasis",ProjectData[#Headers],0),FALSE)),FALSE) -> FALSE | BP21: =IF(ISNUMBER(Project_Details[[#This Row],[Capitalisation Year]]),(Project_Details[[#This Row],[Capitalisation Year]]>=2016),"NA") -> NA | BQ21: =(Project_Details[[#This Row],[ID]]=(ROW()-ProjectDetailsTableStartRow)) -> TRUE | BR21: =VLOOKUP(Project_Details[[#This Row],[ProjectID]],ProjectData[],MATCH("Specific Approved Project", ProjectData[#Headers],0),FALSE) -> FALSE | BS21: =VLOOKUP(Project_Details[[#This Row],[ProjectID]],ProjectData[],5,FALSE) -> Replacement
A22: 13 | B22: 3 | C22: =Project_Details[ID] -> 13 | D22: TowerRefit_ZoneD_132_MC_NonGrillage | E22: NOT ASSIGNED | F22: =ISNUMBER(MATCH(Project_Details[[#This Row],[RIN Asset Description]],Lookup_RIN_AssetCategory,0)) -> TRUE | X22: 2622.742491 | Y22: 2672.000721 | Z22: 2681.585924 | AA22: 2646.594175 | AB22: 2566.500102 | AD22: =IF((VLOOKUP(Project_Details[[#This Row],[ProjectID]],ProjectData[],MATCH("Capitalisation",ProjectData[#Headers],0),FALSE)="Project Close"),ISNUMBER(Project_Details[[#This Row],[Capitalisation Year]]),"NA") -> NA | AS22: 0.174031552 | AT22: 0.5896508856 | AU22: =MAX(ABS(Project_Details[[#This Row],[WIP]:[NomIncur2022]]))>0 -> FALSE | AV22: =MAX(ABS(Project_Details[[#This Row],[RealIncur2016]:[RealIncur2022]]))>0 -> TRUE | AW22: =OR(AND(Project_Details[[#This Row],[DollarBasisImpliesNominal]],NOT(Project_Details[[#This Row],[DollarBasisImpliesReal1516]])), AND(NOT(Project_Details[[#This Row],[DollarBasisImpliesNominal]]),Project_Details[[#This Row],[DollarBasisImpliesReal1516]]),AND(NOT(Project_Details[[#This Row],[DollarBasisImpliesNominal]]),NOT(Project_Details[[#This Row],[DollarBasisImpliesReal1516]]),OR(Project_Details[[#This Row],[HasDecomms?]],Project_Details[[#This Row],[ProjectHasNoDollarBasis]]))) -> TRUE | AX22: =IFERROR(OR(AND(Project_Details[[#This Row],[DollarBasisImpliesNominal]],VLOOKUP(Project_Details[[#This Row],[ProjectID]],ProjectData[],MATCH("RepexDollarsBasis",ProjectData[#Headers],0),FALSE)="Nominal"),AND(Project_Details[[#This Row],[DollarBasisImpliesReal1516]],VLOOKUP(Project_Details[[#This Row],[ProjectID]],ProjectData[],MATCH("RepexDollarsBasis",ProjectData[#Headers],0),FALSE)="Real1516"),Project_Details[[#This Row],[HasDecomms?]],Project_Details[[#This Row],[ProjectHasNoDollarBasis]]),FALSE) -> TRUE | AY22: =IF(Project_Details[[#This Row],[DollarBasisImpliesReal1516]],AND(ISNUMBER(Project_Details[[#This Row],[Labour Internal]]),ISNUMBER(Project_Details[[#This Row],[Labour External]])),"NA") -> TRUE | AZ22: =IF(Project_Details[[#This Row],[DollarBasisImpliesNominal]],NOT(OR(ISNUMBER(Project_Details[[#This Row],[Labour Internal]]),ISNUMBER(Project_Details[[#This Row],[Labour External]]))),"NA") -> NA | BA22: =IF(AND(Project_Details[[#This Row],[NomIncur2017]]=0,Project_Details[[#This Row],[WIP]]<>0),2017,IF(AND(Project_Details[[#This Row],[NomIncur2017]]=0,Project_Details[[#This Row],[NomIncur2016]]<>0),2016,IF(AND(Project_Details[[#This Row],[NomIncur2018]]=0,Project_Details[[#This Row],[NomIncur2017]]<>0),2017,IF(AND(Project_Details[[#This Row],[NomIncur2019]]=0,Project_Details[[#This Row],[NomIncur2018]]<>0),2018,IF(AND(Project_Details[[#This Row],[NomIncur2020]]=0,Project_Details[[#This Row],[NomIncur2019]]<>0),2019,IF(AND(Project_Details[[#This Row],[NomIncur2021]]=0,Project_Details[[#This Row],[NomIncur2020]]<>0),2020,IF(AND(Project_Details[[#This Row],[NomIncur2022]]=0,Project_Details[[#This Row],[NomIncur2021]]<>0),2021,IF(Project_Details[[#This Row],[NomIncur2022]]<>0,2022,"")))))))) ->  | BC22: =IF(OR(Project_Details[[#This Row],[HasDecomms?]],NOT(ISNUMBER(Project_Details[[#This Row],[Capitalisation Year]]))), "NA", OR(Project_Details[[#This Row],[OverWrite_CashFlowAndCapitalisationYearAreOK]],(Project_Details[[#This Row],[LastYearOfNominalCashFlow]]=Project_Details[[#This Row],[Capitalisation Year]]))) -> NA | BD22: =NOT(AND(Project_Details[[#This Row],[DollarBasisImpliesNominal]],OR(ISNUMBER(Project_Details[[#This Row],[Labour Internal]]),ISNUMBER(Project_Details[[#This Row],[Labour External]])))) -> TRUE | BF22: =OR(Project_Details[[#This Row],[DecomQty2016]]>0,Project_Details[[#This Row],[DecomQty2017]]>0,Project_Details[[#This Row],[DecomQty2018]]>0,Project_Details[[#This Row],[DecomQty2019]]>0,Project_Details[[#This Row],[DecomQty2020]]>0,Project_Details[[#This Row],[DecomQty2021]]>0,Project_Details[[#This Row],[DecomQty2022]]>0) -> FALSE | BG22: =IF(LEFT(Project_Details[[#This Row],[RIN Asset Description]],17)="Power Transformer",IF((Project_Details[[#This Row],[ExpenditureAfter2017IsNotUsed]]=TRUE),FALSE,TRUE),"NA") -> NA | BJ22: 4193.873276 | BK22: 0 | BL22: 6774.71837 | BM22: 806.5140916 | BN22: 0 | BO22: =IFERROR(("None"=VLOOKUP(Project_Details[[#This Row],[ProjectID]],ProjectData[],MATCH("RepexDollarsBasis",ProjectData[#Headers],0),FALSE)),FALSE) -> FALSE | BP22: =IF(ISNUMBER(Project_Details[[#This Row],[Capitalisation Year]]),(Project_Details[[#This Row],[Capitalisation Year]]>=2016),"NA") -> NA | BQ22: =(Project_Details[[#This Row],[ID]]=(ROW()-ProjectDetailsTableStartRow)) -> TRUE | BR22: =VLOOKUP(Project_Details[[#This Row],[ProjectID]],ProjectData[],MATCH("Specific Approved Project", ProjectData[#Headers],0),FALSE) -> FALSE | BS22: =VLOOKUP(Project_Details[[#This Row],[ProjectID]],ProjectData[],5,FALSE) -> Replacement
A23: 14 | B23: 3 | C23: =Project_Details[ID] -> 14 | D23: TowerRefit_ZoneB_275_MC_NonGrillage | E23: NOT ASSIGNED | F23: =ISNUMBER(MATCH(Project_Details[[#This Row],[RIN Asset Description]],Lookup_RIN_AssetCategory,0)) -> TRUE | X23: 47.02707472 | Y23: 63.35053396 | Z23: 84.0726294 | AA23: 109.9160144 | AB23: 141.5693798 | AD23: =IF((VLOOKUP(Project_Details[[#This Row],[ProjectID]],ProjectData[],MATCH("Capitalisation",ProjectData[#Headers],0),FALSE)="Project Close"),ISNUMBER(Project_Details[[#This Row],[Capitalisation Year]]),"NA") -> NA | AS23: 0.174031552 | AT23: 0.5859452095 | AU23: =MAX(ABS(Project_Details[[#This Row],[WIP]:[NomIncur2022]]))>0 -> FALSE | AV23: =MAX(ABS(Project_Details[[#This Row],[RealIncur2016]:[RealIncur2022]]))>0 -> TRUE | AW23: =OR(AND(Project_Details[[#This Row],[DollarBasisImpliesNominal]],NOT(Project_Details[[#This Row],[DollarBasisImpliesReal1516]])), AND(NOT(Project_Details[[#This Row],[DollarBasisImpliesNominal]]),Project_Details[[#This Row],[DollarBasisImpliesReal1516]]),AND(NOT(Project_Details[[#This Row],[DollarBasisImpliesNominal]]),NOT(Project_Details[[#This Row],[DollarBasisImpliesReal1516]]),OR(Project_Details[[#This Row],[HasDecomms?]],Project_Details[[#This Row],[ProjectHasNoDollarBasis]]))) -> TRUE | AX23: =IFERROR(OR(AND(Project_Details[[#This Row],[DollarBasisImpliesNominal]],VLOOKUP(Project_Details[[#This Row],[ProjectID]],ProjectData[],MATCH("RepexDollarsBasis",ProjectData[#Headers],0),FALSE)="Nominal"),AND(Project_Details[[#This Row],[DollarBasisImpliesReal1516]],VLOOKUP(Project_Details[[#This Row],[ProjectID]],ProjectData[],MATCH("RepexDollarsBasis",ProjectData[#Headers],0),FALSE)="Real1516"),Project_Details[[#This Row],[HasDecomms?]],Project_Details[[#This Row],[ProjectHasNoDollarBasis]]),FALSE) -> TRUE | AY23: =IF(Project_Details[[#This Row],[DollarBasisImpliesReal1516]],AND(ISNUMBER(Project_Details[[#This Row],[Labour Internal]]),ISNUMBER(Project_Details[[#This Row],[Labour External]])),"NA") -> TRUE | AZ23: =IF(Project_Details[[#This Row],[DollarBasisImpliesNominal]],NOT(OR(ISNUMBER(Project_Details[[#This Row],[Labour Internal]]),ISNUMBER(Project_Details[[#This Row],[Labour External]]))),"NA") -> NA | BA23: =IF(AND(Project_Details[[#This Row],[NomIncur2017]]=0,Project_Details[[#This Row],[WIP]]<>0),2017,IF(AND(Project_Details[[#This Row],[NomIncur2017]]=0,Project_Details[[#This Row],[NomIncur2016]]<>0),2016,IF(AND(Project_Details[[#This Row],[NomIncur2018]]=0,Project_Details[[#This Row],[NomIncur2017]]<>0),2017,IF(AND(Project_Details[[#This Row],[NomIncur2019]]=0,Project_Details[[#This Row],[NomIncur2018]]<>0),2018,IF(AND(Project_Details[[#This Row],[NomIncur2020]]=0,Project_Details[[#This Row],[NomIncur2019]]<>0),2019,IF(AND(Project_Details[[#This Row],[NomIncur2021]]=0,Project_Details[[#This Row],[NomIncur2020]]<>0),2020,IF(AND(Project_Details[[#This Row],[NomIncur2022]]=0,Project_Details[[#This Row],[NomIncur2021]]<>0),2021,IF(Project_Details[[#This Row],[NomIncur2022]]<>0,2022,"")))))))) ->  | BC23: =IF(OR(Project_Details[[#This Row],[HasDecomms?]],NOT(ISNUMBER(Project_Details[[#This Row],[Capitalisation Year]]))), "NA", OR(Project_Details[[#This Row],[OverWrite_CashFlowAndCapitalisationYearAreOK]],(Project_Details[[#This Row],[LastYearOfNominalCashFlow]]=Project_Details[[#This Row],[Capitalisation Year]]))) -> NA | BD23: =NOT(AND(Project_Details[[#This Row],[DollarBasisImpliesNominal]],OR(ISNUMBER(Project_Details[[#This Row],[Labour Internal]]),ISNUMBER(Project_Details[[#This Row],[Labour External]])))) -> TRUE | BF23: =OR(Project_Details[[#This Row],[DecomQty2016]]>0,Project_Details[[#This Row],[DecomQty2017]]>0,Project_Details[[#This Row],[DecomQty2018]]>0,Project_Details[[#This Row],[DecomQty2019]]>0,Project_Details[[#This Row],[DecomQty2020]]>0,Project_Details[[#This Row],[DecomQty2021]]>0,Project_Details[[#This Row],[DecomQty2022]]>0) -> FALSE | BG23: =IF(LEFT(Project_Details[[#This Row],[RIN Asset Description]],17)="Power Transformer",IF((Project_Details[[#This Row],[ExpenditureAfter2017IsNotUsed]]=TRUE),FALSE,TRUE),"NA") -> NA | BJ23: 0 | BK23: 0 | BL23: 0 | BM23: 0 | BN23: 0 | BO23: =IFERROR(("None"=VLOOKUP(Project_Details[[#This Row],[ProjectID]],ProjectData[],MATCH("RepexDollarsBasis",ProjectData[#Headers],0),FALSE)),FALSE) -> FALSE | BP23: =IF(ISNUMBER(Project_Details[[#This Row],[Capitalisation Year]]),(Project_Details[[#This Row],[Capitalisation Year]]>=2016),"NA") -> NA | BQ23: =(Project_Details[[#This Row],[ID]]=(ROW()-ProjectDetailsTableStartRow)) -> TRUE | BR23: =VLOOKUP(Project_Details[[#This Row],[ProjectID]],ProjectData[],MATCH("Specific Approved Project", ProjectData[#Headers],0),FALSE) -> FALSE | BS23: =VLOOKUP(Project_Details[[#This Row],[ProjectID]],ProjectData[],5,FALSE) -> Replacement
A24: 15 | B24: 3 | C24: =Project_Details[ID] -> 15 | D24: TowerRefit_ZoneC_275_MC_NonGrillage | E24: NOT ASSIGNED | F24: =ISNUMBER(MATCH(Project_Details[[#This Row],[RIN Asset Description]],Lookup_RIN_AssetCategory,0)) -> TRUE | X24: 1667.709408 | Y24: 1900.491423 | Z24: 2143.743627 | AA24: 2397.045026 | AB24: 2660.988792 | AD24: =IF((VLOOKUP(Project_Details[[#This Row],[ProjectID]],ProjectData[],MATCH("Capitalisation",ProjectData[#Headers],0),FALSE)="Project Close"),ISNUMBER(Project_Details[[#This Row],[Capitalisation Year]]),"NA") -> NA | AS24: 0.174031552 | AT24: 0.5859452095 | AU24: =MAX(ABS(Project_Details[[#This Row],[WIP]:[NomIncur2022]]))>0 -> FALSE | AV24: =MAX(ABS(Project_Details[[#This Row],[RealIncur2016]:[RealIncur2022]]))>0 -> TRUE | AW24: =OR(AND(Project_Details[[#This Row],[DollarBasisImpliesNominal]],NOT(Project_Details[[#This Row],[DollarBasisImpliesReal1516]])), AND(NOT(Project_Details[[#This Row],[DollarBasisImpliesNominal]]),Project_Details[[#This Row],[DollarBasisImpliesReal1516]]),AND(NOT(Project_Details[[#This Row],[DollarBasisImpliesNominal]]),NOT(Project_Details[[#This Row],[DollarBasisImpliesReal1516]]),OR(Project_Details[[#This Row],[HasDecomms?]],Project_Details[[#This Row],[ProjectHasNoDollarBasis]]))) -> TRUE | AX24: =IFERROR(OR(AND(Project_Details[[#This Row],[DollarBasisImpliesNominal]],VLOOKUP(Project_Details[[#This Row],[ProjectID]],ProjectData[],MATCH("RepexDollarsBasis",ProjectData[#Headers],0),FALSE)="Nominal"),AND(Project_Details[[#This Row],[DollarBasisImpliesReal1516]],VLOOKUP(Project_Details[[#This Row],[ProjectID]],ProjectData[],MATCH("RepexDollarsBasis",ProjectData[#Headers],0),FALSE)="Real1516"),Project_Details[[#This Row],[HasDecomms?]],Project_Details[[#This Row],[ProjectHasNoDollarBasis]]),FALSE) -> TRUE | AY24: =IF(Project_Details[[#This Row],[DollarBasisImpliesReal1516]],AND(ISNUMBER(Project_Details[[#This Row],[Labour Internal]]),ISNUMBER(Project_Details[[#This Row],[Labour External]])),"NA") -> TRUE | AZ24: =IF(Project_Details[[#This Row],[DollarBasisImpliesNominal]],NOT(OR(ISNUMBER(Project_Details[[#This Row],[Labour Internal]]),ISNUMBER(Project_Details[[#This Row],[Labour External]]))),"NA") -> NA | BA24: =IF(AND(Project_Details[[#This Row],[NomIncur2017]]=0,Project_Details[[#This Row],[WIP]]<>0),2017,IF(AND(Project_Details[[#This Row],[NomIncur2017]]=0,Project_Details[[#This Row],[NomIncur2016]]<>0),2016,IF(AND(Project_Details[[#This Row],[NomIncur2018]]=0,Project_Details[[#This Row],[NomIncur2017]]<>0),2017,IF(AND(Project_Details[[#This Row],[NomIncur2019]]=0,Project_Details[[#This Row],[NomIncur2018]]<>0),2018,IF(AND(Project_Details[[#This Row],[NomIncur2020]]=0,Project_Details[[#This Row],[NomIncur2019]]<>0),2019,IF(AND(Project_Details[[#This Row],[NomIncur2021]]=0,Project_Details[[#This Row],[NomIncur2020]]<>0),2020,IF(AND(Project_Details[[#This Row],[NomIncur2022]]=0,Project_Details[[#This Row],[NomIncur2021]]<>0),2021,IF(Project_Details[[#This Row],[NomIncur2022]]<>0,2022,"")))))))) ->  | BC24: =IF(OR(Project_Details[[#This Row],[HasDecomms?]],NOT(ISNUMBER(Project_Details[[#This Row],[Capitalisation Year]]))), "NA", OR(Project_Details[[#This Row],[OverWrite_CashFlowAndCapitalisationYearAreOK]],(Project_Details[[#This Row],[LastYearOfNominalCashFlow]]=Project_Details[[#This Row],[Capitalisation Year]]))) -> NA | BD24: =NOT(AND(Project_Details[[#This Row],[DollarBasisImpliesNominal]],OR(ISNUMBER(Project_Details[[#This Row],[Labour Internal]]),ISNUMBER(Project_Details[[#This Row],[Labour External]])))) -> TRUE | BF24: =OR(Project_Details[[#This Row],[DecomQty2016]]>0,Project_Details[[#This Row],[DecomQty2017]]>0,Project_Details[[#This Row],[DecomQty2018]]>0,Project_Details[[#This Row],[DecomQty2019]]>0,Project_Details[[#This Row],[DecomQty2020]]>0,Project_Details[[#This Row],[DecomQty2021]]>0,Project_Details[[#This Row],[DecomQty2022]]>0) -> FALSE | BG24: =IF(LEFT(Project_Details[[#This Row],[RIN Asset Description]],17)="Power Transformer",IF((Project_Details[[#This Row],[ExpenditureAfter2017IsNotUsed]]=TRUE),FALSE,TRUE),"NA") -> NA | BJ24: 0 | BK24: 0 | BL24: 0 | BM24: 0 | BN24: 0 | BO24: =IFERROR(("None"=VLOOKUP(Project_Details[[#This Row],[ProjectID]],ProjectData[],MATCH("RepexDollarsBasis",ProjectData[#Headers],0),FALSE)),FALSE) -> FALSE | BP24: =IF(ISNUMBER(Project_Details[[#This Row],[Capitalisation Year]]),(Project_Details[[#This Row],[Capitalisation Year]]>=2016),"NA") -> NA | BQ24: =(Project_Details[[#This Row],[ID]]=(ROW()-ProjectDetailsTableStartRow)) -> TRUE | BR24: =VLOOKUP(Project_Details[[#This Row],[ProjectID]],ProjectData[],MATCH("Specific Approved Project", ProjectData[#Headers],0),FALSE) -> FALSE | BS24: =VLOOKUP(Project_Details[[#This Row],[ProjectID]],ProjectData[],5,FALSE) -> Replacement
A25: 16 | B25: 3 | C25: =Project_Details[ID] -> 16 | D25: TowerRefit_ZoneD_275_MC_NonGrillage | E25: NOT ASSIGNED | F25: =ISNUMBER(MATCH(Project_Details[[#This Row],[RIN Asset Description]],Lookup_RIN_AssetCategory,0)) -> TRUE | X25: 2031.740496 | Y25: 2647.129276 | Z25: 3366.100494 | AA25: 4178.309551 | AB25: 5064.003455 | AD25: =IF((VLOOKUP(Project_Details[[#This Row],[ProjectID]],ProjectData[],MATCH("Capitalisation",ProjectData[#Headers],0),FALSE)="Project Close"),ISNUMBER(Project_Details[[#This Row],[Capitalisation Year]]),"NA") -> NA | AS25: 0.174031552 | AT25: 0.5859452095 | AU25: =MAX(ABS(Project_Details[[#This Row],[WIP]:[NomIncur2022]]))>0 -> FALSE | AV25: =MAX(ABS(Project_Details[[#This Row],[RealIncur2016]:[RealIncur2022]]))>0 -> TRUE | AW25: =OR(AND(Project_Details[[#This Row],[DollarBasisImpliesNominal]],NOT(Project_Details[[#This Row],[DollarBasisImpliesReal1516]])), AND(NOT(Project_Details[[#This Row],[DollarBasisImpliesNominal]]),Project_Details[[#This Row],[DollarBasisImpliesReal1516]]),AND(NOT(Project_Details[[#This Row],[DollarBasisImpliesNominal]]),NOT(Project_Details[[#This Row],[DollarBasisImpliesReal1516]]),OR(Project_Details[[#This Row],[HasDecomms?]],Project_Details[[#This Row],[ProjectHasNoDollarBasis]]))) -> TRUE | AX25: =IFERROR(OR(AND(Project_Details[[#This Row],[DollarBasisImpliesNominal]],VLOOKUP(Project_Details[[#This Row],[ProjectID]],ProjectData[],MATCH("RepexDollarsBasis",ProjectData[#Headers],0),FALSE)="Nominal"),AND(Project_Details[[#This Row],[DollarBasisImpliesReal1516]],VLOOKUP(Project_Details[[#This Row],[ProjectID]],ProjectData[],MATCH("RepexDollarsBasis",ProjectData[#Headers],0),FALSE)="Real1516"),Project_Details[[#This Row],[HasDecomms?]],Project_Details[[#This Row],[ProjectHasNoDollarBasis]]),FALSE) -> TRUE | AY25: =IF(Project_Details[[#This Row],[DollarBasisImpliesReal1516]],AND(ISNUMBER(Project_Details[[#This Row],[Labour Internal]]),ISNUMBER(Project_Details[[#This Row],[Labour External]])),"NA") -> TRUE | AZ25: =IF(Project_Details[[#This Row],[DollarBasisImpliesNominal]],NOT(OR(ISNUMBER(Project_Details[[#This Row],[Labour Internal]]),ISNUMBER(Project_Details[[#This Row],[Labour External]]))),"NA") -> NA | BA25: =IF(AND(Project_Details[[#This Row],[NomIncur2017]]=0,Project_Details[[#This Row],[WIP]]<>0),2017,IF(AND(Project_Details[[#This Row],[NomIncur2017]]=0,Project_Details[[#This Row],[NomIncur2016]]<>0),2016,IF(AND(Project_Details[[#This Row],[NomIncur2018]]=0,Project_Details[[#This Row],[NomIncur2017]]<>0),2017,IF(AND(Project_Details[[#This Row],[NomIncur2019]]=0,Project_Details[[#This Row],[NomIncur2018]]<>0),2018,IF(AND(Project_Details[[#This Row],[NomIncur2020]]=0,Project_Details[[#This Row],[NomIncur2019]]<>0),2019,IF(AND(Project_Details[[#This Row],[NomIncur2021]]=0,Project_Details[[#This Row],[NomIncur2020]]<>0),2020,IF(AND(Project_Details[[#This Row],[NomIncur2022]]=0,Project_Details[[#This Row],[NomIncur2021]]<>0),2021,IF(Project_Details[[#This Row],[NomIncur2022]]<>0,2022,"")))))))) ->  | BC25: =IF(OR(Project_Details[[#This Row],[HasDecomms?]],NOT(ISNUMBER(Project_Details[[#This Row],[Capitalisation Year]]))), "NA", OR(Project_Details[[#This Row],[OverWrite_CashFlowAndCapitalisationYearAreOK]],(Project_Details[[#This Row],[LastYearOfNominalCashFlow]]=Project_Details[[#This Row],[Capitalisation Year]]))) -> NA | BD25: =NOT(AND(Project_Details[[#This Row],[DollarBasisImpliesNominal]],OR(ISNUMBER(Project_Details[[#This Row],[Labour Internal]]),ISNUMBER(Project_Details[[#This Row],[Labour External]])))) -> TRUE | BF25: =OR(Project_Details[[#This Row],[DecomQty2016]]>0,Project_Details[[#This Row],[DecomQty2017]]>0,Project_Details[[#This Row],[DecomQty2018]]>0,Project_Details[[#This Row],[DecomQty2019]]>0,Project_Details[[#This Row],[DecomQty2020]]>0,Project_Details[[#This Row],[DecomQty2021]]>0,Project_Details[[#This Row],[DecomQty2022]]>0) -> FALSE | BG25: =IF(LEFT(Project_Details[[#This Row],[RIN Asset Description]],17)="Power Transformer",IF((Project_Details[[#This Row],[ExpenditureAfter2017IsNotUsed]]=TRUE),FALSE,TRUE),"NA") -> NA | BJ25: 0 | BK25: 0 | BL25: 0 | BM25: 0 | BN25: 0 | BO25: =IFERROR(("None"=VLOOKUP(Project_Details[[#This Row],[ProjectID]],ProjectData[],MATCH("RepexDollarsBasis",ProjectData[#Headers],0),FALSE)),FALSE) -> FALSE | BP25: =IF(ISNUMBER(Project_Details[[#This Row],[Capitalisation Year]]),(Project_Details[[#This Row],[Capitalisation Year]]>=2016),"NA") -> NA | BQ25: =(Project_Details[[#This Row],[ID]]=(ROW()-ProjectDetailsTableStartRow)) -> TRUE | BR25: =VLOOKUP(Project_Details[[#This Row],[ProjectID]],ProjectData[],MATCH("Specific Approved Project", ProjectData[#Headers],0),FALSE) -> FALSE | BS25: =VLOOKUP(Project_Details[[#This Row],[ProjectID]],ProjectData[],5,FALSE) -> Replacement
A26: 17 | B26: 3 | C26: =Project_Details[ID] -> 17 | D26: TowerRefit_ZoneB_330_MC_NonGrillage | E26: NOT ASSIGNED | F26: =ISNUMBER(MATCH(Project_Details[[#This Row],[RIN Asset Description]],Lookup_RIN_AssetCategory,0)) -> TRUE | X26: 2.150870665e-06 | Y26: 4.766970906e-06 | Z26: 1.04074079e-05 | AA26: 2.238280599e-05 | AB26: 4.741965311e-05 | AD26: =IF((VLOOKUP(Project_Details[[#This Row],[ProjectID]],ProjectData[],MATCH("Capitalisation",ProjectData[#Headers],0),FALSE)="Project Close"),ISNUMBER(Project_Details[[#This Row],[Capitalisation Year]]),"NA") -> NA | AS26: 0.174031552 | AT26: 0.5892963217 | AU26: =MAX(ABS(Project_Details[[#This Row],[WIP]:[NomIncur2022]]))>0 -> FALSE | AV26: =MAX(ABS(Project_Details[[#This Row],[RealIncur2016]:[RealIncur2022]]))>0 -> TRUE | AW26: =OR(AND(Project_Details[[#This Row],[DollarBasisImpliesNominal]],NOT(Project_Details[[#This Row],[DollarBasisImpliesReal1516]])), AND(NOT(Project_Details[[#This Row],[DollarBasisImpliesNominal]]),Project_Details[[#This Row],[DollarBasisImpliesReal1516]]),AND(NOT(Project_Details[[#This Row],[DollarBasisImpliesNominal]]),NOT(Project_Details[[#This Row],[DollarBasisImpliesReal1516]]),OR(Project_Details[[#This Row],[HasDecomms?]],Project_Details[[#This Row],[ProjectHasNoDollarBasis]]))) -> TRUE | AX26: =IFERROR(OR(AND(Project_Details[[#This Row],[DollarBasisImpliesNominal]],VLOOKUP(Project_Details[[#This Row],[ProjectID]],ProjectData[],MATCH("RepexDollarsBasis",ProjectData[#Headers],0),FALSE)="Nominal"),AND(Project_Details[[#This Row],[DollarBasisImpliesReal1516]],VLOOKUP(Project_Details[[#This Row],[ProjectID]],ProjectData[],MATCH("RepexDollarsBasis",ProjectData[#Headers],0),FALSE)="Real1516"),Project_Details[[#This Row],[HasDecomms?]],Project_Details[[#This Row],[ProjectHasNoDollarBasis]]),FALSE) -> TRUE | AY26: =IF(Project_Details[[#This Row],[DollarBasisImpliesReal1516]],AND(ISNUMBER(Project_Details[[#This Row],[Labour Internal]]),ISNUMBER(Project_Details[[#This Row],[Labour External]])),"NA") -> TRUE | AZ26: =IF(Project_Details[[#This Row],[DollarBasisImpliesNominal]],NOT(OR(ISNUMBER(Project_Details[[#This Row],[Labour Internal]]),ISNUMBER(Project_Details[[#This Row],[Labour External]]))),"NA") -> NA | BA26: =IF(AND(Project_Details[[#This Row],[NomIncur2017]]=0,Project_Details[[#This Row],[WIP]]<>0),2017,IF(AND(Project_Details[[#This Row],[NomIncur2017]]=0,Project_Details[[#This Row],[NomIncur2016]]<>0),2016,IF(AND(Project_Details[[#This Row],[NomIncur2018]]=0,Project_Details[[#This Row],[NomIncur2017]]<>0),2017,IF(AND(Project_Details[[#This Row],[NomIncur2019]]=0,Project_Details[[#This Row],[NomIncur2018]]<>0),2018,IF(AND(Project_Details[[#This Row],[NomIncur2020]]=0,Project_Details[[#This Row],[NomIncur2019]]<>0),2019,IF(AND(Project_Details[[#This Row],[NomIncur2021]]=0,Project_Details[[#This Row],[NomIncur2020]]<>0),2020,IF(AND(Project_Details[[#This Row],[NomIncur2022]]=0,Project_Details[[#This Row],[NomIncur2021]]<>0),2021,IF(Project_Details[[#This Row],[NomIncur2022]]<>0,2022,"")))))))) ->  | BC26: =IF(OR(Project_Details[[#This Row],[HasDecomms?]],NOT(ISNUMBER(Project_Details[[#This Row],[Capitalisation Year]]))), "NA", OR(Project_Details[[#This Row],[OverWrite_CashFlowAndCapitalisationYearAreOK]],(Project_Details[[#This Row],[LastYearOfNominalCashFlow]]=Project_Details[[#This Row],[Capitalisation Year]]))) -> NA | BD26: =NOT(AND(Project_Details[[#This Row],[DollarBasisImpliesNominal]],OR(ISNUMBER(Project_Details[[#This Row],[Labour Internal]]),ISNUMBER(Project_Details[[#This Row],[Labour External]])))) -> TRUE | BF26: =OR(Project_Details[[#This Row],[DecomQty2016]]>0,Project_Details[[#This Row],[DecomQty2017]]>0,Project_Details[[#This Row],[DecomQty2018]]>0,Project_Details[[#This Row],[DecomQty2019]]>0,Project_Details[[#This Row],[DecomQty2020]]>0,Project_Details[[#This Row],[DecomQty2021]]>0,Project_Details[[#This Row],[DecomQty2022]]>0) -> FALSE | BG26: =IF(LEFT(Project_Details[[#This Row],[RIN Asset Description]],17)="Power Transformer",IF((Project_Details[[#This Row],[ExpenditureAfter2017IsNotUsed]]=TRUE),FALSE,TRUE),"NA") -> NA | BJ26: 0 | BK26: 0 | BL26: 0 | BM26: 0 | BN26: 0 | BO26: =IFERROR(("None"=VLOOKUP(Project_Details[[#This Row],[ProjectID]],ProjectData[],MATCH("RepexDollarsBasis",ProjectData[#Headers],0),FALSE)),FALSE) -> FALSE | BP26: =IF(ISNUMBER(Project_Details[[#This Row],[Capitalisation Year]]),(Project_Details[[#This Row],[Capitalisation Year]]>=2016),"NA") -> NA | BQ26: =(Project_Details[[#This Row],[ID]]=(ROW()-ProjectDetailsTableStartRow)) -> TRUE | BR26: =VLOOKUP(Project_Details[[#This Row],[ProjectID]],ProjectData[],MATCH("Specific Approved Project", ProjectData[#Headers],0),FALSE) -> FALSE | BS26: =VLOOKUP(Project_Details[[#This Row],[ProjectID]],ProjectData[],5,FALSE) -> Replacement
A27: 18 | B27: 3 | C27: =Project_Details[ID] -> 18 | D27: TowerRefit_ZoneC_330_MC_NonGrillage | E27: NOT ASSIGNED | F27: =ISNUMBER(MATCH(Project_Details[[#This Row],[RIN Asset Description]],Lookup_RIN_AssetCategory,0)) -> TRUE | X27: 0.05462785257 | Y27: 0.1066000026 | Z27: 0.2041376667 | AA27: 0.3836315543 | AB27: 0.7075114443 | AD27: =IF((VLOOKUP(Project_Details[[#This Row],[ProjectID]],ProjectData[],MATCH("Capitalisation",ProjectData[#Headers],0),FALSE)="Project Close"),ISNUMBER(Project_Details[[#This Row],[Capitalisation Year]]),"NA") -> NA | AS27: 0.174031552 | AT27: 0.5892963217 | AU27: =MAX(ABS(Project_Details[[#This Row],[WIP]:[NomIncur2022]]))>0 -> FALSE | AV27: =MAX(ABS(Project_Details[[#This Row],[RealIncur2016]:[RealIncur2022]]))>0 -> TRUE | AW27: =OR(AND(Project_Details[[#This Row],[DollarBasisImpliesNominal]],NOT(Project_Details[[#This Row],[DollarBasisImpliesReal1516]])), AND(NOT(Project_Details[[#This Row],[DollarBasisImpliesNominal]]),Project_Details[[#This Row],[DollarBasisImpliesReal1516]]),AND(NOT(Project_Details[[#This Row],[DollarBasisImpliesNominal]]),NOT(Project_Details[[#This Row],[DollarBasisImpliesReal1516]]),OR(Project_Details[[#This Row],[HasDecomms?]],Project_Details[[#This Row],[ProjectHasNoDollarBasis]]))) -> TRUE | AX27: =IFERROR(OR(AND(Project_Details[[#This Row],[DollarBasisImpliesNominal]],VLOOKUP(Project_Details[[#This Row],[ProjectID]],ProjectData[],MATCH("RepexDollarsBasis",ProjectData[#Headers],0),FALSE)="Nominal"),AND(Project_Details[[#This Row],[DollarBasisImpliesReal1516]],VLOOKUP(Project_Details[[#This Row],[ProjectID]],ProjectData[],MATCH("RepexDollarsBasis",ProjectData[#Headers],0),FALSE)="Real1516"),Project_Details[[#This Row],[HasDecomms?]],Project_Details[[#This Row],[ProjectHasNoDollarBasis]]),FALSE) -> TRUE | AY27: =IF(Project_Details[[#This Row],[DollarBasisImpliesReal1516]],AND(ISNUMBER(Project_Details[[#This Row],[Labour Internal]]),ISNUMBER(Project_Details[[#This Row],[Labour External]])),"NA") -> TRUE | AZ27: =IF(Project_Details[[#This Row],[DollarBasisImpliesNominal]],NOT(OR(ISNUMBER(Project_Details[[#This Row],[Labour Internal]]),ISNUMBER(Project_Details[[#This Row],[Labour External]]))),"NA") -> NA | BA27: =IF(AND(Project_Details[[#This Row],[NomIncur2017]]=0,Project_Details[[#This Row],[WIP]]<>0),2017,IF(AND(Project_Details[[#This Row],[NomIncur2017]]=0,Project_Details[[#This Row],[NomIncur2016]]<>0),2016,IF(AND(Project_Details[[#This Row],[NomIncur2018]]=0,Project_Details[[#This Row],[NomIncur2017]]<>0),2017,IF(AND(Project_Details[[#This Row],[NomIncur2019]]=0,Project_Details[[#This Row],[NomIncur2018]]<>0),2018,IF(AND(Project_Details[[#This Row],[NomIncur2020]]=0,Project_Details[[#This Row],[NomIncur2019]]<>0),2019,IF(AND(Project_Details[[#This Row],[NomIncur2021]]=0,Project_Details[[#This Row],[NomIncur2020]]<>0),2020,IF(AND(Project_Details[[#This Row],[NomIncur2022]]=0,Project_Details[[#This Row],[NomIncur2021]]<>0),2021,IF(Project_Details[[#This Row],[NomIncur2022]]<>0,2022,"")))))))) ->  | BC27: =IF(OR(Project_Details[[#This Row],[HasDecomms?]],NOT(ISNUMBER(Project_Details[[#This Row],[Capitalisation Year]]))), "NA", OR(Project_Details[[#This Row],[OverWrite_CashFlowAndCapitalisationYearAreOK]],(Project_Details[[#This Row],[LastYearOfNominalCashFlow]]=Project_Details[[#This Row],[Capitalisation Year]]))) -> NA | BD27: =NOT(AND(Project_Details[[#This Row],[DollarBasisImpliesNominal]],OR(ISNUMBER(Project_Details[[#This Row],[Labour Internal]]),ISNUMBER(Project_Details[[#This Row],[Labour External]])))) -> TRUE | BF27: =OR(Project_Details[[#This Row],[DecomQty2016]]>0,Project_Details[[#This Row],[DecomQty2017]]>0,Project_Details[[#This Row],[DecomQty2018]]>0,Project_Details[[#This Row],[DecomQty2019]]>0,Project_Details[[#This Row],[DecomQty2020]]>0,Project_Details[[#This Row],[DecomQty2021]]>0,Project_Details[[#This Row],[DecomQty2022]]>0) -> FALSE | BG27: =IF(LEFT(Project_Details[[#This Row],[RIN Asset Description]],17)="Power Transformer",IF((Project_Details[[#This Row],[ExpenditureAfter2017IsNotUsed]]=TRUE),FALSE,TRUE),"NA") -> NA | BJ27: 0 | BK27: 0 | BL27: 0 | BM27: 0 | BN27: 0 | BO27: =IFERROR(("None"=VLOOKUP(Project_Details[[#This Row],[ProjectID]],ProjectData[],MATCH("RepexDollarsBasis",ProjectData[#Headers],0),FALSE)),FALSE) -> FALSE | BP27: =IF(ISNUMBER(Project_Details[[#This Row],[Capitalisation Year]]),(Project_Details[[#This Row],[Capitalisation Year]]>=2016),"NA") -> NA | BQ27: =(Project_Details[[#This Row],[ID]]=(ROW()-ProjectDetailsTableStartRow)) -> TRUE | BR27: =VLOOKUP(Project_Details[[#This Row],[ProjectID]],ProjectData[],MATCH("Specific Approved Project", ProjectData[#Headers],0),FALSE) -> FALSE | BS27: =VLOOKUP(Project_Details[[#This Row],[ProjectID]],ProjectData[],5,FALSE) -> Replacement
A28: 19 | B28: 12 | C28: =Project_Details[ID] -> 19 | D28: Towers rebuilt due to substation rebuild | E28: NOT ASSIGNED | F28: =ISNUMBER(MATCH(Project_Details[[#This Row],[RIN Asset Description]],Lookup_RIN_AssetCategory,0)) -> TRUE | X28: 1345.424588 | Y28: 1345.424588 | Z28: 1345.424588 | AA28: 1345.424588 | AB28: 1345.424588 | AD28: =IF((VLOOKUP(Project_Details[[#This Row],[ProjectID]],ProjectData[],MATCH("Capitalisation",ProjectData[#Headers],0),FALSE)="Project Close"),ISNUMBER(Project_Details[[#This Row],[Capitalisation Year]]),"NA") -> NA | AS28: 0.174031552 | AT28: 0.4389087811 | AU28: =MAX(ABS(Project_Details[[#This Row],[WIP]:[NomIncur2022]]))>0 -> FALSE | AV28: =MAX(ABS(Project_Details[[#This Row],[RealIncur2016]:[RealIncur2022]]))>0 -> TRUE | AW28: =OR(AND(Project_Details[[#This Row],[DollarBasisImpliesNominal]],NOT(Project_Details[[#This Row],[DollarBasisImpliesReal1516]])), AND(NOT(Project_Details[[#This Row],[DollarBasisImpliesNominal]]),Project_Details[[#This Row],[DollarBasisImpliesReal1516]]),AND(NOT(Project_Details[[#This Row],[DollarBasisImpliesNominal]]),NOT(Project_Details[[#This Row],[DollarBasisImpliesReal1516]]),OR(Project_Details[[#This Row],[HasDecomms?]],Project_Details[[#This Row],[ProjectHasNoDollarBasis]]))) -> TRUE | AX28: =IFERROR(OR(AND(Project_Details[[#This Row],[DollarBasisImpliesNominal]],VLOOKUP(Project_Details[[#This Row],[ProjectID]],ProjectData[],MATCH("RepexDollarsBasis",ProjectData[#Headers],0),FALSE)="Nominal"),AND(Project_Details[[#This Row],[DollarBasisImpliesReal1516]],VLOOKUP(Project_Details[[#This Row],[ProjectID]],ProjectData[],MATCH("RepexDollarsBasis",ProjectData[#Headers],0),FALSE)="Real1516"),Project_Details[[#This Row],[HasDecomms?]],Project_Details[[#This Row],[ProjectHasNoDollarBasis]]),FALSE) -> TRUE | AY28: =IF(Project_Details[[#This Row],[DollarBasisImpliesReal1516]],AND(ISNUMBER(Project_Details[[#This Row],[Labour Internal]]),ISNUMBER(Project_Details[[#This Row],[Labour External]])),"NA") -> TRUE | AZ28: =IF(Project_Details[[#This Row],[DollarBasisImpliesNominal]],NOT(OR(ISNUMBER(Project_Details[[#This Row],[Labour Internal]]),ISNUMBER(Project_Details[[#This Row],[Labour External]]))),"NA") -> NA | BA28: =IF(AND(Project_Details[[#This Row],[NomIncur2017]]=0,Project_Details[[#This Row],[WIP]]<>0),2017,IF(AND(Project_Details[[#This Row],[NomIncur2017]]=0,Project_Details[[#This Row],[NomIncur2016]]<>0),2016,IF(AND(Project_Details[[#This Row],[NomIncur2018]]=0,Project_Details[[#This Row],[NomIncur2017]]<>0),2017,IF(AND(Project_Details[[#This Row],[NomIncur2019]]=0,Project_Details[[#This Row],[NomIncur2018]]<>0),2018,IF(AND(Project_Details[[#This Row],[NomIncur2020]]=0,Project_Details[[#This Row],[NomIncur2019]]<>0),2019,IF(AND(Project_Details[[#This Row],[NomIncur2021]]=0,Project_Details[[#This Row],[NomIncur2020]]<>0),2020,IF(AND(Project_Details[[#This Row],[NomIncur2022]]=0,Project_Details[[#This Row],[NomIncur2021]]<>0),2021,IF(Project_Details[[#This Row],[NomIncur2022]]<>0,2022,"")))))))) ->  | BC28: =IF(OR(Project_Details[[#This Row],[HasDecomms?]],NOT(ISNUMBER(Project_Details[[#This Row],[Capitalisation Year]]))), "NA", OR(Project_Details[[#This Row],[OverWrite_CashFlowAndCapitalisationYearAreOK]],(Project_Details[[#This Row],[LastYearOfNominalCashFlow]]=Project_Details[[#This Row],[Capitalisation Year]]))) -> NA | BD28: =NOT(AND(Project_Details[[#This Row],[DollarBasisImpliesNominal]],OR(ISNUMBER(Project_Details[[#This Row],[Labour Internal]]),ISNUMBER(Project_Details[[#This Row],[Labour External]])))) -> TRUE | BF28: =OR(Project_Details[[#This Row],[DecomQty2016]]>0,Project_Details[[#This Row],[DecomQty2017]]>0,Project_Details[[#This Row],[DecomQty2018]]>0,Project_Details[[#This Row],[DecomQty2019]]>0,Project_Details[[#This Row],[DecomQty2020]]>0,Project_Details[[#This Row],[DecomQty2021]]>0,Project_Details[[#This Row],[DecomQty2022]]>0) -> FALSE | BG28: =IF(LEFT(Project_Details[[#This Row],[RIN Asset Description]],17)="Power Transformer",IF((Project_Details[[#This Row],[ExpenditureAfter2017IsNotUsed]]=TRUE),FALSE,TRUE),"NA") -> NA | BJ28: 1345.424588 | BK28: 1345.424588 | BL28: 1345.424588 | BM28: 1345.424588 | BN28: 1345.424588 | BO28: =IFERROR(("None"=VLOOKUP(Project_Details[[#This Row],[ProjectID]],ProjectData[],MATCH("RepexDollarsBasis",ProjectData[#Headers],0),FALSE)),FALSE) -> FALSE | BP28: =IF(ISNUMBER(Project_Details[[#This Row],[Capitalisation Year]]),(Project_Details[[#This Row],[Capitalisation Year]]>=2016),"NA") -> NA | BQ28: =(Project_Details[[#This Row],[ID]]=(ROW()-ProjectDetailsTableStartRow)) -> TRUE | BR28: =VLOOKUP(Project_Details[[#This Row],[ProjectID]],ProjectData[],MATCH("Specific Approved Project", ProjectData[#Headers],0),FALSE) -> FALSE | BS28: =VLOOKUP(Project_Details[[#This Row],[ProjectID]],ProjectData[],5,FALSE) -> Replacement
A29: 20 | B29: 999 | C29: =Project_Details[ID] -> 20 | E29: NOT ASSIGNED | F29: =ISNUMBER(MATCH(Project_Details[[#This Row],[RIN Asset Description]],Lookup_RIN_AssetCategory,0)) -> TRUE | AD29: =IF((VLOOKUP(Project_Details[[#This Row],[ProjectID]],ProjectData[],MATCH("Capitalisation",ProjectData[#Headers],0),FALSE)="Project Close"),ISNUMBER(Project_Details[[#This Row],[Capitalisation Year]]),"NA") ->  | AU29: =MAX(ABS(Project_Details[[#This Row],[WIP]:[NomIncur2022]]))>0 -> FALSE | AV29: =MAX(ABS(Project_Details[[#This Row],[RealIncur2016]:[RealIncur2022]]))>0 -> FALSE | AW29: =OR(AND(Project_Details[[#This Row],[DollarBasisImpliesNominal]],NOT(Project_Details[[#This Row],[DollarBasisImpliesReal1516]])), AND(NOT(Project_Details[[#This Row],[DollarBasisImpliesNominal]]),Project_Details[[#This Row],[DollarBasisImpliesReal1516]]),AND(NOT(Project_Details[[#This Row],[DollarBasisImpliesNominal]]),NOT(Project_Details[[#This Row],[DollarBasisImpliesReal1516]]),OR(Project_Details[[#This Row],[HasDecomms?]],Project_Details[[#This Row],[ProjectHasNoDollarBasis]]))) -> FALSE | AX29: =IFERROR(OR(AND(Project_Details[[#This Row],[DollarBasisImpliesNominal]],VLOOKUP(Project_Details[[#This Row],[ProjectID]],ProjectData[],MATCH("RepexDollarsBasis",ProjectData[#Headers],0),FALSE)="Nominal"),AND(Project_Details[[#This Row],[DollarBasisImpliesReal1516]],VLOOKUP(Project_Details[[#This Row],[ProjectID]],ProjectData[],MATCH("RepexDollarsBasis",ProjectData[#Headers],0),FALSE)="Real1516"),Project_Details[[#This Row],[HasDecomms?]],Project_Details[[#This Row],[ProjectHasNoDollarBasis]]),FALSE) -> FALSE | AY29: =IF(Project_Details[[#This Row],[DollarBasisImpliesReal1516]],AND(ISNUMBER(Project_Details[[#This Row],[Labour Internal]]),ISNUMBER(Project_Details[[#This Row],[Labour External]])),"NA") -> NA | AZ29: =IF(Project_Details[[#This Row],[DollarBasisImpliesNominal]],NOT(OR(ISNUMBER(Project_Details[[#This Row],[Labour Internal]]),ISNUMBER(Project_Details[[#This Row],[Labour External]]))),"NA") -> NA | BA29: =IF(AND(Project_Details[[#This Row],[NomIncur2017]]=0,Project_Details[[#This Row],[WIP]]<>0),2017,IF(AND(Project_Details[[#This Row],[NomIncur2017]]=0,Project_Details[[#This Row],[NomIncur2016]]<>0),2016,IF(AND(Project_Details[[#This Row],[NomIncur2018]]=0,Project_Details[[#This Row],[NomIncur2017]]<>0),2017,IF(AND(Project_Details[[#This Row],[NomIncur2019]]=0,Project_Details[[#This Row],[NomIncur2018]]<>0),2018,IF(AND(Project_Details[[#This Row],[NomIncur2020]]=0,Project_Details[[#This Row],[NomIncur2019]]<>0),2019,IF(AND(Project_Details[[#This Row],[NomIncur2021]]=0,Project_Details[[#This Row],[NomIncur2020]]<>0),2020,IF(AND(Project_Details[[#This Row],[NomIncur2022]]=0,Project_Details[[#This Row],[NomIncur2021]]<>0),2021,IF(Project_Details[[#This Row],[NomIncur2022]]<>0,2022,"")))))))) ->  | BC29: =IF(OR(Project_Details[[#This Row],[HasDecomms?]],NOT(ISNUMBER(Project_Details[[#This Row],[Capitalisation Year]]))), "NA", OR(Project_Details[[#This Row],[OverWrite_CashFlowAndCapitalisationYearAreOK]],(Project_Details[[#This Row],[LastYearOfNominalCashFlow]]=Project_Details[[#This Row],[Capitalisation Year]]))) -> NA | BD29: =NOT(AND(Project_Details[[#This Row],[DollarBasisImpliesNominal]],OR(ISNUMBER(Project_Details[[#This Row],[Labour Internal]]),ISNUMBER(Project_Details[[#This Row],[Labour External]])))) -> TRUE | BF29: =OR(Project_Details[[#This Row],[DecomQty2016]]>0,Project_Details[[#This Row],[DecomQty2017]]>0,Project_Details[[#This Row],[DecomQty2018]]>0,Project_Details[[#This Row],[DecomQty2019]]>0,Project_Details[[#This Row],[DecomQty2020]]>0,Project_Details[[#This Row],[DecomQty2021]]>0,Project_Details[[#This Row],[DecomQty2022]]>0) -> FALSE | BG29: =IF(LEFT(Project_Details[[#This Row],[RIN Asset Description]],17)="Power Transformer",IF((Project_Details[[#This Row],[ExpenditureAfter2017IsNotUsed]]=TRUE),FALSE,TRUE),"NA") -> NA | BO29: =IFERROR(("None"=VLOOKUP(Project_Details[[#This Row],[ProjectID]],ProjectData[],MATCH("RepexDollarsBasis",ProjectData[#Headers],0),FALSE)),FALSE) -> FALSE | BP29: =IF(ISNUMBER(Project_Details[[#This Row],[Capitalisation Year]]),(Project_Details[[#This Row],[Capitalisation Year]]>=2016),"NA") -> NA | BQ29: =(Project_Details[[#This Row],[ID]]=(ROW()-ProjectDetailsTableStartRow)) -> TRUE | BR29: =VLOOKUP(Project_Details[[#This Row],[ProjectID]],ProjectData[],MATCH("Specific Approved Project", ProjectData[#Headers],0),FALSE) ->  | BS29: =VLOOKUP(Project_Details[[#This Row],[ProjectID]],ProjectData[],5,FALSE) -> 
A30: 21 | B30: 4 | C30: =Project_Details[ID] -> 21 | D30: Switchgear_CB_33kV | E30: NOT ASSIGNED | F30: =ISNUMBER(MATCH(Project_Details[[#This Row],[RIN Asset Description]],Lookup_RIN_AssetCategory,0)) -> TRUE | X30: 19.1437195 | Y30: 20.45718876 | Z30: 21.38997019 | AA30: 21.8969409 | AB30: 21.95908314 | AD30: =IF((VLOOKUP(Project_Details[[#This Row],[ProjectID]],ProjectData[],MATCH("Capitalisation",ProjectData[#Headers],0),FALSE)="Project Close"),ISNUMBER(Project_Details[[#This Row],[Capitalisation Year]]),"NA") -> NA | AS30: 0.2918348559 | AT30: 0.3856140128 | AU30: =MAX(ABS(Project_Details[[#This Row],[WIP]:[NomIncur2022]]))>0 -> FALSE | AV30: =MAX(ABS(Project_Details[[#This Row],[RealIncur2016]:[RealIncur2022]]))>0 -> TRUE | AW30: =OR(AND(Project_Details[[#This Row],[DollarBasisImpliesNominal]],NOT(Project_Details[[#This Row],[DollarBasisImpliesReal1516]])), AND(NOT(Project_Details[[#This Row],[DollarBasisImpliesNominal]]),Project_Details[[#This Row],[DollarBasisImpliesReal1516]]),AND(NOT(Project_Details[[#This Row],[DollarBasisImpliesNominal]]),NOT(Project_Details[[#This Row],[DollarBasisImpliesReal1516]]),OR(Project_Details[[#This Row],[HasDecomms?]],Project_Details[[#This Row],[ProjectHasNoDollarBasis]]))) -> TRUE | AX30: =IFERROR(OR(AND(Project_Details[[#This Row],[DollarBasisImpliesNominal]],VLOOKUP(Project_Details[[#This Row],[ProjectID]],ProjectData[],MATCH("RepexDollarsBasis",ProjectData[#Headers],0),FALSE)="Nominal"),AND(Project_Details[[#This Row],[DollarBasisImpliesReal1516]],VLOOKUP(Project_Details[[#This Row],[ProjectID]],ProjectData[],MATCH("RepexDollarsBasis",ProjectData[#Headers],0),FALSE)="Real1516"),Project_Details[[#This Row],[HasDecomms?]],Project_Details[[#This Row],[ProjectHasNoDollarBasis]]),FALSE) -> TRUE | AY30: =IF(Project_Details[[#This Row],[DollarBasisImpliesReal1516]],AND(ISNUMBER(Project_Details[[#This Row],[Labour Internal]]),ISNUMBER(Project_Details[[#This Row],[Labour External]])),"NA") -> TRUE | AZ30: =IF(Project_Details[[#This Row],[DollarBasisImpliesNominal]],NOT(OR(ISNUMBER(Project_Details[[#This Row],[Labour Internal]]),ISNUMBER(Project_Details[[#This Row],[Labour External]]))),"NA") -> NA | BA30: =IF(AND(Project_Details[[#This Row],[NomIncur2017]]=0,Project_Details[[#This Row],[WIP]]<>0),2017,IF(AND(Project_Details[[#This Row],[NomIncur2017]]=0,Project_Details[[#This Row],[NomIncur2016]]<>0),2016,IF(AND(Project_Details[[#This Row],[NomIncur2018]]=0,Project_Details[[#This Row],[NomIncur2017]]<>0),2017,IF(AND(Project_Details[[#This Row],[NomIncur2019]]=0,Project_Details[[#This Row],[NomIncur2018]]<>0),2018,IF(AND(Project_Details[[#This Row],[NomIncur2020]]=0,Project_Details[[#This Row],[NomIncur2019]]<>0),2019,IF(AND(Project_Details[[#This Row],[NomIncur2021]]=0,Project_Details[[#This Row],[NomIncur2020]]<>0),2020,IF(AND(Project_Details[[#This Row],[NomIncur2022]]=0,Project_Details[[#This Row],[NomIncur2021]]<>0),2021,IF(Project_Details[[#This Row],[NomIncur2022]]<>0,2022,"")))))))) ->  | BC30: =IF(OR(Project_Details[[#This Row],[HasDecomms?]],NOT(ISNUMBER(Project_Details[[#This Row],[Capitalisation Year]]))), "NA", OR(Project_Details[[#This Row],[OverWrite_CashFlowAndCapitalisationYearAreOK]],(Project_Details[[#This Row],[LastYearOfNominalCashFlow]]=Project_Details[[#This Row],[Capitalisation Year]]))) -> NA | BD30: =NOT(AND(Project_Details[[#This Row],[DollarBasisImpliesNominal]],OR(ISNUMBER(Project_Details[[#This Row],[Labour Internal]]),ISNUMBER(Project_Details[[#This Row],[Labour External]])))) -> TRUE | BF30: =OR(Project_Details[[#This Row],[DecomQty2016]]>0,Project_Details[[#This Row],[DecomQty2017]]>0,Project_Details[[#This Row],[DecomQty2018]]>0,Project_Details[[#This Row],[DecomQty2019]]>0,Project_Details[[#This Row],[DecomQty2020]]>0,Project_Details[[#This Row],[DecomQty2021]]>0,Project_Details[[#This Row],[DecomQty2022]]>0) -> FALSE | BG30: =IF(LEFT(Project_Details[[#This Row],[RIN Asset Description]],17)="Power Transformer",IF((Project_Details[[#This Row],[ExpenditureAfter2017IsNotUsed]]=TRUE),FALSE,TRUE),"NA") -> NA | BJ30: 0 | BK30: 0 | BL30: 0 | BM30: 78.80714141 | BN30: 0 | BO30: =IFERROR(("None"=VLOOKUP(Project_Details[[#This Row],[ProjectID]],ProjectData[],MATCH("RepexDollarsBasis",ProjectData[#Headers],0),FALSE)),FALSE) -> FALSE | BP30: =IF(ISNUMBER(Project_Details[[#This Row],[Capitalisation Year]]),(Project_Details[[#This Row],[Capitalisation Year]]>=2016),"NA") -> NA | BQ30: =(Project_Details[[#This Row],[ID]]=(ROW()-ProjectDetailsTableStartRow)) -> TRUE | BR30: =VLOOKUP(Project_Details[[#This Row],[ProjectID]],ProjectData[],MATCH("Specific Approved Project", ProjectData[#Headers],0),FALSE) -> FALSE | BS30: =VLOOKUP(Project_Details[[#This Row],[ProjectID]],ProjectData[],5,FALSE) -> Replacement
A31: 22 | B31: 4 | C31: =Project_Details[ID] -> 22 | D31: Switchgear_CB_66kV | E31: NOT ASSIGNED | F31: =ISNUMBER(MATCH(Project_Details[[#This Row],[RIN Asset Description]],Lookup_RIN_AssetCategory,0)) -> TRUE | X31: 1.24512526 | Y31: 1.909454058 | Z31: 2.847128043 | AA31: 4.127846723 | AB31: 5.81947624 | AD31: =IF((VLOOKUP(Project_Details[[#This Row],[ProjectID]],ProjectData[],MATCH("Capitalisation",ProjectData[#Headers],0),FALSE)="Project Close"),ISNUMBER(Project_Details[[#This Row],[Capitalisation Year]]),"NA") -> NA | AS31: 0.2918348559 | AT31: 0.3633869316 | AU31: =MAX(ABS(Project_Details[[#This Row],[WIP]:[NomIncur2022]]))>0 -> FALSE | AV31: =MAX(ABS(Project_Details[[#This Row],[RealIncur2016]:[RealIncur2022]]))>0 -> TRUE | AW31: =OR(AND(Project_Details[[#This Row],[DollarBasisImpliesNominal]],NOT(Project_Details[[#This Row],[DollarBasisImpliesReal1516]])), AND(NOT(Project_Details[[#This Row],[DollarBasisImpliesNominal]]),Project_Details[[#This Row],[DollarBasisImpliesReal1516]]),AND(NOT(Project_Details[[#This Row],[DollarBasisImpliesNominal]]),NOT(Project_Details[[#This Row],[DollarBasisImpliesReal1516]]),OR(Project_Details[[#This Row],[HasDecomms?]],Project_Details[[#This Row],[ProjectHasNoDollarBasis]]))) -> TRUE | AX31: =IFERROR(OR(AND(Project_Details[[#This Row],[DollarBasisImpliesNominal]],VLOOKUP(Project_Details[[#This Row],[ProjectID]],ProjectData[],MATCH("RepexDollarsBasis",ProjectData[#Headers],0),FALSE)="Nominal"),AND(Project_Details[[#This Row],[DollarBasisImpliesReal1516]],VLOOKUP(Project_Details[[#This Row],[ProjectID]],ProjectData[],MATCH("RepexDollarsBasis",ProjectData[#Headers],0),FALSE)="Real1516"),Project_Details[[#This Row],[HasDecomms?]],Project_Details[[#This Row],[ProjectHasNoDollarBasis]]),FALSE) -> TRUE | AY31: =IF(Project_Details[[#This Row],[DollarBasisImpliesReal1516]],AND(ISNUMBER(Project_Details[[#This Row],[Labour Internal]]),ISNUMBER(Project_Details[[#This Row],[Labour External]])),"NA") -> TRUE | AZ31: =IF(Project_Details[[#This Row],[DollarBasisImpliesNominal]],NOT(OR(ISNUMBER(Project_Details[[#This Row],[Labour Internal]]),ISNUMBER(Project_Details[[#This Row],[Labour External]]))),"NA") -> NA | BA31: =IF(AND(Project_Details[[#This Row],[NomIncur2017]]=0,Project_Details[[#This Row],[WIP]]<>0),2017,IF(AND(Project_Details[[#This Row],[NomIncur2017]]=0,Project_Details[[#This Row],[NomIncur2016]]<>0),2016,IF(AND(Project_Details[[#This Row],[NomIncur2018]]=0,Project_Details[[#This Row],[NomIncur2017]]<>0),2017,IF(AND(Project_Details[[#This Row],[NomIncur2019]]=0,Project_Details[[#This Row],[NomIncur2018]]<>0),2018,IF(AND(Project_Details[[#This Row],[NomIncur2020]]=0,Project_Details[[#This Row],[NomIncur2019]]<>0),2019,IF(AND(Project_Details[[#This Row],[NomIncur2021]]=0,Project_Details[[#This Row],[NomIncur2020]]<>0),2020,IF(AND(Project_Details[[#This Row],[NomIncur2022]]=0,Project_Details[[#This Row],[NomIncur2021]]<>0),2021,IF(Project_Details[[#This Row],[NomIncur2022]]<>0,2022,"")))))))) ->  | BC31: =IF(OR(Project_Details[[#This Row],[HasDecomms?]],NOT(ISNUMBER(Project_Details[[#This Row],[Capitalisation Year]]))), "NA", OR(Project_Details[[#This Row],[OverWrite_CashFlowAndCapitalisationYearAreOK]],(Project_Details[[#This Row],[LastYearOfNominalCashFlow]]=Project_Details[[#This Row],[Capitalisation Year]]))) -> NA | BD31: =NOT(AND(Project_Details[[#This Row],[DollarBasisImpliesNominal]],OR(ISNUMBER(Project_Details[[#This Row],[Labour Internal]]),ISNUMBER(Project_Details[[#This Row],[Labour External]])))) -> TRUE | BF31: =OR(Project_Details[[#This Row],[DecomQty2016]]>0,Project_Details[[#This Row],[DecomQty2017]]>0,Project_Details[[#This Row],[DecomQty2018]]>0,Project_Details[[#This Row],[DecomQty2019]]>0,Project_Details[[#This Row],[DecomQty2020]]>0,Project_Details[[#This Row],[DecomQty2021]]>0,Project_Details[[#This Row],[DecomQty2022]]>0) -> FALSE | BG31: =IF(LEFT(Project_Details[[#This Row],[RIN Asset Description]],17)="Power Transformer",IF((Project_Details[[#This Row],[ExpenditureAfter2017IsNotUsed]]=TRUE),FALSE,TRUE),"NA") -> NA | BJ31: 0 | BK31: 0 | BL31: 0 | BM31: 0 | BN31: 0 | BO31: =IFERROR(("None"=VLOOKUP(Project_Details[[#This Row],[ProjectID]],ProjectData[],MATCH("RepexDollarsBasis",ProjectData[#Headers],0),FALSE)),FALSE) -> FALSE | BP31: =IF(ISNUMBER(Project_Details[[#This Row],[Capitalisation Year]]),(Project_Details[[#This Row],[Capitalisation Year]]>=2016),"NA") -> NA | BQ31: =(Project_Details[[#This Row],[ID]]=(ROW()-ProjectDetailsTableStartRow)) -> TRUE | BR31: =VLOOKUP(Project_Details[[#This Row],[ProjectID]],ProjectData[],MATCH("Specific Approved Project", ProjectData[#Headers],0),FALSE) -> FALSE | BS31: =VLOOKUP(Project_Details[[#This Row],[ProjectID]],ProjectData[],5,FALSE) -> Replacement
A32: 23 | B32: 4 | C32: =Project_Details[ID] -> 23 | D32: Switchgear_CB_132kV | E32: NOT ASSIGNED | F32: =ISNUMBER(MATCH(Project_Details[[#This Row],[RIN Asset Description]],Lookup_RIN_AssetCategory,0)) -> TRUE | X32: 4547.364204 | Y32: 4188.804137 | Z32: 3924.87245 | AA32: 3711.593541 | AB32: 3521.986359 | AD32: =IF((VLOOKUP(Project_Details[[#This Row],[ProjectID]],ProjectData[],MATCH("Capitalisation",ProjectData[#Headers],0),FALSE)="Project Close"),ISNUMBER(Project_Details[[#This Row],[Capitalisation Year]]),"NA") -> NA | AS32: 0.2918348559 | AT32: 0.3411598504 | AU32: =MAX(ABS(Project_Details[[#This Row],[WIP]:[NomIncur2022]]))>0 -> FALSE | AV32: =MAX(ABS(Project_Details[[#This Row],[RealIncur2016]:[RealIncur2022]]))>0 -> TRUE | AW32: =OR(AND(Project_Details[[#This Row],[DollarBasisImpliesNominal]],NOT(Project_Details[[#This Row],[DollarBasisImpliesReal1516]])), AND(NOT(Project_Details[[#This Row],[DollarBasisImpliesNominal]]),Project_Details[[#This Row],[DollarBasisImpliesReal1516]]),AND(NOT(Project_Details[[#This Row],[DollarBasisImpliesNominal]]),NOT(Project_Details[[#This Row],[DollarBasisImpliesReal1516]]),OR(Project_Details[[#This Row],[HasDecomms?]],Project_Details[[#This Row],[ProjectHasNoDollarBasis]]))) -> TRUE | AX32: =IFERROR(OR(AND(Project_Details[[#This Row],[DollarBasisImpliesNominal]],VLOOKUP(Project_Details[[#This Row],[ProjectID]],ProjectData[],MATCH("RepexDollarsBasis",ProjectData[#Headers],0),FALSE)="Nominal"),AND(Project_Details[[#This Row],[DollarBasisImpliesReal1516]],VLOOKUP(Project_Details[[#This Row],[ProjectID]],ProjectData[],MATCH("RepexDollarsBasis",ProjectData[#Headers],0),FALSE)="Real1516"),Project_Details[[#This Row],[HasDecomms?]],Project_Details[[#This Row],[ProjectHasNoDollarBasis]]),FALSE) -> TRUE | AY32: =IF(Project_Details[[#This Row],[DollarBasisImpliesReal1516]],AND(ISNUMBER(Project_Details[[#This Row],[Labour Internal]]),ISNUMBER(Project_Details[[#This Row],[Labour External]])),"NA") -> TRUE | AZ32: =IF(Project_Details[[#This Row],[DollarBasisImpliesNominal]],NOT(OR(ISNUMBER(Project_Details[[#This Row],[Labour Internal]]),ISNUMBER(Project_Details[[#This Row],[Labour External]]))),"NA") -> NA | BA32: =IF(AND(Project_Details[[#This Row],[NomIncur2017]]=0,Project_Details[[#This Row],[WIP]]<>0),2017,IF(AND(Project_Details[[#This Row],[NomIncur2017]]=0,Project_Details[[#This Row],[NomIncur2016]]<>0),2016,IF(AND(Project_Details[[#This Row],[NomIncur2018]]=0,Project_Details[[#This Row],[NomIncur2017]]<>0),2017,IF(AND(Project_Details[[#This Row],[NomIncur2019]]=0,Project_Details[[#This Row],[NomIncur2018]]<>0),2018,IF(AND(Project_Details[[#This Row],[NomIncur2020]]=0,Project_Details[[#This Row],[NomIncur2019]]<>0),2019,IF(AND(Project_Details[[#This Row],[NomIncur2021]]=0,Project_Details[[#This Row],[NomIncur2020]]<>0),2020,IF(AND(Project_Details[[#This Row],[NomIncur2022]]=0,Project_Details[[#This Row],[NomIncur2021]]<>0),2021,IF(Project_Details[[#This Row],[NomIncur2022]]<>0,2022,"")))))))) ->  | BC32: =IF(OR(Project_Details[[#This Row],[HasDecomms?]],NOT(ISNUMBER(Project_Details[[#This Row],[Capitalisation Year]]))), "NA", OR(Project_Details[[#This Row],[OverWrite_CashFlowAndCapitalisationYearAreOK]],(Project_Details[[#This Row],[LastYearOfNominalCashFlow]]=Project_Details[[#This Row],[Capitalisation Year]]))) -> NA | BD32: =NOT(AND(Project_Details[[#This Row],[DollarBasisImpliesNominal]],OR(ISNUMBER(Project_Details[[#This Row],[Labour Internal]]),ISNUMBER(Project_Details[[#This Row],[Labour External]])))) -> TRUE | BF32: =OR(Project_Details[[#This Row],[DecomQty2016]]>0,Project_Details[[#This Row],[DecomQty2017]]>0,Project_Details[[#This Row],[DecomQty2018]]>0,Project_Details[[#This Row],[DecomQty2019]]>0,Project_Details[[#This Row],[DecomQty2020]]>0,Project_Details[[#This Row],[DecomQty2021]]>0,Project_Details[[#This Row],[DecomQty2022]]>0) -> FALSE | BG32: =IF(LEFT(Project_Details[[#This Row],[RIN Asset Description]],17)="Power Transformer",IF((Project_Details[[#This Row],[ExpenditureAfter2017IsNotUsed]]=TRUE),FALSE,TRUE),"NA") -> NA | BJ32: 5061.885142 | BK32: 4338.758693 | BL32: 4338.758693 | BM32: 3977.195469 | BN32: 3615.632244 | BO32: =IFERROR(("None"=VLOOKUP(Project_Details[[#This Row],[ProjectID]],ProjectData[],MATCH("RepexDollarsBasis",ProjectData[#Headers],0),FALSE)),FALSE) -> FALSE | BP32: =IF(ISNUMBER(Project_Details[[#This Row],[Capitalisation Year]]),(Project_Details[[#This Row],[Capitalisation Year]]>=2016),"NA") -> NA | BQ32: =(Project_Details[[#This Row],[ID]]=(ROW()-ProjectDetailsTableStartRow)) -> TRUE | BR32: =VLOOKUP(Project_Details[[#This Row],[ProjectID]],ProjectData[],MATCH("Specific Approved Project", ProjectData[#Headers],0),FALSE) -> FALSE | BS32: =VLOOKUP(Project_Details[[#This Row],[ProjectID]],ProjectData[],5,FALSE) -> Replacement
A33: 24 | B33: 4 | C33: =Project_Details[ID] -> 24 | D33: Switchgear_CB_275kV | E33: NOT ASSIGNED | F33: =ISNUMBER(MATCH(Project_Details[[#This Row],[RIN Asset Description]],Lookup_RIN_AssetCategory,0)) -> TRUE | X33: 2868.445092 | Y33: 2847.6631 | Z33: 2845.516219 | AA33: 2864.750877 | AB33: 2906.360979 | AD33: =IF((VLOOKUP(Project_Details[[#This Row],[ProjectID]],ProjectData[],MATCH("Capitalisation",ProjectData[#Headers],0),FALSE)="Project Close"),ISNUMBER(Project_Details[[#This Row],[Capitalisation Year]]),"NA") -> NA | AS33: 0.2918348559 | AT33: 0.2450148017 | AU33: =MAX(ABS(Project_Details[[#This Row],[WIP]:[NomIncur2022]]))>0 -> FALSE | AV33: =MAX(ABS(Project_Details[[#This Row],[RealIncur2016]:[RealIncur2022]]))>0 -> TRUE | AW33: =OR(AND(Project_Details[[#This Row],[DollarBasisImpliesNominal]],NOT(Project_Details[[#This Row],[DollarBasisImpliesReal1516]])), AND(NOT(Project_Details[[#This Row],[DollarBasisImpliesNominal]]),Project_Details[[#This Row],[DollarBasisImpliesReal1516]]),AND(NOT(Project_Details[[#This Row],[DollarBasisImpliesNominal]]),NOT(Project_Details[[#This Row],[DollarBasisImpliesReal1516]]),OR(Project_Details[[#This Row],[HasDecomms?]],Project_Details[[#This Row],[ProjectHasNoDollarBasis]]))) -> TRUE | AX33: =IFERROR(OR(AND(Project_Details[[#This Row],[DollarBasisImpliesNominal]],VLOOKUP(Project_Details[[#This Row],[ProjectID]],ProjectData[],MATCH("RepexDollarsBasis",ProjectData[#Headers],0),FALSE)="Nominal"),AND(Project_Details[[#This Row],[DollarBasisImpliesReal1516]],VLOOKUP(Project_Details[[#This Row],[ProjectID]],ProjectData[],MATCH("RepexDollarsBasis",ProjectData[#Headers],0),FALSE)="Real1516"),Project_Details[[#This Row],[HasDecomms?]],Project_Details[[#This Row],[ProjectHasNoDollarBasis]]),FALSE) -> TRUE | AY33: =IF(Project_Details[[#This Row],[DollarBasisImpliesReal1516]],AND(ISNUMBER(Project_Details[[#This Row],[Labour Internal]]),ISNUMBER(Project_Details[[#This Row],[Labour External]])),"NA") -> TRUE | AZ33: =IF(Project_Details[[#This Row],[DollarBasisImpliesNominal]],NOT(OR(ISNUMBER(Project_Details[[#This Row],[Labour Internal]]),ISNUMBER(Project_Details[[#This Row],[Labour External]]))),"NA") -> NA | BA33: =IF(AND(Project_Details[[#This Row],[NomIncur2017]]=0,Project_Details[[#This Row],[WIP]]<>0),2017,IF(AND(Project_Details[[#This Row],[NomIncur2017]]=0,Project_Details[[#This Row],[NomIncur2016]]<>0),2016,IF(AND(Project_Details[[#This Row],[NomIncur2018]]=0,Project_Details[[#This Row],[NomIncur2017]]<>0),2017,IF(AND(Project_Details[[#This Row],[NomIncur2019]]=0,Project_Details[[#This Row],[NomIncur2018]]<>0),2018,IF(AND(Project_Details[[#This Row],[NomIncur2020]]=0,Project_Details[[#This Row],[NomIncur2019]]<>0),2019,IF(AND(Project_Details[[#This Row],[NomIncur2021]]=0,Project_Details[[#This Row],[NomIncur2020]]<>0),2020,IF(AND(Project_Details[[#This Row],[NomIncur2022]]=0,Project_Details[[#This Row],[NomIncur2021]]<>0),2021,IF(Project_Details[[#This Row],[NomIncur2022]]<>0,2022,"")))))))) ->  | BC33: =IF(OR(Project_Details[[#This Row],[HasDecomms?]],NOT(ISNUMBER(Project_Details[[#This Row],[Capitalisation Year]]))), "NA", OR(Project_Details[[#This Row],[OverWrite_CashFlowAndCapitalisationYearAreOK]],(Project_Details[[#This Row],[LastYearOfNominalCashFlow]]=Project_Details[[#This Row],[Capitalisation Year]]))) -> NA | BD33: =NOT(AND(Project_Details[[#This Row],[DollarBasisImpliesNominal]],OR(ISNUMBER(Project_Details[[#This Row],[Labour Internal]]),ISNUMBER(Project_Details[[#This Row],[Labour External]])))) -> TRUE | BF33: =OR(Project_Details[[#This Row],[DecomQty2016]]>0,Project_Details[[#This Row],[DecomQty2017]]>0,Project_Details[[#This Row],[DecomQty2018]]>0,Project_Details[[#This Row],[DecomQty2019]]>0,Project_Details[[#This Row],[DecomQty2020]]>0,Project_Details[[#This Row],[DecomQty2021]]>0,Project_Details[[#This Row],[DecomQty2022]]>0) -> FALSE | BG33: =IF(LEFT(Project_Details[[#This Row],[RIN Asset Description]],17)="Power Transformer",IF((Project_Details[[#This Row],[ExpenditureAfter2017IsNotUsed]]=TRUE),FALSE,TRUE),"NA") -> NA | BJ33: 2951.632823 | BK33: 2951.632823 | BL33: 2951.632823 | BM33: 2951.632823 | BN33: 2951.632823 | BO33: =IFERROR(("None"=VLOOKUP(Project_Details[[#This Row],[ProjectID]],ProjectData[],MATCH("RepexDollarsBasis",ProjectData[#Headers],0),FALSE)),FALSE) -> FALSE | BP33: =IF(ISNUMBER(Project_Details[[#This Row],[Capitalisation Year]]),(Project_Details[[#This Row],[Capitalisation Year]]>=2016),"NA") -> NA | BQ33: =(Project_Details[[#This Row],[ID]]=(ROW()-ProjectDetailsTableStartRow)) -> TRUE | BR33: =VLOOKUP(Project_Details[[#This Row],[ProjectID]],ProjectData[],MATCH("Specific Approved Project", ProjectData[#Headers],0),FALSE) -> FALSE | BS33: =VLOOKUP(Project_Details[[#This Row],[ProjectID]],ProjectData[],5,FALSE) -> Replacement
A34: 25 | B34: 4 | C34: =Project_Details[ID] -> 25 | D34: Switchgear_CB_330kV | E34: NOT ASSIGNED | F34: =ISNUMBER(MATCH(Project_Details[[#This Row],[RIN Asset Description]],Lookup_RIN_AssetCategory,0)) -> TRUE | X34: 0.1800283207 | Y34: 0.334187332 | Z34: 0.6032764129 | AA34: 1.059124859 | AB34: 1.808481432 | AD34: =IF((VLOOKUP(Project_Details[[#This Row],[ProjectID]],ProjectData[],MATCH("Capitalisation",ProjectData[#Headers],0),FALSE)="Project Close"),ISNUMBER(Project_Details[[#This Row],[Capitalisation Year]]),"NA") -> NA | AS34: 0.2918348559 | AT34: 0.2372611687 | AU34: =MAX(ABS(Project_Details[[#This Row],[WIP]:[NomIncur2022]]))>0 -> FALSE | AV34: =MAX(ABS(Project_Details[[#This Row],[RealIncur2016]:[RealIncur2022]]))>0 -> TRUE | AW34: =OR(AND(Project_Details[[#This Row],[DollarBasisImpliesNominal]],NOT(Project_Details[[#This Row],[DollarBasisImpliesReal1516]])), AND(NOT(Project_Details[[#This Row],[DollarBasisImpliesNominal]]),Project_Details[[#This Row],[DollarBasisImpliesReal1516]]),AND(NOT(Project_Details[[#This Row],[DollarBasisImpliesNominal]]),NOT(Project_Details[[#This Row],[DollarBasisImpliesReal1516]]),OR(Project_Details[[#This Row],[HasDecomms?]],Project_Details[[#This Row],[ProjectHasNoDollarBasis]]))) -> TRUE | AX34: =IFERROR(OR(AND(Project_Details[[#This Row],[DollarBasisImpliesNominal]],VLOOKUP(Project_Details[[#This Row],[ProjectID]],ProjectData[],MATCH("RepexDollarsBasis",ProjectData[#Headers],0),FALSE)="Nominal"),AND(Project_Details[[#This Row],[DollarBasisImpliesReal1516]],VLOOKUP(Project_Details[[#This Row],[ProjectID]],ProjectData[],MATCH("RepexDollarsBasis",ProjectData[#Headers],0),FALSE)="Real1516"),Project_Details[[#This Row],[HasDecomms?]],Project_Details[[#This Row],[ProjectHasNoDollarBasis]]),FALSE) -> TRUE | AY34: =IF(Project_Details[[#This Row],[DollarBasisImpliesReal1516]],AND(ISNUMBER(Project_Details[[#This Row],[Labour Internal]]),ISNUMBER(Project_Details[[#This Row],[Labour External]])),"NA") -> TRUE | AZ34: =IF(Project_Details[[#This Row],[DollarBasisImpliesNominal]],NOT(OR(ISNUMBER(Project_Details[[#This Row],[Labour Internal]]),ISNUMBER(Project_Details[[#This Row],[Labour External]]))),"NA") -> NA | BA34: =IF(AND(Project_Details[[#This Row],[NomIncur2017]]=0,Project_Details[[#This Row],[WIP]]<>0),2017,IF(AND(Project_Details[[#This Row],[NomIncur2017]]=0,Project_Details[[#This Row],[NomIncur2016]]<>0),2016,IF(AND(Project_Details[[#This Row],[NomIncur2018]]=0,Project_Details[[#This Row],[NomIncur2017]]<>0),2017,IF(AND(Project_Details[[#This Row],[NomIncur2019]]=0,Project_Details[[#This Row],[NomIncur2018]]<>0),2018,IF(AND(Project_Details[[#This Row],[NomIncur2020]]=0,Project_Details[[#This Row],[NomIncur2019]]<>0),2019,IF(AND(Project_Details[[#This Row],[NomIncur2021]]=0,Project_Details[[#This Row],[NomIncur2020]]<>0),2020,IF(AND(Project_Details[[#This Row],[NomIncur2022]]=0,Project_Details[[#This Row],[NomIncur2021]]<>0),2021,IF(Project_Details[[#This Row],[NomIncur2022]]<>0,2022,"")))))))) ->  | BC34: =IF(OR(Project_Details[[#This Row],[HasDecomms?]],NOT(ISNUMBER(Project_Details[[#This Row],[Capitalisation Year]]))), "NA", OR(Project_Details[[#This Row],[OverWrite_CashFlowAndCapitalisationYearAreOK]],(Project_Details[[#This Row],[LastYearOfNominalCashFlow]]=Project_Details[[#This Row],[Capitalisation Year]]))) -> NA | BD34: =NOT(AND(Project_Details[[#This Row],[DollarBasisImpliesNominal]],OR(ISNUMBER(Project_Details[[#This Row],[Labour Internal]]),ISNUMBER(Project_Details[[#This Row],[Labour External]])))) -> TRUE | BF34: =OR(Project_Details[[#This Row],[DecomQty2016]]>0,Project_Details[[#This Row],[DecomQty2017]]>0,Project_Details[[#This Row],[DecomQty2018]]>0,Project_Details[[#This Row],[DecomQty2019]]>0,Project_Details[[#This Row],[DecomQty2020]]>0,Project_Details[[#This Row],[DecomQty2021]]>0,Project_Details[[#This Row],[DecomQty2022]]>0) -> FALSE | BG34: =IF(LEFT(Project_Details[[#This Row],[RIN Asset Description]],17)="Power Transformer",IF((Project_Details[[#This Row],[ExpenditureAfter2017IsNotUsed]]=TRUE),FALSE,TRUE),"NA") -> NA | BJ34: 0 | BK34: 0 | BL34: 0 | BM34: 0 | BN34: 0 | BO34: =IFERROR(("None"=VLOOKUP(Project_Details[[#This Row],[ProjectID]],ProjectData[],MATCH("RepexDollarsBasis",ProjectData[#Headers],0),FALSE)),FALSE) -> FALSE | BP34: =IF(ISNUMBER(Project_Details[[#This Row],[Capitalisation Year]]),(Project_Details[[#This Row],[Capitalisation Year]]>=2016),"NA") -> NA | BQ34: =(Project_Details[[#This Row],[ID]]=(ROW()-ProjectDetailsTableStartRow)) -> TRUE | BR34: =VLOOKUP(Project_Details[[#This Row],[ProjectID]],ProjectData[],MATCH("Specific Approved Project", ProjectData[#Headers],0),FALSE) -> FALSE | BS34: =VLOOKUP(Project_Details[[#This Row],[ProjectID]],ProjectData[],5,FALSE) -> Replacement
A35: 26 | B35: 5 | C35: =Project_Details[ID] -> 26 | D35: Switchgear_IsolES_33kV | E35: NOT ASSIGNED | F35: =ISNUMBER(MATCH(Project_Details[[#This Row],[RIN Asset Description]],Lookup_RIN_AssetCategory,0)) -> TRUE | X35: 32.19547934 | Y35: 28.75174961 | Z35: 26.00451753 | AA35: 23.83483277 | AB35: 22.14543532 | AD35: =IF((VLOOKUP(Project_Details[[#This Row],[ProjectID]],ProjectData[],MATCH("Capitalisation",ProjectData[#Headers],0),FALSE)="Project Close"),ISNUMBER(Project_Details[[#This Row],[Capitalisation Year]]),"NA") -> NA | AS35: 0.2918348559 | AT35: 0.4311019928 | AU35: =MAX(ABS(Project_Details[[#This Row],[WIP]:[NomIncur2022]]))>0 -> FALSE | AV35: =MAX(ABS(Project_Details[[#This Row],[RealIncur2016]:[RealIncur2022]]))>0 -> TRUE | AW35: =OR(AND(Project_Details[[#This Row],[DollarBasisImpliesNominal]],NOT(Project_Details[[#This Row],[DollarBasisImpliesReal1516]])), AND(NOT(Project_Details[[#This Row],[DollarBasisImpliesNominal]]),Project_Details[[#This Row],[DollarBasisImpliesReal1516]]),AND(NOT(Project_Details[[#This Row],[DollarBasisImpliesNominal]]),NOT(Project_Details[[#This Row],[DollarBasisImpliesReal1516]]),OR(Project_Details[[#This Row],[HasDecomms?]],Project_Details[[#This Row],[ProjectHasNoDollarBasis]]))) -> TRUE | AX35: =IFERROR(OR(AND(Project_Details[[#This Row],[DollarBasisImpliesNominal]],VLOOKUP(Project_Details[[#This Row],[ProjectID]],ProjectData[],MATCH("RepexDollarsBasis",ProjectData[#Headers],0),FALSE)="Nominal"),AND(Project_Details[[#This Row],[DollarBasisImpliesReal1516]],VLOOKUP(Project_Details[[#This Row],[ProjectID]],ProjectData[],MATCH("RepexDollarsBasis",ProjectData[#Headers],0),FALSE)="Real1516"),Project_Details[[#This Row],[HasDecomms?]],Project_Details[[#This Row],[ProjectHasNoDollarBasis]]),FALSE) -> TRUE | AY35: =IF(Project_Details[[#This Row],[DollarBasisImpliesReal1516]],AND(ISNUMBER(Project_Details[[#This Row],[Labour Internal]]),ISNUMBER(Project_Details[[#This Row],[Labour External]])),"NA") -> TRUE | AZ35: =IF(Project_Details[[#This Row],[DollarBasisImpliesNominal]],NOT(OR(ISNUMBER(Project_Details[[#This Row],[Labour Internal]]),ISNUMBER(Project_Details[[#This Row],[Labour External]]))),"NA") -> NA | BA35: =IF(AND(Project_Details[[#This Row],[NomIncur2017]]=0,Project_Details[[#This Row],[WIP]]<>0),2017,IF(AND(Project_Details[[#This Row],[NomIncur2017]]=0,Project_Details[[#This Row],[NomIncur2016]]<>0),2016,IF(AND(Project_Details[[#This Row],[NomIncur2018]]=0,Project_Details[[#This Row],[NomIncur2017]]<>0),2017,IF(AND(Project_Details[[#This Row],[NomIncur2019]]=0,Project_Details[[#This Row],[NomIncur2018]]<>0),2018,IF(AND(Project_Details[[#This Row],[NomIncur2020]]=0,Project_Details[[#This Row],[NomIncur2019]]<>0),2019,IF(AND(Project_Details[[#This Row],[NomIncur2021]]=0,Project_Details[[#This Row],[NomIncur2020]]<>0),2020,IF(AND(Project_Details[[#This Row],[NomIncur2022]]=0,Project_Details[[#This Row],[NomIncur2021]]<>0),2021,IF(Project_Details[[#This Row],[NomIncur2022]]<>0,2022,"")))))))) ->  | BC35: =IF(OR(Project_Details[[#This Row],[HasDecomms?]],NOT(ISNUMBER(Project_Details[[#This Row],[Capitalisation Year]]))), "NA", OR(Project_Details[[#This Row],[OverWrite_CashFlowAndCapitalisationYearAreOK]],(Project_Details[[#This Row],[LastYearOfNominalCashFlow]]=Project_Details[[#This Row],[Capitalisation Year]]))) -> NA | BD35: =NOT(AND(Project_Details[[#This Row],[DollarBasisImpliesNominal]],OR(ISNUMBER(Project_Details[[#This Row],[Labour Internal]]),ISNUMBER(Project_Details[[#This Row],[Labour External]])))) -> TRUE | BF35: =OR(Project_Details[[#This Row],[DecomQty2016]]>0,Project_Details[[#This Row],[DecomQty2017]]>0,Project_Details[[#This Row],[DecomQty2018]]>0,Project_Details[[#This Row],[DecomQty2019]]>0,Project_Details[[#This Row],[DecomQty2020]]>0,Project_Details[[#This Row],[DecomQty2021]]>0,Project_Details[[#This Row],[DecomQty2022]]>0) -> FALSE | BG35: =IF(LEFT(Project_Details[[#This Row],[RIN Asset Description]],17)="Power Transformer",IF((Project_Details[[#This Row],[ExpenditureAfter2017IsNotUsed]]=TRUE),FALSE,TRUE),"NA") -> NA | BJ35: 29.55267803 | BK35: 29.55267803 | BL35: 29.55267803 | BM35: 29.55267803 | BN35: 29.55267803 | BO35: =IFERROR(("None"=VLOOKUP(Project_Details[[#This Row],[ProjectID]],ProjectData[],MATCH("RepexDollarsBasis",ProjectData[#Headers],0),FALSE)),FALSE) -> FALSE | BP35: =IF(ISNUMBER(Project_Details[[#This Row],[Capitalisation Year]]),(Project_Details[[#This Row],[Capitalisation Year]]>=2016),"NA") -> NA | BQ35: =(Project_Details[[#This Row],[ID]]=(ROW()-ProjectDetailsTableStartRow)) -> TRUE | BR35: =VLOOKUP(Project_Details[[#This Row],[ProjectID]],ProjectData[],MATCH("Specific Approved Project", ProjectData[#Headers],0),FALSE) -> FALSE | BS35: =VLOOKUP(Project_Details[[#This Row],[ProjectID]],ProjectData[],5,FALSE) -> Replacement
A36: 27 | B36: 5 | C36: =Project_Details[ID] -> 27 | D36: Switchgear_IsolES_66kV | E36: NOT ASSIGNED | F36: =ISNUMBER(MATCH(Project_Details[[#This Row],[RIN Asset Description]],Lookup_RIN_AssetCategory,0)) -> TRUE | X36: 20.81198896 | Y36: 21.68639778 | Z36: 22.09264105 | AA36: 22.0140479 | AB36: 21.47137973 | AD36: =IF((VLOOKUP(Project_Details[[#This Row],[ProjectID]],ProjectData[],MATCH("Capitalisation",ProjectData[#Headers],0),FALSE)="Project Close"),ISNUMBER(Project_Details[[#This Row],[Capitalisation Year]]),"NA") -> NA | AS36: 0.2918348559 | AT36: 0.4021550964 | AU36: =MAX(ABS(Project_Details[[#This Row],[WIP]:[NomIncur2022]]))>0 -> FALSE | AV36: =MAX(ABS(Project_Details[[#This Row],[RealIncur2016]:[RealIncur2022]]))>0 -> TRUE | AW36: =OR(AND(Project_Details[[#This Row],[DollarBasisImpliesNominal]],NOT(Project_Details[[#This Row],[DollarBasisImpliesReal1516]])), AND(NOT(Project_Details[[#This Row],[DollarBasisImpliesNominal]]),Project_Details[[#This Row],[DollarBasisImpliesReal1516]]),AND(NOT(Project_Details[[#This Row],[DollarBasisImpliesNominal]]),NOT(Project_Details[[#This Row],[DollarBasisImpliesReal1516]]),OR(Project_Details[[#This Row],[HasDecomms?]],Project_Details[[#This Row],[ProjectHasNoDollarBasis]]))) -> TRUE | AX36: =IFERROR(OR(AND(Project_Details[[#This Row],[DollarBasisImpliesNominal]],VLOOKUP(Project_Details[[#This Row],[ProjectID]],ProjectData[],MATCH("RepexDollarsBasis",ProjectData[#Headers],0),FALSE)="Nominal"),AND(Project_Details[[#This Row],[DollarBasisImpliesReal1516]],VLOOKUP(Project_Details[[#This Row],[ProjectID]],ProjectData[],MATCH("RepexDollarsBasis",ProjectData[#Headers],0),FALSE)="Real1516"),Project_Details[[#This Row],[HasDecomms?]],Project_Details[[#This Row],[ProjectHasNoDollarBasis]]),FALSE) -> TRUE | AY36: =IF(Project_Details[[#This Row],[DollarBasisImpliesReal1516]],AND(ISNUMBER(Project_Details[[#This Row],[Labour Internal]]),ISNUMBER(Project_Details[[#This Row],[Labour External]])),"NA") -> TRUE | AZ36: =IF(Project_Details[[#This Row],[DollarBasisImpliesNominal]],NOT(OR(ISNUMBER(Project_Details[[#This Row],[Labour Internal]]),ISNUMBER(Project_Details[[#This Row],[Labour External]]))),"NA") -> NA | BA36: =IF(AND(Project_Details[[#This Row],[NomIncur2017]]=0,Project_Details[[#This Row],[WIP]]<>0),2017,IF(AND(Project_Details[[#This Row],[NomIncur2017]]=0,Project_Details[[#This Row],[NomIncur2016]]<>0),2016,IF(AND(Project_Details[[#This Row],[NomIncur2018]]=0,Project_Details[[#This Row],[NomIncur2017]]<>0),2017,IF(AND(Project_Details[[#This Row],[NomIncur2019]]=0,Project_Details[[#This Row],[NomIncur2018]]<>0),2018,IF(AND(Project_Details[[#This Row],[NomIncur2020]]=0,Project_Details[[#This Row],[NomIncur2019]]<>0),2019,IF(AND(Project_Details[[#This Row],[NomIncur2021]]=0,Project_Details[[#This Row],[NomIncur2020]]<>0),2020,IF(AND(Project_Details[[#This Row],[NomIncur2022]]=0,Project_Details[[#This Row],[NomIncur2021]]<>0),2021,IF(Project_Details[[#This Row],[NomIncur2022]]<>0,2022,"")))))))) ->  | BC36: =IF(OR(Project_Details[[#This Row],[HasDecomms?]],NOT(ISNUMBER(Project_Details[[#This Row],[Capitalisation Year]]))), "NA", OR(Project_Details[[#This Row],[OverWrite_CashFlowAndCapitalisationYearAreOK]],(Project_Details[[#This Row],[LastYearOfNominalCashFlow]]=Project_Details[[#This Row],[Capitalisation Year]]))) -> NA | BD36: =NOT(AND(Project_Details[[#This Row],[DollarBasisImpliesNominal]],OR(ISNUMBER(Project_Details[[#This Row],[Labour Internal]]),ISNUMBER(Project_Details[[#This Row],[Labour External]])))) -> TRUE | BF36: =OR(Project_Details[[#This Row],[DecomQty2016]]>0,Project_Details[[#This Row],[DecomQty2017]]>0,Project_Details[[#This Row],[DecomQty2018]]>0,Project_Details[[#This Row],[DecomQty2019]]>0,Project_Details[[#This Row],[DecomQty2020]]>0,Project_Details[[#This Row],[DecomQty2021]]>0,Project_Details[[#This Row],[DecomQty2022]]>0) -> FALSE | BG36: =IF(LEFT(Project_Details[[#This Row],[RIN Asset Description]],17)="Power Transformer",IF((Project_Details[[#This Row],[ExpenditureAfter2017IsNotUsed]]=TRUE),FALSE,TRUE),"NA") -> NA | BJ36: 34.47812436 | BK36: 0 | BL36: 34.47812436 | BM36: 0 | BN36: 34.47812436 | BO36: =IFERROR(("None"=VLOOKUP(Project_Details[[#This Row],[ProjectID]],ProjectData[],MATCH("RepexDollarsBasis",ProjectData[#Headers],0),FALSE)),FALSE) -> FALSE | BP36: =IF(ISNUMBER(Project_Details[[#This Row],[Capitalisation Year]]),(Project_Details[[#This Row],[Capitalisation Year]]>=2016),"NA") -> NA | BQ36: =(Project_Details[[#This Row],[ID]]=(ROW()-ProjectDetailsTableStartRow)) -> TRUE | BR36: =VLOOKUP(Project_Details[[#This Row],[ProjectID]],ProjectData[],MATCH("Specific Approved Project", ProjectData[#Headers],0),FALSE) -> FALSE | BS36: =VLOOKUP(Project_Details[[#This Row],[ProjectID]],ProjectData[],5,FALSE) -> Replacement
A37: 28 | B37: 5 | C37: =Project_Details[ID] -> 28 | D37: Switchgear_IsolES_132kV | E37: NOT ASSIGNED | F37: =ISNUMBER(MATCH(Project_Details[[#This Row],[RIN Asset Description]],Lookup_RIN_AssetCategory,0)) -> TRUE | X37: 2134.878959 | Y37: 1995.744266 | Z37: 1884.34977 | AA37: 1794.014011 | AB37: 1718.266828 | AD37: =IF((VLOOKUP(Project_Details[[#This Row],[ProjectID]],ProjectData[],MATCH("Capitalisation",ProjectData[#Headers],0),FALSE)="Project Close"),ISNUMBER(Project_Details[[#This Row],[Capitalisation Year]]),"NA") -> NA | AS37: 0.2918348559 | AT37: 0.4507445297 | AU37: =MAX(ABS(Project_Details[[#This Row],[WIP]:[NomIncur2022]]))>0 -> FALSE | AV37: =MAX(ABS(Project_Details[[#This Row],[RealIncur2016]:[RealIncur2022]]))>0 -> TRUE | AW37: =OR(AND(Project_Details[[#This Row],[DollarBasisImpliesNominal]],NOT(Project_Details[[#This Row],[DollarBasisImpliesReal1516]])), AND(NOT(Project_Details[[#This Row],[DollarBasisImpliesNominal]]),Project_Details[[#This Row],[DollarBasisImpliesReal1516]]),AND(NOT(Project_Details[[#This Row],[DollarBasisImpliesNominal]]),NOT(Project_Details[[#This Row],[DollarBasisImpliesReal1516]]),OR(Project_Details[[#This Row],[HasDecomms?]],Project_Details[[#This Row],[ProjectHasNoDollarBasis]]))) -> TRUE | AX37: =IFERROR(OR(AND(Project_Details[[#This Row],[DollarBasisImpliesNominal]],VLOOKUP(Project_Details[[#This Row],[ProjectID]],ProjectData[],MATCH("RepexDollarsBasis",ProjectData[#Headers],0),FALSE)="Nominal"),AND(Project_Details[[#This Row],[DollarBasisImpliesReal1516]],VLOOKUP(Project_Details[[#This Row],[ProjectID]],ProjectData[],MATCH("RepexDollarsBasis",ProjectData[#Headers],0),FALSE)="Real1516"),Project_Details[[#This Row],[HasDecomms?]],Project_Details[[#This Row],[ProjectHasNoDollarBasis]]),FALSE) -> TRUE | AY37: =IF(Project_Details[[#This Row],[DollarBasisImpliesReal1516]],AND(ISNUMBER(Project_Details[[#This Row],[Labour Internal]]),ISNUMBER(Project_Details[[#This Row],[Labour External]])),"NA") -> TRUE | AZ37: =IF(Project_Details[[#This Row],[DollarBasisImpliesNominal]],NOT(OR(ISNUMBER(Project_Details[[#This Row],[Labour Internal]]),ISNUMBER(Project_Details[[#This Row],[Labour External]]))),"NA") -> NA | BA37: =IF(AND(Project_Details[[#This Row],[NomIncur2017]]=0,Project_Details[[#This Row],[WIP]]<>0),2017,IF(AND(Project_Details[[#This Row],[NomIncur2017]]=0,Project_Details[[#This Row],[NomIncur2016]]<>0),2016,IF(AND(Project_Details[[#This Row],[NomIncur2018]]=0,Project_Details[[#This Row],[NomIncur2017]]<>0),2017,IF(AND(Project_Details[[#This Row],[NomIncur2019]]=0,Project_Details[[#This Row],[NomIncur2018]]<>0),2018,IF(AND(Project_Details[[#This Row],[NomIncur2020]]=0,Project_Details[[#This Row],[NomIncur2019]]<>0),2019,IF(AND(Project_Details[[#This Row],[NomIncur2021]]=0,Project_Details[[#This Row],[NomIncur2020]]<>0),2020,IF(AND(Project_Details[[#This Row],[NomIncur2022]]=0,Project_Details[[#This Row],[NomIncur2021]]<>0),2021,IF(Project_Details[[#This Row],[NomIncur2022]]<>0,2022,"")))))))) ->  | BC37: =IF(OR(Project_Details[[#This Row],[HasDecomms?]],NOT(ISNUMBER(Project_Details[[#This Row],[Capitalisation Year]]))), "NA", OR(Project_Details[[#This Row],[OverWrite_CashFlowAndCapitalisationYearAreOK]],(Project_Details[[#This Row],[LastYearOfNominalCashFlow]]=Project_Details[[#This Row],[Capitalisation Year]]))) -> NA | BD37: =NOT(AND(Project_Details[[#This Row],[DollarBasisImpliesNominal]],OR(ISNUMBER(Project_Details[[#This Row],[Labour Internal]]),ISNUMBER(Project_Details[[#This Row],[Labour External]])))) -> TRUE | BF37: =OR(Project_Details[[#This Row],[DecomQty2016]]>0,Project_Details[[#This Row],[DecomQty2017]]>0,Project_Details[[#This Row],[DecomQty2018]]>0,Project_Details[[#This Row],[DecomQty2019]]>0,Project_Details[[#This Row],[DecomQty2020]]>0,Project_Details[[#This Row],[DecomQty2021]]>0,Project_Details[[#This Row],[DecomQty2022]]>0) -> FALSE | BG37: =IF(LEFT(Project_Details[[#This Row],[RIN Asset Description]],17)="Power Transformer",IF((Project_Details[[#This Row],[ExpenditureAfter2017IsNotUsed]]=TRUE),FALSE,TRUE),"NA") -> NA | BJ37: 2285.587195 | BK37: 2126.127623 | BL37: 2019.821242 | BM37: 1860.36167 | BN37: 1807.20848 | BO37: =IFERROR(("None"=VLOOKUP(Project_Details[[#This Row],[ProjectID]],ProjectData[],MATCH("RepexDollarsBasis",ProjectData[#Headers],0),FALSE)),FALSE) -> FALSE | BP37: =IF(ISNUMBER(Project_Details[[#This Row],[Capitalisation Year]]),(Project_Details[[#This Row],[Capitalisation Year]]>=2016),"NA") -> NA | BQ37: =(Project_Details[[#This Row],[ID]]=(ROW()-ProjectDetailsTableStartRow)) -> TRUE | BR37: =VLOOKUP(Project_Details[[#This Row],[ProjectID]],ProjectData[],MATCH("Specific Approved Project", ProjectData[#Headers],0),FALSE) -> FALSE | BS37: =VLOOKUP(Project_Details[[#This Row],[ProjectID]],ProjectData[],5,FALSE) -> Replacement
A38: 29 | B38: 5 | C38: =Project_Details[ID] -> 29 | D38: Switchgear_IsolES_275kV | E38: NOT ASSIGNED | F38: =ISNUMBER(MATCH(Project_Details[[#This Row],[RIN Asset Description]],Lookup_RIN_AssetCategory,0)) -> TRUE | X38: 3991.905354 | Y38: 3977.277826 | Z38: 3935.476309 | AA38: 3873.392298 | AB38: 3798.402099 | AD38: =IF((VLOOKUP(Project_Details[[#This Row],[ProjectID]],ProjectData[],MATCH("Capitalisation",ProjectData[#Headers],0),FALSE)="Project Close"),ISNUMBER(Project_Details[[#This Row],[Capitalisation Year]]),"NA") -> NA | AS38: 0.2918348559 | AT38: 0.3230680402 | AU38: =MAX(ABS(Project_Details[[#This Row],[WIP]:[NomIncur2022]]))>0 -> FALSE | AV38: =MAX(ABS(Project_Details[[#This Row],[RealIncur2016]:[RealIncur2022]]))>0 -> TRUE | AW38: =OR(AND(Project_Details[[#This Row],[DollarBasisImpliesNominal]],NOT(Project_Details[[#This Row],[DollarBasisImpliesReal1516]])), AND(NOT(Project_Details[[#This Row],[DollarBasisImpliesNominal]]),Project_Details[[#This Row],[DollarBasisImpliesReal1516]]),AND(NOT(Project_Details[[#This Row],[DollarBasisImpliesNominal]]),NOT(Project_Details[[#This Row],[DollarBasisImpliesReal1516]]),OR(Project_Details[[#This Row],[HasDecomms?]],Project_Details[[#This Row],[ProjectHasNoDollarBasis]]))) -> TRUE | AX38: =IFERROR(OR(AND(Project_Details[[#This Row],[DollarBasisImpliesNominal]],VLOOKUP(Project_Details[[#This Row],[ProjectID]],ProjectData[],MATCH("RepexDollarsBasis",ProjectData[#Headers],0),FALSE)="Nominal"),AND(Project_Details[[#This Row],[DollarBasisImpliesReal1516]],VLOOKUP(Project_Details[[#This Row],[ProjectID]],ProjectData[],MATCH("RepexDollarsBasis",ProjectData[#Headers],0),FALSE)="Real1516"),Project_Details[[#This Row],[HasDecomms?]],Project_Details[[#This Row],[ProjectHasNoDollarBasis]]),FALSE) -> TRUE | AY38: =IF(Project_Details[[#This Row],[DollarBasisImpliesReal1516]],AND(ISNUMBER(Project_Details[[#This Row],[Labour Internal]]),ISNUMBER(Project_Details[[#This Row],[Labour External]])),"NA") -> TRUE | AZ38: =IF(Project_Details[[#This Row],[DollarBasisImpliesNominal]],NOT(OR(ISNUMBER(Project_Details[[#This Row],[Labour Internal]]),ISNUMBER(Project_Details[[#This Row],[Labour External]]))),"NA") -> NA | BA38: =IF(AND(Project_Details[[#This Row],[NomIncur2017]]=0,Project_Details[[#This Row],[WIP]]<>0),2017,IF(AND(Project_Details[[#This Row],[NomIncur2017]]=0,Project_Details[[#This Row],[NomIncur2016]]<>0),2016,IF(AND(Project_Details[[#This Row],[NomIncur2018]]=0,Project_Details[[#This Row],[NomIncur2017]]<>0),2017,IF(AND(Project_Details[[#This Row],[NomIncur2019]]=0,Project_Details[[#This Row],[NomIncur2018]]<>0),2018,IF(AND(Project_Details[[#This Row],[NomIncur2020]]=0,Project_Details[[#This Row],[NomIncur2019]]<>0),2019,IF(AND(Project_Details[[#This Row],[NomIncur2021]]=0,Project_Details[[#This Row],[NomIncur2020]]<>0),2020,IF(AND(Project_Details[[#This Row],[NomIncur2022]]=0,Project_Details[[#This Row],[NomIncur2021]]<>0),2021,IF(Project_Details[[#This Row],[NomIncur2022]]<>0,2022,"")))))))) ->  | BC38: =IF(OR(Project_Details[[#This Row],[HasDecomms?]],NOT(ISNUMBER(Project_Details[[#This Row],[Capitalisation Year]]))), "NA", OR(Project_Details[[#This Row],[OverWrite_CashFlowAndCapitalisationYearAreOK]],(Project_Details[[#This Row],[LastYearOfNominalCashFlow]]=Project_Details[[#This Row],[Capitalisation Year]]))) -> NA | BD38: =NOT(AND(Project_Details[[#This Row],[DollarBasisImpliesNominal]],OR(ISNUMBER(Project_Details[[#This Row],[Labour Internal]]),ISNUMBER(Project_Details[[#This Row],[Labour External]])))) -> TRUE | BF38: =OR(Project_Details[[#This Row],[DecomQty2016]]>0,Project_Details[[#This Row],[DecomQty2017]]>0,Project_Details[[#This Row],[DecomQty2018]]>0,Project_Details[[#This Row],[DecomQty2019]]>0,Project_Details[[#This Row],[DecomQty2020]]>0,Project_Details[[#This Row],[DecomQty2021]]>0,Project_Details[[#This Row],[DecomQty2022]]>0) -> FALSE | BG38: =IF(LEFT(Project_Details[[#This Row],[RIN Asset Description]],17)="Power Transformer",IF((Project_Details[[#This Row],[ExpenditureAfter2017IsNotUsed]]=TRUE),FALSE,TRUE),"NA") -> NA | BJ38: 3991.520873 | BK38: 3991.520873 | BL38: 3991.520873 | BM38: 3880.645293 | BN38: 3880.645293 | BO38: =IFERROR(("None"=VLOOKUP(Project_Details[[#This Row],[ProjectID]],ProjectData[],MATCH("RepexDollarsBasis",ProjectData[#Headers],0),FALSE)),FALSE) -> FALSE | BP38: =IF(ISNUMBER(Project_Details[[#This Row],[Capitalisation Year]]),(Project_Details[[#This Row],[Capitalisation Year]]>=2016),"NA") -> NA | BQ38: =(Project_Details[[#This Row],[ID]]=(ROW()-ProjectDetailsTableStartRow)) -> TRUE | BR38: =VLOOKUP(Project_Details[[#This Row],[ProjectID]],ProjectData[],MATCH("Specific Approved Project", ProjectData[#Headers],0),FALSE) -> FALSE | BS38: =VLOOKUP(Project_Details[[#This Row],[ProjectID]],ProjectData[],5,FALSE) -> Replacement
A39: 30 | B39: 5 | C39: =Project_Details[ID] -> 30 | D39: Switchgear_IsolES_330kV | E39: NOT ASSIGNED | F39: =ISNUMBER(MATCH(Project_Details[[#This Row],[RIN Asset Description]],Lookup_RIN_AssetCategory,0)) -> TRUE | X39: 0.02299722006 | Y39: 0.04488690768 | Z39: 0.08550392833 | AA39: 0.1589585965 | AB39: 0.2884192014 | AD39: =IF((VLOOKUP(Project_Details[[#This Row],[ProjectID]],ProjectData[],MATCH("Capitalisation",ProjectData[#Headers],0),FALSE)="Project Close"),ISNUMBER(Project_Details[[#This Row],[Capitalisation Year]]),"NA") -> NA | AS39: 0.2918348559 | AT39: 0.2817153311 | AU39: =MAX(ABS(Project_Details[[#This Row],[WIP]:[NomIncur2022]]))>0 -> FALSE | AV39: =MAX(ABS(Project_Details[[#This Row],[RealIncur2016]:[RealIncur2022]]))>0 -> TRUE | AW39: =OR(AND(Project_Details[[#This Row],[DollarBasisImpliesNominal]],NOT(Project_Details[[#This Row],[DollarBasisImpliesReal1516]])), AND(NOT(Project_Details[[#This Row],[DollarBasisImpliesNominal]]),Project_Details[[#This Row],[DollarBasisImpliesReal1516]]),AND(NOT(Project_Details[[#This Row],[DollarBasisImpliesNominal]]),NOT(Project_Details[[#This Row],[DollarBasisImpliesReal1516]]),OR(Project_Details[[#This Row],[HasDecomms?]],Project_Details[[#This Row],[ProjectHasNoDollarBasis]]))) -> TRUE | AX39: =IFERROR(OR(AND(Project_Details[[#This Row],[DollarBasisImpliesNominal]],VLOOKUP(Project_Details[[#This Row],[ProjectID]],ProjectData[],MATCH("RepexDollarsBasis",ProjectData[#Headers],0),FALSE)="Nominal"),AND(Project_Details[[#This Row],[DollarBasisImpliesReal1516]],VLOOKUP(Project_Details[[#This Row],[ProjectID]],ProjectData[],MATCH("RepexDollarsBasis",ProjectData[#Headers],0),FALSE)="Real1516"),Project_Details[[#This Row],[HasDecomms?]],Project_Details[[#This Row],[ProjectHasNoDollarBasis]]),FALSE) -> TRUE | AY39: =IF(Project_Details[[#This Row],[DollarBasisImpliesReal1516]],AND(ISNUMBER(Project_Details[[#This Row],[Labour Internal]]),ISNUMBER(Project_Details[[#This Row],[Labour External]])),"NA") -> TRUE | AZ39: =IF(Project_Details[[#This Row],[DollarBasisImpliesNominal]],NOT(OR(ISNUMBER(Project_Details[[#This Row],[Labour Internal]]),ISNUMBER(Project_Details[[#This Row],[Labour External]]))),"NA") -> NA | BA39: =IF(AND(Project_Details[[#This Row],[NomIncur2017]]=0,Project_Details[[#This Row],[WIP]]<>0),2017,IF(AND(Project_Details[[#This Row],[NomIncur2017]]=0,Project_Details[[#This Row],[NomIncur2016]]<>0),2016,IF(AND(Project_Details[[#This Row],[NomIncur2018]]=0,Project_Details[[#This Row],[NomIncur2017]]<>0),2017,IF(AND(Project_Details[[#This Row],[NomIncur2019]]=0,Project_Details[[#This Row],[NomIncur2018]]<>0),2018,IF(AND(Project_Details[[#This Row],[NomIncur2020]]=0,Project_Details[[#This Row],[NomIncur2019]]<>0),2019,IF(AND(Project_Details[[#This Row],[NomIncur2021]]=0,Project_Details[[#This Row],[NomIncur2020]]<>0),2020,IF(AND(Project_Details[[#This Row],[NomIncur2022]]=0,Project_Details[[#This Row],[NomIncur2021]]<>0),2021,IF(Project_Details[[#This Row],[NomIncur2022]]<>0,2022,"")))))))) ->  | BC39: =IF(OR(Project_Details[[#This Row],[HasDecomms?]],NOT(ISNUMBER(Project_Details[[#This Row],[Capitalisation Year]]))), "NA", OR(Project_Details[[#This Row],[OverWrite_CashFlowAndCapitalisationYearAreOK]],(Project_Details[[#This Row],[LastYearOfNominalCashFlow]]=Project_Details[[#This Row],[Capitalisation Year]]))) -> NA | BD39: =NOT(AND(Project_Details[[#This Row],[DollarBasisImpliesNominal]],OR(ISNUMBER(Project_Details[[#This Row],[Labour Internal]]),ISNUMBER(Project_Details[[#This Row],[Labour External]])))) -> TRUE | BF39: =OR(Project_Details[[#This Row],[DecomQty2016]]>0,Project_Details[[#This Row],[DecomQty2017]]>0,Project_Details[[#This Row],[DecomQty2018]]>0,Project_Details[[#This Row],[DecomQty2019]]>0,Project_Details[[#This Row],[DecomQty2020]]>0,Project_Details[[#This Row],[DecomQty2021]]>0,Project_Details[[#This Row],[DecomQty2022]]>0) -> FALSE | BG39: =IF(LEFT(Project_Details[[#This Row],[RIN Asset Description]],17)="Power Transformer",IF((Project_Details[[#This Row],[ExpenditureAfter2017IsNotUsed]]=TRUE),FALSE,TRUE),"NA") -> NA | BJ39: 0 | BK39: 0 | BL39: 0 | BM39: 0 | BN39: 0 | BO39: =IFERROR(("None"=VLOOKUP(Project_Details[[#This Row],[ProjectID]],ProjectData[],MATCH("RepexDollarsBasis",ProjectData[#Headers],0),FALSE)),FALSE) -> FALSE | BP39: =IF(ISNUMBER(Project_Details[[#This Row],[Capitalisation Year]]),(Project_Details[[#This Row],[Capitalisation Year]]>=2016),"NA") -> NA | BQ39: =(Project_Details[[#This Row],[ID]]=(ROW()-ProjectDetailsTableStartRow)) -> TRUE | BR39: =VLOOKUP(Project_Details[[#This Row],[ProjectID]],ProjectData[],MATCH("Specific Approved Project", ProjectData[#Headers],0),FALSE) -> FALSE | BS39: =VLOOKUP(Project_Details[[#This Row],[ProjectID]],ProjectData[],5,FALSE) -> Replacement
A40: 31 | B40: 6 | C40: =Project_Details[ID] -> 31 | D40: Switchgear_VT_33kV | E40: NOT ASSIGNED | F40: =ISNUMBER(MATCH(Project_Details[[#This Row],[RIN Asset Description]],Lookup_RIN_AssetCategory,0)) -> TRUE | X40: 29.76212521 | Y40: 23.85152898 | Z40: 18.98606489 | AA40: 15.12372722 | AB40: 12.18271627 | AD40: =IF((VLOOKUP(Project_Details[[#This Row],[ProjectID]],ProjectData[],MATCH("Capitalisation",ProjectData[#Headers],0),FALSE)="Project Close"),ISNUMBER(Project_Details[[#This Row],[Capitalisation Year]]),"NA") -> NA | AS40: 0.2918348559 | AT40: 0.2796476956 | AU40: =MAX(ABS(Project_Details[[#This Row],[WIP]:[NomIncur2022]]))>0 -> FALSE | AV40: =MAX(ABS(Project_Details[[#This Row],[RealIncur2016]:[RealIncur2022]]))>0 -> TRUE | AW40: =OR(AND(Project_Details[[#This Row],[DollarBasisImpliesNominal]],NOT(Project_Details[[#This Row],[DollarBasisImpliesReal1516]])), AND(NOT(Project_Details[[#This Row],[DollarBasisImpliesNominal]]),Project_Details[[#This Row],[DollarBasisImpliesReal1516]]),AND(NOT(Project_Details[[#This Row],[DollarBasisImpliesNominal]]),NOT(Project_Details[[#This Row],[DollarBasisImpliesReal1516]]),OR(Project_Details[[#This Row],[HasDecomms?]],Project_Details[[#This Row],[ProjectHasNoDollarBasis]]))) -> TRUE | AX40: =IFERROR(OR(AND(Project_Details[[#This Row],[DollarBasisImpliesNominal]],VLOOKUP(Project_Details[[#This Row],[ProjectID]],ProjectData[],MATCH("RepexDollarsBasis",ProjectData[#Headers],0),FALSE)="Nominal"),AND(Project_Details[[#This Row],[DollarBasisImpliesReal1516]],VLOOKUP(Project_Details[[#This Row],[ProjectID]],ProjectData[],MATCH("RepexDollarsBasis",ProjectData[#Headers],0),FALSE)="Real1516"),Project_Details[[#This Row],[HasDecomms?]],Project_Details[[#This Row],[ProjectHasNoDollarBasis]]),FALSE) -> TRUE | AY40: =IF(Project_Details[[#This Row],[DollarBasisImpliesReal1516]],AND(ISNUMBER(Project_Details[[#This Row],[Labour Internal]]),ISNUMBER(Project_Details[[#This Row],[Labour External]])),"NA") -> TRUE | AZ40: =IF(Project_Details[[#This Row],[DollarBasisImpliesNominal]],NOT(OR(ISNUMBER(Project_Details[[#This Row],[Labour Internal]]),ISNUMBER(Project_Details[[#This Row],[Labour External]]))),"NA") -> NA | BA40: =IF(AND(Project_Details[[#This Row],[NomIncur2017]]=0,Project_Details[[#This Row],[WIP]]<>0),2017,IF(AND(Project_Details[[#This Row],[NomIncur2017]]=0,Project_Details[[#This Row],[NomIncur2016]]<>0),2016,IF(AND(Project_Details[[#This Row],[NomIncur2018]]=0,Project_Details[[#This Row],[NomIncur2017]]<>0),2017,IF(AND(Project_Details[[#This Row],[NomIncur2019]]=0,Project_Details[[#This Row],[NomIncur2018]]<>0),2018,IF(AND(Project_Details[[#This Row],[NomIncur2020]]=0,Project_Details[[#This Row],[NomIncur2019]]<>0),2019,IF(AND(Project_Details[[#This Row],[NomIncur2021]]=0,Project_Details[[#This Row],[NomIncur2020]]<>0),2020,IF(AND(Project_Details[[#This Row],[NomIncur2022]]=0,Project_Details[[#This Row],[NomIncur2021]]<>0),2021,IF(Project_Details[[#This Row],[NomIncur2022]]<>0,2022,"")))))))) ->  | BC40: =IF(OR(Project_Details[[#This Row],[HasDecomms?]],NOT(ISNUMBER(Project_Details[[#This Row],[Capitalisation Year]]))), "NA", OR(Project_Details[[#This Row],[OverWrite_CashFlowAndCapitalisationYearAreOK]],(Project_Details[[#This Row],[LastYearOfNominalCashFlow]]=Project_Details[[#This Row],[Capitalisation Year]]))) -> NA | BD40: =NOT(AND(Project_Details[[#This Row],[DollarBasisImpliesNominal]],OR(ISNUMBER(Project_Details[[#This Row],[Labour Internal]]),ISNUMBER(Project_Details[[#This Row],[Labour External]])))) -> TRUE | BF40: =OR(Project_Details[[#This Row],[DecomQty2016]]>0,Project_Details[[#This Row],[DecomQty2017]]>0,Project_Details[[#This Row],[DecomQty2018]]>0,Project_Details[[#This Row],[DecomQty2019]]>0,Project_Details[[#This Row],[DecomQty2020]]>0,Project_Details[[#This Row],[DecomQty2021]]>0,Project_Details[[#This Row],[DecomQty2022]]>0) -> FALSE | BG40: =IF(LEFT(Project_Details[[#This Row],[RIN Asset Description]],17)="Power Transformer",IF((Project_Details[[#This Row],[ExpenditureAfter2017IsNotUsed]]=TRUE),FALSE,TRUE),"NA") -> NA | BJ40: 39.4035707 | BK40: 0 | BL40: 39.4035707 | BM40: 0 | BN40: 39.4035707 | BO40: =IFERROR(("None"=VLOOKUP(Project_Details[[#This Row],[ProjectID]],ProjectData[],MATCH("RepexDollarsBasis",ProjectData[#Headers],0),FALSE)),FALSE) -> FALSE | BP40: =IF(ISNUMBER(Project_Details[[#This Row],[Capitalisation Year]]),(Project_Details[[#This Row],[Capitalisation Year]]>=2016),"NA") -> NA | BQ40: =(Project_Details[[#This Row],[ID]]=(ROW()-ProjectDetailsTableStartRow)) -> TRUE | BR40: =VLOOKUP(Project_Details[[#This Row],[ProjectID]],ProjectData[],MATCH("Specific Approved Project", ProjectData[#Headers],0),FALSE) -> FALSE | BS40: =VLOOKUP(Project_Details[[#This Row],[ProjectID]],ProjectData[],5,FALSE) -> Replacement
A41: 32 | B41: 6 | C41: =Project_Details[ID] -> 32 | D41: Switchgear_VT_66kV | E41: NOT ASSIGNED | F41: =ISNUMBER(MATCH(Project_Details[[#This Row],[RIN Asset Description]],Lookup_RIN_AssetCategory,0)) -> TRUE | X41: 138.2030378 | Y41: 127.3840625 | Z41: 116.0297972 | AA41: 104.6863817 | AB41: 93.86759974 | AD41: =IF((VLOOKUP(Project_Details[[#This Row],[ProjectID]],ProjectData[],MATCH("Capitalisation",ProjectData[#Headers],0),FALSE)="Project Close"),ISNUMBER(Project_Details[[#This Row],[Capitalisation Year]]),"NA") -> NA | AS41: 0.2918348559 | AT41: 0.2687926094 | AU41: =MAX(ABS(Project_Details[[#This Row],[WIP]:[NomIncur2022]]))>0 -> FALSE | AV41: =MAX(ABS(Project_Details[[#This Row],[RealIncur2016]:[RealIncur2022]]))>0 -> TRUE | AW41: =OR(AND(Project_Details[[#This Row],[DollarBasisImpliesNominal]],NOT(Project_Details[[#This Row],[DollarBasisImpliesReal1516]])), AND(NOT(Project_Details[[#This Row],[DollarBasisImpliesNominal]]),Project_Details[[#This Row],[DollarBasisImpliesReal1516]]),AND(NOT(Project_Details[[#This Row],[DollarBasisImpliesNominal]]),NOT(Project_Details[[#This Row],[DollarBasisImpliesReal1516]]),OR(Project_Details[[#This Row],[HasDecomms?]],Project_Details[[#This Row],[ProjectHasNoDollarBasis]]))) -> TRUE | AX41: =IFERROR(OR(AND(Project_Details[[#This Row],[DollarBasisImpliesNominal]],VLOOKUP(Project_Details[[#This Row],[ProjectID]],ProjectData[],MATCH("RepexDollarsBasis",ProjectData[#Headers],0),FALSE)="Nominal"),AND(Project_Details[[#This Row],[DollarBasisImpliesReal1516]],VLOOKUP(Project_Details[[#This Row],[ProjectID]],ProjectData[],MATCH("RepexDollarsBasis",ProjectData[#Headers],0),FALSE)="Real1516"),Project_Details[[#This Row],[HasDecomms?]],Project_Details[[#This Row],[ProjectHasNoDollarBasis]]),FALSE) -> TRUE | AY41: =IF(Project_Details[[#This Row],[DollarBasisImpliesReal1516]],AND(ISNUMBER(Project_Details[[#This Row],[Labour Internal]]),ISNUMBER(Project_Details[[#This Row],[Labour External]])),"NA") -> TRUE | AZ41: =IF(Project_Details[[#This Row],[DollarBasisImpliesNominal]],NOT(OR(ISNUMBER(Project_Details[[#This Row],[Labour Internal]]),ISNUMBER(Project_Details[[#This Row],[Labour External]]))),"NA") -> NA | BA41: =IF(AND(Project_Details[[#This Row],[NomIncur2017]]=0,Project_Details[[#This Row],[WIP]]<>0),2017,IF(AND(Project_Details[[#This Row],[NomIncur2017]]=0,Project_Details[[#This Row],[NomIncur2016]]<>0),2016,IF(AND(Project_Details[[#This Row],[NomIncur2018]]=0,Project_Details[[#This Row],[NomIncur2017]]<>0),2017,IF(AND(Project_Details[[#This Row],[NomIncur2019]]=0,Project_Details[[#This Row],[NomIncur2018]]<>0),2018,IF(AND(Project_Details[[#This Row],[NomIncur2020]]=0,Project_Details[[#This Row],[NomIncur2019]]<>0),2019,IF(AND(Project_Details[[#This Row],[NomIncur2021]]=0,Project_Details[[#This Row],[NomIncur2020]]<>0),2020,IF(AND(Project_Details[[#This Row],[NomIncur2022]]=0,Project_Details[[#This Row],[NomIncur2021]]<>0),2021,IF(Project_Details[[#This Row],[NomIncur2022]]<>0,2022,"")))))))) ->  | BC41: =IF(OR(Project_Details[[#This Row],[HasDecomms?]],NOT(ISNUMBER(Project_Details[[#This Row],[Capitalisation Year]]))), "NA", OR(Project_Details[[#This Row],[OverWrite_CashFlowAndCapitalisationYearAreOK]],(Project_Details[[#This Row],[LastYearOfNominalCashFlow]]=Project_Details[[#This Row],[Capitalisation Year]]))) -> NA | BD41: =NOT(AND(Project_Details[[#This Row],[DollarBasisImpliesNominal]],OR(ISNUMBER(Project_Details[[#This Row],[Labour Internal]]),ISNUMBER(Project_Details[[#This Row],[Labour External]])))) -> TRUE | BF41: =OR(Project_Details[[#This Row],[DecomQty2016]]>0,Project_Details[[#This Row],[DecomQty2017]]>0,Project_Details[[#This Row],[DecomQty2018]]>0,Project_Details[[#This Row],[DecomQty2019]]>0,Project_Details[[#This Row],[DecomQty2020]]>0,Project_Details[[#This Row],[DecomQty2021]]>0,Project_Details[[#This Row],[DecomQty2022]]>0) -> FALSE | BG41: =IF(LEFT(Project_Details[[#This Row],[RIN Asset Description]],17)="Power Transformer",IF((Project_Details[[#This Row],[ExpenditureAfter2017IsNotUsed]]=TRUE),FALSE,TRUE),"NA") -> NA | BJ41: 147.7633901 | BK41: 98.50892676 | BL41: 147.7633901 | BM41: 98.50892676 | BN41: 147.7633901 | BO41: =IFERROR(("None"=VLOOKUP(Project_Details[[#This Row],[ProjectID]],ProjectData[],MATCH("RepexDollarsBasis",ProjectData[#Headers],0),FALSE)),FALSE) -> FALSE | BP41: =IF(ISNUMBER(Project_Details[[#This Row],[Capitalisation Year]]),(Project_Details[[#This Row],[Capitalisation Year]]>=2016),"NA") -> NA | BQ41: =(Project_Details[[#This Row],[ID]]=(ROW()-ProjectDetailsTableStartRow)) -> TRUE | BR41: =VLOOKUP(Project_Details[[#This Row],[ProjectID]],ProjectData[],MATCH("Specific Approved Project", ProjectData[#Headers],0),FALSE) -> FALSE | BS41: =VLOOKUP(Project_Details[[#This Row],[ProjectID]],ProjectData[],5,FALSE) -> Replacement
A42: 33 | B42: 6 | C42: =Project_Details[ID] -> 33 | D42: Switchgear_VT_132kV | E42: NOT ASSIGNED | F42: =ISNUMBER(MATCH(Project_Details[[#This Row],[RIN Asset Description]],Lookup_RIN_AssetCategory,0)) -> TRUE | X42: 1207.116369 | Y42: 1142.583509 | Z42: 1089.201071 | AA42: 1043.581769 | AB42: 1004.390518 | AD42: =IF((VLOOKUP(Project_Details[[#This Row],[ProjectID]],ProjectData[],MATCH("Capitalisation",ProjectData[#Headers],0),FALSE)="Project Close"),ISNUMBER(Project_Details[[#This Row],[Capitalisation Year]]),"NA") -> NA | AS42: 0.2918348559 | AT42: 0.2631066119 | AU42: =MAX(ABS(Project_Details[[#This Row],[WIP]:[NomIncur2022]]))>0 -> FALSE | AV42: =MAX(ABS(Project_Details[[#This Row],[RealIncur2016]:[RealIncur2022]]))>0 -> TRUE | AW42: =OR(AND(Project_Details[[#This Row],[DollarBasisImpliesNominal]],NOT(Project_Details[[#This Row],[DollarBasisImpliesReal1516]])), AND(NOT(Project_Details[[#This Row],[DollarBasisImpliesNominal]]),Project_Details[[#This Row],[DollarBasisImpliesReal1516]]),AND(NOT(Project_Details[[#This Row],[DollarBasisImpliesNominal]]),NOT(Project_Details[[#This Row],[DollarBasisImpliesReal1516]]),OR(Project_Details[[#This Row],[HasDecomms?]],Project_Details[[#This Row],[ProjectHasNoDollarBasis]]))) -> TRUE | AX42: =IFERROR(OR(AND(Project_Details[[#This Row],[DollarBasisImpliesNominal]],VLOOKUP(Project_Details[[#This Row],[ProjectID]],ProjectData[],MATCH("RepexDollarsBasis",ProjectData[#Headers],0),FALSE)="Nominal"),AND(Project_Details[[#This Row],[DollarBasisImpliesReal1516]],VLOOKUP(Project_Details[[#This Row],[ProjectID]],ProjectData[],MATCH("RepexDollarsBasis",ProjectData[#Headers],0),FALSE)="Real1516"),Project_Details[[#This Row],[HasDecomms?]],Project_Details[[#This Row],[ProjectHasNoDollarBasis]]),FALSE) -> TRUE | AY42: =IF(Project_Details[[#This Row],[DollarBasisImpliesReal1516]],AND(ISNUMBER(Project_Details[[#This Row],[Labour Internal]]),ISNUMBER(Project_Details[[#This Row],[Labour External]])),"NA") -> TRUE | AZ42: =IF(Project_Details[[#This Row],[DollarBasisImpliesNominal]],NOT(OR(ISNUMBER(Project_Details[[#This Row],[Labour Internal]]),ISNUMBER(Project_Details[[#This Row],[Labour External]]))),"NA") -> NA | BA42: =IF(AND(Project_Details[[#This Row],[NomIncur2017]]=0,Project_Details[[#This Row],[WIP]]<>0),2017,IF(AND(Project_Details[[#This Row],[NomIncur2017]]=0,Project_Details[[#This Row],[NomIncur2016]]<>0),2016,IF(AND(Project_Details[[#This Row],[NomIncur2018]]=0,Project_Details[[#This Row],[NomIncur2017]]<>0),2017,IF(AND(Project_Details[[#This Row],[NomIncur2019]]=0,Project_Details[[#This Row],[NomIncur2018]]<>0),2018,IF(AND(Project_Details[[#This Row],[NomIncur2020]]=0,Project_Details[[#This Row],[NomIncur2019]]<>0),2019,IF(AND(Project_Details[[#This Row],[NomIncur2021]]=0,Project_Details[[#This Row],[NomIncur2020]]<>0),2020,IF(AND(Project_Details[[#This Row],[NomIncur2022]]=0,Project_Details[[#This Row],[NomIncur2021]]<>0),2021,IF(Project_Details[[#This Row],[NomIncur2022]]<>0,2022,"")))))))) ->  | BC42: =IF(OR(Project_Details[[#This Row],[HasDecomms?]],NOT(ISNUMBER(Project_Details[[#This Row],[Capitalisation Year]]))), "NA", OR(Project_Details[[#This Row],[OverWrite_CashFlowAndCapitalisationYearAreOK]],(Project_Details[[#This Row],[LastYearOfNominalCashFlow]]=Project_Details[[#This Row],[Capitalisation Year]]))) -> NA | BD42: =NOT(AND(Project_Details[[#This Row],[DollarBasisImpliesNominal]],OR(ISNUMBER(Project_Details[[#This Row],[Labour Internal]]),ISNUMBER(Project_Details[[#This Row],[Labour External]])))) -> TRUE | BF42: =OR(Project_Details[[#This Row],[DecomQty2016]]>0,Project_Details[[#This Row],[DecomQty2017]]>0,Project_Details[[#This Row],[DecomQty2018]]>0,Project_Details[[#This Row],[DecomQty2019]]>0,Project_Details[[#This Row],[DecomQty2020]]>0,Project_Details[[#This Row],[DecomQty2021]]>0,Project_Details[[#This Row],[DecomQty2022]]>0) -> FALSE | BG42: =IF(LEFT(Project_Details[[#This Row],[RIN Asset Description]],17)="Power Transformer",IF((Project_Details[[#This Row],[ExpenditureAfter2017IsNotUsed]]=TRUE),FALSE,TRUE),"NA") -> NA | BJ42: 1309.463402 | BK42: 1190.421274 | BL42: 1130.900211 | BM42: 1071.379147 | BN42: 1071.379147 | BO42: =IFERROR(("None"=VLOOKUP(Project_Details[[#This Row],[ProjectID]],ProjectData[],MATCH("RepexDollarsBasis",ProjectData[#Headers],0),FALSE)),FALSE) -> FALSE | BP42: =IF(ISNUMBER(Project_Details[[#This Row],[Capitalisation Year]]),(Project_Details[[#This Row],[Capitalisation Year]]>=2016),"NA") -> NA | BQ42: =(Project_Details[[#This Row],[ID]]=(ROW()-ProjectDetailsTableStartRow)) -> TRUE | BR42: =VLOOKUP(Project_Details[[#This Row],[ProjectID]],ProjectData[],MATCH("Specific Approved Project", ProjectData[#Headers],0),FALSE) -> FALSE | BS42: =VLOOKUP(Project_Details[[#This Row],[ProjectID]],ProjectData[],5,FALSE) -> Replacement
A43: 34 | B43: 6 | C43: =Project_Details[ID] -> 34 | D43: Switchgear_VT_275kV | E43: NOT ASSIGNED | F43: =ISNUMBER(MATCH(Project_Details[[#This Row],[RIN Asset Description]],Lookup_RIN_AssetCategory,0)) -> TRUE | X43: 688.1688798 | Y43: 656.0697345 | Z43: 622.5340926 | AA43: 588.5289059 | AB43: 555.5144073 | AD43: =IF((VLOOKUP(Project_Details[[#This Row],[ProjectID]],ProjectData[],MATCH("Capitalisation",ProjectData[#Headers],0),FALSE)="Project Close"),ISNUMBER(Project_Details[[#This Row],[Capitalisation Year]]),"NA") -> NA | AS43: 0.2918348559 | AT43: 0.2496669815 | AU43: =MAX(ABS(Project_Details[[#This Row],[WIP]:[NomIncur2022]]))>0 -> FALSE | AV43: =MAX(ABS(Project_Details[[#This Row],[RealIncur2016]:[RealIncur2022]]))>0 -> TRUE | AW43: =OR(AND(Project_Details[[#This Row],[DollarBasisImpliesNominal]],NOT(Project_Details[[#This Row],[DollarBasisImpliesReal1516]])), AND(NOT(Project_Details[[#This Row],[DollarBasisImpliesNominal]]),Project_Details[[#This Row],[DollarBasisImpliesReal1516]]),AND(NOT(Project_Details[[#This Row],[DollarBasisImpliesNominal]]),NOT(Project_Details[[#This Row],[DollarBasisImpliesReal1516]]),OR(Project_Details[[#This Row],[HasDecomms?]],Project_Details[[#This Row],[ProjectHasNoDollarBasis]]))) -> TRUE | AX43: =IFERROR(OR(AND(Project_Details[[#This Row],[DollarBasisImpliesNominal]],VLOOKUP(Project_Details[[#This Row],[ProjectID]],ProjectData[],MATCH("RepexDollarsBasis",ProjectData[#Headers],0),FALSE)="Nominal"),AND(Project_Details[[#This Row],[DollarBasisImpliesReal1516]],VLOOKUP(Project_Details[[#This Row],[ProjectID]],ProjectData[],MATCH("RepexDollarsBasis",ProjectData[#Headers],0),FALSE)="Real1516"),Project_Details[[#This Row],[HasDecomms?]],Project_Details[[#This Row],[ProjectHasNoDollarBasis]]),FALSE) -> TRUE | AY43: =IF(Project_Details[[#This Row],[DollarBasisImpliesReal1516]],AND(ISNUMBER(Project_Details[[#This Row],[Labour Internal]]),ISNUMBER(Project_Details[[#This Row],[Labour External]])),"NA") -> TRUE | AZ43: =IF(Project_Details[[#This Row],[DollarBasisImpliesNominal]],NOT(OR(ISNUMBER(Project_Details[[#This Row],[Labour Internal]]),ISNUMBER(Project_Details[[#This Row],[Labour External]]))),"NA") -> NA | BA43: =IF(AND(Project_Details[[#This Row],[NomIncur2017]]=0,Project_Details[[#This Row],[WIP]]<>0),2017,IF(AND(Project_Details[[#This Row],[NomIncur2017]]=0,Project_Details[[#This Row],[NomIncur2016]]<>0),2016,IF(AND(Project_Details[[#This Row],[NomIncur2018]]=0,Project_Details[[#This Row],[NomIncur2017]]<>0),2017,IF(AND(Project_Details[[#This Row],[NomIncur2019]]=0,Project_Details[[#This Row],[NomIncur2018]]<>0),2018,IF(AND(Project_Details[[#This Row],[NomIncur2020]]=0,Project_Details[[#This Row],[NomIncur2019]]<>0),2019,IF(AND(Project_Details[[#This Row],[NomIncur2021]]=0,Project_Details[[#This Row],[NomIncur2020]]<>0),2020,IF(AND(Project_Details[[#This Row],[NomIncur2022]]=0,Project_Details[[#This Row],[NomIncur2021]]<>0),2021,IF(Project_Details[[#This Row],[NomIncur2022]]<>0,2022,"")))))))) ->  | BC43: =IF(OR(Project_Details[[#This Row],[HasDecomms?]],NOT(ISNUMBER(Project_Details[[#This Row],[Capitalisation Year]]))), "NA", OR(Project_Details[[#This Row],[OverWrite_CashFlowAndCapitalisationYearAreOK]],(Project_Details[[#This Row],[LastYearOfNominalCashFlow]]=Project_Details[[#This Row],[Capitalisation Year]]))) -> NA | BD43: =NOT(AND(Project_Details[[#This Row],[DollarBasisImpliesNominal]],OR(ISNUMBER(Project_Details[[#This Row],[Labour Internal]]),ISNUMBER(Project_Details[[#This Row],[Labour External]])))) -> TRUE | BF43: =OR(Project_Details[[#This Row],[DecomQty2016]]>0,Project_Details[[#This Row],[DecomQty2017]]>0,Project_Details[[#This Row],[DecomQty2018]]>0,Project_Details[[#This Row],[DecomQty2019]]>0,Project_Details[[#This Row],[DecomQty2020]]>0,Project_Details[[#This Row],[DecomQty2021]]>0,Project_Details[[#This Row],[DecomQty2022]]>0) -> FALSE | BG43: =IF(LEFT(Project_Details[[#This Row],[RIN Asset Description]],17)="Power Transformer",IF((Project_Details[[#This Row],[ExpenditureAfter2017IsNotUsed]]=TRUE),FALSE,TRUE),"NA") -> NA | BJ43: 681.5793239 | BK43: 681.5793239 | BL43: 681.5793239 | BM43: 624.7810469 | BN43: 567.9827699 | BO43: =IFERROR(("None"=VLOOKUP(Project_Details[[#This Row],[ProjectID]],ProjectData[],MATCH("RepexDollarsBasis",ProjectData[#Headers],0),FALSE)),FALSE) -> FALSE | BP43: =IF(ISNUMBER(Project_Details[[#This Row],[Capitalisation Year]]),(Project_Details[[#This Row],[Capitalisation Year]]>=2016),"NA") -> NA | BQ43: =(Project_Details[[#This Row],[ID]]=(ROW()-ProjectDetailsTableStartRow)) -> TRUE | BR43: =VLOOKUP(Project_Details[[#This Row],[ProjectID]],ProjectData[],MATCH("Specific Approved Project", ProjectData[#Headers],0),FALSE) -> FALSE | BS43: =VLOOKUP(Project_Details[[#This Row],[ProjectID]],ProjectData[],5,FALSE) -> Replacement
A44: 35 | B44: 6 | C44: =Project_Details[ID] -> 35 | D44: Switchgear_VT_330kV | E44: NOT ASSIGNED | F44: =ISNUMBER(MATCH(Project_Details[[#This Row],[RIN Asset Description]],Lookup_RIN_AssetCategory,0)) -> TRUE | X44: 0.05454839745 | Y44: 0.1012309546 | Z44: 0.1826828135 | AA44: 0.3205949351 | AB44: 0.5471595434 | AD44: =IF((VLOOKUP(Project_Details[[#This Row],[ProjectID]],ProjectData[],MATCH("Capitalisation",ProjectData[#Headers],0),FALSE)="Project Close"),ISNUMBER(Project_Details[[#This Row],[Capitalisation Year]]),"NA") -> NA | AS44: 0.2918348559 | AT44: 0.2491500726 | AU44: =MAX(ABS(Project_Details[[#This Row],[WIP]:[NomIncur2022]]))>0 -> FALSE | AV44: =MAX(ABS(Project_Details[[#This Row],[RealIncur2016]:[RealIncur2022]]))>0 -> TRUE | AW44: =OR(AND(Project_Details[[#This Row],[DollarBasisImpliesNominal]],NOT(Project_Details[[#This Row],[DollarBasisImpliesReal1516]])), AND(NOT(Project_Details[[#This Row],[DollarBasisImpliesNominal]]),Project_Details[[#This Row],[DollarBasisImpliesReal1516]]),AND(NOT(Project_Details[[#This Row],[DollarBasisImpliesNominal]]),NOT(Project_Details[[#This Row],[DollarBasisImpliesReal1516]]),OR(Project_Details[[#This Row],[HasDecomms?]],Project_Details[[#This Row],[ProjectHasNoDollarBasis]]))) -> TRUE | AX44: =IFERROR(OR(AND(Project_Details[[#This Row],[DollarBasisImpliesNominal]],VLOOKUP(Project_Details[[#This Row],[ProjectID]],ProjectData[],MATCH("RepexDollarsBasis",ProjectData[#Headers],0),FALSE)="Nominal"),AND(Project_Details[[#This Row],[DollarBasisImpliesReal1516]],VLOOKUP(Project_Details[[#This Row],[ProjectID]],ProjectData[],MATCH("RepexDollarsBasis",ProjectData[#Headers],0),FALSE)="Real1516"),Project_Details[[#This Row],[HasDecomms?]],Project_Details[[#This Row],[ProjectHasNoDollarBasis]]),FALSE) -> TRUE | AY44: =IF(Project_Details[[#This Row],[DollarBasisImpliesReal1516]],AND(ISNUMBER(Project_Details[[#This Row],[Labour Internal]]),ISNUMBER(Project_Details[[#This Row],[Labour External]])),"NA") -> TRUE | AZ44: =IF(Project_Details[[#This Row],[DollarBasisImpliesNominal]],NOT(OR(ISNUMBER(Project_Details[[#This Row],[Labour Internal]]),ISNUMBER(Project_Details[[#This Row],[Labour External]]))),"NA") -> NA | BA44: =IF(AND(Project_Details[[#This Row],[NomIncur2017]]=0,Project_Details[[#This Row],[WIP]]<>0),2017,IF(AND(Project_Details[[#This Row],[NomIncur2017]]=0,Project_Details[[#This Row],[NomIncur2016]]<>0),2016,IF(AND(Project_Details[[#This Row],[NomIncur2018]]=0,Project_Details[[#This Row],[NomIncur2017]]<>0),2017,IF(AND(Project_Details[[#This Row],[NomIncur2019]]=0,Project_Details[[#This Row],[NomIncur2018]]<>0),2018,IF(AND(Project_Details[[#This Row],[NomIncur2020]]=0,Project_Details[[#This Row],[NomIncur2019]]<>0),2019,IF(AND(Project_Details[[#This Row],[NomIncur2021]]=0,Project_Details[[#This Row],[NomIncur2020]]<>0),2020,IF(AND(Project_Details[[#This Row],[NomIncur2022]]=0,Project_Details[[#This Row],[NomIncur2021]]<>0),2021,IF(Project_Details[[#This Row],[NomIncur2022]]<>0,2022,"")))))))) ->  | BC44: =IF(OR(Project_Details[[#This Row],[HasDecomms?]],NOT(ISNUMBER(Project_Details[[#This Row],[Capitalisation Year]]))), "NA", OR(Project_Details[[#This Row],[OverWrite_CashFlowAndCapitalisationYearAreOK]],(Project_Details[[#This Row],[LastYearOfNominalCashFlow]]=Project_Details[[#This Row],[Capitalisation Year]]))) -> NA | BD44: =NOT(AND(Project_Details[[#This Row],[DollarBasisImpliesNominal]],OR(ISNUMBER(Project_Details[[#This Row],[Labour Internal]]),ISNUMBER(Project_Details[[#This Row],[Labour External]])))) -> TRUE | BF44: =OR(Project_Details[[#This Row],[DecomQty2016]]>0,Project_Details[[#This Row],[DecomQty2017]]>0,Project_Details[[#This Row],[DecomQty2018]]>0,Project_Details[[#This Row],[DecomQty2019]]>0,Project_Details[[#This Row],[DecomQty2020]]>0,Project_Details[[#This Row],[DecomQty2021]]>0,Project_Details[[#This Row],[DecomQty2022]]>0) -> FALSE | BG44: =IF(LEFT(Project_Details[[#This Row],[RIN Asset Description]],17)="Power Transformer",IF((Project_Details[[#This Row],[ExpenditureAfter2017IsNotUsed]]=TRUE),FALSE,TRUE),"NA") -> NA | BJ44: 0 | BK44: 0 | BL44: 0 | BM44: 0 | BN44: 0 | BO44: =IFERROR(("None"=VLOOKUP(Project_Details[[#This Row],[ProjectID]],ProjectData[],MATCH("RepexDollarsBasis",ProjectData[#Headers],0),FALSE)),FALSE) -> FALSE | BP44: =IF(ISNUMBER(Project_Details[[#This Row],[Capitalisation Year]]),(Project_Details[[#This Row],[Capitalisation Year]]>=2016),"NA") -> NA | BQ44: =(Project_Details[[#This Row],[ID]]=(ROW()-ProjectDetailsTableStartRow)) -> TRUE | BR44: =VLOOKUP(Project_Details[[#This Row],[ProjectID]],ProjectData[],MATCH("Specific Approved Project", ProjectData[#Headers],0),FALSE) -> FALSE | BS44: =VLOOKUP(Project_Details[[#This Row],[ProjectID]],ProjectData[],5,FALSE) -> Replacement
A45: 36 | B45: 7 | C45: =Project_Details[ID] -> 36 | D45: Switchgear_CT_33kV | E45: NOT ASSIGNED | F45: =ISNUMBER(MATCH(Project_Details[[#This Row],[RIN Asset Description]],Lookup_RIN_AssetCategory,0)) -> TRUE | X45: 50.89069661 | Y45: 44.24148781 | Z45: 39.90193557 | AA45: 37.94537757 | AB45: 38.39957552 | AD45: =IF((VLOOKUP(Project_Details[[#This Row],[ProjectID]],ProjectData[],MATCH("Capitalisation",ProjectData[#Headers],0),FALSE)="Project Close"),ISNUMBER(Project_Details[[#This Row],[Capitalisation Year]]),"NA") -> NA | AS45: 0.2918348559 | AT45: 0.2527684347 | AU45: =MAX(ABS(Project_Details[[#This Row],[WIP]:[NomIncur2022]]))>0 -> FALSE | AV45: =MAX(ABS(Project_Details[[#This Row],[RealIncur2016]:[RealIncur2022]]))>0 -> TRUE | AW45: =OR(AND(Project_Details[[#This Row],[DollarBasisImpliesNominal]],NOT(Project_Details[[#This Row],[DollarBasisImpliesReal1516]])), AND(NOT(Project_Details[[#This Row],[DollarBasisImpliesNominal]]),Project_Details[[#This Row],[DollarBasisImpliesReal1516]]),AND(NOT(Project_Details[[#This Row],[DollarBasisImpliesNominal]]),NOT(Project_Details[[#This Row],[DollarBasisImpliesReal1516]]),OR(Project_Details[[#This Row],[HasDecomms?]],Project_Details[[#This Row],[ProjectHasNoDollarBasis]]))) -> TRUE | AX45: =IFERROR(OR(AND(Project_Details[[#This Row],[DollarBasisImpliesNominal]],VLOOKUP(Project_Details[[#This Row],[ProjectID]],ProjectData[],MATCH("RepexDollarsBasis",ProjectData[#Headers],0),FALSE)="Nominal"),AND(Project_Details[[#This Row],[DollarBasisImpliesReal1516]],VLOOKUP(Project_Details[[#This Row],[ProjectID]],ProjectData[],MATCH("RepexDollarsBasis",ProjectData[#Headers],0),FALSE)="Real1516"),Project_Details[[#This Row],[HasDecomms?]],Project_Details[[#This Row],[ProjectHasNoDollarBasis]]),FALSE) -> TRUE | AY45: =IF(Project_Details[[#This Row],[DollarBasisImpliesReal1516]],AND(ISNUMBER(Project_Details[[#This Row],[Labour Internal]]),ISNUMBER(Project_Details[[#This Row],[Labour External]])),"NA") -> TRUE | AZ45: =IF(Project_Details[[#This Row],[DollarBasisImpliesNominal]],NOT(OR(ISNUMBER(Project_Details[[#This Row],[Labour Internal]]),ISNUMBER(Project_Details[[#This Row],[Labour External]]))),"NA") -> NA | BA45: =IF(AND(Project_Details[[#This Row],[NomIncur2017]]=0,Project_Details[[#This Row],[WIP]]<>0),2017,IF(AND(Project_Details[[#This Row],[NomIncur2017]]=0,Project_Details[[#This Row],[NomIncur2016]]<>0),2016,IF(AND(Project_Details[[#This Row],[NomIncur2018]]=0,Project_Details[[#This Row],[NomIncur2017]]<>0),2017,IF(AND(Project_Details[[#This Row],[NomIncur2019]]=0,Project_Details[[#This Row],[NomIncur2018]]<>0),2018,IF(AND(Project_Details[[#This Row],[NomIncur2020]]=0,Project_Details[[#This Row],[NomIncur2019]]<>0),2019,IF(AND(Project_Details[[#This Row],[NomIncur2021]]=0,Project_Details[[#This Row],[NomIncur2020]]<>0),2020,IF(AND(Project_Details[[#This Row],[NomIncur2022]]=0,Project_Details[[#This Row],[NomIncur2021]]<>0),2021,IF(Project_Details[[#This Row],[NomIncur2022]]<>0,2022,"")))))))) ->  | BC45: =IF(OR(Project_Details[[#This Row],[HasDecomms?]],NOT(ISNUMBER(Project_Details[[#This Row],[Capitalisation Year]]))), "NA", OR(Project_Details[[#This Row],[OverWrite_CashFlowAndCapitalisationYearAreOK]],(Project_Details[[#This Row],[LastYearOfNominalCashFlow]]=Project_Details[[#This Row],[Capitalisation Year]]))) -> NA | BD45: =NOT(AND(Project_Details[[#This Row],[DollarBasisImpliesNominal]],OR(ISNUMBER(Project_Details[[#This Row],[Labour Internal]]),ISNUMBER(Project_Details[[#This Row],[Labour External]])))) -> TRUE | BF45: =OR(Project_Details[[#This Row],[DecomQty2016]]>0,Project_Details[[#This Row],[DecomQty2017]]>0,Project_Details[[#This Row],[DecomQty2018]]>0,Project_Details[[#This Row],[DecomQty2019]]>0,Project_Details[[#This Row],[DecomQty2020]]>0,Project_Details[[#This Row],[DecomQty2021]]>0,Project_Details[[#This Row],[DecomQty2022]]>0) -> FALSE | BG45: =IF(LEFT(Project_Details[[#This Row],[RIN Asset Description]],17)="Power Transformer",IF((Project_Details[[#This Row],[ExpenditureAfter2017IsNotUsed]]=TRUE),FALSE,TRUE),"NA") -> NA | BJ45: 0 | BK45: 68.95624873 | BL45: 68.95624873 | BM45: 0 | BN45: 68.95624873 | BO45: =IFERROR(("None"=VLOOKUP(Project_Details[[#This Row],[ProjectID]],ProjectData[],MATCH("RepexDollarsBasis",ProjectData[#Headers],0),FALSE)),FALSE) -> FALSE | BP45: =IF(ISNUMBER(Project_Details[[#This Row],[Capitalisation Year]]),(Project_Details[[#This Row],[Capitalisation Year]]>=2016),"NA") -> NA | BQ45: =(Project_Details[[#This Row],[ID]]=(ROW()-ProjectDetailsTableStartRow)) -> TRUE | BR45: =VLOOKUP(Project_Details[[#This Row],[ProjectID]],ProjectData[],MATCH("Specific Approved Project", ProjectData[#Headers],0),FALSE) -> FALSE | BS45: =VLOOKUP(Project_Details[[#This Row],[ProjectID]],ProjectData[],5,FALSE) -> Replacement
A46: 37 | B46: 7 | C46: =Project_Details[ID] -> 37 | D46: Switchgear_CT_66kV | E46: NOT ASSIGNED | F46: =ISNUMBER(MATCH(Project_Details[[#This Row],[RIN Asset Description]],Lookup_RIN_AssetCategory,0)) -> TRUE | X46: 230.9226268 | Y46: 210.5024496 | Z46: 191.8181809 | AA46: 175.3015981 | AB46: 161.3259427 | AD46: =IF((VLOOKUP(Project_Details[[#This Row],[ProjectID]],ProjectData[],MATCH("Capitalisation",ProjectData[#Headers],0),FALSE)="Project Close"),ISNUMBER(Project_Details[[#This Row],[Capitalisation Year]]),"NA") -> NA | AS46: 0.2918348559 | AT46: 0.2527684347 | AU46: =MAX(ABS(Project_Details[[#This Row],[WIP]:[NomIncur2022]]))>0 -> FALSE | AV46: =MAX(ABS(Project_Details[[#This Row],[RealIncur2016]:[RealIncur2022]]))>0 -> TRUE | AW46: =OR(AND(Project_Details[[#This Row],[DollarBasisImpliesNominal]],NOT(Project_Details[[#This Row],[DollarBasisImpliesReal1516]])), AND(NOT(Project_Details[[#This Row],[DollarBasisImpliesNominal]]),Project_Details[[#This Row],[DollarBasisImpliesReal1516]]),AND(NOT(Project_Details[[#This Row],[DollarBasisImpliesNominal]]),NOT(Project_Details[[#This Row],[DollarBasisImpliesReal1516]]),OR(Project_Details[[#This Row],[HasDecomms?]],Project_Details[[#This Row],[ProjectHasNoDollarBasis]]))) -> TRUE | AX46: =IFERROR(OR(AND(Project_Details[[#This Row],[DollarBasisImpliesNominal]],VLOOKUP(Project_Details[[#This Row],[ProjectID]],ProjectData[],MATCH("RepexDollarsBasis",ProjectData[#Headers],0),FALSE)="Nominal"),AND(Project_Details[[#This Row],[DollarBasisImpliesReal1516]],VLOOKUP(Project_Details[[#This Row],[ProjectID]],ProjectData[],MATCH("RepexDollarsBasis",ProjectData[#Headers],0),FALSE)="Real1516"),Project_Details[[#This Row],[HasDecomms?]],Project_Details[[#This Row],[ProjectHasNoDollarBasis]]),FALSE) -> TRUE | AY46: =IF(Project_Details[[#This Row],[DollarBasisImpliesReal1516]],AND(ISNUMBER(Project_Details[[#This Row],[Labour Internal]]),ISNUMBER(Project_Details[[#This Row],[Labour External]])),"NA") -> TRUE | AZ46: =IF(Project_Details[[#This Row],[DollarBasisImpliesNominal]],NOT(OR(ISNUMBER(Project_Details[[#This Row],[Labour Internal]]),ISNUMBER(Project_Details[[#This Row],[Labour External]]))),"NA") -> NA | BA46: =IF(AND(Project_Details[[#This Row],[NomIncur2017]]=0,Project_Details[[#This Row],[WIP]]<>0),2017,IF(AND(Project_Details[[#This Row],[NomIncur2017]]=0,Project_Details[[#This Row],[NomIncur2016]]<>0),2016,IF(AND(Project_Details[[#This Row],[NomIncur2018]]=0,Project_Details[[#This Row],[NomIncur2017]]<>0),2017,IF(AND(Project_Details[[#This Row],[NomIncur2019]]=0,Project_Details[[#This Row],[NomIncur2018]]<>0),2018,IF(AND(Project_Details[[#This Row],[NomIncur2020]]=0,Project_Details[[#This Row],[NomIncur2019]]<>0),2019,IF(AND(Project_Details[[#This Row],[NomIncur2021]]=0,Project_Details[[#This Row],[NomIncur2020]]<>0),2020,IF(AND(Project_Details[[#This Row],[NomIncur2022]]=0,Project_Details[[#This Row],[NomIncur2021]]<>0),2021,IF(Project_Details[[#This Row],[NomIncur2022]]<>0,2022,"")))))))) ->  | BC46: =IF(OR(Project_Details[[#This Row],[HasDecomms?]],NOT(ISNUMBER(Project_Details[[#This Row],[Capitalisation Year]]))), "NA", OR(Project_Details[[#This Row],[OverWrite_CashFlowAndCapitalisationYearAreOK]],(Project_Details[[#This Row],[LastYearOfNominalCashFlow]]=Project_Details[[#This Row],[Capitalisation Year]]))) -> NA | BD46: =NOT(AND(Project_Details[[#This Row],[DollarBasisImpliesNominal]],OR(ISNUMBER(Project_Details[[#This Row],[Labour Internal]]),ISNUMBER(Project_Details[[#This Row],[Labour External]])))) -> TRUE | BF46: =OR(Project_Details[[#This Row],[DecomQty2016]]>0,Project_Details[[#This Row],[DecomQty2017]]>0,Project_Details[[#This Row],[DecomQty2018]]>0,Project_Details[[#This Row],[DecomQty2019]]>0,Project_Details[[#This Row],[DecomQty2020]]>0,Project_Details[[#This Row],[DecomQty2021]]>0,Project_Details[[#This Row],[DecomQty2022]]>0) -> FALSE | BG46: =IF(LEFT(Project_Details[[#This Row],[RIN Asset Description]],17)="Power Transformer",IF((Project_Details[[#This Row],[ExpenditureAfter2017IsNotUsed]]=TRUE),FALSE,TRUE),"NA") -> NA | BJ46: 177.3160682 | BK46: 265.9741022 | BL46: 177.3160682 | BM46: 265.9741022 | BN46: 177.3160682 | BO46: =IFERROR(("None"=VLOOKUP(Project_Details[[#This Row],[ProjectID]],ProjectData[],MATCH("RepexDollarsBasis",ProjectData[#Headers],0),FALSE)),FALSE) -> FALSE | BP46: =IF(ISNUMBER(Project_Details[[#This Row],[Capitalisation Year]]),(Project_Details[[#This Row],[Capitalisation Year]]>=2016),"NA") -> NA | BQ46: =(Project_Details[[#This Row],[ID]]=(ROW()-ProjectDetailsTableStartRow)) -> TRUE | BR46: =VLOOKUP(Project_Details[[#This Row],[ProjectID]],ProjectData[],MATCH("Specific Approved Project", ProjectData[#Headers],0),FALSE) -> FALSE | BS46: =VLOOKUP(Project_Details[[#This Row],[ProjectID]],ProjectData[],5,FALSE) -> Replacement
A47: 38 | B47: 7 | C47: =Project_Details[ID] -> 38 | D47: Switchgear_CT_132kV | E47: NOT ASSIGNED | F47: =ISNUMBER(MATCH(Project_Details[[#This Row],[RIN Asset Description]],Lookup_RIN_AssetCategory,0)) -> TRUE | X47: 4560.683811 | Y47: 4238.864081 | Z47: 3949.808803 | AA47: 3684.93752 | AB47: 3443.121684 | AD47: =IF((VLOOKUP(Project_Details[[#This Row],[ProjectID]],ProjectData[],MATCH("Capitalisation",ProjectData[#Headers],0),FALSE)="Project Close"),ISNUMBER(Project_Details[[#This Row],[Capitalisation Year]]),"NA") -> NA | AS47: 0.2918348559 | AT47: 0.2470824371 | AU47: =MAX(ABS(Project_Details[[#This Row],[WIP]:[NomIncur2022]]))>0 -> FALSE | AV47: =MAX(ABS(Project_Details[[#This Row],[RealIncur2016]:[RealIncur2022]]))>0 -> TRUE | AW47: =OR(AND(Project_Details[[#This Row],[DollarBasisImpliesNominal]],NOT(Project_Details[[#This Row],[DollarBasisImpliesReal1516]])), AND(NOT(Project_Details[[#This Row],[DollarBasisImpliesNominal]]),Project_Details[[#This Row],[DollarBasisImpliesReal1516]]),AND(NOT(Project_Details[[#This Row],[DollarBasisImpliesNominal]]),NOT(Project_Details[[#This Row],[DollarBasisImpliesReal1516]]),OR(Project_Details[[#This Row],[HasDecomms?]],Project_Details[[#This Row],[ProjectHasNoDollarBasis]]))) -> TRUE | AX47: =IFERROR(OR(AND(Project_Details[[#This Row],[DollarBasisImpliesNominal]],VLOOKUP(Project_Details[[#This Row],[ProjectID]],ProjectData[],MATCH("RepexDollarsBasis",ProjectData[#Headers],0),FALSE)="Nominal"),AND(Project_Details[[#This Row],[DollarBasisImpliesReal1516]],VLOOKUP(Project_Details[[#This Row],[ProjectID]],ProjectData[],MATCH("RepexDollarsBasis",ProjectData[#Headers],0),FALSE)="Real1516"),Project_Details[[#This Row],[HasDecomms?]],Project_Details[[#This Row],[ProjectHasNoDollarBasis]]),FALSE) -> TRUE | AY47: =IF(Project_Details[[#This Row],[DollarBasisImpliesReal1516]],AND(ISNUMBER(Project_Details[[#This Row],[Labour Internal]]),ISNUMBER(Project_Details[[#This Row],[Labour External]])),"NA") -> TRUE | AZ47: =IF(Project_Details[[#This Row],[DollarBasisImpliesNominal]],NOT(OR(ISNUMBER(Project_Details[[#This Row],[Labour Internal]]),ISNUMBER(Project_Details[[#This Row],[Labour External]]))),"NA") -> NA | BA47: =IF(AND(Project_Details[[#This Row],[NomIncur2017]]=0,Project_Details[[#This Row],[WIP]]<>0),2017,IF(AND(Project_Details[[#This Row],[NomIncur2017]]=0,Project_Details[[#This Row],[NomIncur2016]]<>0),2016,IF(AND(Project_Details[[#This Row],[NomIncur2018]]=0,Project_Details[[#This Row],[NomIncur2017]]<>0),2017,IF(AND(Project_Details[[#This Row],[NomIncur2019]]=0,Project_Details[[#This Row],[NomIncur2018]]<>0),2018,IF(AND(Project_Details[[#This Row],[NomIncur2020]]=0,Project_Details[[#This Row],[NomIncur2019]]<>0),2019,IF(AND(Project_Details[[#This Row],[NomIncur2021]]=0,Project_Details[[#This Row],[NomIncur2020]]<>0),2020,IF(AND(Project_Details[[#This Row],[NomIncur2022]]=0,Project_Details[[#This Row],[NomIncur2021]]<>0),2021,IF(Project_Details[[#This Row],[NomIncur2022]]<>0,2022,"")))))))) ->  | BC47: =IF(OR(Project_Details[[#This Row],[HasDecomms?]],NOT(ISNUMBER(Project_Details[[#This Row],[Capitalisation Year]]))), "NA", OR(Project_Details[[#This Row],[OverWrite_CashFlowAndCapitalisationYearAreOK]],(Project_Details[[#This Row],[LastYearOfNominalCashFlow]]=Project_Details[[#This Row],[Capitalisation Year]]))) -> NA | BD47: =NOT(AND(Project_Details[[#This Row],[DollarBasisImpliesNominal]],OR(ISNUMBER(Project_Details[[#This Row],[Labour Internal]]),ISNUMBER(Project_Details[[#This Row],[Labour External]])))) -> TRUE | BF47: =OR(Project_Details[[#This Row],[DecomQty2016]]>0,Project_Details[[#This Row],[DecomQty2017]]>0,Project_Details[[#This Row],[DecomQty2018]]>0,Project_Details[[#This Row],[DecomQty2019]]>0,Project_Details[[#This Row],[DecomQty2020]]>0,Project_Details[[#This Row],[DecomQty2021]]>0,Project_Details[[#This Row],[DecomQty2022]]>0) -> FALSE | BG47: =IF(LEFT(Project_Details[[#This Row],[RIN Asset Description]],17)="Power Transformer",IF((Project_Details[[#This Row],[ExpenditureAfter2017IsNotUsed]]=TRUE),FALSE,TRUE),"NA") -> NA | BJ47: 4881.259213 | BK47: 4648.818298 | BL47: 4183.936468 | BM47: 3951.495553 | BN47: 3719.054639 | BO47: =IFERROR(("None"=VLOOKUP(Project_Details[[#This Row],[ProjectID]],ProjectData[],MATCH("RepexDollarsBasis",ProjectData[#Headers],0),FALSE)),FALSE) -> FALSE | BP47: =IF(ISNUMBER(Project_Details[[#This Row],[Capitalisation Year]]),(Project_Details[[#This Row],[Capitalisation Year]]>=2016),"NA") -> NA | BQ47: =(Project_Details[[#This Row],[ID]]=(ROW()-ProjectDetailsTableStartRow)) -> TRUE | BR47: =VLOOKUP(Project_Details[[#This Row],[ProjectID]],ProjectData[],MATCH("Specific Approved Project", ProjectData[#Headers],0),FALSE) -> FALSE | BS47: =VLOOKUP(Project_Details[[#This Row],[ProjectID]],ProjectData[],5,FALSE) -> Replacement
A48: 39 | B48: 7 | C48: =Project_Details[ID] -> 39 | D48: Switchgear_CT_275kV | E48: NOT ASSIGNED | F48: =ISNUMBER(MATCH(Project_Details[[#This Row],[RIN Asset Description]],Lookup_RIN_AssetCategory,0)) -> TRUE | X48: 2281.941615 | Y48: 2093.912839 | Z48: 1931.46844 | AA48: 1797.141567 | AB48: 1691.659788 | AD48: =IF((VLOOKUP(Project_Details[[#This Row],[ProjectID]],ProjectData[],MATCH("Capitalisation",ProjectData[#Headers],0),FALSE)="Project Close"),ISNUMBER(Project_Details[[#This Row],[Capitalisation Year]]),"NA") -> NA | AS48: 0.2918348559 | AT48: 0.2422234938 | AU48: =MAX(ABS(Project_Details[[#This Row],[WIP]:[NomIncur2022]]))>0 -> FALSE | AV48: =MAX(ABS(Project_Details[[#This Row],[RealIncur2016]:[RealIncur2022]]))>0 -> TRUE | AW48: =OR(AND(Project_Details[[#This Row],[DollarBasisImpliesNominal]],NOT(Project_Details[[#This Row],[DollarBasisImpliesReal1516]])), AND(NOT(Project_Details[[#This Row],[DollarBasisImpliesNominal]]),Project_Details[[#This Row],[DollarBasisImpliesReal1516]]),AND(NOT(Project_Details[[#This Row],[DollarBasisImpliesNominal]]),NOT(Project_Details[[#This Row],[DollarBasisImpliesReal1516]]),OR(Project_Details[[#This Row],[HasDecomms?]],Project_Details[[#This Row],[ProjectHasNoDollarBasis]]))) -> TRUE | AX48: =IFERROR(OR(AND(Project_Details[[#This Row],[DollarBasisImpliesNominal]],VLOOKUP(Project_Details[[#This Row],[ProjectID]],ProjectData[],MATCH("RepexDollarsBasis",ProjectData[#Headers],0),FALSE)="Nominal"),AND(Project_Details[[#This Row],[DollarBasisImpliesReal1516]],VLOOKUP(Project_Details[[#This Row],[ProjectID]],ProjectData[],MATCH("RepexDollarsBasis",ProjectData[#Headers],0),FALSE)="Real1516"),Project_Details[[#This Row],[HasDecomms?]],Project_Details[[#This Row],[ProjectHasNoDollarBasis]]),FALSE) -> TRUE | AY48: =IF(Project_Details[[#This Row],[DollarBasisImpliesReal1516]],AND(ISNUMBER(Project_Details[[#This Row],[Labour Internal]]),ISNUMBER(Project_Details[[#This Row],[Labour External]])),"NA") -> TRUE | AZ48: =IF(Project_Details[[#This Row],[DollarBasisImpliesNominal]],NOT(OR(ISNUMBER(Project_Details[[#This Row],[Labour Internal]]),ISNUMBER(Project_Details[[#This Row],[Labour External]]))),"NA") -> NA | BA48: =IF(AND(Project_Details[[#This Row],[NomIncur2017]]=0,Project_Details[[#This Row],[WIP]]<>0),2017,IF(AND(Project_Details[[#This Row],[NomIncur2017]]=0,Project_Details[[#This Row],[NomIncur2016]]<>0),2016,IF(AND(Project_Details[[#This Row],[NomIncur2018]]=0,Project_Details[[#This Row],[NomIncur2017]]<>0),2017,IF(AND(Project_Details[[#This Row],[NomIncur2019]]=0,Project_Details[[#This Row],[NomIncur2018]]<>0),2018,IF(AND(Project_Details[[#This Row],[NomIncur2020]]=0,Project_Details[[#This Row],[NomIncur2019]]<>0),2019,IF(AND(Project_Details[[#This Row],[NomIncur2021]]=0,Project_Details[[#This Row],[NomIncur2020]]<>0),2020,IF(AND(Project_Details[[#This Row],[NomIncur2022]]=0,Project_Details[[#This Row],[NomIncur2021]]<>0),2021,IF(Project_Details[[#This Row],[NomIncur2022]]<>0,2022,"")))))))) ->  | BC48: =IF(OR(Project_Details[[#This Row],[HasDecomms?]],NOT(ISNUMBER(Project_Details[[#This Row],[Capitalisation Year]]))), "NA", OR(Project_Details[[#This Row],[OverWrite_CashFlowAndCapitalisationYearAreOK]],(Project_Details[[#This Row],[LastYearOfNominalCashFlow]]=Project_Details[[#This Row],[Capitalisation Year]]))) -> NA | BD48: =NOT(AND(Project_Details[[#This Row],[DollarBasisImpliesNominal]],OR(ISNUMBER(Project_Details[[#This Row],[Labour Internal]]),ISNUMBER(Project_Details[[#This Row],[Labour External]])))) -> TRUE | BF48: =OR(Project_Details[[#This Row],[DecomQty2016]]>0,Project_Details[[#This Row],[DecomQty2017]]>0,Project_Details[[#This Row],[DecomQty2018]]>0,Project_Details[[#This Row],[DecomQty2019]]>0,Project_Details[[#This Row],[DecomQty2020]]>0,Project_Details[[#This Row],[DecomQty2021]]>0,Project_Details[[#This Row],[DecomQty2022]]>0) -> FALSE | BG48: =IF(LEFT(Project_Details[[#This Row],[RIN Asset Description]],17)="Power Transformer",IF((Project_Details[[#This Row],[ExpenditureAfter2017IsNotUsed]]=TRUE),FALSE,TRUE),"NA") -> NA | BJ48: 2598.953863 | BK48: 2259.959881 | BL48: 2033.963893 | BM48: 1920.965899 | BN48: 1807.967905 | BO48: =IFERROR(("None"=VLOOKUP(Project_Details[[#This Row],[ProjectID]],ProjectData[],MATCH("RepexDollarsBasis",ProjectData[#Headers],0),FALSE)),FALSE) -> FALSE | BP48: =IF(ISNUMBER(Project_Details[[#This Row],[Capitalisation Year]]),(Project_Details[[#This Row],[Capitalisation Year]]>=2016),"NA") -> NA | BQ48: =(Project_Details[[#This Row],[ID]]=(ROW()-ProjectDetailsTableStartRow)) -> TRUE | BR48: =VLOOKUP(Project_Details[[#This Row],[ProjectID]],ProjectData[],MATCH("Specific Approved Project", ProjectData[#Headers],0),FALSE) -> FALSE | BS48: =VLOOKUP(Project_Details[[#This Row],[ProjectID]],ProjectData[],5,FALSE) -> Replacement
A49: 40 | B49: 7 | C49: =Project_Details[ID] -> 40 | D49: Switchgear_CT_330kV | E49: NOT ASSIGNED | F49: =ISNUMBER(MATCH(Project_Details[[#This Row],[RIN Asset Description]],Lookup_RIN_AssetCategory,0)) -> TRUE | X49: 0.1442483547 | Y49: 0.2648513494 | Z49: 0.4725336523 | AA49: 0.819282564 | AB49: 1.380516047 | AD49: =IF((VLOOKUP(Project_Details[[#This Row],[ProjectID]],ProjectData[],MATCH("Capitalisation",ProjectData[#Headers],0),FALSE)="Project Close"),ISNUMBER(Project_Details[[#This Row],[Capitalisation Year]]),"NA") -> NA | AS49: 0.2918348559 | AT49: 0.2346766244 | AU49: =MAX(ABS(Project_Details[[#This Row],[WIP]:[NomIncur2022]]))>0 -> FALSE | AV49: =MAX(ABS(Project_Details[[#This Row],[RealIncur2016]:[RealIncur2022]]))>0 -> TRUE | AW49: =OR(AND(Project_Details[[#This Row],[DollarBasisImpliesNominal]],NOT(Project_Details[[#This Row],[DollarBasisImpliesReal1516]])), AND(NOT(Project_Details[[#This Row],[DollarBasisImpliesNominal]]),Project_Details[[#This Row],[DollarBasisImpliesReal1516]]),AND(NOT(Project_Details[[#This Row],[DollarBasisImpliesNominal]]),NOT(Project_Details[[#This Row],[DollarBasisImpliesReal1516]]),OR(Project_Details[[#This Row],[HasDecomms?]],Project_Details[[#This Row],[ProjectHasNoDollarBasis]]))) -> TRUE | AX49: =IFERROR(OR(AND(Project_Details[[#This Row],[DollarBasisImpliesNominal]],VLOOKUP(Project_Details[[#This Row],[ProjectID]],ProjectData[],MATCH("RepexDollarsBasis",ProjectData[#Headers],0),FALSE)="Nominal"),AND(Project_Details[[#This Row],[DollarBasisImpliesReal1516]],VLOOKUP(Project_Details[[#This Row],[ProjectID]],ProjectData[],MATCH("RepexDollarsBasis",ProjectData[#Headers],0),FALSE)="Real1516"),Project_Details[[#This Row],[HasDecomms?]],Project_Details[[#This Row],[ProjectHasNoDollarBasis]]),FALSE) -> TRUE | AY49: =IF(Project_Details[[#This Row],[DollarBasisImpliesReal1516]],AND(ISNUMBER(Project_Details[[#This Row],[Labour Internal]]),ISNUMBER(Project_Details[[#This Row],[Labour External]])),"NA") -> TRUE | AZ49: =IF(Project_Details[[#This Row],[DollarBasisImpliesNominal]],NOT(OR(ISNUMBER(Project_Details[[#This Row],[Labour Internal]]),ISNUMBER(Project_Details[[#This Row],[Labour External]]))),"NA") -> NA | BA49: =IF(AND(Project_Details[[#This Row],[NomIncur2017]]=0,Project_Details[[#This Row],[WIP]]<>0),2017,IF(AND(Project_Details[[#This Row],[NomIncur2017]]=0,Project_Details[[#This Row],[NomIncur2016]]<>0),2016,IF(AND(Project_Details[[#This Row],[NomIncur2018]]=0,Project_Details[[#This Row],[NomIncur2017]]<>0),2017,IF(AND(Project_Details[[#This Row],[NomIncur2019]]=0,Project_Details[[#This Row],[NomIncur2018]]<>0),2018,IF(AND(Project_Details[[#This Row],[NomIncur2020]]=0,Project_Details[[#This Row],[NomIncur2019]]<>0),2019,IF(AND(Project_Details[[#This Row],[NomIncur2021]]=0,Project_Details[[#This Row],[NomIncur2020]]<>0),2020,IF(AND(Project_Details[[#This Row],[NomIncur2022]]=0,Project_Details[[#This Row],[NomIncur2021]]<>0),2021,IF(Project_Details[[#This Row],[NomIncur2022]]<>0,2022,"")))))))) ->  | BC49: =IF(OR(Project_Details[[#This Row],[HasDecomms?]],NOT(ISNUMBER(Project_Details[[#This Row],[Capitalisation Year]]))), "NA", OR(Project_Details[[#This Row],[OverWrite_CashFlowAndCapitalisationYearAreOK]],(Project_Details[[#This Row],[LastYearOfNominalCashFlow]]=Project_Details[[#This Row],[Capitalisation Year]]))) -> NA | BD49: =NOT(AND(Project_Details[[#This Row],[DollarBasisImpliesNominal]],OR(ISNUMBER(Project_Details[[#This Row],[Labour Internal]]),ISNUMBER(Project_Details[[#This Row],[Labour External]])))) -> TRUE | BF49: =OR(Project_Details[[#This Row],[DecomQty2016]]>0,Project_Details[[#This Row],[DecomQty2017]]>0,Project_Details[[#This Row],[DecomQty2018]]>0,Project_Details[[#This Row],[DecomQty2019]]>0,Project_Details[[#This Row],[DecomQty2020]]>0,Project_Details[[#This Row],[DecomQty2021]]>0,Project_Details[[#This Row],[DecomQty2022]]>0) -> FALSE | BG49: =IF(LEFT(Project_Details[[#This Row],[RIN Asset Description]],17)="Power Transformer",IF((Project_Details[[#This Row],[ExpenditureAfter2017IsNotUsed]]=TRUE),FALSE,TRUE),"NA") -> NA | BJ49: 0 | BK49: 0 | BL49: 0 | BM49: 0 | BN49: 0 | BO49: =IFERROR(("None"=VLOOKUP(Project_Details[[#This Row],[ProjectID]],ProjectData[],MATCH("RepexDollarsBasis",ProjectData[#Headers],0),FALSE)),FALSE) -> FALSE | BP49: =IF(ISNUMBER(Project_Details[[#This Row],[Capitalisation Year]]),(Project_Details[[#This Row],[Capitalisation Year]]>=2016),"NA") -> NA | BQ49: =(Project_Details[[#This Row],[ID]]=(ROW()-ProjectDetailsTableStartRow)) -> TRUE | BR49: =VLOOKUP(Project_Details[[#This Row],[ProjectID]],ProjectData[],MATCH("Specific Approved Project", ProjectData[#Headers],0),FALSE) -> FALSE | BS49: =VLOOKUP(Project_Details[[#This Row],[ProjectID]],ProjectData[],5,FALSE) -> Replacement
A50: 41 | B50: 999 | C50: =Project_Details[ID] -> 41 | E50: NOT ASSIGNED | F50: =ISNUMBER(MATCH(Project_Details[[#This Row],[RIN Asset Description]],Lookup_RIN_AssetCategory,0)) -> TRUE | AD50: =IF((VLOOKUP(Project_Details[[#This Row],[ProjectID]],ProjectData[],MATCH("Capitalisation",ProjectData[#Headers],0),FALSE)="Project Close"),ISNUMBER(Project_Details[[#This Row],[Capitalisation Year]]),"NA") ->  | AU50: =MAX(ABS(Project_Details[[#This Row],[WIP]:[NomIncur2022]]))>0 -> FALSE | AV50: =MAX(ABS(Project_Details[[#This Row],[RealIncur2016]:[RealIncur2022]]))>0 -> FALSE | AW50: =OR(AND(Project_Details[[#This Row],[DollarBasisImpliesNominal]],NOT(Project_Details[[#This Row],[DollarBasisImpliesReal1516]])), AND(NOT(Project_Details[[#This Row],[DollarBasisImpliesNominal]]),Project_Details[[#This Row],[DollarBasisImpliesReal1516]]),AND(NOT(Project_Details[[#This Row],[DollarBasisImpliesNominal]]),NOT(Project_Details[[#This Row],[DollarBasisImpliesReal1516]]),OR(Project_Details[[#This Row],[HasDecomms?]],Project_Details[[#This Row],[ProjectHasNoDollarBasis]]))) -> FALSE | AX50: =IFERROR(OR(AND(Project_Details[[#This Row],[DollarBasisImpliesNominal]],VLOOKUP(Project_Details[[#This Row],[ProjectID]],ProjectData[],MATCH("RepexDollarsBasis",ProjectData[#Headers],0),FALSE)="Nominal"),AND(Project_Details[[#This Row],[DollarBasisImpliesReal1516]],VLOOKUP(Project_Details[[#This Row],[ProjectID]],ProjectData[],MATCH("RepexDollarsBasis",ProjectData[#Headers],0),FALSE)="Real1516"),Project_Details[[#This Row],[HasDecomms?]],Project_Details[[#This Row],[ProjectHasNoDollarBasis]]),FALSE) -> FALSE | AY50: =IF(Project_Details[[#This Row],[DollarBasisImpliesReal1516]],AND(ISNUMBER(Project_Details[[#This Row],[Labour Internal]]),ISNUMBER(Project_Details[[#This Row],[Labour External]])),"NA") -> NA | AZ50: =IF(Project_Details[[#This Row],[DollarBasisImpliesNominal]],NOT(OR(ISNUMBER(Project_Details[[#This Row],[Labour Internal]]),ISNUMBER(Project_Details[[#This Row],[Labour External]]))),"NA") -> NA | BA50: =IF(AND(Project_Details[[#This Row],[NomIncur2017]]=0,Project_Details[[#This Row],[WIP]]<>0),2017,IF(AND(Project_Details[[#This Row],[NomIncur2017]]=0,Project_Details[[#This Row],[NomIncur2016]]<>0),2016,IF(AND(Project_Details[[#This Row],[NomIncur2018]]=0,Project_Details[[#This Row],[NomIncur2017]]<>0),2017,IF(AND(Project_Details[[#This Row],[NomIncur2019]]=0,Project_Details[[#This Row],[NomIncur2018]]<>0),2018,IF(AND(Project_Details[[#This Row],[NomIncur2020]]=0,Project_Details[[#This Row],[NomIncur2019]]<>0),2019,IF(AND(Project_Details[[#This Row],[NomIncur2021]]=0,Project_Details[[#This Row],[NomIncur2020]]<>0),2020,IF(AND(Project_Details[[#This Row],[NomIncur2022]]=0,Project_Details[[#This Row],[NomIncur2021]]<>0),2021,IF(Project_Details[[#This Row],[NomIncur2022]]<>0,2022,"")))))))) ->  | BC50: =IF(OR(Project_Details[[#This Row],[HasDecomms?]],NOT(ISNUMBER(Project_Details[[#This Row],[Capitalisation Year]]))), "NA", OR(Project_Details[[#This Row],[OverWrite_CashFlowAndCapitalisationYearAreOK]],(Project_Details[[#This Row],[LastYearOfNominalCashFlow]]=Project_Details[[#This Row],[Capitalisation Year]]))) -> NA | BD50: =NOT(AND(Project_Details[[#This Row],[DollarBasisImpliesNominal]],OR(ISNUMBER(Project_Details[[#This Row],[Labour Internal]]),ISNUMBER(Project_Details[[#This Row],[Labour External]])))) -> TRUE | BF50: =OR(Project_Details[[#This Row],[DecomQty2016]]>0,Project_Details[[#This Row],[DecomQty2017]]>0,Project_Details[[#This Row],[DecomQty2018]]>0,Project_Details[[#This Row],[DecomQty2019]]>0,Project_Details[[#This Row],[DecomQty2020]]>0,Project_Details[[#This Row],[DecomQty2021]]>0,Project_Details[[#This Row],[DecomQty2022]]>0) -> FALSE | BG50: =IF(LEFT(Project_Details[[#This Row],[RIN Asset Description]],17)="Power Transformer",IF((Project_Details[[#This Row],[ExpenditureAfter2017IsNotUsed]]=TRUE),FALSE,TRUE),"NA") -> NA | BO50: =IFERROR(("None"=VLOOKUP(Project_Details[[#This Row],[ProjectID]],ProjectData[],MATCH("RepexDollarsBasis",ProjectData[#Headers],0),FALSE)),FALSE) -> FALSE | BP50: =IF(ISNUMBER(Project_Details[[#This Row],[Capitalisation Year]]),(Project_Details[[#This Row],[Capitalisation Year]]>=2016),"NA") -> NA | BQ50: =(Project_Details[[#This Row],[ID]]=(ROW()-ProjectDetailsTableStartRow)) -> TRUE | BR50: =VLOOKUP(Project_Details[[#This Row],[ProjectID]],ProjectData[],MATCH("Specific Approved Project", ProjectData[#Headers],0),FALSE) ->  | BS50: =VLOOKUP(Project_Details[[#This Row],[ProjectID]],ProjectData[],5,FALSE) -> 
A51: 42 | B51: 8 | C51: =Project_Details[ID] -> 42 | D51: Bay Non Bay | E51: NOT ASSIGNED | F51: =ISNUMBER(MATCH(Project_Details[[#This Row],[RIN Asset Description]],Lookup_RIN_AssetCategory,0)) -> TRUE | X51: 36350.02205 | Y51: 34200.01897 | Z51: 33878.9213 | AA51: 34684.73128 | AB51: 36202.04899 | AD51: =IF((VLOOKUP(Project_Details[[#This Row],[ProjectID]],ProjectData[],MATCH("Capitalisation",ProjectData[#Headers],0),FALSE)="Project Close"),ISNUMBER(Project_Details[[#This Row],[Capitalisation Year]]),"NA") -> NA | AS51: 0.2918348559 | AT51: 0.4901124462 | AU51: =MAX(ABS(Project_Details[[#This Row],[WIP]:[NomIncur2022]]))>0 -> FALSE | AV51: =MAX(ABS(Project_Details[[#This Row],[RealIncur2016]:[RealIncur2022]]))>0 -> TRUE | AW51: =OR(AND(Project_Details[[#This Row],[DollarBasisImpliesNominal]],NOT(Project_Details[[#This Row],[DollarBasisImpliesReal1516]])), AND(NOT(Project_Details[[#This Row],[DollarBasisImpliesNominal]]),Project_Details[[#This Row],[DollarBasisImpliesReal1516]]),AND(NOT(Project_Details[[#This Row],[DollarBasisImpliesNominal]]),NOT(Project_Details[[#This Row],[DollarBasisImpliesReal1516]]),OR(Project_Details[[#This Row],[HasDecomms?]],Project_Details[[#This Row],[ProjectHasNoDollarBasis]]))) -> TRUE | AX51: =IFERROR(OR(AND(Project_Details[[#This Row],[DollarBasisImpliesNominal]],VLOOKUP(Project_Details[[#This Row],[ProjectID]],ProjectData[],MATCH("RepexDollarsBasis",ProjectData[#Headers],0),FALSE)="Nominal"),AND(Project_Details[[#This Row],[DollarBasisImpliesReal1516]],VLOOKUP(Project_Details[[#This Row],[ProjectID]],ProjectData[],MATCH("RepexDollarsBasis",ProjectData[#Headers],0),FALSE)="Real1516"),Project_Details[[#This Row],[HasDecomms?]],Project_Details[[#This Row],[ProjectHasNoDollarBasis]]),FALSE) -> TRUE | AY51: =IF(Project_Details[[#This Row],[DollarBasisImpliesReal1516]],AND(ISNUMBER(Project_Details[[#This Row],[Labour Internal]]),ISNUMBER(Project_Details[[#This Row],[Labour External]])),"NA") -> TRUE | AZ51: =IF(Project_Details[[#This Row],[DollarBasisImpliesNominal]],NOT(OR(ISNUMBER(Project_Details[[#This Row],[Labour Internal]]),ISNUMBER(Project_Details[[#This Row],[Labour External]]))),"NA") -> NA | BA51: =IF(AND(Project_Details[[#This Row],[NomIncur2017]]=0,Project_Details[[#This Row],[WIP]]<>0),2017,IF(AND(Project_Details[[#This Row],[NomIncur2017]]=0,Project_Details[[#This Row],[NomIncur2016]]<>0),2016,IF(AND(Project_Details[[#This Row],[NomIncur2018]]=0,Project_Details[[#This Row],[NomIncur2017]]<>0),2017,IF(AND(Project_Details[[#This Row],[NomIncur2019]]=0,Project_Details[[#This Row],[NomIncur2018]]<>0),2018,IF(AND(Project_Details[[#This Row],[NomIncur2020]]=0,Project_Details[[#This Row],[NomIncur2019]]<>0),2019,IF(AND(Project_Details[[#This Row],[NomIncur2021]]=0,Project_Details[[#This Row],[NomIncur2020]]<>0),2020,IF(AND(Project_Details[[#This Row],[NomIncur2022]]=0,Project_Details[[#This Row],[NomIncur2021]]<>0),2021,IF(Project_Details[[#This Row],[NomIncur2022]]<>0,2022,"")))))))) ->  | BC51: =IF(OR(Project_Details[[#This Row],[HasDecomms?]],NOT(ISNUMBER(Project_Details[[#This Row],[Capitalisation Year]]))), "NA", OR(Project_Details[[#This Row],[OverWrite_CashFlowAndCapitalisationYearAreOK]],(Project_Details[[#This Row],[LastYearOfNominalCashFlow]]=Project_Details[[#This Row],[Capitalisation Year]]))) -> NA | BD51: =NOT(AND(Project_Details[[#This Row],[DollarBasisImpliesNominal]],OR(ISNUMBER(Project_Details[[#This Row],[Labour Internal]]),ISNUMBER(Project_Details[[#This Row],[Labour External]])))) -> TRUE | BF51: =OR(Project_Details[[#This Row],[DecomQty2016]]>0,Project_Details[[#This Row],[DecomQty2017]]>0,Project_Details[[#This Row],[DecomQty2018]]>0,Project_Details[[#This Row],[DecomQty2019]]>0,Project_Details[[#This Row],[DecomQty2020]]>0,Project_Details[[#This Row],[DecomQty2021]]>0,Project_Details[[#This Row],[DecomQty2022]]>0) -> FALSE | BG51: =IF(LEFT(Project_Details[[#This Row],[RIN Asset Description]],17)="Power Transformer",IF((Project_Details[[#This Row],[ExpenditureAfter2017IsNotUsed]]=TRUE),FALSE,TRUE),"NA") -> NA | BJ51: 42054.1759 | BK51: 36253.59992 | BL51: 34078.38392 | BM51: 34078.38392 | BN51: 34078.38392 | BO51: =IFERROR(("None"=VLOOKUP(Project_Details[[#This Row],[ProjectID]],ProjectData[],MATCH("RepexDollarsBasis",ProjectData[#Headers],0),FALSE)),FALSE) -> FALSE | BP51: =IF(ISNUMBER(Project_Details[[#This Row],[Capitalisation Year]]),(Project_Details[[#This Row],[Capitalisation Year]]>=2016),"NA") -> NA | BQ51: =(Project_Details[[#This Row],[ID]]=(ROW()-ProjectDetailsTableStartRow)) -> TRUE | BR51: =VLOOKUP(Project_Details[[#This Row],[ProjectID]],ProjectData[],MATCH("Specific Approved Project", ProjectData[#Headers],0),FALSE) -> FALSE | BS51: =VLOOKUP(Project_Details[[#This Row],[ProjectID]],ProjectData[],5,FALSE) -> Replacement
